Workbook

Sheet Introduksjon
C2: INTRODUKSJON | L2: =Versjonslogg!D2 -> VegLCA v5.14B. 26.04.2024
C3: VegLCA inneholder to verktøy som er tilpasset henholdsvis i mellom- og senfase i veg- og baneprosjektering. Verktøyet for mellomfasen er i sin helhet i fanen Overordnet. Øvrige faner benyttes til detaljerte senfase-vurderinger. Verktøyene beregner utslipp av klimagasser (og andre miljøpåvirkninger) fra utbygging og drift og vedlikehold av veg- og baneinfrastruktur over en angitt beregningsperiode (standard satt til 60 år). Miljøpåvirkningene beregnes fra angitte mengder av de ulike materialene, komponentene og prosessene som inngår i veg- og baneinfrastrukturen, ved hjelp av utslippsfaktorer per mengdeenhet. Verktøyet følger strukturen i Vegvesenets Prosesskode 1 og 2 (2018). Mer utfyllende beskrivelse av verktøyet og veiledning for gjennomføring av analysene er å finne i brukerveiledningen.
C5: OVERORDNET VERKTØY (MELLOMFASE) | F5: Overordnet verktøy er utviklet for bruk i en planleggingsfase der man ikke har mengdedata tilgjengelig på et detaljert nivå. Tidlige anslagsvurderinger er godt grunnlag for analyser på dette stadiet. Det anbefales å lese tips til utfylling av data i fanen overordnet verktøy. Overordnet verktøy er i sin helhet i en egen fane, og det er ikke nødvendig å benytte noen av de andre fanene for å benytte dette. Det er forøvrig mulig å endre beregnings- og utslippsfaktorer, fremgangsmåte for dette er nærmere beskrevet i brukerveiledningen.
C7: DETALJERT VERKTØY (SENFASE) | D7: Inputfaner | G7: Resultatfaner | J7: Faktorer for beregninger
C8: KOMME I GANG MED ANALYSEN | F8: PROSJEKTBESKRIVELSE | I8: TOTALE MENGDER | L8: UTSLIPPSFAKTORER
C9: Dersom regnearket ikke er nullstilt etter forrige analyse, gjøres dette ved å klikke på knappen "Nullstill inndata" i prosjektbeskrivelsesfanen. Spesifikke opplysninger om byggeprosjektet som skal analyseres skal fylles ut i prosjektbeskrivelsesfanen. Analysen starter ved at man setter inn mengdedata for prosjektet i én eller flere av fanene Dagsone, Tunneler og Bruer Beregnet miljøpåvirkning tilknyttet de mengdedata som legges inn, vises fortløpende i fanen Resultater. Dersom det ikke er ønskelig/behov for å bruke prosjektspesifikke beregningsforutsetninger eller utslippsfaktorer, benyttes standard forutsetninger og faktorer som er forhåndsdefinert i verktøyet. Dermed er det tilstrekkelig å kun legge inn data i de blå fanene for å få ut resultater. Dersom man ønsker å bruke prosjektspesifikke beregningsfaktorer (for eksempel for transportdistanser eller drivstofforbruk i anleggsmaskiner), gjøres dette ved å legge inn egne verdier i fanen Beregningsfaktorer. Fullstendige analyseresultater vises i Resultater, mens et sammendrag av de viktigste resultatene vises i Sammendrag resultater. Fra denne fanen er det også mulig å skrive rapport til PDF-format. Fanen Sammendrag resultater omfatter kun utslipp av klimagasser, mens fanen Resultater har også mulighet til å vise resultater for andre miljøpåvirkninger. | F9: Her angir man grunnopplysninger om vegprosjektet som analyseres, samt definerer antall vegelementer av hver type (dagsone/tunnel/bru), og lengde for hver delstrekning. Beregningsforutsetninger Elektrisitetsmiks: Verktøyet opererer med tre scenarier for elektrisitetsmikser som bruker kan velge mellom. Scenario 1 benyttes som standard. Scenario 1: Norsk miks i byggefase og Europeisk snitt i driftsfase Scenario 2: Norsk miks i byggefase og Norsk snitt i driftsfase Scenario 3: Europeisk miks i byggefase og Europeisk snitt i driftsfase Minstekrav betong: Dersom det ikke foreligger noen minstekrav til lavkarbonbetong B i prosjektet skal dette angis her Når en skal benytte prosjektspesifikke EPD'er for materialer/komponenter skal data fra disse fylles inn i fanen Utslippsfaktorer. | I9: Denne fanen oppsummerer totalsummen av mengder som er angitt for vegprosjektet, for alle typer materialer og komponenter som er medregnet i verktøyet. Dette er listet opp under overskriften "Budsjett". Dersom man besitter faktiske mengdedata for vegprosjektet kan totale mengder skrives inn under overskriften "Regnskap", og man får beregnet reduksjon/økning i miljøpåvirkning i forhold til budsjettet. | L9: Verdier som brukes for å beregne ulike utslipp fra mengdene av materialer er gitt i denne fanen. Kolonnen til venstre, merket "Brukt i beregninger", viser settet av utslippsfaktorer som brukes i beregningene. Fanen viser opprinnelig kun utslipp av klimagasser, men ved å trykke på Vis utslippsfaktorer for flere miljøkategorier utvides fanen til å inkludere flere miljøpåvirkninger. Dersom det skal brukes prosjektspesifikke utslippsfaktorer, fylles disse inn i kolonnen "Prosjektspesifikke faktorer". Det er tilstrekkelig å fylle inn utslippsfaktorer for de prosessene man ønsker at skal være ulike de eksisterende utslippsfaktorene, standardfaktorene vil brukes der prosjektspesifikk verdi ikke er angitt. Dersom det angis prosjektspesifikke utslippsfaktorer, vil disse overstyre standardfaktorene i beregningene. Moduler i livsløpet (A1-A3, A4, B1-B6) Utslippsdata skal kun omfatte data fra råvarehenting til produktet er ferdigprodusert ved fabrikkport, A1-A3 iht. EN 15804. Utslipp fra transport av produktet til byggeplass (A4) beregnes basert på transportavstander gitt i fanen Beregningsfaktorer. Modul B1-B6 omfatter drift og vedlikehold av infrastrukturen, som beregnes ut fra angitt analyseperiode og levetider gitt i fanen Beregningsfaktorer.
I18: RESULTATER
I19: I denne fanen er beregnede klimagassutslipp fordelt på alle materialer og komponenter som er inkludert i verktøyet gitt, fordelt på dagsone, tunnel og bru for materialproduksjon, utbygging, og drift og vedlikehold. Fanen viser opprinnelig kun utslipp av klimagasser, men ved å trykke på Vis resultater for flere miljøkategorier utvides resultatvisningen til å inkludere flere miljøpåvirkninger. Resultater for utslipp av CO2 som følge av arealbruksendringer angis for seg. To ulike metoder for beregningene er benyttet, hvorav den ene baseres på masseflytting i prosesskoden og den andre baseres på totalt areal på vegen. Denne fanen inneholder svært mange verdier, og egner seg best for å vurdere enkeltmaterialenes bidrag til total miljøpåvirkning. En mer oversiktlig resultatpresentasjon er gitt i fanen Resultatsammendrag.
F29: ANLEGG
F30: I denne fanen kan man endre på forutsetnigner for maskinparken for anleggsarbeid og massetransport. Andel biodiesel er definert i henhold til omsetningskrav for hhv anleggsdiesel og diesel for veitransport. Andeler av anleggsarbeid og massetransport per drivstofftype kan varieres. Fanen viser direkte utslipp i byggefasen både med standard forutsetninger og ved valg av drivstofftype. Valg her påvirker beregninger i både verordnet verktøy og detaljert verktøy.
L33: BEREGNINGSFAKTORER
C34: Rund Sum poster | L34: Her finner man verdier som brukes for å beregne forbruk av materialer og energi gjennom livsløpet til veginfrastrukturen. Verdiene i de gråmerkede cellene er generelle faktorer som benyttes med mindre det angis prosjektspesifikke faktorer av bruker. Prosjektspesifikke faktorer skal angis i de hvite cellene (NB! må ha samme enhet som de generelle faktorene). Transportavstander som er spesielt prosjekt-avhengige er markert med kommentar Dersom det angis prosjektspesifikke beregningsfaktorer, vil disse overstyre de generelle faktorene i beregningene.
C35: For Hovedprosess 01 beregnes det utslipp knyttet til kostnader som fylles inn. Beregningene baseres på utslippsintensiteter per NOK for bransje-sektorer. For øvrige Rund Sum poster i inputfanene beregnes ikke utslipp
I37: RESULTATSAMMENDRAG
I38: I denne fanen gjengis de viktigste resultatene fra analysen presentert i tabeller og grafisk. Fanen viser kun utslipp av klimagasser. Dersom det er benyttet egne faktorer i analysen skal disse beskrives her. Resultatsammendraget kan kopieres over i en annen excelfil, og ved å trykke på "Skriv ut rapport", har man muligheten til å lagre en PDF-rapport av resultatsammendraget.
F39: PERSONTRANSPORT
C40: JERNBANEMODUL | F40: I denne fanen kan man beregne utslipp fra transport av personell til og fra anleggsplassen.
C41: Jernbaneoverbygning- og teknikk er inkludert i både Ooerordnet verktøy og detaljert verktøy. Se faner for prosesser som er tilpasset input fra bane. For jernbaneunderbygning skal eksisterende prosesser benyttes (tilsvarende som for veg). Både beregningsfaktorer og utslippsfaktorer for jernbaneoverbygning- og teknikk kan justeres, se aktuell fane. Beregninger for jernbanemodul (overbygning og jernbaneteknikk) omfatter ikke strømforbruk til fremføring av tog i driftsfasen.
F44: DAGSONE - TUNNELER - BRUER
F45: Her skal mengedata for alle relevante inputfaktorer legges inn, i henhold til oppsettet i Vegvesenets Prosesskode 1 og 2. Det er lagt til rette for å legge inn en stor mengde data, og det vil variere fra prosjekt til prosjekt hvilke data man har tilgjengelig og dermed kan legge inn. Inputfanene er strukturert etter Vegvesenets Prosesskode 1 og 2. Ikke alle prosesskodene er inkludert i regnearket, da ikke aller er relevante i forhold til miljøanalysene. Det er én fane for hvert vegelement; Dagsone, tunneler og bruer. Alle fanene er bygd opp etter prosesskodestruktur. Det er mulig å legge inn data for flere tunneler og bruer, avhengig av hvor mange tunnel- og brustrekninger som er spesifisert i fanen Prosjektbeskrivelse.
L47: SIDEBEREGNINGER
L48: Denne fanen er åpen og tilgjengelig for sideberegninger og notater.
C51: Se fane Versjonslogg for beskrivelse av gjeldende versjon og oppdatering av VegLCA. | L51: DOKUMENTASJON
L52: I denne fanen finner man dokumentasjon av beregningsfaktorer som er benyttet i beregningene. Her er dokumentasjon gitt i mer detalj enn det som er oppgitt i fanen Beregningsfaktorer.

Sheet Overordnet verktøy
BE1: <
B2: PROSJEKTBESKRIVELSE | F2: INPUT | Z2: 12
Y3: Materialtransport (transport av materialer inn til prosjektet) | Z3: =VLOOKUP(Y3,Utslippsfaktorer!$C$9:$E$460,3,FALSE) -> 0.1291815 | AA3: kg CO2 e/tkm
B5: ="Klimabudsjett for "&C16&"" -> Klimabudsjett for | F5: Materialforbruk | J5: Anleggsarbeid | K5: Mengde | U5: Konvertert mengde | W5: Utslippsfaktor, A1-A3 | Y5: Transport, A4 | Z5: Resultat, A1-A4 | AB5: Faktorer for konvertering | AL5: Sprengning | AM5: Mengde | AT5: Utslippsfaktor | AU5: Enhet utslippsfaktor
B6: =Introduksjon!L2 -> VegLCA v5.14B. 26.04.2024 | F6: Materialer | G6: Mengde | H6: Enhet | J6: Prosess | K6: Mengde | L6: Enhet | O6: Beregninger | P6: Kategori | Q6: Enhet valg | R6: Utslippsfaktor | S6: Enhet utslippsfaktor | T6: Konvertering | V6: Enhet | X6: Enhet | Y6: Tonnkm/enhet | Z6: tonn CO2-eq | AB6: Mengde | AC6: Enhet | AD6: Beskrivelse | AE6: Tetthet | AI6: Avh. Av ÅDT, cm | AL6: =J7 -> Sprengning dagen (kun sprengning) | AM6: 0 | AN6: pfm3 | AO6: =Beregningsfaktorer!M20 -> 0.7 | AP6: =Beregningsfaktorer!P20 -> kg/fm3 | AQ6: =AM6*AO6 -> 0 | AR6: kg sprengstoff | AT6: Sprengning (detonasjon, A5) | AU6: =VLOOKUP(AT6,Utslippsfaktorer!$C$9:$D$460,2,FALSE) -> kg | AV6: =VLOOKUP(AT6,Utslippsfaktorer!$C$9:$E$460,3,FALSE) -> 0.1114 | AW6: ="kg CO2-eq/"&AU6 -> kg CO2-eq/kg
F7: Asfalt, Agb | H7: Velg enhet | J7: Sprengning dagen (kun sprengning) | L7: pfm3 | O7: =F7 -> Asfalt, Agb | P7: =VLOOKUP(R7,Utslippsfaktorer!$C$9:$AM$459,Utslippsfaktorer!$AM$5,FALSE) -> Asfalt | Q7: =H7 -> Velg enhet | R7: Asfaltgrusbetong (Agb) | S7: =VLOOKUP(R7,Utslippsfaktorer!$C$9:$D$460,2,FALSE) -> kg | T7: =IF(Q7=Nedtrekksmenyer!$D$4,0,IF(Q7=S7,1,IF(Q7=Nedtrekksmenyer!$D$5,1000,IF(Q7=Nedtrekksmenyer!$D$6,AB7*AE7*1000)))) -> 0 | U7: =G7*T7 -> 0 | V7: =S7 -> kg | W7: =VLOOKUP(R7,Utslippsfaktorer!$C$9:$I$460,3,FALSE) -> 0.042 | X7: ="kg CO2-eq/"&S7 -> kg CO2-eq/kg | Y7: =VLOOKUP(R7,Beregningsfaktorer!$L$73:$Q$328,Beregningsfaktorer!$Q$73,FALSE) -> 0.1 | Z7: =(U7*W7/1000)+(U7*Y7*$Z$3)/1000 -> 0 | AB7: =($AJ$7+$AJ$8)/100 -> 0.06 | AC7: m tykkelse | AD7: Tykkelse av bindelag + slitelag | AE7: =Beregningsfaktorer!C253 -> 2.5 | AF7: =Beregningsfaktorer!F253 -> tonn/m3 | AI7: Tykkelse slitelag | AJ7: =IF(C18<1000,3,0)+IF(AND(C18>=1000,C18<3000),3.5,0)+IF(C18>=3000,4,0) -> 3 | AL7: Sprengning i tunnel (kun sprengning) | AM7: 0 | AN7: pfm3 | AO7: =Beregningsfaktorer!M23 -> 1.8 | AP7: =Beregningsfaktorer!P23 -> kg/fm3 | AQ7: =AM7*AO7 -> 0 | AR7: kg sprengstoff
B8: Informasjon om analysen | F8: Asfalt, Ab | H8: Velg enhet | J8: Sprengning i tunnel (kun sprengning) | L8: pfm3 | O8: =F8 -> Asfalt, Ab | P8: =VLOOKUP(R8,Utslippsfaktorer!$C$9:$AM$459,Utslippsfaktorer!$AM$5,FALSE) -> Asfalt | Q8: =H8 -> Velg enhet | R8: Asfaltbetong (Ab) | S8: =VLOOKUP(R8,Utslippsfaktorer!$C$9:$D$460,2,FALSE) -> kg | T8: =IF(Q8=Nedtrekksmenyer!$D$4,0,IF(Q8=S8,1,IF(Q8=Nedtrekksmenyer!$D$5,1000,IF(Q8=Nedtrekksmenyer!$D$6,AB8*AE8*1000)))) -> 0 | U8: =G8*T8 -> 0 | V8: kg | W8: =VLOOKUP(R8,Utslippsfaktorer!$C$9:$I$460,3,FALSE) -> 0.048 | X8: ="kg CO2-eq/"&S8 -> kg CO2-eq/kg | Y8: =VLOOKUP(R8,Beregningsfaktorer!$L$73:$Q$328,Beregningsfaktorer!$Q$73,FALSE) -> 0.1 | Z8: =(U8*W8/1000)+(U8*Y8*$Z$3)/1000 -> 0 | AB8: =($AJ$7+$AJ$8)/100 -> 0.06 | AC8: m tykkelse | AD8: Tykkelse av bindelag + slitelag | AE8: =Beregningsfaktorer!C253 -> 2.5 | AF8: =Beregningsfaktorer!F254 -> tonn/m3 | AI8: Tykkelse bindlag | AJ8: =IF(C18<5000,3,0)+IF(C18>=5000,4,0) -> 3 | AQ8: =AQ6+AQ7 -> 0 | AR8: kg
B9: Navn på den som har utført analysen | F9: Asfalt, Ab m/PMB | H9: Velg enhet | J9: Massehåndtering og -graving (uten transport) | L9: pfm3 | O9: Asfalt, Ab m/PMB | P9: =VLOOKUP(R9,Utslippsfaktorer!$C$9:$AM$459,Utslippsfaktorer!$AM$5,FALSE) -> Asfalt | Q9: Velg enhet | R9: Asfaltbetong (Ab PMB) | S9: =VLOOKUP(R9,Utslippsfaktorer!$C$9:$D$460,2,FALSE) -> kg | T9: =IF(Q9=Nedtrekksmenyer!$D$4,0,IF(Q9=S9,1,IF(Q9=Nedtrekksmenyer!$D$5,1000,IF(Q9=Nedtrekksmenyer!$D$6,AB9*AE9*1000)))) -> 0 | U9: =G9*T9 -> 0 | V9: kg | W9: =VLOOKUP(R9,Utslippsfaktorer!$C$9:$I$460,3,FALSE) -> 0.057 | X9: kg CO2-eq/kg | Y9: =VLOOKUP(R9,Beregningsfaktorer!$L$73:$Q$328,Beregningsfaktorer!$Q$73,FALSE) -> 0.1 | Z9: 0 | AB9: =($AJ$7+$AJ$8)/100 -> 0.06 | AC9: m tykkelse | AD9: Tykkelse av bindelag + slitelag | AE9: =$AE$8 -> 2.5 | AF9: =$AF$8 -> tonn/m3 | AG9: Antar Ab asfalt
B10: Dato for analyse | F10: Asfalt, Ska | H10: Velg enhet | J10: Transport av masser rundt på og ut av anlegg | L10: pfm3 | O10: Asfalt, Ska | P10: =VLOOKUP(R10,Utslippsfaktorer!$C$9:$AM$459,Utslippsfaktorer!$AM$5,FALSE) -> Asfalt | Q10: Velg enhet | R10: Skjelettasfalt (Ska) | S10: =VLOOKUP(R10,Utslippsfaktorer!$C$9:$D$460,2,FALSE) -> kg | T10: =IF(Q10=Nedtrekksmenyer!$D$4,0,IF(Q10=S10,1,IF(Q10=Nedtrekksmenyer!$D$5,1000,IF(Q10=Nedtrekksmenyer!$D$6,AB10*AE10*1000)))) -> 0 | U10: 0 | V10: kg | W10: =VLOOKUP(R10,Utslippsfaktorer!$C$9:$I$460,3,FALSE) -> 0.048 | X10: kg CO2-eq/kg | Y10: =VLOOKUP(R10,Beregningsfaktorer!$L$73:$Q$328,Beregningsfaktorer!$Q$73,FALSE) -> 0.1 | Z10: 0 | AB10: =($AJ$7+$AJ$8)/100 -> 0.06 | AC10: m tykkelse | AD10: Tykkelse av bindelag + slitelag | AE10: =$AE$8 -> 2.5 | AF10: =$AF$8 -> tonn/m3 | AG10: Antar Ab asfalt | AI10: Frekvens reasfaltering | AJ10: =IF(C18<5000,13,0)+IF(AND(C18>=5000,C18<10000),10,0)+IF(AND(C18>=10000,C18<20000),7,0)+IF(C18>=20000,6,0) -> 13 | AL10: Dieselforbruk anleggsarbeid | AM10: Mengde
B11: Analyseperiode (år) | E11: =IF(C11="", "Må angis", "") -> Må angis | F11: Asfalt, Ska m/PMB | H11: Velg enhet | J11: Transport av masser inn til prosjektet | L11: lm3 | O11: Asfalt, Ska m/PMB | P11: =VLOOKUP(R11,Utslippsfaktorer!$C$9:$AM$459,Utslippsfaktorer!$AM$5,FALSE) -> Asfalt | Q11: Velg enhet | R11: Skjelettasfalt (Ska PMB) | S11: =VLOOKUP(R11,Utslippsfaktorer!$C$9:$D$460,2,FALSE) -> kg | T11: =IF(Q11=Nedtrekksmenyer!$D$4,0,IF(Q11=S11,1,IF(Q11=Nedtrekksmenyer!$D$5,1000,IF(Q11=Nedtrekksmenyer!$D$6,AB11*AE11*1000)))) -> 0 | U11: 0 | V11: kg | W11: =VLOOKUP(R11,Utslippsfaktorer!$C$9:$I$460,3,FALSE) -> 0.058 | X11: kg CO2-eq/kg | Y11: =VLOOKUP(R11,Beregningsfaktorer!$L$73:$Q$328,Beregningsfaktorer!$Q$73,FALSE) -> 0.1 | Z11: 0 | AB11: =($AJ$7+$AJ$8)/100 -> 0.06 | AC11: m tykkelse | AD11: Tykkelse av bindelag + slitelag | AE11: =$AE$8 -> 2.5 | AF11: =$AF$8 -> tonn/m3 | AG11: Antar Ab asfalt | AL11: Drilling, sprengning i dagen | AM11: =AM6 -> 0 | AN11: =AN6 -> pfm3 | AO11: =Beregningsfaktorer!M49 -> 0.41 | AP11: =Beregningsfaktorer!P49 -> liter diesel/lm3 | AQ11: =AM11*AO11 -> 0 | AR11: liter Diesel
F12: Bærelag (Ag) | H12: m3 | O12: =F12 -> Bærelag (Ag) | P12: =VLOOKUP(R12,Utslippsfaktorer!$C$9:$AM$459,Utslippsfaktorer!$AM$5,FALSE) -> Asfalt | Q12: =H12 -> m3 | R12: Asfaltert grus (Ag) | S12: =VLOOKUP(R12,Utslippsfaktorer!$C$9:$D$460,2,FALSE) -> kg | T12: =IF(Q12=Nedtrekksmenyer!$D$4,0,IF(Q12=S12,1,AE12*1000)) -> 2400 | U12: 0 | V12: kg | W12: =VLOOKUP(R12,Utslippsfaktorer!$C$9:$I$460,3,FALSE) -> 0.03 | X12: kg CO2-eq/kg | Y12: =VLOOKUP(R12,Beregningsfaktorer!$L$73:$Q$328,Beregningsfaktorer!$Q$73,FALSE) -> 0.1 | Z12: 0 | AE12: =Beregningsfaktorer!C254 -> 2.4 | AF12: =$AF$8 -> tonn/m3 | AL12: Asfalt | AM12: =SUM(U7:U11)/1000 -> 0 | AN12: tonn | AO12: =Beregningsfaktorer!M56 -> 0.8 | AP12: =Beregningsfaktorer!P56 -> liter diesel/tonn | AQ12: =AM12*AO12 -> 0 | AR12: liter Diesel | AU12: =Nedtrekksmenyer!$F$4 -> RS - NOK
B13: =Prosjektbeskrivelse!C25 -> Scenario for utslippsfaktor for elektrisitetsproduksjon | C13: Velg scenario for el-miks | E13: =IF(C13="Velg scenarie for el-miks", "Må angis", "") ->  | F13: Forsterkningslag (pukk) | H13: am3 | J13: Permanente arealbeslag | O13: Forsterkningslag (pukk) | P13: =VLOOKUP(R13,Utslippsfaktorer!$C$9:$AM$459,Utslippsfaktorer!$AM$5,FALSE) -> Grus/pukk | Q13: am3 | R13: Grus/pukk | S13: =VLOOKUP(R13,Utslippsfaktorer!$C$9:$D$460,2,FALSE) -> kg | T13: =IF(Q13=Nedtrekksmenyer!$D$4,0,IF(Q13=S13,1,AE13*1000)) -> 1550 | U13: 0 | V13: kg | W13: =VLOOKUP(R13,Utslippsfaktorer!$C$9:$I$460,3,FALSE) -> 0.00315 | X13: kg CO2-eq/kg | Y13: =VLOOKUP(R13,Beregningsfaktorer!$L$73:$Q$328,Beregningsfaktorer!$Q$73,FALSE) -> 0.1 | Z13: 0 | AE13: =Beregningsfaktorer!C252 -> 1.55 | AF13: =Beregningsfaktorer!F252 -> tonn/lm3 | AL13: Bærelag (Ag) | AM13: =U12/1000/Beregningsfaktorer!C253 -> 0 | AN13: m3 | AO13: =Beregningsfaktorer!M42 -> 2 | AP13: =Beregningsfaktorer!P42 -> liter diesel/lm3 | AQ13: 0 | AR13: liter Diesel
F14: Normalbetong, B30, Bransjereferanse | H14: m3 | J14: Arealtype | K14: Mengde | L14: Enhet | O14: =F14 -> Normalbetong, B30, Bransjereferanse | P14: =VLOOKUP(R14,Utslippsfaktorer!$C$9:$AM$459,Utslippsfaktorer!$AM$5,FALSE) -> Plasstøpt betong | Q14: m3 | R14: Normalbetong, B30, Bransjereferanse | S14: =VLOOKUP(R14,Utslippsfaktorer!$C$9:$D$460,2,FALSE) -> m3 | T14: =IF(Q14=Nedtrekksmenyer!$D$4,0,IF(Q14=S14,1)) -> 1 | U14: 0 | V14: m3 | W14: =VLOOKUP(R14,Utslippsfaktorer!$C$9:$I$460,3,FALSE) -> 280 | X14: kg CO2-eq/m3 | Y14: =VLOOKUP(R14,Beregningsfaktorer!$L$73:$Q$328,Beregningsfaktorer!$Q$73,FALSE) -> 240 | Z14: 0 | AL14: Forsterkningslag (pukk) | AM14: =U13/1000/Beregningsfaktorer!C252 -> 0 | AN14: m3 | AO14: =Beregningsfaktorer!M42 -> 2 | AP14: =Beregningsfaktorer!P42 -> liter diesel/lm3 | AQ14: 0 | AR14: liter Diesel
B15: Prosjektinformasjon og forutsetninger for beregninger | F15: Normalbetong, B35, Bransjereferanse | H15: m3 | J15: Dyrket mark/matjord | L15: m3 | O15: Normalbetong, B35, Bransjereferanse | P15: =VLOOKUP(R15,Utslippsfaktorer!$C$9:$AM$459,Utslippsfaktorer!$AM$5,FALSE) -> Plasstøpt betong | Q15: m3 | R15: Normalbetong, B35, Bransjereferanse | S15: =VLOOKUP(R15,Utslippsfaktorer!$C$9:$D$460,2,FALSE) -> m3 | T15: =IF(Q15=Nedtrekksmenyer!$D$4,0,IF(Q15=S15,1)) -> 1 | U15: 0 | V15: m3 | W15: =VLOOKUP(R15,Utslippsfaktorer!$C$9:$I$460,3,FALSE) -> 330 | X15: kg CO2-eq/m3 | Y15: =VLOOKUP(R15,Beregningsfaktorer!$L$73:$Q$328,Beregningsfaktorer!$Q$73,FALSE) -> 240 | Z15: 0 | AL15: Fyllingsmateriale, skumglassgranulat | AM15: =G29 -> 0 | AN15: m3 | AO15: =Beregningsfaktorer!M35+Beregningsfaktorer!M37 -> 1.288 | AP15: =Beregningsfaktorer!P35 -> liter diesel/lm3 | AQ15: 0 | AR15: liter Diesel | AS15: antar M37 da M39 er feil enhet
B16: Utbyggingsprosjekt | F16: Normalbetong, B45, Bransjereferanse | H16: m3 | J16: Myr | L16: m3 | O16: Normalbetong, B45, Bransjereferanse | P16: =VLOOKUP(R16,Utslippsfaktorer!$C$9:$AM$459,Utslippsfaktorer!$AM$5,FALSE) -> Plasstøpt betong | Q16: m3 | R16: Normalbetong, B45, Bransjereferanse | S16: =VLOOKUP(R16,Utslippsfaktorer!$C$9:$D$460,2,FALSE) -> m3 | T16: =IF(Q16=Nedtrekksmenyer!$D$4,0,IF(Q16=S16,1)) -> 1 | U16: 0 | V16: m3 | W16: =VLOOKUP(R16,Utslippsfaktorer!$C$9:$I$460,3,FALSE) -> 360 | X16: kg CO2-eq/m3 | Y16: =VLOOKUP(R16,Beregningsfaktorer!$L$73:$Q$328,Beregningsfaktorer!$Q$73,FALSE) -> 240 | Z16: 0 | AL16: Fyllingsmateriale, lettklinker/ekspandert leire | AM16: 0 | AN16: m3 | AO16: =Beregningsfaktorer!M35+Beregningsfaktorer!M37 -> 1.288 | AP16: =Beregningsfaktorer!P35 -> liter diesel/lm3 | AQ16: 0 | AR16: liter Diesel
B17: Sted / region /prosjekttype | C17: Velg region | F17: Normalbetong, B30, Lavkarbon B | H17: m3 | J17: Skog - høy bonitet | L17: m2 | O17: Normalbetong, B30, Lavkarbon B | P17: =VLOOKUP(R17,Utslippsfaktorer!$C$9:$AM$459,Utslippsfaktorer!$AM$5,FALSE) -> Plasstøpt betong | Q17: m3 | R17: Normalbetong, B30, Lavkarbon B | S17: =VLOOKUP(R17,Utslippsfaktorer!$C$9:$D$460,2,FALSE) -> m3 | T17: =IF(Q17=Nedtrekksmenyer!$D$4,0,IF(Q17=S17,1)) -> 1 | U17: 0 | V17: m3 | W17: =VLOOKUP(R17,Utslippsfaktorer!$C$9:$I$460,3,FALSE) -> 230 | X17: kg CO2-eq/m3 | Y17: =VLOOKUP(R17,Beregningsfaktorer!$L$73:$Q$328,Beregningsfaktorer!$Q$73,FALSE) -> 240 | Z17: 0 | AL17: Fyllingsmateriale, grus/pukk | AM17: 0 | AN17: am3 | AO17: =Beregningsfaktorer!M35+Beregningsfaktorer!M37 -> 1.288 | AP17: =Beregningsfaktorer!P35 -> liter diesel/lm3 | AQ17: 0 | AR17: liter Diesel
B18: =IF(C17=Nedtrekksmenyer!C9,"","ÅDT") -> ÅDT | E18: =IF(C17=Nedtrekksmenyer!C9,"",(IF(C18="", "Må angis", ""))) -> Må angis | F18: Normalbetong, B35, Lavkarbon B | H18: m3 | J18: Skog - middels bonitet | L18: m2 | O18: Normalbetong, B35, Lavkarbon B | P18: =VLOOKUP(R18,Utslippsfaktorer!$C$9:$AM$459,Utslippsfaktorer!$AM$5,FALSE) -> Plasstøpt betong | Q18: m3 | R18: Normalbetong, B35, Lavkarbon B | S18: =VLOOKUP(R18,Utslippsfaktorer!$C$9:$D$460,2,FALSE) -> m3 | T18: =IF(Q18=Nedtrekksmenyer!$D$4,0,IF(Q18=S18,1)) -> 1 | U18: 0 | V18: m3 | W18: =VLOOKUP(R18,Utslippsfaktorer!$C$9:$I$460,3,FALSE) -> 280 | X18: kg CO2-eq/m3 | Y18: =VLOOKUP(R18,Beregningsfaktorer!$L$73:$Q$328,Beregningsfaktorer!$Q$73,FALSE) -> 240 | Z18: 0 | AL18: Stål, peler | AM18: =G45*1000/Beregningsfaktorer!C160 -> 0 | AN18: meter | AO18: =Beregningsfaktorer!M53 -> 0.5845 | AP18: =Beregningsfaktorer!P53 -> liter diesel/m | AQ18: 0 | AR18: liter Diesel
B19: =IF(C17=Nedtrekksmenyer!C9,"Antall spor","Antall felt") -> Antall felt | E19: =IF(C19="", "Må angis", "") -> Må angis | F19: Normalbetong, B45, Lavkarbon B | H19: m3 | J19: Skog - lav bonitet | L19: m2 | O19: Normalbetong, B45, Lavkarbon B | P19: =VLOOKUP(R19,Utslippsfaktorer!$C$9:$AM$459,Utslippsfaktorer!$AM$5,FALSE) -> Plasstøpt betong | Q19: m3 | R19: Normalbetong, B45, Lavkarbon B | S19: =VLOOKUP(R19,Utslippsfaktorer!$C$9:$D$460,2,FALSE) -> m3 | T19: =IF(Q19=Nedtrekksmenyer!$D$4,0,IF(Q19=S19,1)) -> 1 | U19: 0 | V19: m3 | W19: =VLOOKUP(R19,Utslippsfaktorer!$C$9:$I$460,3,FALSE) -> 290 | X19: kg CO2-eq/m3 | Y19: =VLOOKUP(R19,Beregningsfaktorer!$L$73:$Q$328,Beregningsfaktorer!$Q$73,FALSE) -> 240 | Z19: 0 | AL19: Stål, spunt | AM19: =G47 -> 0 | AN19: =H47 -> tonn | AO19: ikke tall for denne | AR19: liter Diesel
B20: Lengde dagsone (m) | E20: Må angis | F20: Normalbetong, B30, Lavkarbon A | H20: m3 | J20: Skog - uproduktiv skog | L20: m2 | O20: Normalbetong, B30, Lavkarbon A | P20: =VLOOKUP(R20,Utslippsfaktorer!$C$9:$AM$459,Utslippsfaktorer!$AM$5,FALSE) -> Plasstøpt betong | Q20: m3 | R20: Normalbetong, B30, Lavkarbon A | S20: =VLOOKUP(R20,Utslippsfaktorer!$C$9:$D$460,2,FALSE) -> m3 | T20: =IF(Q20=Nedtrekksmenyer!$D$4,0,IF(Q20=S20,1)) -> 1 | U20: 0 | V20: m3 | W20: =VLOOKUP(R20,Utslippsfaktorer!$C$9:$I$460,3,FALSE) -> 200 | X20: kg CO2-eq/m3 | Y20: =VLOOKUP(R20,Beregningsfaktorer!$L$73:$Q$328,Beregningsfaktorer!$Q$73,FALSE) -> 240 | Z20: 0 | AL20: Massehåndtering og utgraving | AM20: =K9*Beregningsfaktorer!AL29 -> 0 | AN20: lm3 | AO20: =Beregningsfaktorer!M33+Beregningsfaktorer!M34+Beregningsfaktorer!M35+Beregningsfaktorer!M33 -> 0.798 | AP20: =Beregningsfaktorer!P33 -> liter diesel/lm3 | AQ20: =AM20*AO20 -> 0 | AR20: liter Diesel | AS20: gravemakin + tipp + gravemaskin
B21: Lengde bru (m) | E21: Må angis | F21: Normalbetong, B35, Lavkarbon A | H21: m3 | O21: Normalbetong, B35, Lavkarbon A | P21: =VLOOKUP(R21,Utslippsfaktorer!$C$9:$AM$459,Utslippsfaktorer!$AM$5,FALSE) -> Plasstøpt betong | Q21: m3 | R21: Normalbetong, B35, Lavkarbon A | S21: =VLOOKUP(R21,Utslippsfaktorer!$C$9:$D$460,2,FALSE) -> m3 | T21: =IF(Q21=Nedtrekksmenyer!$D$4,0,IF(Q21=S21,1)) -> 1 | U21: 0 | V21: m3 | W21: =VLOOKUP(R21,Utslippsfaktorer!$C$9:$I$460,3,FALSE) -> 210 | X21: kg CO2-eq/m3 | Y21: =VLOOKUP(R21,Beregningsfaktorer!$L$73:$Q$328,Beregningsfaktorer!$Q$73,FALSE) -> 240 | Z21: 0 | AL21: Sum | AM21: =AT21 -> Anleggsdiesel: Innblanding biodiesel basert på omsetningskrav, B10 | AQ21: =SUM(AQ11:AQ20)*Anlegg!AB10 -> 0 | AR21: liter Diesel | AT21: =Utslippsfaktorer!C154 -> Anleggsdiesel: Innblanding biodiesel basert på omsetningskrav, B10 | AU21: l | AV21: =VLOOKUP(AT21,Utslippsfaktorer!$C$9:$E$460,3,FALSE) -> 3.0132 | AW21: ="kg CO2-eq/"&AU21 -> kg CO2-eq/l
B22: Lengde med belysning på dagsone og bru (m) | E22: Må angis | F22: Normalbetong, B45, Lavkarbon A | H22: m3 | J22: Midlertidig arealbeslag | O22: Normalbetong, B45, Lavkarbon A | P22: =VLOOKUP(R22,Utslippsfaktorer!$C$9:$AM$459,Utslippsfaktorer!$AM$5,FALSE) -> Plasstøpt betong | Q22: m3 | R22: Normalbetong, B45, Lavkarbon A | S22: =VLOOKUP(R22,Utslippsfaktorer!$C$9:$D$460,2,FALSE) -> m3 | T22: =IF(Q22=Nedtrekksmenyer!$D$4,0,IF(Q22=S22,1)) -> 1 | U22: 0 | V22: m3 | W22: =VLOOKUP(R22,Utslippsfaktorer!$C$9:$I$460,3,FALSE) -> 220 | X22: kg CO2-eq/m3 | Y22: =VLOOKUP(R22,Beregningsfaktorer!$L$73:$Q$328,Beregningsfaktorer!$Q$73,FALSE) -> 240 | Z22: 0 | AM22: =AT22 -> Diesel for veitransport: Innblanding biodiesel basert på omsetningskrav, B19 | AQ22: =SUM(AQ11:AQ20)*Anlegg!AB11 -> 0 | AR22: liter Diesel | AT22: =Utslippsfaktorer!C156 -> Diesel for veitransport: Innblanding biodiesel basert på omsetningskrav, B19 | AU22: =VLOOKUP(AT22,Utslippsfaktorer!$C$9:$D$460,2,FALSE) -> l | AV22: =VLOOKUP(AT22,Utslippsfaktorer!$C$9:$E$460,3,FALSE) -> 2.8707 | AW22: ="kg CO2-eq/"&AU22 -> kg CO2-eq/l
B23: Lengde tunnel oversjøisk (m) | E23: Må angis | F23: Betongelement, prefabrikert, lavkarbon C | H23: tonn | J23: Arealtype | K23: Mengde | L23: Enhet | O23: Betongelement, prefabrikert, lavkarbon C | P23: =VLOOKUP(R23,Utslippsfaktorer!$C$9:$AM$459,Utslippsfaktorer!$AM$5,FALSE) -> Betongelementer | Q23: tonn | R23: Betong, elementer B45 Bransjereferanse | S23: =VLOOKUP(R23,Utslippsfaktorer!$C$9:$D$460,2,FALSE) -> tonn | T23: =IF(Q23=Nedtrekksmenyer!$D$4,0,IF(Q23=S23,1)) -> 1 | U23: 0 | V23: tonn | W23: =VLOOKUP(R23,Utslippsfaktorer!$C$9:$I$460,3,FALSE) -> 176.5159236 | X23: kg CO2-eq/tonn | Y23: =VLOOKUP(R23,Beregningsfaktorer!$L$73:$Q$328,Beregningsfaktorer!$Q$73,FALSE) -> 200 | Z23: 0 | AM23: kWh el | AQ23: =SUM(AQ11:AQ20)*Anlegg!AB12*Anlegg!C53 -> 0 | AR23: kWh el
B24: Lengde tunnel undersjøisk (m) | E24: Må angis | F24: Betongelement, prefabrikert, lavkarbon B | H24: tonn | J24: Dyrket mark/matjord | L24: m3 | O24: Betongelement, prefabrikert, lavkarbon B | P24: =VLOOKUP(R24,Utslippsfaktorer!$C$9:$AM$459,Utslippsfaktorer!$AM$5,FALSE) -> Betongelementer | Q24: tonn | R24: Betong, elementer B45 Lavkarbon B | S24: =VLOOKUP(R24,Utslippsfaktorer!$C$9:$D$460,2,FALSE) -> tonn | T24: =IF(Q24=Nedtrekksmenyer!$D$4,0,IF(Q24=S24,1)) -> 1 | U24: 0 | V24: tonn | W24: =VLOOKUP(R24,Utslippsfaktorer!$C$9:$I$460,3,FALSE) -> 149.2070064 | X24: kg CO2-eq/tonn | Y24: =VLOOKUP(R24,Beregningsfaktorer!$L$73:$Q$328,Beregningsfaktorer!$Q$73,FALSE) -> 200 | Z24: 0 | AL24: må legge til kalksememntpel og spunt | AP24: Diesel før justering | AQ24: =SUM(AQ11:AQ20) -> 0
B25: Arealbesalg (tidligfase eller spesifikk) | C25: Spesifikk (basert på areal) | E25: =IF(C25="", "Må angis", "") ->  | F25: Betongelement, prefabrikert, lavkarbon A | H25: tonn | J25: Myr | L25: m3 | O25: Betongelement, prefabrikert, lavkarbon A | P25: =VLOOKUP(R25,Utslippsfaktorer!$C$9:$AM$459,Utslippsfaktorer!$AM$5,FALSE) -> Betongelementer | Q25: tonn | R25: Betong, elementer B45 Lavkarbon A | S25: =VLOOKUP(R25,Utslippsfaktorer!$C$9:$D$460,2,FALSE) -> tonn | T25: =IF(Q25=Nedtrekksmenyer!$D$4,0,IF(Q25=S25,1)) -> 1 | U25: 0 | V25: tonn | W25: =VLOOKUP(R25,Utslippsfaktorer!$C$9:$I$460,3,FALSE) -> 121.8980892 | X25: kg CO2-eq/tonn | Y25: =VLOOKUP(R25,Beregningsfaktorer!$L$73:$Q$328,Beregningsfaktorer!$Q$73,FALSE) -> 200 | Z25: 0
F26: Sprøytebetong, B35, Bransjereferanse | H26: m3 | J26: Skog - middels bonitet | L26: m2 | O26: =F26 -> Sprøytebetong, B35, Bransjereferanse | P26: =VLOOKUP(R26,Utslippsfaktorer!$C$9:$AM$459,Utslippsfaktorer!$AM$5,FALSE) -> Sprøytebetong | Q26: m3 | R26: Sprøytebetong, B35, Bransjereferanse | S26: =VLOOKUP(R26,Utslippsfaktorer!$C$9:$D$460,2,FALSE) -> m3 | T26: =IF(Q26=Nedtrekksmenyer!$D$4,0,IF(Q26=S26,1)) -> 1 | U26: 0 | V26: m3 | W26: =VLOOKUP(R26,Utslippsfaktorer!$C$9:$I$460,3,FALSE) -> 330 | X26: kg CO2-eq/m3 | Y26: =VLOOKUP(R26,Beregningsfaktorer!$L$73:$Q$328,Beregningsfaktorer!$Q$73,FALSE) -> 240 | Z26: 0 | AL26: El, utbygging | AM26: Mengde
B27: Transportavstand: masser rundt på og ut av anlegg (km)* | F27: Injeksjonssement | H27: tonn | O27: Injeksjonssement | P27: =VLOOKUP(R27,Utslippsfaktorer!$C$9:$AM$459,Utslippsfaktorer!$AM$5,FALSE) -> Sement | Q27: tonn | R27: Sement, CEM I | S27: =VLOOKUP(R27,Utslippsfaktorer!$C$9:$D$460,2,FALSE) -> kg | T27: =IF(Q27=Nedtrekksmenyer!$D$4,0,IF(Q27=S27,1,1000)) -> 1000 | U27: 0 | V27: kg | W27: =VLOOKUP(R27,Utslippsfaktorer!$C$9:$I$460,3,FALSE) -> 0.76 | X27: kg CO2-eq/kg | Y27: =VLOOKUP(R27,Beregningsfaktorer!$L$73:$Q$328,Beregningsfaktorer!$Q$73,FALSE) -> 0.5 | Z27: 0 | AL27: Elforbruk, drilling tunnel | AM27: =AM7 -> 0 | AN27: =AN7 -> pfm3 | AO27: =Beregningsfaktorer!$M30 -> 6.6 | AP27: =Beregningsfaktorer!$P30 -> kWh/fm3 | AQ27: =AM27*AO27 -> 0 | AR27: kWh | AT27: Elektrisitet - Anlegg | AU27: =VLOOKUP(AT27,Utslippsfaktorer!$C$9:$D$460,2,FALSE) -> kWh | AV27: =IF(OR(C13=Nedtrekksmenyer!C33,C13=Nedtrekksmenyer!C34,C13=Nedtrekksmenyer!C35),Utslippsfaktorer!W177,Utslippsfaktorer!AF177) -> 0.023777 | AW27: ="kg CO2-eq/"&AU27 -> kg CO2-eq/kWh
B28: Transportavstand: masser inn til anlegg (km)* | F28: Fyllingsmateriale, EPS 200 | H28: m3 | J28: Tips til utfylling av mengdedata | O28: Fyllingsmateriale, EPS 200 | P28: =VLOOKUP(R28,Utslippsfaktorer!$C$9:$AM$459,Utslippsfaktorer!$AM$5,FALSE) -> Ekspandert polystyren (EPS) | Q28: m3 | R28: Ekspandert polystyren (EPS 200) | S28: =VLOOKUP(R28,Utslippsfaktorer!$C$9:$D$460,2,FALSE) -> m3 | T28: =IF(Q28=Nedtrekksmenyer!$D$4,0,IF(Q28=S28,1)) -> 1 | U28: 0 | V28: m3 | W28: =VLOOKUP(R28,Utslippsfaktorer!$C$9:$I$460,3,FALSE) -> 85 | X28: kg CO2-eq/m3 | Y28: =VLOOKUP(R28,Beregningsfaktorer!$L$73:$Q$328,Beregningsfaktorer!$Q$73,FALSE) -> 48 | Z28: 0 | AT28: Elektrisitet - Drift og vedlikehold | AU28: =VLOOKUP(AT28,Utslippsfaktorer!$C$9:$D$460,2,FALSE) -> kWh | AV28: =IF(C13=Nedtrekksmenyer!C35,Utslippsfaktorer!W178,Utslippsfaktorer!AF178) -> 0.1091735 | AW28: ="kg CO2-eq/"&AU28 -> kg CO2-eq/kWh
C29: *20 km er standard, kan endres i celler over | F29: Fyllingsmateriale, skumglassgranulat | H29: m3 | J29: Velg enhet: For materialer med alternative enheter på inputdata, MÅ dette velges | O29: Fyllingsmateriale, skumglassgranulat | P29: =VLOOKUP(R29,Utslippsfaktorer!$C$9:$AM$459,Utslippsfaktorer!$AM$5,FALSE) -> Skumglassgranulat | Q29: m3 | R29: Skumglassgranulat | S29: =VLOOKUP(R29,Utslippsfaktorer!$C$9:$D$460,2,FALSE) -> m3 | T29: =IF(Q29=Nedtrekksmenyer!$D$4,0,IF(Q29=S29,1)) -> 1 | U29: 0 | V29: m3 | W29: =VLOOKUP(R29,Utslippsfaktorer!$C$9:$I$460,3,FALSE) -> 38.5 | X29: kg CO2-eq/m3 | Y29: =VLOOKUP(R29,Beregningsfaktorer!$L$73:$Q$328,Beregningsfaktorer!$Q$73,FALSE) -> 162.5 | Z29: 0
B30: Beskrivelsestekst | F30: Fyllingsmateriale, lettklinker/ekspandert leire | H30: m3 | O30: Fyllingsmateriale, lettklinker/ekspandert leire | P30: =VLOOKUP(R30,Utslippsfaktorer!$C$9:$AM$459,Utslippsfaktorer!$AM$5,FALSE) -> Lettklinker/Ekspandert leire | Q30: m3 | R30: Lettklinker/Ekspandert leire | S30: =VLOOKUP(R30,Utslippsfaktorer!$C$9:$D$460,2,FALSE) -> m3 | T30: =IF(Q30=Nedtrekksmenyer!$D$4,0,IF(Q30=S30,1)) -> 1 | U30: 0 | V30: m3 | W30: =VLOOKUP(R30,Utslippsfaktorer!$C$9:$I$460,3,FALSE) -> 51.675 | X30: kg CO2-eq/m3 | Y30: =VLOOKUP(R30,Beregningsfaktorer!$L$73:$Q$328,Beregningsfaktorer!$Q$73,FALSE) -> 162.5 | Z30: 0
B31: (Kort beskrivelse av vurderte alternativer, trasévalg, etc. som er relevant.) | F31: Fyllingsmateriale, grus/pukk | H31: am3 | J31: Asfalt: kan angis i enten m2 eller tonn Mengder i tonn anbefales, da dette gir mer nøyaktige beregninger | O31: Fyllingsmateriale, grus/pukk | P31: =VLOOKUP(R31,Utslippsfaktorer!$C$9:$AM$459,Utslippsfaktorer!$AM$5,FALSE) -> Grus/pukk | Q31: am3 | R31: Grus/pukk | S31: =VLOOKUP(R31,Utslippsfaktorer!$C$9:$D$460,2,FALSE) -> kg | T31: =IF(Q31=Nedtrekksmenyer!$D$4,0,IF(Q31=S31,1,Beregningsfaktorer!C252*1000)) -> 1550 | U31: 0 | V31: kg | W31: =VLOOKUP(R31,Utslippsfaktorer!$C$9:$I$460,3,FALSE) -> 0.00315 | X31: kg CO2-eq/kg | Y31: =VLOOKUP(R31,Beregningsfaktorer!$L$73:$Q$328,Beregningsfaktorer!$Q$73,FALSE) -> 0.1 | Z31: 0 | AL31: Massetransport | AM31: Mengde
F32: Isolasjon, XPS 400 | H32: m3 | O32: Isolasjon, XPS 400 | P32: =VLOOKUP(R32,Utslippsfaktorer!$C$9:$AM$459,Utslippsfaktorer!$AM$5,FALSE) -> Ekstrudert polystyren (XPS) | Q32: m3 | R32: Ekstrudert polystyren (XPS 400) | S32: =VLOOKUP(R32,Utslippsfaktorer!$C$9:$D$460,2,FALSE) -> m3 | T32: =IF(Q32=Nedtrekksmenyer!$D$4,0,IF(Q32=S32,1)) -> 1 | U32: =G32*T32 -> 0 | V32: m3 | W32: =VLOOKUP(R32,Utslippsfaktorer!$C$9:$I$460,3,FALSE) -> 112.1212121 | X32: kg CO2-eq/m3 | Y32: =VLOOKUP(R32,Beregningsfaktorer!$L$73:$Q$328,Beregningsfaktorer!$Q$73,FALSE) -> 56 | Z32: 0 | AL32: =J10 -> Transport av masser rundt på og ut av anlegg | AM32: 0 | AN32: pfm3 | AO32: =Beregningsfaktorer!AL29*Beregningsfaktorer!C251*IF('Overordnet verktøy'!C27="",20,C27) -> 59.76 | AP32: tonnkm/pfm3 | AQ32: =AM32*AO32 -> 0 | AR32: tkm | AU32: Massetransport ganges med 2 for å få tur retur. Set til 1 hvis nei
F33: Kalksementstabilisering (50% kalk, 50% sement) | H33: tonn | J33: Levetid for slitelaget beregnes fra angitt ÅDT | O33: Kalksementstabilisering (50% kalk, 50% sement) | P33: =VLOOKUP(R33,Utslippsfaktorer!$C$9:$AM$459,Utslippsfaktorer!$AM$5,FALSE) -> Kalksementstabilisering | Q33: tonn | R33: =Utslippsfaktorer!C197 -> Kalksement (50% K/50% S), CEM I | S33: =VLOOKUP(R33,Utslippsfaktorer!$C$9:$D$460,2,FALSE) -> kg | T33: =IF(Q33=Nedtrekksmenyer!$D$4,0,IF(Q33=S33,1,1000)) -> 1000 | U33: 0 | V33: kg | W33: =VLOOKUP(R33,Utslippsfaktorer!$C$9:$I$460,3,FALSE) -> 0.9025 | X33: kg CO2-eq/kg | Y33: =VLOOKUP(R33,Beregningsfaktorer!$L$73:$Q$328,Beregningsfaktorer!$Q$73,FALSE) -> 0.5 | Z33: 0 | AL33: Transport av masser inn til prosjektet | AM33: 0 | AN33: lm3 | AO33: =Beregningsfaktorer!C251*IF('Overordnet verktøy'!C28="",20,C28) -> 33.2 | AP33: tonnkm/lm3 | AQ33: =AM33*AO33 -> 0 | AR33: tkm | AU33: 2
F34: Limtre | H34: m3 | J34: Det anbefales å velge type asfalt ut fra anbefalinger for ÅDT-klasser | O34: Limtre | P34: =VLOOKUP(R34,Utslippsfaktorer!$C$9:$AM$459,Utslippsfaktorer!$AM$5,FALSE) -> Trevirke | Q34: m3 | R34: Limtre | S34: =VLOOKUP(R34,Utslippsfaktorer!$C$9:$D$460,2,FALSE) -> m3 | T34: =IF(Q34=Nedtrekksmenyer!$D$4,0,IF(Q34=S34,1)) -> 1 | U34: 0 | V34: m3 | W34: =VLOOKUP(R34,Utslippsfaktorer!$C$9:$I$460,3,FALSE) -> 73.825 | X34: kg CO2-eq/m3 | Y34: =VLOOKUP(R34,Beregningsfaktorer!$L$73:$Q$328,Beregningsfaktorer!$Q$73,FALSE) -> 235 | Z34: 0 | AL34: Sum | AQ34: =SUM(AQ32:AQ33) -> 0 | AR34: tkm | AT34: Massetransport (diesel for veitransport) | AU34: =VLOOKUP(AT34,Utslippsfaktorer!$C$9:$D$460,2,FALSE) -> tkm | AV34: =VLOOKUP(AT34,Utslippsfaktorer!$C$9:$E$460,3,FALSE) -> 0.0516726 | AW34: ="kg CO2-eq/"&AU34 -> kg CO2-eq/tkm | AX34: veitransport diesel
F35: PE-skumplater | H35: m3 | J35: Betong: her er det mange kvaliteter å velge mellom Det anbefales å fylle inn for ulike typer så langt det lar seg gjøre Har man ikke denne type informasjon skal B35, bransjereferanse benyttes. Dette gjelder også for betongelementer | O35: PE-skumplater | P35: PE-skumplater | Q35: m3 | R35: PE-skum | S35: =VLOOKUP(R35,Utslippsfaktorer!$C$9:$D$460,2,FALSE) -> kg | T35: =IF(Q35=Nedtrekksmenyer!$D$4,0,IF(Q35=S35,1,Beregningsfaktorer!C260)) -> 35 | U35: 0 | V35: kg | W35: =VLOOKUP(R35,Utslippsfaktorer!$C$9:$I$460,3,FALSE) -> 10.81481481 | X35: kg CO2-eq/kg | Y35: =VLOOKUP(R35,Beregningsfaktorer!$L$73:$Q$328,Beregningsfaktorer!$Q$73,FALSE) -> 1.6 | Z35: 0 | AQ35: =(AQ39*Beregningsfaktorer!$M$58*Beregningsfaktorer!$C$14*Beregningsfaktorer!$C$253*Beregningsfaktorer!$Z$48+AQ39*Beregningsfaktorer!$C$14*Beregningsfaktorer!$M$56*Beregningsfaktorer!$C$253*Beregningsfaktorer!$Z$47)*($C$11/(IF($C$18<=1500,15,0)+IF(AND($C$18>1500,$C$18<=3000),14,0)+IF(AND($C$18>3000,$C$18<=5000),11,0)+IF($C$18>5000,8,0))) -> 0
F36: Rekkverk, standard vegrekkverk | H36: lm rekkverk | O36: Rekkverk, standard vegrekkverk | P36: Rekkverk | Q36: lm rekkverk | R36: Stål, varmforsinket | S36: =VLOOKUP(R36,Utslippsfaktorer!$C$9:$D$460,2,FALSE) -> kg | T36: =IF(Q36=Nedtrekksmenyer!$D$4,0,IF(Q36=S36,1,Beregningsfaktorer!C26)) -> 16.86 | U36: =G36*T36 -> 0 | V36: kg | W36: =VLOOKUP(R36,Utslippsfaktorer!$C$9:$I$460,3,FALSE) -> 2.005485396 | X36: kg CO2-eq/kg | Y36: =VLOOKUP(R36,Beregningsfaktorer!$L$73:$Q$328,Beregningsfaktorer!$Q$73,FALSE) -> 1.6 | Z36: =(U36*W36/1000)+(U36*Y36*$Z$3)/1000 -> 0 | AB36: Standard vegrekkverk | AU36: Utslipp dersom all massetransport er med veitransportdiesel
B37: Dette beregnes ut fra prosjektinformasjonen | F37: Rekkverk på bru (kjøresterkt rekkverk i stål) | H37: lm rekkverk | O37: Rekkverk på bru (kjøresterkt rekkverk i stål) | P37: Rekkverk | Q37: lm rekkverk | R37: Stål, varmforsinket | S37: =VLOOKUP(R37,Utslippsfaktorer!$C$9:$D$460,2,FALSE) -> kg | T37: =IF(Q37=Nedtrekksmenyer!$D$4,0,IF(Q37=S37,1,Beregningsfaktorer!C30)) -> 60 | U37: 0 | V37: kg | W37: =VLOOKUP(R37,Utslippsfaktorer!$C$9:$I$460,3,FALSE) -> 2.005485396 | X37: kg CO2-eq/kg | Y37: =VLOOKUP(R37,Beregningsfaktorer!$L$73:$Q$328,Beregningsfaktorer!$Q$73,FALSE) -> 1.6 | Z37: 0 | AB37: Kjøresterkt rekkverk i stål | AL37: D/V materialer | AM37: Mengde | AV37: =AQ34*AV34*$AU$33 -> 0 | AW37: kg CO2
B38: ÅDT: Reasfaltering: frekvens og mengde asfalt | F38: Rør og kummer, betong | H38: tonn | O38: Rør og kummer, betong | P38: Rør og kummer | Q38: tonn | R38: Betong, elementer, til rør og stikkrenner, armert | S38: =VLOOKUP(R38,Utslippsfaktorer!$C$9:$D$460,2,FALSE) -> tonn | T38: =IF(Q38=Nedtrekksmenyer!$D$4,0,IF(Q38=S38,1,1000)) -> 1 | U38: 0 | V38: tonn | W38: =VLOOKUP(R38,Utslippsfaktorer!$C$9:$I$460,3,FALSE) -> 105.5956 | X38: kg CO2-eq/tonn | Y38: =VLOOKUP(R38,Beregningsfaktorer!$L$73:$Q$328,Beregningsfaktorer!$Q$73,FALSE) -> 200 | Z38: 0 | AI38: Asfalt | AL38: Asfalt | AM38: kg slitelag utbygging | AN38: kg D/V | AO38: DV tonn CO2-eq (A1-A4) | AQ38: m2 | AR38: DV Dieselforbruk, ekskl transport (l)
B39: ÅDT: Tunnelklasse: ventilasjon og belysning i drift | F39: Rør og kummer, plast | H39: tonn | O39: Rør og kummer, plast | P39: Rør og kummer | Q39: tonn | R39: Plast, PP | S39: =VLOOKUP(R39,Utslippsfaktorer!$C$9:$D$460,2,FALSE) -> kg | T39: =IF(Q39=Nedtrekksmenyer!$D$4,0,IF(Q39=S39,1,1000)) -> 1000 | U39: 0 | V39: kg | W39: =VLOOKUP(R39,Utslippsfaktorer!$C$9:$I$460,3,FALSE) -> 2.5502336 | X39: kg CO2-eq/kg | Y39: =VLOOKUP(R39,Beregningsfaktorer!$L$73:$Q$328,Beregningsfaktorer!$Q$73,FALSE) -> 1.6 | Z39: 0 | AI39: Andre materialer | AK39: Asfaltgrusbetong og asfaltbetong | AL39: Asfalt, Agb | AM39: =U7*($AJ$7/($AJ$7+$AJ$8)) -> 0 | AN39: =AM39*($C$11/(IF($C$18<=1500,15,0)+IF(AND($C$18>1500,$C$18<=3000),14,0)+IF(AND($C$18>3000,$C$18<=5000),11,0)+IF($C$18>5000,8,0))*Beregningsfaktorer!Z$47) -> 0 | AO39: =(AN39*W7/1000)+(AN39*Y7*$Z$3)/1000 -> 0 | AQ39: =AM39/1000/(AE7*$AJ$7/100) -> 0 | AR39: =(AQ39*Beregningsfaktorer!$M$58*Beregningsfaktorer!$C$14*Beregningsfaktorer!$C$253*Beregningsfaktorer!$Z$48+AQ39*Beregningsfaktorer!$C$14*Beregningsfaktorer!$M$56*Beregningsfaktorer!$C$253*Beregningsfaktorer!$Z$47)*($C$11/(IF($C$18<=1500,15,0)+IF(AND($C$18>1500,$C$18<=3000),14,0)+IF(AND($C$18>3000,$C$18<=5000),11,0)+IF($C$18>5000,8,0))) -> 0 | AU39: Forbruk av diesel/biodiesel og el til massetransport
B40: Antall felt: Omfang av aktiviteter i sommer- og vinterdrift | F40: Støttemur av betong | H40: Velg enhet | J40: Rekkverk: Her skal løpemeter rekkverk angis, dvs total lengde enkelt rekkverk | O40: Støttemur av betong | P40: Støttemur | Q40: Velg enhet | R40: Betong, elementer B45 Bransjereferanse | S40: =VLOOKUP(R40,Utslippsfaktorer!$C$9:$D$460,2,FALSE) -> tonn | T40: =IF(Q40=Nedtrekksmenyer!$D$4,0,IF(Q40=S40,1,IF(Q40=Nedtrekksmenyer!D10,'Overordnet verktøy'!AB40*Beregningsfaktorer!C269,Beregningsfaktorer!C269))) -> 0 | U40: 0 | V40: tonn | W40: =VLOOKUP(R40,Utslippsfaktorer!$C$9:$I$460,3,FALSE) -> 176.5159236 | X40: kg CO2-eq/tonn | Y40: =VLOOKUP(R40,Beregningsfaktorer!$L$73:$Q$328,Beregningsfaktorer!$Q$73,FALSE) -> 200 | Z40: 0 | AB40: 0.4 | AC40: m standard tykkelse | AK40: Asfaltgrusbetong og asfaltbetong | AL40: Asfalt, Ab | AM40: =U8*($AJ$7/($AJ$7+$AJ$8)) -> 0 | AN40: =AM40*$C$11/(IF($C$18<=3000,15,0)+IF($C$18<=5000,12,0)+IF(AND($C$18>5000,$C$18<10000.9),9,0)+IF(AND($C$18>10000,$C$18<20000),6,0)+IF($C$18>=20000,5,0)*Beregningsfaktorer!Z$47) -> 0 | AO40: =(AN40*W8/1000)+(AN40*Y8*$Z$3)/1000 -> 0 | AQ40: =AM40/1000/(AE8*$AJ$7/100) -> 0 | AR40: =(AQ40*Beregningsfaktorer!$M$58*Beregningsfaktorer!$C$14*Beregningsfaktorer!$C$253*Beregningsfaktorer!$Z$48+AQ40*Beregningsfaktorer!$C$14*Beregningsfaktorer!$M$56*Beregningsfaktorer!$C$253*Beregningsfaktorer!$Z$47)*($C$11/(IF($C$18<=3000,15,0)+IF($C$18<=5000,12,0)+IF(AND($C$18>=5000,$C$18<10000.9),9,0)+IF(AND($C$18>10001,$C$18<20000),6,0)+IF($C$18>=20000,5,0))) -> 0 | AU40: Anleggsdiesel: iht omsetningskrav, B0 | AV40: =AV37/AV22*Anlegg!AB20 -> 0 | AW40: l
B41: Lengde på veg i dagen: Omfang av aktiviteter i sommer- og vinterdrift (ekskl belysning) | F41: Støttemur av naturstein | H41: Velg enhet | J41: Rør og kummer: Siden rør og kummer leveres med ulike dimensjoner og tykkelser må vekt (tonn) av rør og kummer beregnes manuelt. Se fanen Beregningsfaktorer fra rad 50 for vekt av ulike rørtyper | O41: Støttemur av naturstein | P41: Støttemur | Q41: Velg enhet | R41: Naturstein | S41: =VLOOKUP(R41,Utslippsfaktorer!$C$9:$D$460,2,FALSE) -> kg | T41: =IF(Q41=Nedtrekksmenyer!$D$4,0,IF(Q41=S41,1,IF(Q41=Nedtrekksmenyer!D10,'Overordnet verktøy'!AB41*Beregningsfaktorer!C265,Beregningsfaktorer!C265))) -> 0 | U41: 0 | V41: kg | W41: =VLOOKUP(R41,Utslippsfaktorer!$C$9:$I$460,3,FALSE) -> 0.11233625 | X41: kg CO2-eq/kg | Y41: =VLOOKUP(R41,Beregningsfaktorer!$L$73:$Q$328,Beregningsfaktorer!$Q$73,FALSE) -> 0.5 | Z41: 0 | AB41: 0.4 | AC41: m standard tykkelse | AK41: Skjelettasfalt (Ska) | AL41: Asfalt, Ska | AM41: =U9*($AJ$7/($AJ$7+$AJ$8)) -> 0 | AN41: =AM41*$C$11/(IF($C18<=5000,13,0)+IF(AND($C18>5000,$C18<10000.9),10,0)+IF(AND($C18>10001,$C18<20000),7,0)+IF($C18>=20000,6,0)*Beregningsfaktorer!Z$47) -> 0 | AO41: =(AN41*W9/1000)+(AN41*Y9*$Z$3)/1000 -> 0 | AQ41: =AM41/1000/(AE9*$AJ$7/100) -> 0 | AR41: =(AQ41*Beregningsfaktorer!$M$58*Beregningsfaktorer!$C$14*Beregningsfaktorer!$C$253*Beregningsfaktorer!$Z$48+AQ41*Beregningsfaktorer!$C$14*Beregningsfaktorer!$M$56*Beregningsfaktorer!$C$253*Beregningsfaktorer!$Z$47)*($C$11/(IF($C$18<=5000,13,0)+IF(AND($C$18>5000,$C$18<10000.9),10,0)+IF(AND($C$18>10001,$C$18<20000),7,0)+IF($C$18>=20000,6,0))) -> 0 | AU41: Diesel for veitransport: iht omsetnignskrav, B16 | AV41: =AV37/AV22*Anlegg!AB21 -> 0 | AW41: l
B42: Lengde på bru: Omfang av aktiviteter i sommer- og vinterdrift (ekskl belysning) | F42: Stål, armering og bolter kamstål | H42: tonn | O42: Stål, armering og bolter kamstål | P42: =VLOOKUP(R42,Utslippsfaktorer!$C$9:$AM$459,Utslippsfaktorer!$AM$5,FALSE) -> Stål, armering og bolter kamstål | Q42: tonn | R42: Stål, kamstål armering | S42: =VLOOKUP(R42,Utslippsfaktorer!$C$9:$D$460,2,FALSE) -> kg | T42: =IF(Q42=Nedtrekksmenyer!$D$4,0,IF(Q42=S42,1,1000)) -> 1000 | U42: 0 | V42: kg | W42: =VLOOKUP(R42,Utslippsfaktorer!$C$9:$I$460,3,FALSE) -> 0.5663 | X42: kg CO2-eq/kg | Y42: =VLOOKUP(R42,Beregningsfaktorer!$L$73:$Q$328,Beregningsfaktorer!$Q$73,FALSE) -> 1.6 | Z42: 0 | AK42: Lavtemperatur-asfalt | AL42: Asfalt, lavtemperatur | AM42: =U10*($AJ$7/($AJ$7+$AJ$8)) -> 0 | AN42: =AM42*($C$11/(IF($C$18<=1500,15,0)+IF(AND($C$18>1500,$C$18<=3000),14,0)+IF(AND($C$18>3000,$C$18<=5000),11,0)+IF($C$18>5000,8,0))*Beregningsfaktorer!Z$47) -> 0 | AO42: =(AN42*W10/1000)+(AN42*Y10*$Z$3)/1000 -> 0 | AQ42: =AM42/1000/(AE10*$AJ$7/100) -> 0 | AR42: =(AQ42*Beregningsfaktorer!$M$58*Beregningsfaktorer!$C$14*Beregningsfaktorer!$C$253*Beregningsfaktorer!$Z$48+AQ42*Beregningsfaktorer!$C$14*Beregningsfaktorer!$M$56*Beregningsfaktorer!$C$253*Beregningsfaktorer!$Z$47)*($C$11/(IF($C$18<=1500,15,0)+IF(AND($C$18>1500,$C$18<=3000),14,0)+IF(AND($C$18>3000,$C$18<=5000),11,0)+IF($C$18>5000,8,0))) -> 0 | AU42: Elektrisitet | AV42: =AV37/AV22*Anlegg!AB22*Anlegg!C53 -> 0 | AW42: kWh
B43: Lengde tunneler: Ventilasjon og belysning i drift | F43: Stål, spennarmering | H43: Velg enhet | O43: Stål, spennarmering | P43: =VLOOKUP(R43,Utslippsfaktorer!$C$9:$AM$459,Utslippsfaktorer!$AM$5,FALSE) -> Stål, spennarmering | Q43: Velg enhet | R43: Stål, spennarmering | S43: =VLOOKUP(R43,Utslippsfaktorer!$C$9:$D$460,2,FALSE) -> kg | T43: =IF(Q43=Nedtrekksmenyer!$D$4,0,IF(Q43=S43,1,IF(Q43=Nedtrekksmenyer!D14,'Overordnet verktøy'!AB43,IF('Overordnet verktøy'!Q43=Nedtrekksmenyer!D13,1000,0)))) -> 0 | U43: 0 | V43: kg | W43: =VLOOKUP(R43,Utslippsfaktorer!$C$9:$I$460,3,FALSE) -> 2.513772727 | X43: kg CO2-eq/kg | Y43: =VLOOKUP(R43,Beregningsfaktorer!$L$73:$Q$328,Beregningsfaktorer!$Q$73,FALSE) -> 1.6 | Z43: 0 | AB43: =1/(1640)*7.85*1000 -> 4.786585366 | AC43: kg/mMN | AK43: Kaldprodusert asfalt | AL43: Asfalt, kaldprodusert | AM43: =U11*($AJ$7/($AJ$7+$AJ$8)) -> 0 | AN43: =AM43*($C$11/(IF($C$18<=1500,15,0)+IF(AND($C$18>1500,$C$18<=3000),14,0)+IF(AND($C$18>3000,$C$18<=5000),11,0)+IF($C$18>5000,8,0))*Beregningsfaktorer!Z$47) -> 0 | AO43: =(AN43*W11/1000)+(AN43*Y11*$Z$3)/1000 -> 0 | AQ43: =AM43/1000/(AE11*$AJ$7/100) -> 0 | AR43: =(AQ43*Beregningsfaktorer!$M$58*Beregningsfaktorer!$C$14*Beregningsfaktorer!$C$253*Beregningsfaktorer!$Z$48+AQ43*Beregningsfaktorer!$C$14*Beregningsfaktorer!$M$56*Beregningsfaktorer!$C$253*Beregningsfaktorer!$Z$47)*($C$11/(IF($C$18<=1500,15,0)+IF(AND($C$18>1500,$C$18<=3000),14,0)+IF(AND($C$18>3000,$C$18<=5000),11,0)+IF($C$18>5000,8,0))) -> 0
F44: Stål, konstruksjonsstål og annet stål | H44: tonn | J44: Støttemur: kan angis i enten mengde i m3 eller areal Mengde i m3 anbefales, da dette gir mer nøyaktige beregninger | O44: Stål, konstruksjonsstål og annet stål | P44: =VLOOKUP(R44,Utslippsfaktorer!$C$9:$AM$459,Utslippsfaktorer!$AM$5,FALSE) -> Stål, konstruksjonsstål | Q44: tonn | R44: Stål, konstruksjon m/resirk | S44: =VLOOKUP(R44,Utslippsfaktorer!$C$9:$D$460,2,FALSE) -> kg | T44: =IF(Q44=Nedtrekksmenyer!$D$4,0,IF(Q44=S44,1,1000)) -> 1000 | U44: 0 | V44: kg | W44: =VLOOKUP(R44,Utslippsfaktorer!$C$9:$I$460,3,FALSE) -> 1.242545455 | X44: kg CO2-eq/kg | Y44: =VLOOKUP(R44,Beregningsfaktorer!$L$73:$Q$328,Beregningsfaktorer!$Q$73,FALSE) -> 1.6 | Z44: 0 | AL44: Sum | AN44: =SUM(AN39:AN43) -> 0 | AO44: =SUM(AO39:AO43) -> 0 | AR44: =SUM(AR39:AR43) -> 0
B45: Sammensetning av maskinpark kan justeres i fane "Anlegg" | F45: Stål, peler | H45: tonn | O45: Stål, peler | P45: =VLOOKUP(R45,Utslippsfaktorer!$C$9:$AM$459,Utslippsfaktorer!$AM$5,FALSE) -> Stål, peler | Q45: tonn | R45: Stål, peler | S45: =VLOOKUP(R45,Utslippsfaktorer!$C$9:$D$460,2,FALSE) -> kg | T45: =IF(Q45=Nedtrekksmenyer!$D$4,0,IF(Q45=S45,1,1000)) -> 1000 | U45: 0 | V45: kg | W45: =VLOOKUP(R45,Utslippsfaktorer!$C$9:$I$460,3,FALSE) -> 2.513772727 | X45: kg CO2-eq/kg | Y45: =VLOOKUP(R45,Beregningsfaktorer!$L$73:$Q$328,Beregningsfaktorer!$Q$73,FALSE) -> 1.6 | Z45: 0
B46: Valg av andel maskiner til anleggsarbeid og massetransport drevet av hhv diesel, biodiesel og el | F46: Stål, rustfritt/høykvalitet | H46: tonn | J46: Spennarmering: kan angis i enten tonn eller mMN | O46: Stål, rustfritt/høykvalitet | P46: =VLOOKUP(R46,Utslippsfaktorer!$C$9:$AM$459,Utslippsfaktorer!$AM$5,FALSE) -> Stål, rustfritt/høykvalitet | Q46: tonn | R46: Stål, rustfritt/høykvalitet | S46: =VLOOKUP(R46,Utslippsfaktorer!$C$9:$D$460,2,FALSE) -> kg | T46: =IF(Q46=Nedtrekksmenyer!$D$4,0,IF(Q46=S46,1,1000)) -> 1000 | U46: 0 | V46: kg | W46: =VLOOKUP(R46,Utslippsfaktorer!$C$9:$I$460,3,FALSE) -> 3.49 | X46: ="kg CO2-eq/"&S46 -> kg CO2-eq/kg | Y46: =VLOOKUP(R46,Beregningsfaktorer!$L$73:$Q$328,Beregningsfaktorer!$Q$73,FALSE) -> 1.6 | Z46: =(U46*W46/1000)+(U46*Y46*$Z$3)/1000 -> 0 | AK46: Stål, varmforsinket | AL46: Rekkverk stålwire | AM46: =U36 -> 0 | AN46: =AM46*$C$11/Beregningsfaktorer!Z$27 -> 0 | AO46: =(AN46*W36/1000)+(AN46*Y36*$Z$3)/1000 -> 0 | AU46: Slitasje lastebil | AV46: =AQ34 -> 0 | AW46: tkm
F47: Stål, spunt | H47: tonn | J47: Sommerdrift: (kantslått, kumtømming, grøfterensk og feiing) beregnes basert på veilengde | O47: Stål, spunt | P47: =VLOOKUP(R47,Utslippsfaktorer!$C$9:$AM$459,Utslippsfaktorer!$AM$5,FALSE) -> Stål, spunt | Q47: tonn | R47: Stål, spunt | S47: =VLOOKUP(R47,Utslippsfaktorer!$C$9:$D$460,2,FALSE) -> kg | T47: =IF(Q47=Nedtrekksmenyer!$D$4,0,IF(Q47=S47,1,1000)) -> 1000 | U47: 0 | V47: kg | W47: =VLOOKUP(R47,Utslippsfaktorer!$C$9:$I$460,3,FALSE) -> 1.878159091 | X47: kg CO2-eq/kg | Y47: =VLOOKUP(R47,Beregningsfaktorer!$L$73:$Q$328,Beregningsfaktorer!$Q$73,FALSE) -> 1.6 | Z47: 0 | AK47: Stål, varmforsinket | AL47: Rekkverk på bru (kjøresterkt rekkverk i stål) | AM47: =U37 -> 0 | AN47: =AM46*$C$11/Beregningsfaktorer!Z$28 -> 0 | AO47: =(AN47*W37/1000)+(AN47*Y37*$Z$3)/1000 -> 0 | AV47: =Utslippsfaktorer!E181 -> 0.007567617333 | AW47: kg CO2 ekv/tkm
B48: Tips til innfylling av data | F48: Tettemembran, plast | H48: m2 | O48: Tettemembran, plast | P48: =VLOOKUP(R48,Utslippsfaktorer!$C$9:$AM$459,Utslippsfaktorer!$AM$5,FALSE) -> Plastmembran/Geosynteter | Q48: m2 | R48: Plastmembran | S48: =VLOOKUP(R48,Utslippsfaktorer!$C$9:$D$460,2,FALSE) -> m2 | T48: =IF(Q48=Nedtrekksmenyer!$D$4,0,IF(Q48=S48,1)) -> 1 | U48: 0 | V48: =S48 -> m2 | W48: =VLOOKUP(R48,Utslippsfaktorer!$C$9:$I$460,3,FALSE) -> 4.243333333 | X48: kg CO2-eq/m2 | Y48: =VLOOKUP(R48,Beregningsfaktorer!$L$73:$Q$328,Beregningsfaktorer!$Q$73,FALSE) -> 1.12 | Z48: 0 | AL48: Vifte tunnel | AR48: ikke inkludert i utbygging | AV48: =AV46*AV47 -> 0 | AW48: kg CO2 ekv
B49: Transportavstander for masser: 20 km er default, men den kan endres | F49: Trevirke | H49: m3 | J49: Vinterdrift: (brøyting, salt og skiltvask) beregnes basert på veilengde | O49: Trevirke | P49: =VLOOKUP(R49,Utslippsfaktorer!$C$9:$AM$459,Utslippsfaktorer!$AM$5,FALSE) -> Trevirke | Q49: m3 | R49: Konstruksjonstrevirke | S49: =VLOOKUP(R49,Utslippsfaktorer!$C$9:$D$460,2,FALSE) -> m3 | T49: =IF(Q49=Nedtrekksmenyer!$D$4,0,IF(Q49=S49,1)) -> 1 | U49: =G49*T49 -> 0 | V49: =S49 -> m3 | W49: =VLOOKUP(R49,Utslippsfaktorer!$C$9:$I$460,3,FALSE) -> 76.6 | X49: kg CO2-eq/m3 | Y49: =VLOOKUP(R49,Beregningsfaktorer!$L$73:$Q$328,Beregningsfaktorer!$Q$73,FALSE) -> 235 | Z49: =(U49*W49/1000)+(U49*Y49*$Z$3)/1000 -> 0 | AF49: Levetid JBT | AG49: 40 | AH49: år | AL49: Armatur tunnel | AR49: ikke inkludert i utbygging
B50: Analyseperiode: default er 60 år, men den kan endres | F50: Bane: Overbygning og jernbaneteknikk - dagsone | H50: Velg enhet | J50: Bane: Her skal løpemeter overbygning og jernbaneteknikk angis, basert på lm enkeltspor eller lm dobbletspor. Har prosjektet en miks av enkeltspor og dobbeltspor kan lm enkeltspor regnes om til lm dobbeltspor. | O50: Bane: Overbygning og jernbaneteknikk | P50: Bane: Overbygning og jernbaneteknikk | Q50: =IF(H50=Nedtrekksmenyer!$B$185,Nedtrekksmenyer!$B$186,'Overordnet verktøy'!H50) -> lm enkeltspor | R50: =F50&", "&Q50 -> Bane: Overbygning og jernbaneteknikk - dagsone, lm enkeltspor | S50: =VLOOKUP(R50,Utslippsfaktorer!$C$9:$D$460,2,FALSE) -> lm enkeltspor | T50: =IF(Q50=Nedtrekksmenyer!$D$4,0,IF(Q50=S50,1)) -> 1 | U50: =G50*T50 -> 0 | V50: =S50 -> lm enkeltspor | W50: =VLOOKUP(R50,Utslippsfaktorer!$C$9:$I$460,3,FALSE) -> 798.8533627 | X50: kg CO2-eq/lm enkeltspor | Z50: =(U50*W50/1000)+(U50*Y50*$Z$3)/1000 -> 0 | AL50: Armatur dagsone | AR50: ikke inkludert i utbygging
B51: Omfatter prosjektet tunnel, må total lengde tunnel angis | F51: Bane: Overbygning og jernbaneteknikk - tunnel | H51: Velg enhet | O51: Bane: Overbygning og jernbaneteknikk | P51: Bane: Overbygning og jernbaneteknikk | Q51: =IF(H51=Nedtrekksmenyer!$B$185,Nedtrekksmenyer!$B$186,'Overordnet verktøy'!H51) -> lm enkeltspor | R51: =F51&", "&Q51 -> Bane: Overbygning og jernbaneteknikk - tunnel, lm enkeltspor | S51: =VLOOKUP(R51,Utslippsfaktorer!$C$9:$D$460,2,FALSE) -> lm enkeltspor | T51: =IF(Q51=Nedtrekksmenyer!$D$4,0,IF(Q51=S51,1)) -> 1 | U51: 0 | V51: lm enkeltspor | W51: =VLOOKUP(R51,Utslippsfaktorer!$C$9:$I$460,3,FALSE) -> 801.2661859 | X51: kg CO2-eq/lm enkeltspor | Z51: =(U51*W51/1000)+(U51*Y51*$Z$3)/1000 -> 0 | AL51: Armatur bru | AO51: =(G90*C11/AG49) -> 0 | AP51: JBT | AR51: ikke inkludert i utbygging
B52: Utslippsfaktorer brukt i analysen: Norske gjennomsnittsdata er standard | F52: Bane: Overbygning og jernbaneteknikk - bru | H52: Velg enhet | O52: Bane: Overbygning og jernbaneteknikk | P52: Bane: Overbygning og jernbaneteknikk | Q52: =IF(H52=Nedtrekksmenyer!$B$185,Nedtrekksmenyer!$B$186,'Overordnet verktøy'!H52) -> lm enkeltspor | R52: Bane: Overbygning og jernbaneteknikk - bru, lm enkeltspor | S52: =VLOOKUP(R52,Utslippsfaktorer!$C$9:$D$460,2,FALSE) -> lm enkeltspor | T52: =IF(Q52=Nedtrekksmenyer!$D$4,0,IF(Q52=S52,1)) -> 1 | U52: 0 | V52: lm enkeltspor | W52: =VLOOKUP(R52,Utslippsfaktorer!$C$9:$I$460,3,FALSE) -> 798.8533627 | X52: kg CO2-eq/lm enkeltspor | Z52: 0 | AL52: Sum | AN52: =SUM(AN47:AN51) -> 0 | AO52: =SUM(AO46:AO51) -> 0
B53: Scenario for el-miks: Scenario 1 er standard | J53: Massehåndtering og -graving (uten transport): Dette omfatter alle masser som håndteres i prosjektet (uten transport). Beregninger omfatter gravemaskin til opplasting, lastebiltipp og gravemaskin for planering. | O53: Sprengstoff | P53: =VLOOKUP(R53,Utslippsfaktorer!$C$9:$AM$459,Utslippsfaktorer!$AM$5,FALSE) -> Sprengstoff | Q53: kg | R53: Sprengstoff | S53: =VLOOKUP(R53,Utslippsfaktorer!$C$9:$D$460,2,FALSE) -> kg | T53: =IF(Q53=Nedtrekksmenyer!$D$4,0,IF(Q53=S53,1)) -> 1 | U53: =AQ8*T53 -> 0 | V53: =AR8 -> kg | W53: =VLOOKUP(R53,Utslippsfaktorer!$C$9:$I$460,3,FALSE) -> 1.26 | X53: ="kg CO2-eq/"&S53 -> kg CO2-eq/kg | Y53: =VLOOKUP(R53,Beregningsfaktorer!$L$73:$Q$328,Beregningsfaktorer!$Q$73,FALSE) -> 0.5 | Z53: =(U53*W53/1000)+(U53*Y53*$Z$3)/1000 -> 0
B55: Utslippsdata
B56: Dersom man har utslippsdata for bestemte materialer tilgjengelig, kan man fylle inn disse i fanen Utslippsfaktorer. Dersom det angis prosjektspesifikke utslippsfaktorer, vil disse overstyre standardfaktorene i beregningene. Det henvises til brukerveiledning for utfyllende beskrivelse. Se fanen Anlegg for å kunne justere til elektriske maskiner. | J56: Transport av masser rundt på og ut av anlegg: Samlet volum av masser som fraktes rundt i prosjektet og ut av prosjektet. Transportavstand (for en vei) fylles ut i C26.
J58: Transport av masser inn til anlegg: Samlet volum av masser som fraktes inn til prosjektet. Transportavstand (for en vei) fylles ut i C27.
B62: RESULTATER - SAMMENDRAG | Z62: =SUM(Z7:Z53) -> 0
P63: Der er valgt egen kategori på grønne celler. | Z63: =Z62=G91 -> TRUE
Z64: =Z62=U114 -> 
B65: Livsløpsfase | D65: tonn CO2-eq | F65: Materialproduksjon, aggregert liste (A1-A4) | G65: tonn CO2-eq | O65: Annet | AL65: D/V el | AM65: Mengde
B66: Materialproduksjon (A1-A4) | D66: =G91 -> 0 | F66: Asfalt | G66: =SUMIF($P$7:$Z$53,F66,$Z$7:$Z$53) -> 0 | O66: =F66 -> Asfalt | P66: =G66/($G$91+$D$88) ->  | Q66: =IF(P66>$G$93,O66&", "&ROUND(P66*100,0)&" %",$O$65) ->  | R66: =P66 ->  | S66: =IF(Q66=$O$65,"",Q66) ->  | T66: =IF(Q66=$O$65,"",R66) ->  | AM66: kWh/år | AN66: kWh/totalt | AR66: ikke inkl lys
B67: Utbygging (A5) | D67: =D88 -> 0 | F67: Betongelementer | G67: 0 | O67: =F67 -> Betongelementer | P67: =G67/($G$91+$D$88) ->  | R67: =P67 ->  | S67: =IF(Q67=$O$65,"",Q67) ->  | T67: =IF(Q67=$O$65,"",R67) ->  | AK67: Tunnel | AL67: Belysning oversjøisk | AM67: =Beregningsfaktorer!AV104 -> 0 | AN67: =AM67*$C$11 -> 0
B68: ="Drift og vedlikehold "&C11&" år (B1-B6)" -> Drift og vedlikehold år (B1-B6) | D68: =D97 -> 0 | F68: Ekspandert polystyren (EPS) | G68: 0 | O68: =F68 -> Ekspandert polystyren (EPS) | AK68: Tunnel | AL68: Ventilasjon oversjøisk | AM68: =Beregningsfaktorer!AV108 -> 0 | AN68: 0
B69: Totalt for hele levetiden* | D69: =SUM(D66:D68) -> 0 | F69: Ekstrudert polystyren (XPS) | G69: 0 | O69: Ekstrudert polystyren (XPS) | AK69: Tunnel | AL69: Belysning undersjøisk | AM69: =Beregningsfaktorer!AV112 -> 0 | AN69: 0
B70: *Ikke inkludert arealbruksendringer eller persontransport | F70: Grus/pukk | G70: 0 | O70: Grus/pukk | AK70: Tunnel | AL70: Ventilasjon undersjøisk | AM70: =Beregningsfaktorer!AV116 -> 0 | AN70: 0
F71: Kalksementstabilisering | G71: 0 | O71: Kalksementstabilisering | AK71: Tunnel | AL71: Pumping (undersjøisk) | AM71: =Beregningsfaktorer!AV121 -> 0 | AN71: =AM71*$C$11 -> 0
F72: Lettklinker/Ekspandert leire | G72: 0 | O72: Lettklinker/Ekspandert leire | AK72: Dagsone | AL72: LYS / lm dagsone | AM72: =Beregningsfaktorer!Z11*'Overordnet verktøy'!AQ72*C22 -> 0 | AN72: 0 | AQ72: 0.044 | AR72: armatur per lm veg | AT72: (NIRAS)
F73: PE-skumplater | G73: 0 | O73: PE-skumplater
F74: Plasstøpt betong | G74: 0 | O74: Plasstøpt betong
F75: Plastmembran/Geosynteter | G75: 0 | O75: Plastmembran/Geosynteter
F76: Rekkverk | G76: 0 | O76: Rekkverk | AL76: SUM | AN76: =SUM(AN67:AN75) -> 0
F77: Rør og kummer | G77: 0 | O77: Rør og kummer | P77: =G77/($G$91+$D$88) -> 
F78: Sement | G78: 0 | O78: Sement | AL78: Sommerdrift
F79: Skumglassgranulat | G79: 0 | O79: Skumglassgranulat | AM79: Mengde
F80: Sprengstoff | G80: 0 | O80: Sprengstoff og sprengning | P80: =(G80+D87)/($G$91+$D$88) ->  | AM80: DV Dieselforbruk, ekskl transport (l) | AU80: ikke med
F81: Sprøytebetong | G81: 0 | O81: Sprøytebetong | P81: =G81/($G$91+$D$88) ->  | S81: =IF(Q81=$O$65,"",Q81) ->  | T81: =IF(Q81=$O$65,"",R81) ->  | AL81: Kantslått | AM81: =Beregningsfaktorer!AJ52*$C$20/1000*$C$11 -> 0 | AU81: etablering av grøft
F82: Støttemur | G82: 0 | O82: Støttemur | AL82: Kumtømming | AM82: =Beregningsfaktorer!AJ53*$C$20/1000*$C$11/3 -> 0 | AR82: =0.19/(40/60) -> 0.285
B83: Utbygging (A5) | D83: tonn CO2-eq | F83: Stål, armering og bolter kamstål | G83: 0 | O83: Stål, armering og bolter kamstål | AL83: Grøfterensk | AM83: =Beregningsfaktorer!AJ54*$C$20/1000*$C$11/3 -> 0
B84: Anleggsmaskiner: diesel | D84: =(AQ21*AV21+AQ22*AV22)/1000 -> 0 | F84: Stål, spennarmering | G84: =Z43 -> 0 | O84: Stål, spennarmering | AL84: Feiing | AM84: =Beregningsfaktorer!AJ55*(C20+C21+C23+C24)/1000*$C$11 -> 0
B85: Massetransport: diesel og slitasje kjøretøy | D85: =(AV40*AV21+AV41*AV22+AV48)/1000 -> 0 | F85: Stål, konstruksjonsstål | G85: =SUMIF($P$7:$Z$53,F85,$Z$7:$Z$53) -> 0 | O85: Stål, konstruksjonsstål | AL85: SUM | AM85: =SUM(AM81:AM84) -> 0
B86: Elektrisitet | D86: =(AQ27*AV27+AQ23*AV27+AV42*AV27)/1000 -> 0 | F86: Stål, peler | G86: 0 | O86: Stål, peler
B87: Sprengning | D87: =AQ8*AV6/1000 -> 0 | F87: Stål, rustfritt/høykvalitet | G87: 0 | O87: Stål, rustfritt/høykvalitet | AL87: Vinterdrift
B88: Sum A5 | D88: =SUM(D84:D87) -> 0 | F88: Stål, spunt | G88: 0 | O88: =F88 -> Stål, spunt | AM88: Mengde
F89: Trevirke | G89: 0 | O89: Trevirke | AM89: DV Dieselforbruk, ekskl transport (l)
B90: ="Drift og vedlikehold "&C11&" år (B1-B6)" -> Drift og vedlikehold år (B1-B6) | D90: tonn CO2-eq | F90: Bane: Overbygning og jernbaneteknikk | G90: =SUMIF($P$7:$Z$53,F90,$Z$7:$Z$53) -> 0 | O90: Bane: Overbygning og jernbaneteknikk | P90: =G90/($G$91+$D$88) ->  | AL90: Brøyting | AM90: =IF(C17=Nedtrekksmenyer!C9,0,Beregningsfaktorer!AJ58*('Overordnet verktøy'!$C$20+$C$21)/1000*$C$11) -> 0
B91: Anleggsmaskiner: diesel | D91: =(AR44+AM85+AM94)*AV21/1000 -> 0 | F91: Sum A1-A4 | G91: =SUM(G66:G90) -> 0 | O91: =B84 -> Anleggsmaskiner: diesel | P91: =D84/($G$91+$D$88) ->  | AL91: Salting | AM91: =IF(C17=Nedtrekksmenyer!C9,0,Beregningsfaktorer!Z61*('Overordnet verktøy'!$C$20+$C$21)/1000*$C$11) -> 0 | AN91: 1,26 l/tonn salt (NIRAS)
B92: Elektrisitet | D92: =AN76*AV28/1000 -> 0 | O92: =B85 -> Massetransport: diesel og slitasje kjøretøy | P92: =D85/($G$91+$D$88) -> 
B93: Asfalt | D93: =AO44 -> 0 | F93: Grense for å samle i kategori "Annet" | G93: 0.05 | O93: =B86 -> Elektrisitet | P93: =D86/($G$91+$D$88) ->  | AL93: Skiltvask | AM93: =Beregningsfaktorer!AJ60*('Overordnet verktøy'!$C$20+$C$21)/1000*$C$11 -> 0
B94: Strøsalt | D94: =AQ117*AV117/1000 -> 0 | P94: =SUM(P66:P93) ->  | Q94: =(O65&", "&ROUND(R94*100,0)&" %") -> Annet, 0 % | R94: =SUMIF(Q66:R93,O65,R66:R93) -> 0 | S94: Annet, 0 % | T94: 0 | AL94: Sum diesel | AM94: =SUM(AM90:AM93) -> 0
B95: Bane: Overbygning og jernbaneteknikk | D95: =AO51 -> 0 | F95: Direkte utslipp på byggeplass | G95: =AQ21*Utslippsfaktorer!E155/1000+AQ22*Utslippsfaktorer!E157/1000+AV40*Utslippsfaktorer!E155/1000+AV41*Utslippsfaktorer!E157/1000+D87 -> 0 | H95: tonn CO2-eq | I95: Forbrenning av diesel/biodiesel i anleggsmaskin og massetransport+sprengning | S95: Sum | T95: =SUM(T66:T94) -> 
B96: Andre materialer | D96: =AO52-D95 -> 0 | F96: Utslipp arealbeslag/arealbruksendring | G96: =IF(C25=Nedtrekksmenyer!H8,0,IF(C25=Nedtrekksmenyer!H4,(AU146+AU147),'Overordnet verktøy'!AT176)) -> 0 | H96: tonn CO2-eq | I96: Sum av midlertidig og permanent. Ikke inkludert i andre resultater | T96: =P94=T95 ->  | AL96: Strøsalt | AM96: =IF(C17=Nedtrekksmenyer!C9,0,Beregningsfaktorer!AJ59) -> 9.05 | AN96: tonn pr år/km | AO96: kg
B97: Sum B1-B6 | D97: =SUM(D91:D96) -> 0 | F97: Persontransport | G97: =Persontransport!Q41/1000 -> 0 | H97: tonn CO2-eq | I97: Ikke inkludert i andre resultater. Se fane persontransport.
B99: Fordeling av totale utslipp for hele levetiden inkl. arealbruksendring, uten persontransport:
B111: RESULTATER - MER DETALJERT
B114: Materialproduksjon (A1-A4) | D114: tonn CO2-eq | F114: Utbygging (A5) | G114: tonn CO2-eq | J114: =B90 -> Drift og vedlikehold år (B1-B6) | K114: tonn CO2-eq | O114: Annet | T114: Sum | U114: =SUM(U115:U160) ->  | Y114: 0
B115: =F7 -> Asfalt, Agb | D115: =VLOOKUP(B115,$O$7:$Z$53,$Z$2,FALSE) -> 0 | F115: =B84 -> Anleggsmaskiner: diesel | G115: =D84 -> 0 | J115: Anleggsmaskiner: diesel | K115: =D91 -> 0 | O115: =B115 -> Asfalt, Agb | P115: =D115/$D$160 ->  | Q115: =IF(P115>$D$162,O115,$O$114) ->  | R115: =P115 ->  | S115: MATERIALPRODUKSJON | T115: =IFERROR(IF(Q115=$O$114,"",Q115),"") ->  | U115: =IF(Q115=$O$114,"",D115) ->  | Y115: 0.01
B116: Asfalt, Ab | D116: 0 | F116: =B85 -> Massetransport: diesel og slitasje kjøretøy | G116: =D85 -> 0 | J116: Elektrisitet | K116: 0 | O116: Asfalt, Ab | R116: =P116 ->  | T116: =IFERROR(IF(Q116=$O$114,"",Q116),"") ->  | Y116: 0.02
B117: Asfalt, Ab m/PMB | D117: 0 | F117: =B86 -> Elektrisitet | G117: =D86 -> 0 | J117: Asfalt | K117: 0 | O117: Asfalt, Ab m/PMB | Y117: 0.03 | AQ117: =AM96*1000*(C20+C21)/1000*C11 -> 0 | AR117: kg salt driftsfase | AT117: Salt, for vinterdrift | AU117: kg | AV117: =VLOOKUP(AT117,Utslippsfaktorer!$C$9:$E$460,3,FALSE) -> 0.0779 | AW117: ="kg CO2-eq/"&AU117 -> kg CO2-eq/kg
B118: Asfalt, Ska | D118: 0 | F118: =B87 -> Sprengning | G118: =D87 -> 0 | J118: Strøsalt | K118: 0 | O118: Asfalt, Ska | Y118: 0.04 | AL118: Arealbruksendring
B119: Asfalt, Ska m/PMB | D119: 0 | F119: Sum A5 | G119: =SUM(G115:G118) -> 0 | J119: Bane: Overbygning og jernbaneteknikk | K119: 0 | O119: Asfalt, Ska m/PMB | Y119: 0.05 | AM119: Anleggsdiesel (l) | AN119: Massetransport (l) | AO119: Utslipp (kg CO2-eq) | AT119: Avtaging av matjord | AU119: =VLOOKUP(AT119,Utslippsfaktorer!$C$9:$D$460,2,FALSE) -> m3 | AV119: =VLOOKUP(AT119,Utslippsfaktorer!$C$9:$E$460,3,FALSE) -> 55.1 | AW119: ="kg CO2-eq/"&AU119 -> kg CO2-eq/m3
B120: Bærelag (Ag) | D120: 0 | J120: Andre materialer | K120: 0 | O120: Bærelag (Ag) | Y120: 0.06 | AL120: Felling/rydding av skog | AM120: =SUM(K17:K20)*Beregningsfaktorer!M47*Beregningsfaktorer!M46 -> 0 | AN120: =SUM(K17:K20)*Beregningsfaktorer!M47*Beregningsfaktorer!C$255*C27 -> 0 | AO120: =(AM120*Utslippsfaktorer!E$154)+(AN120*Utslippsfaktorer!E$171*Utslippsfaktorer!$AP$171) -> 0 | AT120: Avtaging av vegetasjonsdekke, myr | AU120: =VLOOKUP(AT120,Utslippsfaktorer!$C$9:$D$460,2,FALSE) -> m3 | AV120: =VLOOKUP(AT120,Utslippsfaktorer!$C$9:$E$460,3,FALSE) -> 168.5 | AW120: ="kg CO2-eq/"&AU120 -> kg CO2-eq/m3
B121: Forsterkningslag (pukk) | D121: 0 | J121: Sum B1-B6 | K121: =SUM(K115:K120) -> 0 | O121: Forsterkningslag (pukk) | Y121: 0.07 | AL121: Midlertidig | AM121: =K26*Beregningsfaktorer!M47*Beregningsfaktorer!M46 -> 0 | AN121: =K26*Beregningsfaktorer!M47*Beregningsfaktorer!C$255*C27 -> 0 | AO121: =(AM121*Utslippsfaktorer!E$154)+(AN121*Utslippsfaktorer!E$171*Utslippsfaktorer!$AP$171) -> 0 | AT121: Vegetasjonsrydding, lav bonitet | AU121: =VLOOKUP(AT121,Utslippsfaktorer!$C$9:$D$460,2,FALSE) -> m2 | AV121: =VLOOKUP(AT121,Utslippsfaktorer!$C$9:$E$460,3,FALSE) -> 11.6 | AW121: ="kg CO2-eq/"&AU121 -> kg CO2-eq/m2 | AX121: 93
B122: Normalbetong, B30, Bransjereferanse | D122: =VLOOKUP(B122,$O$7:$Z$53,$Z$2,FALSE) -> 0 | O122: Normalbetong, B30, Bransjereferanse | Y122: 0.08 | AT122: Vegetasjonsrydding, middels bonitet | AU122: =VLOOKUP(AT122,Utslippsfaktorer!$C$9:$D$460,2,FALSE) -> m2 | AV122: =VLOOKUP(AT122,Utslippsfaktorer!$C$9:$E$460,3,FALSE) -> 22.6 | AW122: kg CO2-eq/m2 | AX122: 94
B123: Normalbetong, B35, Bransjereferanse | D123: 0 | O123: Normalbetong, B35, Bransjereferanse | Y123: 0.09 | AT123: Vegetasjonsrydding, høy bonitet | AU123: =VLOOKUP(AT123,Utslippsfaktorer!$C$9:$D$460,2,FALSE) -> m2 | AV123: =VLOOKUP(AT123,Utslippsfaktorer!$C$9:$E$460,3,FALSE) -> 35.6 | AW123: kg CO2-eq/m2 | AX123: 95
B124: Normalbetong, B45, Bransjereferanse | D124: =VLOOKUP(B124,$O$7:$Z$53,$Z$2,FALSE) -> 0 | O124: Normalbetong, B45, Bransjereferanse | Y124: 0.1 | AT124: Vegetasjonsrydding, uproduktiv skog | AU124: =VLOOKUP(AT124,Utslippsfaktorer!$C$9:$D$460,2,FALSE) -> m2 | AV124: =VLOOKUP(AT124,Utslippsfaktorer!$C$9:$E$460,3,FALSE) -> 3.9 | AW124: ="kg CO2-eq/"&AU124 -> kg CO2-eq/m2 | AX124: 96
B125: Normalbetong, B30, Lavkarbon B | D125: 0 | O125: Normalbetong, B30, Lavkarbon B | Y125: 0.11 | AT125: Felling av trær til tømmer | AU125: =VLOOKUP(AT125,Utslippsfaktorer!$C$9:$D$460,2,FALSE) -> m3 | AV125: =VLOOKUP(AT125,Utslippsfaktorer!$C$9:$E$460,3,FALSE) -> 85 | AW125: ="kg CO2-eq/"&AU125 -> kg CO2-eq/m3
B126: Normalbetong, B35, Lavkarbon B | D126: 0 | O126: Normalbetong, B35, Lavkarbon B | Y126: 0.12 | AT126: Felling av trær til ved | AU126: =VLOOKUP(AT126,Utslippsfaktorer!$C$9:$D$460,2,FALSE) -> m3 | AV126: =VLOOKUP(AT126,Utslippsfaktorer!$C$9:$E$460,3,FALSE) -> 1700 | AW126: ="kg CO2-eq/"&AU126 -> kg CO2-eq/m3
B127: Normalbetong, B45, Lavkarbon B | D127: 0 | O127: Normalbetong, B45, Lavkarbon B | P127: =D127/$D$160 ->  | Y127: 0.13 | AT127: Avtaging av vegetasjonsdekke, skogbunn | AU127: =VLOOKUP(AT127,Utslippsfaktorer!$C$9:$D$460,2,FALSE) -> m3 | AV127: =VLOOKUP(AT127,Utslippsfaktorer!$C$9:$E$460,3,FALSE) -> 48 | AW127: ="kg CO2-eq/"&AU127 -> kg CO2-eq/m3
B128: Normalbetong, B30, Lavkarbon A | D128: 0 | O128: Normalbetong, B30, Lavkarbon A | Y128: 0.14 | AT128: Avtaging av vegetasjonsdekke, innmarksbeite | AU128: =VLOOKUP(AT128,Utslippsfaktorer!$C$9:$D$460,2,FALSE) -> m3 | AV128: =VLOOKUP(AT128,Utslippsfaktorer!$C$9:$E$460,3,FALSE) -> 55.1 | AW128: ="kg CO2-eq/"&AU128 -> kg CO2-eq/m3
B129: Normalbetong, B35, Lavkarbon A | D129: 0 | O129: Normalbetong, B35, Lavkarbon A | Y129: 0.15
B130: Normalbetong, B45, Lavkarbon A | D130: 0 | O130: Normalbetong, B45, Lavkarbon A | Y130: 0.16
B131: Betongelement, prefabrikert, lavkarbon C | D131: 0 | O131: Betongelement, prefabrikert, lavkarbon C | Y131: 0.17
B132: Betongelement, prefabrikert, lavkarbon B | D132: 0 | O132: Betongelement, prefabrikert, lavkarbon B | Y132: 0.18 | AT132: Skog - uproduktiv skog | AU132: m2 | AV132: =AV124 -> 3.9 | AW132: kg CO2/m2
B133: Betongelement, prefabrikert, lavkarbon A | D133: 0 | O133: Betongelement, prefabrikert, lavkarbon A | Y133: 0.19 | AT133: Skog - lav bonitet | AU133: m2 | AV133: =AV121 -> 11.6 | AW133: kg CO2/m2
B134: Sprøytebetong, B35, Bransjereferanse | D134: 0 | O134: Sprøytebetong, B35, Bransjereferanse | Y134: 0.2 | AT134: Skog - middels bonitet | AU134: m2 | AV134: =AV122 -> 22.6 | AW134: kg CO2/m2
B135: Injeksjonssement | D135: 0 | O135: Injeksjonssement | AT135: Skog - høy bonitet | AU135: m2 | AV135: =AV123 -> 35.6 | AW135: kg CO2/m2
B136: Fyllingsmateriale, EPS 200 | D136: 0 | O136: Fyllingsmateriale, EPS 200
B137: Fyllingsmateriale, skumglassgranulat | D137: 0 | O137: Fyllingsmateriale, skumglassgranulat
B138: Fyllingsmateriale, lettklinker/ekspandert leire | D138: 0 | O138: Fyllingsmateriale, lettklinker/ekspandert leire
B139: Fyllingsmateriale, grus/pukk | D139: 0 | O139: Fyllingsmateriale, grus/pukk
B140: Isolasjon, XPS 400 | D140: 0 | O140: Isolasjon, XPS 400
B141: Kalksementstabilisering (50% kalk, 50% sement) | D141: 0 | O141: Kalksementstabilisering (50% kalk, 50% sement) | AT141: http://talitor-ledlights.no/onewebmedia/Veg-%20og%20gatebelysning.pdf
B142: Limtre | D142: 0 | O142: Limtre | AT142: Håndbok 264 - Teknisk planlegging av veg- og gatebelysning
B143: PE-skumplater | D143: 0 | O143: PE-skumplater
B144: Rekkverk, standard vegrekkverk | D144: 0 | O144: Rekkverk, standard vegrekkverk
B145: Rekkverk på bru (kjøresterkt rekkverk i stål) | D145: 0 | O145: Rekkverk på bru (kjøresterkt rekkverk i stål)
B146: Rør og kummer, betong | D146: 0 | O146: Rør og kummer, betong | AT146: Permanent | AU146: =(K15*AV119+K16*AV120+(K17+K18+K19+K20)*AV127+K17*AV123+K18*AV122+K19*AV121+K20*AV124+AO120)/1000 -> 0
B147: Rør og kummer, plast | D147: 0 | O147: Rør og kummer, plast | AT147: Midlertidig | AU147: =(K24*AV119*AU156+K25*AV120*AU155+K26*AV127*AU156+K26*AW162*AU154+AO121)/1000 -> 0
B148: Støttemur av betong | D148: 0 | O148: Støttemur av betong
B149: Støttemur av naturstein | D149: 0 | O149: Støttemur av naturstein
B150: Sprengstoff | D150: 0 | O150: Sprengstoff
B151: =F42 -> Stål, armering og bolter kamstål | D151: 0 | O151: Stål, armering og bolter kamstål
B152: Stål, spennarmering | D152: 0 | O152: Stål, spennarmering
B153: Stål, konstruksjonsstål og annet stål | D153: 0 | O153: Stål, konstruksjonsstål og annet stål | AT153: Midlertidig
B154: Stål, peler | D154: 0 | O154: Stål, peler | AT154: Skog | AU154: 0.5
B155: Stål, rustfritt/høykvalitet | D155: 0 | O155: =B155 -> Stål, rustfritt/høykvalitet | R155: =P155 ->  | U155: =IF(Q155=$O$114,"",D155) ->  | AT155: Myr | AU155: 1
B156: Stål, spunt | D156: 0 | O156: Stål, spunt | AT156: Dyrket mark/beite | AU156: 0.2
B157: Tettemembran, plast | D157: 0 | O157: Tettemembran, plast
B158: Trevirke | D158: 0 | O158: Trevirke
B159: =O50 -> Bane: Overbygning og jernbaneteknikk | D159: 0 | O159: Bane: Overbygning og jernbaneteknikk | AT159: Areal
B160: Sum A4 | D160: =SUM(D115:D159) -> 0 | Q160: =O114 -> Annet | R160: =SUMIF(Q115:R159,Q160,R115:R159) -> 0 | T160: =IF(R160=0,"",Q160) ->  | U160: =D160-SUM(U115:U158) ->  | AT160: =J24 -> Dyrket mark/matjord | AU160: 0 | AV160: m3
R161: =U160/D160 ->  | S161: UTBYGGING | T161: =IF(G115=0,"",F115) ->  | U161: =IF(G115=0,"",G115) ->  | AT161: Myr | AU161: 0 | AV161: m3
B162: Grense for å samle i kategori "Annet" | D162: 0.03 | T162: =IF(G116=0,"",F116) ->  | U162: =IF(G116=0,"",G116) ->  | AT162: Skog - middels bonitet | AU162: 0 | AV162: m2 | AW162: =VLOOKUP(AT162,AT132:AV135,3,FALSE) -> 22.6
T163: =IF(G117=0,"",F117) ->  | U163: =IF(G117=0,"",G117) -> 
T164: =IF(G118=0,"",F118) ->  | U164: =IF(G118=0,"",G118) -> 
P165: tekst med % | Q165: =IF(P115>$D$162,O115&", "&ROUND(P115*100,0)&" %",$O$114) ->  | S165: ="D & V, "&C11&" år" -> D & V, år | T165: =IF(K115=0,"",J115) ->  | U165: =IF(K115=0,"",K115) ->  | AT165: Basert på lengde
AT166: =C17 -> Velg region | AV166: Jernbaneprosjekt
AV167: 1 | AW167: 40 | AX167: m
AR168: =B19 -> Antall felt | AT168: =C19 -> 0 | AV168: 2 | AW168: 60 | AX168: m
AR169: =B20 -> Lengde dagsone (m) | AT169: =C20 -> 0
T170: =IF(K120=0,"`",J120&" ") -> ` | AV170: Vei
AV171: 2 felt | AW171: 60 | AX171: m
AV172: 4 felt | AW172: 80 | AX172: m
AT174: =IF(AT166=AV166,(IF(AT168=AV167,AW167,AW168)),IF(OR(AT168=1,AT168=2),AW171,AW172)) -> 80 | AU174: m bredde
AT175: =AT169*AT174 -> 0 | AU175: m2 areal
AT176: =AT175*AU177/1000 ->  | AU176: tonn CO2 ekv
AT177: =C25 -> Spesifikk (basert på areal) | AU177: =VLOOKUP(AT177,AT179:AU181,2,FALSE) ->  | AV177: kg CO2 e/m2
AT179: Tidligfase (basert på lengde - skog | AU179: =AV134+AV127 -> 70.6 | AV179: kg CO2 e/m2
AT180: Tidligfase (basert på lengde - dyrket mark | AU180: =AV128 -> 55.1 | AV180: kg CO2 e/m2
AT181: Tidligfase (basert på lengde - myr | AU181: =AV120*AW181 -> 337 | AV181: kg CO2 e/m2 | AW181: 2 | AX181: meter
AT187: =AT169*AW171*AU179/1000 -> 0
AT190: Materialproduksjon (A1-A4) | AU190: =D66 -> 0 | AV190: =AU190/$AU$195 ->  | AW190: =IF(AV190=0,"",AT190&", "&ROUND(AV190*100,0)&" %") -> 
AT191: Utbygging (A5) | AU191: =D67 -> 0 | AV191: =AU191/$AU$195 ->  | AW191: =IF(AV191=0,"",AT191&", "&ROUND(AV191*100,0)&" %") -> 
AT192: ="D&V "&C11&" år (B1-B6)" -> D&V år (B1-B6) | AU192: =D68 -> 0 | AV192: =AU192/$AU$195 -> 
AT193: Arealbruksendring (midlertidig) | AU193: =IF(C25=Nedtrekksmenyer!H8,0,IF(C25=Nedtrekksmenyer!H4,(AU147),0)) -> 0 | AV193: =AU193/$AU$195 -> 
AT194: Arealbruksendring (permanent) | AU194: =IF(C25=Nedtrekksmenyer!H8,0,IF(C25=Nedtrekksmenyer!H4,(AU146),'Overordnet verktøy'!AT176)) -> 0 | AV194: =AU194/$AU$195 -> 
AU195: =SUM(AU190:AU194) -> 0

Sheet Prosjektbeskrivelse
C2: PROSJEKTBESKRIVELSE - DETALJERT VERKTØY (SENFASE) | F2: ='Overordnet verktøy'!B6 -> VegLCA v5.14B. 26.04.2024
C4: Informasjon om analysen | F4: =IF(D12=Nedtrekksmenyer!B9,"Baneelement","Vegelement") -> Vegelement | G4: Stedskode | H4: Fra profil | I4: Til profil | J4: Lengde (m) | AH4: =Nedtrekksmenyer!B39 -> Dagsone
C5: Navn på den som har utført analysen | F5: Dagsone | J5: =I5-H5 -> 0 | K5: =IF(OR(F5="Veg i dagen", F5="Tunnel", F5="Bru"), IF(J5<=0,"Lengde kan ikke være null eller negativ",""), "") ->  | AH5: =Nedtrekksmenyer!B40 -> Tunnel oversjøisk
C6: Dato for analyse | F6: Velg element | J6: 0 | Y6: VEGELEMENTOVERSIKT | AH6: =Nedtrekksmenyer!B41 -> Tunnel undersjøisk
C7: Analyseperiode (år) | E7: =IF(D7="", "Må angis", "") -> Må angis | F7: Velg element | J7: 0 | AH7: =Nedtrekksmenyer!B42 -> Bru
F8: Velg element | J8: 0 | AA8: Dagsone | AD8: Tunnel | AG8: Bru | AK8: Tunnel
C9: Prosjektinformasjon | F9: Velg element | J9: 0 | AA9: Indeks | AB9: Lengde | AC9: Stedskode | AD9: Indeks | AE9: Lengde | AF9: Stedskode | AG9: Indeks | AH9: Lengde | AI9: Stedskode | AK9: Oversjøisk | AL9: Undersjøisk
C10: Utbyggingsprosjekt | F10: Velg element | J10: =I10-H10 -> 0 | Y10: 1 | Z10: =F5 -> Dagsone | AA10: =IF(AB10>0,COUNTIF($AB$10:AB10,">"&0),0) -> 0 | AB10: =IF(F5=$AH$4,J5,0) -> 0 | AC10: =IF(F5=$AH$4,G5,0) -> 0 | AD10: =IF(AE10>0,COUNTIF($AE$10:AE10,">"&0),0) -> 0 | AE10: =IF(F5=$AH$5,J5,0)+IF(F5=$AH$6,J5,0) -> 0 | AF10: =IF(OR(F5=$AH$5,F5=$AH$6),G5,0) -> 0 | AG10: =IF(AH10>0,COUNTIF($AH$10:AH10,">"&0),0) -> 0 | AH10: =IF(F5=$AH$7,J5,0) -> 0 | AI10: =IF(F5=$AH$7,G5,0) -> 0 | AK10: =IF(Z10=$AH$5,1,0) -> 0 | AL10: =IF(Z10=$AH$6,1,0) -> 0
C11: Sted / region | D11: Velg region | F11: Velg element | J11: =I11-H11 -> 0 | Y11: 2 | Z11: =F6 -> Velg element | AA11: =IF(AB11>0,COUNTIF($AB$10:AB11,">"&0),0) -> 0 | AB11: =IF(F6=$AH$4,J6,0) -> 0 | AC11: =IF(F6=$AH$4,G6,0) -> 0 | AD11: =IF(AE11>0,COUNTIF($AE$10:AE11,">"&0),0) -> 0 | AE11: =IF(F6=$AH$5,J6,0)+IF(F6=$AH$6,J6,0) -> 0 | AF11: =IF(OR(F6=$AH$5,F6=$AH$6),G6,0) -> 0 | AG11: =IF(AH11>0,COUNTIF($AH$10:AH11,">"&0),0) -> 0 | AH11: =IF(F6=$AH$7,J6,0) -> 0 | AI11: =IF(F6=$AH$7,G6,0) -> 0 | AK11: =IF(Z11=$AH$5,1,0) -> 0 | AL11: =IF(Z11=$AH$6,1,0) -> 0
C12: Vegtype - Prosjekttype | D12: Velg vegtype - prosjekttype | E12: =IF(D12="Velg vegtype - prosjekttype", "Må angis", "") -> Må angis | F12: Velg element | J12: 0 | Y12: 3 | Z12: Velg element | AA12: =IF(AB12>0,COUNTIF($AB$10:AB12,">"&0),0) -> 0 | AB12: 0 | AC12: 0 | AD12: =IF(AE12>0,COUNTIF($AE$10:AE12,">"&0),0) -> 0 | AE12: 0 | AF12: 0 | AG12: =IF(AH12>0,COUNTIF($AH$10:AH12,">"&0),0) -> 0 | AH12: 0 | AI12: 0 | AK12: 0 | AL12: 0
C13: =IF(D12=Nedtrekksmenyer!B9," ","ÅDT") -> ÅDT | E13: =IF(D12=Nedtrekksmenyer!B9,"",IF(D13="", "Må angis", "")) -> Må angis | F13: Velg element | J13: 0 | Y13: 4 | Z13: Velg element | AA13: =IF(AB13>0,COUNTIF($AB$10:AB13,">"&0),0) -> 0 | AB13: 0 | AC13: 0 | AD13: =IF(AE13>0,COUNTIF($AE$10:AE13,">"&0),0) -> 0 | AE13: 0 | AF13: 0 | AG13: =IF(AH13>0,COUNTIF($AH$10:AH13,">"&0),0) -> 0 | AH13: 0 | AI13: 0 | AK13: 0 | AL13: 0
C14: Fartsgrense (km/t) | F14: Velg element | J14: 0 | Y14: 5 | Z14: Velg element | AA14: =IF(AB14>0,COUNTIF($AB$10:AB14,">"&0),0) -> 0 | AB14: 0 | AC14: 0 | AD14: =IF(AE14>0,COUNTIF($AE$10:AE14,">"&0),0) -> 0 | AE14: 0 | AF14: 0 | AG14: =IF(AH14>0,COUNTIF($AH$10:AH14,">"&0),0) -> 0 | AH14: 0 | AI14: 0 | AK14: 0 | AL14: 0
C15: =IF(D12=Nedtrekksmenyer!B9,"Antall spor","Antall felt") -> Antall felt | E15: =IF(D15="", "Må angis", "") -> Må angis | F15: Velg element | J15: 0 | Y15: 6 | Z15: Velg element | AA15: =IF(AB15>0,COUNTIF($AB$10:AB15,">"&0),0) -> 0 | AB15: 0 | AC15: 0 | AD15: =IF(AE15>0,COUNTIF($AE$10:AE15,">"&0),0) -> 0 | AE15: 0 | AF15: 0 | AG15: =IF(AH15>0,COUNTIF($AH$10:AH15,">"&0),0) -> 0 | AH15: 0 | AI15: 0 | AK15: 0 | AL15: 0
C16: =IF(D12=Nedtrekksmenyer!B9,"Banebredde (m)","Vegbredde (m)") -> Vegbredde (m) | E16: =IF(D16="", "Må angis", "") -> Må angis | F16: Velg element | J16: 0 | Y16: 7 | Z16: Velg element | AA16: =IF(AB16>0,COUNTIF($AB$10:AB16,">"&0),0) -> 0 | AB16: 0 | AC16: 0 | AD16: =IF(AE16>0,COUNTIF($AE$10:AE16,">"&0),0) -> 0 | AE16: 0 | AF16: 0 | AG16: =IF(AH16>0,COUNTIF($AH$10:AH16,">"&0),0) -> 0 | AH16: 0 | AI16: 0 | AK16: 0 | AL16: 0
C17: Buffer, influensområde (m) | F17: Velg element | J17: 0 | Y17: 8 | Z17: Velg element | AA17: =IF(AB17>0,COUNTIF($AB$10:AB17,">"&0),0) -> 0 | AB17: 0 | AC17: 0 | AD17: =IF(AE17>0,COUNTIF($AE$10:AE17,">"&0),0) -> 0 | AE17: 0 | AF17: 0 | AG17: =IF(AH17>0,COUNTIF($AH$10:AH17,">"&0),0) -> 0 | AH17: 0 | AI17: 0 | AK17: 0 | AL17: 0
F18: Velg element | J18: 0 | Y18: 9 | Z18: Velg element | AA18: =IF(AB18>0,COUNTIF($AB$10:AB18,">"&0),0) -> 0 | AB18: 0 | AC18: 0 | AD18: =IF(AE18>0,COUNTIF($AE$10:AE18,">"&0),0) -> 0 | AE18: 0 | AF18: 0 | AG18: =IF(AH18>0,COUNTIF($AH$10:AH18,">"&0),0) -> 0 | AH18: 0 | AI18: 0 | AK18: 0 | AL18: 0
C19: Beregningsforutsetninger | F19: Velg element | J19: 0 | Y19: 10 | Z19: Velg element | AA19: =IF(AB19>0,COUNTIF($AB$10:AB19,">"&0),0) -> 0 | AB19: 0 | AC19: 0 | AD19: =IF(AE19>0,COUNTIF($AE$10:AE19,">"&0),0) -> 0 | AE19: 0 | AF19: 0 | AG19: =IF(AH19>0,COUNTIF($AH$10:AH19,">"&0),0) -> 0 | AH19: 0 | AI19: 0 | AK19: 0 | AL19: 0
C20: Overordnede forutsetninger som påvirker beregningene. Gjelder hvorvidt prosjektet omfattes av krav til klimagassutslipp tilsvarende minst lavkarbonklasse B for plasstøpt betong, og hvilken utslippsfaktor som legges til grunn for beregning av utslipp fra elektrisitetsproduksjon | F20: Velg element | J20: 0 | Y20: 11 | Z20: Velg element | AA20: =IF(AB20>0,COUNTIF($AB$10:AB20,">"&0),0) -> 0 | AB20: 0 | AC20: 0 | AD20: =IF(AE20>0,COUNTIF($AE$10:AE20,">"&0),0) -> 0 | AE20: 0 | AF20: 0 | AG20: =IF(AH20>0,COUNTIF($AH$10:AH20,">"&0),0) -> 0 | AH20: 0 | AI20: 0 | AK20: 0 | AL20: 0
F21: Velg element | J21: 0 | Y21: 12 | Z21: Velg element | AA21: =IF(AB21>0,COUNTIF($AB$10:AB21,">"&0),0) -> 0 | AB21: 0 | AC21: 0 | AD21: =IF(AE21>0,COUNTIF($AE$10:AE21,">"&0),0) -> 0 | AE21: 0 | AF21: 0 | AG21: =IF(AH21>0,COUNTIF($AH$10:AH21,">"&0),0) -> 0 | AH21: 0 | AI21: 0 | AK21: 0 | AL21: 0
F22: Velg element | J22: 0 | Y22: 13 | Z22: Velg element | AA22: =IF(AB22>0,COUNTIF($AB$10:AB22,">"&0),0) -> 0 | AB22: 0 | AC22: 0 | AD22: =IF(AE22>0,COUNTIF($AE$10:AE22,">"&0),0) -> 0 | AE22: 0 | AF22: 0 | AG22: =IF(AH22>0,COUNTIF($AH$10:AH22,">"&0),0) -> 0 | AH22: 0 | AI22: 0 | AK22: 0 | AL22: 0
E23: =IF(D15=Nedtrekksmenyer!E17, "Må angis", "") ->  | F23: Velg element | J23: 0 | Y23: 14 | Z23: Velg element | AA23: =IF(AB23>0,COUNTIF($AB$10:AB23,">"&0),0) -> 0 | AB23: 0 | AC23: 0 | AD23: =IF(AE23>0,COUNTIF($AE$10:AE23,">"&0),0) -> 0 | AE23: 0 | AF23: 0 | AG23: =IF(AH23>0,COUNTIF($AH$10:AH23,">"&0),0) -> 0 | AH23: 0 | AI23: 0 | AK23: 0 | AL23: 0
C24: Gjelder minstekrav til lavkarbon B for plasstøpt betong? | D24: Nei | F24: Velg element | J24: 0 | Y24: 15 | Z24: Velg element | AA24: =IF(AB24>0,COUNTIF($AB$10:AB24,">"&0),0) -> 0 | AB24: 0 | AC24: 0 | AD24: =IF(AE24>0,COUNTIF($AE$10:AE24,">"&0),0) -> 0 | AE24: 0 | AF24: 0 | AG24: =IF(AH24>0,COUNTIF($AH$10:AH24,">"&0),0) -> 0 | AH24: 0 | AI24: 0 | AK24: 0 | AL24: 0
C25: Scenario for utslippsfaktor for elektrisitetsproduksjon | D25: Velg scenario for el-miks | F25: Velg element | J25: =SUM(J5:J24) -> 0 | Y25: 16 | Z25: Velg element | AA25: =IF(AB25>0,COUNTIF($AB$10:AB25,">"&0),0) -> 0 | AB25: 0 | AC25: 0 | AD25: =IF(AE25>0,COUNTIF($AE$10:AE25,">"&0),0) -> 0 | AE25: 0 | AF25: 0 | AG25: =IF(AH25>0,COUNTIF($AH$10:AH25,">"&0),0) -> 0 | AH25: 0 | AI25: 0 | AK25: 0 | AL25: 0
Y26: 17 | Z26: Velg element | AA26: =IF(AB26>0,COUNTIF($AB$10:AB26,">"&0),0) -> 0 | AB26: 0 | AC26: 0 | AD26: =IF(AE26>0,COUNTIF($AE$10:AE26,">"&0),0) -> 0 | AE26: 0 | AF26: 0 | AG26: =IF(AH26>0,COUNTIF($AH$10:AH26,">"&0),0) -> 0 | AH26: 0 | AI26: 0 | AK26: 0 | AL26: 0
C27: Beskrivelsestekst | F27: Fordeling dagsone - tunnel - bru | Y27: 18 | Z27: Velg element | AA27: =IF(AB27>0,COUNTIF($AB$10:AB27,">"&0),0) -> 0 | AB27: 0 | AC27: 0 | AD27: =IF(AE27>0,COUNTIF($AE$10:AE27,">"&0),0) -> 0 | AE27: 0 | AF27: 0 | AG27: =IF(AH27>0,COUNTIF($AH$10:AH27,">"&0),0) -> 0 | AH27: 0 | AI27: 0 | AK27: 0 | AL27: 0
C28: (Kort beskrivelse av vurderte alternativer, trasévalg, etc. som er relevant.) | F28: Dagsone (m) | G28: =Prosjektbeskrivelse!AB30 -> 0 | H28: =IFERROR(G28/$G$32,"-") -> - | Y28: 19 | Z28: Velg element | AA28: =IF(AB28>0,COUNTIF($AB$10:AB28,">"&0),0) -> 0 | AB28: 0 | AC28: 0 | AD28: =IF(AE28>0,COUNTIF($AE$10:AE28,">"&0),0) -> 0 | AE28: 0 | AF28: 0 | AG28: =IF(AH28>0,COUNTIF($AH$10:AH28,">"&0),0) -> 0 | AH28: 0 | AI28: 0 | AK28: 0 | AL28: 0
F29: Tunnel (m) | G29: =Prosjektbeskrivelse!AE30 -> 0 | H29: =IFERROR(G29/$G$32,"-") -> - | Y29: 20 | Z29: Velg element | AA29: =IF(AB29>0,COUNTIF($AB$10:AB29,">"&0),0) -> 0 | AB29: 0 | AC29: 0 | AD29: =IF(AE29>0,COUNTIF($AE$10:AE29,">"&0),0) -> 0 | AE29: 0 | AF29: 0 | AG29: =IF(AH29>0,COUNTIF($AH$10:AH29,">"&0),0) -> 0 | AH29: 0 | AI29: 0 | AK29: =IF(Z29=$AH$5,1,0) -> 0 | AL29: =IF(Z29=$AH$6,1,0) -> 0
F30: Bru (m) | G30: =Prosjektbeskrivelse!AH30 -> 0 | H30: =IFERROR(G30/$G$32,"-") -> - | Z30: SUM, lengde per element | AB30: =SUM(AB10:AB29) -> 0 | AC30: =SUM(AC10:AC29) -> 0 | AD30: 0 | AE30: 0 | AF30: 0 | AG30: 0 | AH30: 0 | AI30: 0 | AK30: 0 | AL30: 0
Z31: Antall elementer | AB31: =COUNTIF(AB10:AB29,">"&0) -> 0 | AC31: =COUNTIF(AC10:AC29,">"&0) -> 0 | AD31: 0 | AE31: =COUNTIF(AE10:AE29,">"&0) -> 0 | AF31: 0 | AG31: 0 | AH31: 0 | AI31: 0 | AK31: 0 | AL31: 0
F32: =IF(D12=Nedtrekksmenyer!B9,"Banens totale lengde (m)","Vegstrekningens totale lengde (m)") -> Vegstrekningens totale lengde (m) | H32: =IF(SUM(J5:J24)<>G32, "Sum ulik total strekningslengde", "" ) -> 
K529: =(IF(Prosjektbeskrivelse!D11="Øst",79691,0)+IF(Prosjektbeskrivelse!D11="Sør",90169,0)+IF(Prosjektbeskrivelse!D11="Vest",79620,0)+IF(Prosjektbeskrivelse!D11="Midt",37186,0)+IF(Prosjektbeskrivelse!D11="Nord",12800,0)+IF(Prosjektbeskrivelse!D11="Velg region",4.18,0))*Prosjektbeskrivelse!D7 -> 0

Sheet Dagsone
B2: DAGSONE | I2: Mengde energi: Dieselforbruk, massetransport og el | P2: Mengde materialer og materialproduksjon | X2: Miljøpåvirkning utbygging | AX2: ="Miljøpåvirkning drift og vedlikehold "&Prosjektbeskrivelse!D7&" år" -> Miljøpåvirkning drift og vedlikehold år
B3: =IF(Prosjektbeskrivelse!D10=0,"",Prosjektbeskrivelse!D10) ->  | D3: Samlet lengde (Dagsone) | E3: =Prosjektbeskrivelse!G28 -> 0 | F3: m
I4: Anleggsdiesel, ekskl transport (l) | L4: Massetransport (tkm) | N4: Elektrisitet, kWh | P4: Materialer/prosesser | V4: Materialgruppe | X4: Anleggsdiesel | AC4: Massetransport | AH4: Elektrisitet, kWh | AM4: Materialer inkl materialtransport til byggeplass (A1-A4) | AR4: Sum | AX4: Diesel | BC4: Elektrisitet, kWh | BH4: Materialer inkl transport til byggeplass (A1-A4) | BM4: Sum
B5: ='Overordnet verktøy'!B6 -> VegLCA v5.14B. 26.04.2024 | E5: Mengde | F5: Enhet | I5: Utbygging | J5: ="D&V "&Prosjektbeskrivelse!D7&" år" -> D&V år | K5: Kommentar | L5: tkm (utbygging) | M5: Kommentar | N5: Utbygging | O5: ="D&V "&Prosjektbeskrivelse!D7&" år" -> D&V år | P5: Material | Q5: Enhet utslippsfaktor | R5: Mengde, utbygging (må stemme med enhet i utslippsfaktor) | S5: Material-transport (tkm) | T5: ="Mengde, D&V "&Prosjektbeskrivelse!D7&" år" -> Mengde, D&V år | U5: ="Material-transport (tkm) D&V "&Prosjektbeskrivelse!D7&" år" -> Material-transport (tkm) D&V år | X5: K - kg CO2-eq | Y5: F - kg SO2-eq | Z5: E - kg PO43- -eq | AA5: FS - kg C2H4 -eq | AB5: E: (TRP+TRPE) MJ | AC5: K - kg CO2-eq | AD5: F - kg SO2-eq | AE5: E - kg PO43- -eq | AF5: FS - kg C2H4 -eq | AG5: E: (TRP+TRPE) MJ | AH5: K - kg CO2-eq | AI5: F - kg SO2-eq | AJ5: E - kg PO43- -eq | AK5: FS - kg C2H4 -eq | AL5: E: (TRP+TRPE) MJ | AM5: K - kg CO2-eq | AN5: F - kg SO2-eq | AO5: E - kg PO43- -eq | AP5: FS - kg C2H4 -eq | AQ5: E: (TRP+TRPE) MJ | AR5: K - kg CO2-eq | AS5: F - kg SO2-eq | AT5: E - kg PO43- -eq | AU5: FS - kg C2H4 -eq | AV5: E: (TRP+TRPE) MJ | AX5: K - kg CO2-eq | AY5: F - kg SO2-eq | AZ5: E - kg PO43- -eq | BA5: FS - kg C2H4 -eq | BB5: E: (TRP+TRPE) MJ | BC5: K - kg CO2-eq | BD5: F - kg SO2-eq | BE5: E - kg PO43- -eq | BF5: FS - kg C2H4 -eq | BG5: E: (TRP+TRPE) MJ | BH5: K - kg CO2-eq | BI5: F - kg SO2-eq | BJ5: E - kg PO43- -eq | BK5: FS - kg C2H4 -eq | BL5: E: (TRP+TRPE) MJ | BM5: K - kg CO2-eq | BN5: F - kg SO2-eq | BO5: E - kg PO43- -eq | BP5: FS - kg C2H4 -eq | BQ5: E: (TRP+TRPE) MJ
P6: grønne celler er forbedret og omgjort til V lookup
B7: 01: FORBEREDENDE TILTAK OG GENERELLE KOSTNADER
B9: 11: ARBEIDSSTIKNING, TEKNISK KONTROLL
B10: 11.1 | D10: Fastmerker | F10: NOK | P10: =D10 -> Fastmerker | R10: =E10 -> 0 | V10: =IF(P10="","",VLOOKUP(P10,Utslippsfaktorer!$C$9:$AM$459,Utslippsfaktorer!$AM$5,FALSE)) -> RS - Teknisk kontroll | AH10: =$N10*Utslippsfaktorer!E$177 -> 0 | AI10: =$N10*Utslippsfaktorer!F$177 -> 0 | AJ10: =$N10*Utslippsfaktorer!G$177 -> 0 | AK10: =$N10*Utslippsfaktorer!H$177 -> 0 | AL10: =$N10*Utslippsfaktorer!I$177 -> 0 | AM10: =((IF($P10="",0,VLOOKUP($P10,Utslippsfaktorer!$C$9:$I$493,Utslippsfaktorer!E$5,FALSE)))*$R10)+($S10*Utslippsfaktorer!E$170) -> 0 | AN10: =((IF($P10="",0,VLOOKUP($P10,Utslippsfaktorer!$C$9:$I$493,Utslippsfaktorer!F$5,FALSE)))*$R10)+($S10*Utslippsfaktorer!F$170) -> 0 | AO10: =((IF($P10="",0,VLOOKUP($P10,Utslippsfaktorer!$C$9:$I$493,Utslippsfaktorer!G$5,FALSE)))*$R10)+($S10*Utslippsfaktorer!G$170) -> 0 | AP10: =((IF($P10="",0,VLOOKUP($P10,Utslippsfaktorer!$C$9:$I$493,Utslippsfaktorer!H$5,FALSE)))*$R10)+($S10*Utslippsfaktorer!H$170) -> 0 | AQ10: =((IF($P10="",0,VLOOKUP($P10,Utslippsfaktorer!$C$9:$I$493,Utslippsfaktorer!I$5,FALSE)))*$R10)+($S10*Utslippsfaktorer!I$170) -> 0 | AR10: =X10+AC10+AH10+AM10 -> 0 | AS10: =Y10+AD10+AI10+AN10 -> 0 | AT10: =Z10+AE10+AJ10+AO10 -> 0 | AU10: =AA10+AF10+AK10+AP10 -> 0 | AV10: =AB10+AG10+AL10+AQ10 -> 0 | AX10: =$J10*Utslippsfaktorer!E$154 -> 0 | AY10: =$J10*Utslippsfaktorer!F$154 -> 0 | AZ10: =$J10*Utslippsfaktorer!G$154 -> 0 | BA10: =$J10*Utslippsfaktorer!H$154 -> 0 | BB10: =$J10*Utslippsfaktorer!I$154 -> 0 | BC10: =$O10*Utslippsfaktorer!E$178 -> 0 | BD10: =$O10*Utslippsfaktorer!F$178 -> 0 | BE10: =$O10*Utslippsfaktorer!G$178 -> 0 | BF10: =$O10*Utslippsfaktorer!H$178 -> 0 | BG10: =$O10*Utslippsfaktorer!I$178 -> 0 | BH10: =((IF($P10="",0,VLOOKUP($P10,Utslippsfaktorer!$C$9:$I$493,Utslippsfaktorer!E$5,FALSE)))*$T10)+($U10*Utslippsfaktorer!E$170) -> 0 | BI10: =((IF($P10="",0,VLOOKUP($P10,Utslippsfaktorer!$C$9:$I$493,Utslippsfaktorer!F$5,FALSE)))*$T10)+($U10*Utslippsfaktorer!F$170) -> 0 | BJ10: =((IF($P10="",0,VLOOKUP($P10,Utslippsfaktorer!$C$9:$I$493,Utslippsfaktorer!G$5,FALSE)))*$T10)+($U10*Utslippsfaktorer!G$170) -> 0 | BK10: =((IF($P10="",0,VLOOKUP($P10,Utslippsfaktorer!$C$9:$I$493,Utslippsfaktorer!H$5,FALSE)))*$T10)+($U10*Utslippsfaktorer!H$170) -> 0 | BL10: =((IF($P10="",0,VLOOKUP($P10,Utslippsfaktorer!$C$9:$I$493,Utslippsfaktorer!I$5,FALSE)))*$T10)+($U10*Utslippsfaktorer!I$170) -> 0 | BM10: =AX10+BC10+BH10 -> 0 | BN10: =AY10+BD10+BI10 -> 0 | BO10: =AZ10+BE10+BJ10 -> 0 | BP10: =BA10+BF10+BK10 -> 0 | BQ10: =BB10+BG10+BL10 -> 0
B11: 11.2 | D11: Stikking og maskinstyring | F11: NOK | P11: =D11 -> Stikking og maskinstyring | R11: =E11 -> 0 | V11: =IF(P11="","",VLOOKUP(P11,Utslippsfaktorer!$C$9:$AM$459,Utslippsfaktorer!$AM$5,FALSE)) -> RS - Teknisk kontroll | AH11: =$N11*Utslippsfaktorer!E$177 -> 0 | AI11: =$N11*Utslippsfaktorer!F$177 -> 0 | AJ11: =$N11*Utslippsfaktorer!G$177 -> 0 | AK11: =$N11*Utslippsfaktorer!H$177 -> 0 | AL11: =$N11*Utslippsfaktorer!I$177 -> 0 | AM11: =((IF($P11="",0,VLOOKUP($P11,Utslippsfaktorer!$C$9:$I$493,Utslippsfaktorer!E$5,FALSE)))*$R11)+($S11*Utslippsfaktorer!E$170) -> 0 | AN11: =((IF($P11="",0,VLOOKUP($P11,Utslippsfaktorer!$C$9:$I$493,Utslippsfaktorer!F$5,FALSE)))*$R11)+($S11*Utslippsfaktorer!F$170) -> 0 | AO11: =((IF($P11="",0,VLOOKUP($P11,Utslippsfaktorer!$C$9:$I$493,Utslippsfaktorer!G$5,FALSE)))*$R11)+($S11*Utslippsfaktorer!G$170) -> 0 | AP11: =((IF($P11="",0,VLOOKUP($P11,Utslippsfaktorer!$C$9:$I$493,Utslippsfaktorer!H$5,FALSE)))*$R11)+($S11*Utslippsfaktorer!H$170) -> 0 | AQ11: =((IF($P11="",0,VLOOKUP($P11,Utslippsfaktorer!$C$9:$I$493,Utslippsfaktorer!I$5,FALSE)))*$R11)+($S11*Utslippsfaktorer!I$170) -> 0 | AR11: =X11+AC11+AH11+AM11 -> 0 | AS11: =Y11+AD11+AI11+AN11 -> 0 | AT11: =Z11+AE11+AJ11+AO11 -> 0 | AU11: =AA11+AF11+AK11+AP11 -> 0 | AV11: =AB11+AG11+AL11+AQ11 -> 0 | AX11: =$J11*Utslippsfaktorer!E$154 -> 0 | AY11: =$J11*Utslippsfaktorer!F$154 -> 0 | AZ11: =$J11*Utslippsfaktorer!G$154 -> 0 | BA11: =$J11*Utslippsfaktorer!H$154 -> 0 | BB11: =$J11*Utslippsfaktorer!I$154 -> 0 | BC11: =$O11*Utslippsfaktorer!E$178 -> 0 | BD11: =$O11*Utslippsfaktorer!F$178 -> 0 | BE11: =$O11*Utslippsfaktorer!G$178 -> 0 | BF11: =$O11*Utslippsfaktorer!H$178 -> 0 | BG11: =$O11*Utslippsfaktorer!I$178 -> 0 | BH11: =((IF($P11="",0,VLOOKUP($P11,Utslippsfaktorer!$C$9:$I$493,Utslippsfaktorer!E$5,FALSE)))*$T11)+($U11*Utslippsfaktorer!E$170) -> 0 | BI11: =((IF($P11="",0,VLOOKUP($P11,Utslippsfaktorer!$C$9:$I$493,Utslippsfaktorer!F$5,FALSE)))*$T11)+($U11*Utslippsfaktorer!F$170) -> 0 | BJ11: =((IF($P11="",0,VLOOKUP($P11,Utslippsfaktorer!$C$9:$I$493,Utslippsfaktorer!G$5,FALSE)))*$T11)+($U11*Utslippsfaktorer!G$170) -> 0 | BK11: =((IF($P11="",0,VLOOKUP($P11,Utslippsfaktorer!$C$9:$I$493,Utslippsfaktorer!H$5,FALSE)))*$T11)+($U11*Utslippsfaktorer!H$170) -> 0 | BL11: =((IF($P11="",0,VLOOKUP($P11,Utslippsfaktorer!$C$9:$I$493,Utslippsfaktorer!I$5,FALSE)))*$T11)+($U11*Utslippsfaktorer!I$170) -> 0 | BM11: =AX11+BC11+BH11 -> 0 | BN11: =AY11+BD11+BI11 -> 0 | BO11: =AZ11+BE11+BJ11 -> 0 | BP11: =BA11+BF11+BK11 -> 0 | BQ11: =BB11+BG11+BL11 -> 0
B12: 11.3 | D12: Innmåling | F12: NOK | P12: =D12 -> Innmåling | R12: =E12 -> 0 | V12: =IF(P12="","",VLOOKUP(P12,Utslippsfaktorer!$C$9:$AM$459,Utslippsfaktorer!$AM$5,FALSE)) -> RS - Teknisk kontroll | AH12: =$N12*Utslippsfaktorer!E$177 -> 0 | AI12: =$N12*Utslippsfaktorer!F$177 -> 0 | AJ12: =$N12*Utslippsfaktorer!G$177 -> 0 | AK12: =$N12*Utslippsfaktorer!H$177 -> 0 | AL12: =$N12*Utslippsfaktorer!I$177 -> 0 | AM12: =((IF($P12="",0,VLOOKUP($P12,Utslippsfaktorer!$C$9:$I$493,Utslippsfaktorer!E$5,FALSE)))*$R12)+($S12*Utslippsfaktorer!E$170) -> 0 | AN12: =((IF($P12="",0,VLOOKUP($P12,Utslippsfaktorer!$C$9:$I$493,Utslippsfaktorer!F$5,FALSE)))*$R12)+($S12*Utslippsfaktorer!F$170) -> 0 | AO12: =((IF($P12="",0,VLOOKUP($P12,Utslippsfaktorer!$C$9:$I$493,Utslippsfaktorer!G$5,FALSE)))*$R12)+($S12*Utslippsfaktorer!G$170) -> 0 | AP12: =((IF($P12="",0,VLOOKUP($P12,Utslippsfaktorer!$C$9:$I$493,Utslippsfaktorer!H$5,FALSE)))*$R12)+($S12*Utslippsfaktorer!H$170) -> 0 | AQ12: =((IF($P12="",0,VLOOKUP($P12,Utslippsfaktorer!$C$9:$I$493,Utslippsfaktorer!I$5,FALSE)))*$R12)+($S12*Utslippsfaktorer!I$170) -> 0 | AR12: 0 | AS12: 0 | AT12: 0 | AU12: 0 | AV12: 0 | AX12: =$J12*Utslippsfaktorer!E$154 -> 0 | AY12: =$J12*Utslippsfaktorer!F$154 -> 0 | AZ12: =$J12*Utslippsfaktorer!G$154 -> 0 | BA12: =$J12*Utslippsfaktorer!H$154 -> 0 | BB12: =$J12*Utslippsfaktorer!I$154 -> 0 | BC12: =$O12*Utslippsfaktorer!E$178 -> 0 | BD12: =$O12*Utslippsfaktorer!F$178 -> 0 | BE12: =$O12*Utslippsfaktorer!G$178 -> 0 | BF12: =$O12*Utslippsfaktorer!H$178 -> 0 | BG12: =$O12*Utslippsfaktorer!I$178 -> 0 | BH12: =((IF($P12="",0,VLOOKUP($P12,Utslippsfaktorer!$C$9:$I$493,Utslippsfaktorer!E$5,FALSE)))*$T12)+($U12*Utslippsfaktorer!E$170) -> 0 | BI12: =((IF($P12="",0,VLOOKUP($P12,Utslippsfaktorer!$C$9:$I$493,Utslippsfaktorer!F$5,FALSE)))*$T12)+($U12*Utslippsfaktorer!F$170) -> 0 | BJ12: =((IF($P12="",0,VLOOKUP($P12,Utslippsfaktorer!$C$9:$I$493,Utslippsfaktorer!G$5,FALSE)))*$T12)+($U12*Utslippsfaktorer!G$170) -> 0 | BK12: =((IF($P12="",0,VLOOKUP($P12,Utslippsfaktorer!$C$9:$I$493,Utslippsfaktorer!H$5,FALSE)))*$T12)+($U12*Utslippsfaktorer!H$170) -> 0 | BL12: =((IF($P12="",0,VLOOKUP($P12,Utslippsfaktorer!$C$9:$I$493,Utslippsfaktorer!I$5,FALSE)))*$T12)+($U12*Utslippsfaktorer!I$170) -> 0 | BM12: 0 | BN12: 0 | BO12: 0 | BP12: 0 | BQ12: 0
B13: 11.4 | D13: Teknisk kontroll | F13: NOK | P13: =D13 -> Teknisk kontroll | R13: =E13 -> 0 | V13: =IF(P13="","",VLOOKUP(P13,Utslippsfaktorer!$C$9:$AM$459,Utslippsfaktorer!$AM$5,FALSE)) -> RS - Teknisk kontroll | AH13: =$N13*Utslippsfaktorer!E$177 -> 0 | AI13: =$N13*Utslippsfaktorer!F$177 -> 0 | AJ13: =$N13*Utslippsfaktorer!G$177 -> 0 | AK13: =$N13*Utslippsfaktorer!H$177 -> 0 | AL13: =$N13*Utslippsfaktorer!I$177 -> 0 | AM13: =((IF($P13="",0,VLOOKUP($P13,Utslippsfaktorer!$C$9:$I$493,Utslippsfaktorer!E$5,FALSE)))*$R13)+($S13*Utslippsfaktorer!E$170) -> 0 | AN13: =((IF($P13="",0,VLOOKUP($P13,Utslippsfaktorer!$C$9:$I$493,Utslippsfaktorer!F$5,FALSE)))*$R13)+($S13*Utslippsfaktorer!F$170) -> 0 | AO13: =((IF($P13="",0,VLOOKUP($P13,Utslippsfaktorer!$C$9:$I$493,Utslippsfaktorer!G$5,FALSE)))*$R13)+($S13*Utslippsfaktorer!G$170) -> 0 | AP13: =((IF($P13="",0,VLOOKUP($P13,Utslippsfaktorer!$C$9:$I$493,Utslippsfaktorer!H$5,FALSE)))*$R13)+($S13*Utslippsfaktorer!H$170) -> 0 | AQ13: =((IF($P13="",0,VLOOKUP($P13,Utslippsfaktorer!$C$9:$I$493,Utslippsfaktorer!I$5,FALSE)))*$R13)+($S13*Utslippsfaktorer!I$170) -> 0 | AR13: 0 | AS13: 0 | AT13: 0 | AU13: 0 | AV13: 0 | AX13: =$J13*Utslippsfaktorer!E$154 -> 0 | AY13: =$J13*Utslippsfaktorer!F$154 -> 0 | AZ13: =$J13*Utslippsfaktorer!G$154 -> 0 | BA13: =$J13*Utslippsfaktorer!H$154 -> 0 | BB13: =$J13*Utslippsfaktorer!I$154 -> 0 | BC13: =$O13*Utslippsfaktorer!E$178 -> 0 | BD13: =$O13*Utslippsfaktorer!F$178 -> 0 | BE13: =$O13*Utslippsfaktorer!G$178 -> 0 | BF13: =$O13*Utslippsfaktorer!H$178 -> 0 | BG13: =$O13*Utslippsfaktorer!I$178 -> 0 | BH13: =((IF($P13="",0,VLOOKUP($P13,Utslippsfaktorer!$C$9:$I$493,Utslippsfaktorer!E$5,FALSE)))*$T13)+($U13*Utslippsfaktorer!E$170) -> 0 | BI13: =((IF($P13="",0,VLOOKUP($P13,Utslippsfaktorer!$C$9:$I$493,Utslippsfaktorer!F$5,FALSE)))*$T13)+($U13*Utslippsfaktorer!F$170) -> 0 | BJ13: =((IF($P13="",0,VLOOKUP($P13,Utslippsfaktorer!$C$9:$I$493,Utslippsfaktorer!G$5,FALSE)))*$T13)+($U13*Utslippsfaktorer!G$170) -> 0 | BK13: =((IF($P13="",0,VLOOKUP($P13,Utslippsfaktorer!$C$9:$I$493,Utslippsfaktorer!H$5,FALSE)))*$T13)+($U13*Utslippsfaktorer!H$170) -> 0 | BL13: =((IF($P13="",0,VLOOKUP($P13,Utslippsfaktorer!$C$9:$I$493,Utslippsfaktorer!I$5,FALSE)))*$T13)+($U13*Utslippsfaktorer!I$170) -> 0 | BM13: 0 | BN13: 0 | BO13: 0 | BP13: 0 | BQ13: 0
B14: 11.5 | D14: Sluttdokumentasjon | F14: NOK | P14: =D14 -> Sluttdokumentasjon | R14: =E14 -> 0 | V14: =IF(P14="","",VLOOKUP(P14,Utslippsfaktorer!$C$9:$AM$459,Utslippsfaktorer!$AM$5,FALSE)) -> RS - Teknisk kontroll | AH14: =$N14*Utslippsfaktorer!E$177 -> 0 | AI14: =$N14*Utslippsfaktorer!F$177 -> 0 | AJ14: =$N14*Utslippsfaktorer!G$177 -> 0 | AK14: =$N14*Utslippsfaktorer!H$177 -> 0 | AL14: =$N14*Utslippsfaktorer!I$177 -> 0 | AM14: =((IF($P14="",0,VLOOKUP($P14,Utslippsfaktorer!$C$9:$I$493,Utslippsfaktorer!E$5,FALSE)))*$R14)+($S14*Utslippsfaktorer!E$170) -> 0 | AN14: =((IF($P14="",0,VLOOKUP($P14,Utslippsfaktorer!$C$9:$I$493,Utslippsfaktorer!F$5,FALSE)))*$R14)+($S14*Utslippsfaktorer!F$170) -> 0 | AO14: =((IF($P14="",0,VLOOKUP($P14,Utslippsfaktorer!$C$9:$I$493,Utslippsfaktorer!G$5,FALSE)))*$R14)+($S14*Utslippsfaktorer!G$170) -> 0 | AP14: =((IF($P14="",0,VLOOKUP($P14,Utslippsfaktorer!$C$9:$I$493,Utslippsfaktorer!H$5,FALSE)))*$R14)+($S14*Utslippsfaktorer!H$170) -> 0 | AQ14: =((IF($P14="",0,VLOOKUP($P14,Utslippsfaktorer!$C$9:$I$493,Utslippsfaktorer!I$5,FALSE)))*$R14)+($S14*Utslippsfaktorer!I$170) -> 0 | AR14: 0 | AS14: 0 | AT14: 0 | AU14: 0 | AV14: 0 | AX14: =$J14*Utslippsfaktorer!E$154 -> 0 | AY14: =$J14*Utslippsfaktorer!F$154 -> 0 | AZ14: =$J14*Utslippsfaktorer!G$154 -> 0 | BA14: =$J14*Utslippsfaktorer!H$154 -> 0 | BB14: =$J14*Utslippsfaktorer!I$154 -> 0 | BC14: =$O14*Utslippsfaktorer!E$178 -> 0 | BD14: =$O14*Utslippsfaktorer!F$178 -> 0 | BE14: =$O14*Utslippsfaktorer!G$178 -> 0 | BF14: =$O14*Utslippsfaktorer!H$178 -> 0 | BG14: =$O14*Utslippsfaktorer!I$178 -> 0 | BH14: =((IF($P14="",0,VLOOKUP($P14,Utslippsfaktorer!$C$9:$I$493,Utslippsfaktorer!E$5,FALSE)))*$T14)+($U14*Utslippsfaktorer!E$170) -> 0 | BI14: =((IF($P14="",0,VLOOKUP($P14,Utslippsfaktorer!$C$9:$I$493,Utslippsfaktorer!F$5,FALSE)))*$T14)+($U14*Utslippsfaktorer!F$170) -> 0 | BJ14: =((IF($P14="",0,VLOOKUP($P14,Utslippsfaktorer!$C$9:$I$493,Utslippsfaktorer!G$5,FALSE)))*$T14)+($U14*Utslippsfaktorer!G$170) -> 0 | BK14: =((IF($P14="",0,VLOOKUP($P14,Utslippsfaktorer!$C$9:$I$493,Utslippsfaktorer!H$5,FALSE)))*$T14)+($U14*Utslippsfaktorer!H$170) -> 0 | BL14: =((IF($P14="",0,VLOOKUP($P14,Utslippsfaktorer!$C$9:$I$493,Utslippsfaktorer!I$5,FALSE)))*$T14)+($U14*Utslippsfaktorer!I$170) -> 0 | BM14: 0 | BN14: 0 | BO14: 0 | BP14: 0 | BQ14: 0
B16: 12: RIGG, BYGNINGER OG GENERELLE DRIFTSOMKOSTNINGER
B17: 12.1 | D17: Rigg og midlertididige bygnigner | F17: NOK | P17: =D17 -> Rigg og midlertididige bygnigner | R17: =E17 -> 0 | V17: =IF(P17="","",VLOOKUP(P17,Utslippsfaktorer!$C$9:$AM$459,Utslippsfaktorer!$AM$5,FALSE)) -> RS - Rigg og drift | AH17: =$N17*Utslippsfaktorer!E$177 -> 0 | AI17: =$N17*Utslippsfaktorer!F$177 -> 0 | AJ17: =$N17*Utslippsfaktorer!G$177 -> 0 | AK17: =$N17*Utslippsfaktorer!H$177 -> 0 | AL17: =$N17*Utslippsfaktorer!I$177 -> 0 | AM17: =((IF($P17="",0,VLOOKUP($P17,Utslippsfaktorer!$C$9:$I$493,Utslippsfaktorer!E$5,FALSE)))*$R17)+($S17*Utslippsfaktorer!E$170) -> 0 | AN17: =((IF($P17="",0,VLOOKUP($P17,Utslippsfaktorer!$C$9:$I$493,Utslippsfaktorer!F$5,FALSE)))*$R17)+($S17*Utslippsfaktorer!F$170) -> 0 | AO17: =((IF($P17="",0,VLOOKUP($P17,Utslippsfaktorer!$C$9:$I$493,Utslippsfaktorer!G$5,FALSE)))*$R17)+($S17*Utslippsfaktorer!G$170) -> 0 | AP17: =((IF($P17="",0,VLOOKUP($P17,Utslippsfaktorer!$C$9:$I$493,Utslippsfaktorer!H$5,FALSE)))*$R17)+($S17*Utslippsfaktorer!H$170) -> 0 | AQ17: =((IF($P17="",0,VLOOKUP($P17,Utslippsfaktorer!$C$9:$I$493,Utslippsfaktorer!I$5,FALSE)))*$R17)+($S17*Utslippsfaktorer!I$170) -> 0 | AR17: 0 | AS17: 0 | AT17: 0 | AU17: 0 | AV17: 0 | BC17: =$O17*Utslippsfaktorer!E$178 -> 0 | BD17: =$O17*Utslippsfaktorer!F$178 -> 0 | BE17: =$O17*Utslippsfaktorer!G$178 -> 0 | BF17: =$O17*Utslippsfaktorer!H$178 -> 0 | BG17: =$O17*Utslippsfaktorer!I$178 -> 0 | BM17: 0 | BN17: 0 | BO17: 0 | BP17: 0 | BQ17: 0
B18: 12.11 | D18: Tilrigging | F18: NOK | P18: Tilrigging | R18: 0 | V18: =IF(P18="","",VLOOKUP(P18,Utslippsfaktorer!$C$9:$AM$459,Utslippsfaktorer!$AM$5,FALSE)) -> RS - Rigg og drift | AH18: =$N18*Utslippsfaktorer!E$177 -> 0 | AI18: =$N18*Utslippsfaktorer!F$177 -> 0 | AJ18: =$N18*Utslippsfaktorer!G$177 -> 0 | AK18: =$N18*Utslippsfaktorer!H$177 -> 0 | AL18: =$N18*Utslippsfaktorer!I$177 -> 0 | AM18: =((IF($P18="",0,VLOOKUP($P18,Utslippsfaktorer!$C$9:$I$493,Utslippsfaktorer!E$5,FALSE)))*$R18)+($S18*Utslippsfaktorer!E$170) -> 0 | AN18: =((IF($P18="",0,VLOOKUP($P18,Utslippsfaktorer!$C$9:$I$493,Utslippsfaktorer!F$5,FALSE)))*$R18)+($S18*Utslippsfaktorer!F$170) -> 0 | AO18: =((IF($P18="",0,VLOOKUP($P18,Utslippsfaktorer!$C$9:$I$493,Utslippsfaktorer!G$5,FALSE)))*$R18)+($S18*Utslippsfaktorer!G$170) -> 0 | AP18: =((IF($P18="",0,VLOOKUP($P18,Utslippsfaktorer!$C$9:$I$493,Utslippsfaktorer!H$5,FALSE)))*$R18)+($S18*Utslippsfaktorer!H$170) -> 0 | AQ18: =((IF($P18="",0,VLOOKUP($P18,Utslippsfaktorer!$C$9:$I$493,Utslippsfaktorer!I$5,FALSE)))*$R18)+($S18*Utslippsfaktorer!I$170) -> 0 | AR18: 0 | AS18: 0 | AT18: 0 | AU18: 0 | AV18: 0 | AX18: =$J18*Utslippsfaktorer!E$154 -> 0 | AY18: =$J18*Utslippsfaktorer!F$154 -> 0 | AZ18: =$J18*Utslippsfaktorer!G$154 -> 0 | BA18: =$J18*Utslippsfaktorer!H$154 -> 0 | BB18: =$J18*Utslippsfaktorer!I$154 -> 0 | BC18: =$O18*Utslippsfaktorer!E$178 -> 0 | BD18: =$O18*Utslippsfaktorer!F$178 -> 0 | BE18: =$O18*Utslippsfaktorer!G$178 -> 0 | BF18: =$O18*Utslippsfaktorer!H$178 -> 0 | BG18: =$O18*Utslippsfaktorer!I$178 -> 0 | BH18: =((IF($P18="",0,VLOOKUP($P18,Utslippsfaktorer!$C$9:$I$493,Utslippsfaktorer!E$5,FALSE)))*$T18)+($U18*Utslippsfaktorer!E$170) -> 0 | BI18: =((IF($P18="",0,VLOOKUP($P18,Utslippsfaktorer!$C$9:$I$493,Utslippsfaktorer!F$5,FALSE)))*$T18)+($U18*Utslippsfaktorer!F$170) -> 0 | BJ18: =((IF($P18="",0,VLOOKUP($P18,Utslippsfaktorer!$C$9:$I$493,Utslippsfaktorer!G$5,FALSE)))*$T18)+($U18*Utslippsfaktorer!G$170) -> 0 | BK18: =((IF($P18="",0,VLOOKUP($P18,Utslippsfaktorer!$C$9:$I$493,Utslippsfaktorer!H$5,FALSE)))*$T18)+($U18*Utslippsfaktorer!H$170) -> 0 | BL18: =((IF($P18="",0,VLOOKUP($P18,Utslippsfaktorer!$C$9:$I$493,Utslippsfaktorer!I$5,FALSE)))*$T18)+($U18*Utslippsfaktorer!I$170) -> 0 | BM18: 0 | BN18: 0 | BO18: 0 | BP18: 0 | BQ18: 0
B19: 12.12 | D19: Drift av rigg og midlertidige bygninger | F19: NOK | P19: Drift av rigg og midlertidige bygninger | R19: 0 | V19: =IF(P19="","",VLOOKUP(P19,Utslippsfaktorer!$C$9:$AM$459,Utslippsfaktorer!$AM$5,FALSE)) -> RS - Rigg og drift | AH19: =$N19*Utslippsfaktorer!E$177 -> 0 | AI19: =$N19*Utslippsfaktorer!F$177 -> 0 | AJ19: =$N19*Utslippsfaktorer!G$177 -> 0 | AK19: =$N19*Utslippsfaktorer!H$177 -> 0 | AL19: =$N19*Utslippsfaktorer!I$177 -> 0 | AM19: =IF((((IF($P19="",0,VLOOKUP($P19,Utslippsfaktorer!$C$9:$I$493,Utslippsfaktorer!E$5,FALSE)))*$R19)+($S19*Utslippsfaktorer!E$170)-BT22)<0,0,(((IF($P19="",0,VLOOKUP($P19,Utslippsfaktorer!$C$9:$I$493,Utslippsfaktorer!E$5,FALSE)))*$R19)+($S19*Utslippsfaktorer!E$170)-BT22)) -> 0 | AN19: =IF((((IF($P19="",0,VLOOKUP($P19,Utslippsfaktorer!$C$9:$I$493,Utslippsfaktorer!F$5,FALSE)))*$R19)+($S19*Utslippsfaktorer!F$170)-BU22)<0,0,(((IF($P19="",0,VLOOKUP($P19,Utslippsfaktorer!$C$9:$I$493,Utslippsfaktorer!F$5,FALSE)))*$R19)+($S19*Utslippsfaktorer!F$170)-BU22)) -> 0 | AO19: =IF((((IF($P19="",0,VLOOKUP($P19,Utslippsfaktorer!$C$9:$I$493,Utslippsfaktorer!G$5,FALSE)))*$R19)+($S19*Utslippsfaktorer!G$170)-BV22)<0,0,(((IF($P19="",0,VLOOKUP($P19,Utslippsfaktorer!$C$9:$I$493,Utslippsfaktorer!G$5,FALSE)))*$R19)+($S19*Utslippsfaktorer!G$170)-BV22)) -> 0 | AP19: =IF((((IF($P19="",0,VLOOKUP($P19,Utslippsfaktorer!$C$9:$I$493,Utslippsfaktorer!H$5,FALSE)))*$R19)+($S19*Utslippsfaktorer!H$170)-BW22)<0,0,(((IF($P19="",0,VLOOKUP($P19,Utslippsfaktorer!$C$9:$I$493,Utslippsfaktorer!H$5,FALSE)))*$R19)+($S19*Utslippsfaktorer!H$170)-BW22)) -> 0 | AQ19: =IF((((IF($P19="",0,VLOOKUP($P19,Utslippsfaktorer!$C$9:$I$493,Utslippsfaktorer!I$5,FALSE)))*$R19)+($S19*Utslippsfaktorer!I$170)-BX22)<0,0,(((IF($P19="",0,VLOOKUP($P19,Utslippsfaktorer!$C$9:$I$493,Utslippsfaktorer!I$5,FALSE)))*$R19)+($S19*Utslippsfaktorer!I$170)-BX22)) -> 0 | AR19: 0 | AS19: 0 | AT19: 0 | AU19: 0 | AV19: 0 | AX19: =$J19*Utslippsfaktorer!E$154 -> 0 | AY19: =$J19*Utslippsfaktorer!F$154 -> 0 | AZ19: =$J19*Utslippsfaktorer!G$154 -> 0 | BA19: =$J19*Utslippsfaktorer!H$154 -> 0 | BB19: =$J19*Utslippsfaktorer!I$154 -> 0 | BC19: =$O19*Utslippsfaktorer!E$178 -> 0 | BD19: =$O19*Utslippsfaktorer!F$178 -> 0 | BE19: =$O19*Utslippsfaktorer!G$178 -> 0 | BF19: =$O19*Utslippsfaktorer!H$178 -> 0 | BG19: =$O19*Utslippsfaktorer!I$178 -> 0 | BH19: =((IF($P19="",0,VLOOKUP($P19,Utslippsfaktorer!$C$9:$I$493,Utslippsfaktorer!E$5,FALSE)))*$T19)+($U19*Utslippsfaktorer!E$170) -> 0 | BI19: =((IF($P19="",0,VLOOKUP($P19,Utslippsfaktorer!$C$9:$I$493,Utslippsfaktorer!F$5,FALSE)))*$T19)+($U19*Utslippsfaktorer!F$170) -> 0 | BJ19: =((IF($P19="",0,VLOOKUP($P19,Utslippsfaktorer!$C$9:$I$493,Utslippsfaktorer!G$5,FALSE)))*$T19)+($U19*Utslippsfaktorer!G$170) -> 0 | BK19: =((IF($P19="",0,VLOOKUP($P19,Utslippsfaktorer!$C$9:$I$493,Utslippsfaktorer!H$5,FALSE)))*$T19)+($U19*Utslippsfaktorer!H$170) -> 0 | BL19: =((IF($P19="",0,VLOOKUP($P19,Utslippsfaktorer!$C$9:$I$493,Utslippsfaktorer!I$5,FALSE)))*$T19)+($U19*Utslippsfaktorer!I$170) -> 0 | BM19: 0 | BN19: 0 | BO19: 0 | BP19: 0 | BQ19: 0
B20: 12.12 - energi | D20: Beregnet levert energi til drift - strøm | F20: kWh | N20: =E20 -> 0 | AH20: =$N20*Utslippsfaktorer!E$177 -> 0 | AI20: =$N20*Utslippsfaktorer!F$177 -> 0 | AJ20: =$N20*Utslippsfaktorer!G$177 -> 0 | AK20: =$N20*Utslippsfaktorer!H$177 -> 0 | AL20: =$N20*Utslippsfaktorer!I$177 -> 0 | AR20: =X20+AC20+AH20+AM20 -> 0 | AS20: =Y20+AD20+AI20+AN20 -> 0 | AT20: =Z20+AE20+AJ20+AO20 -> 0 | AU20: =AA20+AF20+AK20+AP20 -> 0 | AV20: =AB20+AG20+AL20+AQ20 -> 0 | BT20: =$E$20*Utslippsfaktorer!E177 -> 0 | BU20: =$E$20*Utslippsfaktorer!F177 -> 0 | BV20: =$E$20*Utslippsfaktorer!G177 -> 0 | BW20: =$E$20*Utslippsfaktorer!H177 -> 0 | BX20: =$E$20*Utslippsfaktorer!I177 -> 0
B21: 12.12 - energi | D21: Beregnet levert energi til drift - fjernvarme | F21: kWh | BT21: =$E$21*Utslippsfaktorer!E179 -> 0 | BU21: =$E$21*Utslippsfaktorer!F179 -> 0 | BV21: =$E$21*Utslippsfaktorer!G179 -> 0 | BW21: =$E$21*Utslippsfaktorer!H179 -> 0 | BX21: =$E$21*Utslippsfaktorer!I179 -> 0
B22: 12.13 | D22: Nedrigging | F22: NOK | P22: Nedrigging | R22: 0 | V22: =IF(P22="","",VLOOKUP(P22,Utslippsfaktorer!$C$9:$AM$459,Utslippsfaktorer!$AM$5,FALSE)) -> RS - Rigg og drift | AH22: =$N22*Utslippsfaktorer!E$177 -> 0 | AI22: =$N22*Utslippsfaktorer!F$177 -> 0 | AJ22: =$N22*Utslippsfaktorer!G$177 -> 0 | AK22: =$N22*Utslippsfaktorer!H$177 -> 0 | AL22: =$N22*Utslippsfaktorer!I$177 -> 0 | AM22: =((IF($P22="",0,VLOOKUP($P22,Utslippsfaktorer!$C$9:$I$493,Utslippsfaktorer!E$5,FALSE)))*$R22)+($S22*Utslippsfaktorer!E$170) -> 0 | AN22: =((IF($P22="",0,VLOOKUP($P22,Utslippsfaktorer!$C$9:$I$493,Utslippsfaktorer!F$5,FALSE)))*$R22)+($S22*Utslippsfaktorer!F$170) -> 0 | AO22: =((IF($P22="",0,VLOOKUP($P22,Utslippsfaktorer!$C$9:$I$493,Utslippsfaktorer!G$5,FALSE)))*$R22)+($S22*Utslippsfaktorer!G$170) -> 0 | AP22: =((IF($P22="",0,VLOOKUP($P22,Utslippsfaktorer!$C$9:$I$493,Utslippsfaktorer!H$5,FALSE)))*$R22)+($S22*Utslippsfaktorer!H$170) -> 0 | AQ22: =((IF($P22="",0,VLOOKUP($P22,Utslippsfaktorer!$C$9:$I$493,Utslippsfaktorer!I$5,FALSE)))*$R22)+($S22*Utslippsfaktorer!I$170) -> 0 | AR22: 0 | AS22: 0 | AT22: 0 | AU22: 0 | AV22: 0 | AX22: =$J22*Utslippsfaktorer!E$154 -> 0 | AY22: =$J22*Utslippsfaktorer!F$154 -> 0 | AZ22: =$J22*Utslippsfaktorer!G$154 -> 0 | BA22: =$J22*Utslippsfaktorer!H$154 -> 0 | BB22: =$J22*Utslippsfaktorer!I$154 -> 0 | BC22: =$O22*Utslippsfaktorer!E$178 -> 0 | BD22: =$O22*Utslippsfaktorer!F$178 -> 0 | BE22: =$O22*Utslippsfaktorer!G$178 -> 0 | BF22: =$O22*Utslippsfaktorer!H$178 -> 0 | BG22: =$O22*Utslippsfaktorer!I$178 -> 0 | BH22: =((IF($P22="",0,VLOOKUP($P22,Utslippsfaktorer!$C$9:$I$493,Utslippsfaktorer!E$5,FALSE)))*$T22)+($U22*Utslippsfaktorer!E$170) -> 0 | BI22: =((IF($P22="",0,VLOOKUP($P22,Utslippsfaktorer!$C$9:$I$493,Utslippsfaktorer!F$5,FALSE)))*$T22)+($U22*Utslippsfaktorer!F$170) -> 0 | BJ22: =((IF($P22="",0,VLOOKUP($P22,Utslippsfaktorer!$C$9:$I$493,Utslippsfaktorer!G$5,FALSE)))*$T22)+($U22*Utslippsfaktorer!G$170) -> 0 | BK22: =((IF($P22="",0,VLOOKUP($P22,Utslippsfaktorer!$C$9:$I$493,Utslippsfaktorer!H$5,FALSE)))*$T22)+($U22*Utslippsfaktorer!H$170) -> 0 | BL22: =((IF($P22="",0,VLOOKUP($P22,Utslippsfaktorer!$C$9:$I$493,Utslippsfaktorer!I$5,FALSE)))*$T22)+($U22*Utslippsfaktorer!I$170) -> 0 | BM22: 0 | BN22: 0 | BO22: 0 | BP22: 0 | BQ22: 0 | BT22: =BT20+BT21 -> 0 | BU22: =BU20+BU21 -> 0 | BV22: 0 | BW22: 0 | BX22: 0
B23: 12.2 | D23: Rigg for byggherren | F23: NOK | P23: Rigg for byggherren | R23: 0 | V23: =IF(P23="","",VLOOKUP(P23,Utslippsfaktorer!$C$9:$AM$459,Utslippsfaktorer!$AM$5,FALSE)) -> RS - Rigg og drift | AH23: =$N23*Utslippsfaktorer!E$177 -> 0 | AI23: =$N23*Utslippsfaktorer!F$177 -> 0 | AJ23: =$N23*Utslippsfaktorer!G$177 -> 0 | AK23: =$N23*Utslippsfaktorer!H$177 -> 0 | AL23: =$N23*Utslippsfaktorer!I$177 -> 0 | AM23: =((IF($P23="",0,VLOOKUP($P23,Utslippsfaktorer!$C$9:$I$493,Utslippsfaktorer!E$5,FALSE)))*$R23)+($S23*Utslippsfaktorer!E$170) -> 0 | AN23: =((IF($P23="",0,VLOOKUP($P23,Utslippsfaktorer!$C$9:$I$493,Utslippsfaktorer!F$5,FALSE)))*$R23)+($S23*Utslippsfaktorer!F$170) -> 0 | AO23: =((IF($P23="",0,VLOOKUP($P23,Utslippsfaktorer!$C$9:$I$493,Utslippsfaktorer!G$5,FALSE)))*$R23)+($S23*Utslippsfaktorer!G$170) -> 0 | AP23: =((IF($P23="",0,VLOOKUP($P23,Utslippsfaktorer!$C$9:$I$493,Utslippsfaktorer!H$5,FALSE)))*$R23)+($S23*Utslippsfaktorer!H$170) -> 0 | AQ23: =((IF($P23="",0,VLOOKUP($P23,Utslippsfaktorer!$C$9:$I$493,Utslippsfaktorer!I$5,FALSE)))*$R23)+($S23*Utslippsfaktorer!I$170) -> 0 | AR23: 0 | AS23: 0 | AT23: 0 | AU23: 0 | AV23: 0 | AX23: =$J23*Utslippsfaktorer!E$154 -> 0 | AY23: =$J23*Utslippsfaktorer!F$154 -> 0 | AZ23: =$J23*Utslippsfaktorer!G$154 -> 0 | BA23: =$J23*Utslippsfaktorer!H$154 -> 0 | BB23: =$J23*Utslippsfaktorer!I$154 -> 0 | BC23: =$O23*Utslippsfaktorer!E$178 -> 0 | BD23: =$O23*Utslippsfaktorer!F$178 -> 0 | BE23: =$O23*Utslippsfaktorer!G$178 -> 0 | BF23: =$O23*Utslippsfaktorer!H$178 -> 0 | BG23: =$O23*Utslippsfaktorer!I$178 -> 0 | BH23: =((IF($P23="",0,VLOOKUP($P23,Utslippsfaktorer!$C$9:$I$493,Utslippsfaktorer!E$5,FALSE)))*$T23)+($U23*Utslippsfaktorer!E$170) -> 0 | BI23: =((IF($P23="",0,VLOOKUP($P23,Utslippsfaktorer!$C$9:$I$493,Utslippsfaktorer!F$5,FALSE)))*$T23)+($U23*Utslippsfaktorer!F$170) -> 0 | BJ23: =((IF($P23="",0,VLOOKUP($P23,Utslippsfaktorer!$C$9:$I$493,Utslippsfaktorer!G$5,FALSE)))*$T23)+($U23*Utslippsfaktorer!G$170) -> 0 | BK23: =((IF($P23="",0,VLOOKUP($P23,Utslippsfaktorer!$C$9:$I$493,Utslippsfaktorer!H$5,FALSE)))*$T23)+($U23*Utslippsfaktorer!H$170) -> 0 | BL23: =((IF($P23="",0,VLOOKUP($P23,Utslippsfaktorer!$C$9:$I$493,Utslippsfaktorer!I$5,FALSE)))*$T23)+($U23*Utslippsfaktorer!I$170) -> 0 | BM23: 0 | BN23: 0 | BO23: 0 | BP23: 0 | BQ23: 0
B24: 12.21 | D24: Tilrigging av rigg for byggherren | F24: NOK | P24: Tilrigging av rigg for byggherren | R24: 0 | V24: =IF(P24="","",VLOOKUP(P24,Utslippsfaktorer!$C$9:$AM$459,Utslippsfaktorer!$AM$5,FALSE)) -> RS - Rigg og drift | AH24: =$N24*Utslippsfaktorer!E$177 -> 0 | AI24: =$N24*Utslippsfaktorer!F$177 -> 0 | AJ24: =$N24*Utslippsfaktorer!G$177 -> 0 | AK24: =$N24*Utslippsfaktorer!H$177 -> 0 | AL24: =$N24*Utslippsfaktorer!I$177 -> 0 | AM24: =((IF($P24="",0,VLOOKUP($P24,Utslippsfaktorer!$C$9:$I$493,Utslippsfaktorer!E$5,FALSE)))*$R24)+($S24*Utslippsfaktorer!E$170) -> 0 | AN24: =((IF($P24="",0,VLOOKUP($P24,Utslippsfaktorer!$C$9:$I$493,Utslippsfaktorer!F$5,FALSE)))*$R24)+($S24*Utslippsfaktorer!F$170) -> 0 | AO24: =((IF($P24="",0,VLOOKUP($P24,Utslippsfaktorer!$C$9:$I$493,Utslippsfaktorer!G$5,FALSE)))*$R24)+($S24*Utslippsfaktorer!G$170) -> 0 | AP24: =((IF($P24="",0,VLOOKUP($P24,Utslippsfaktorer!$C$9:$I$493,Utslippsfaktorer!H$5,FALSE)))*$R24)+($S24*Utslippsfaktorer!H$170) -> 0 | AQ24: =((IF($P24="",0,VLOOKUP($P24,Utslippsfaktorer!$C$9:$I$493,Utslippsfaktorer!I$5,FALSE)))*$R24)+($S24*Utslippsfaktorer!I$170) -> 0 | AR24: 0 | AS24: 0 | AT24: 0 | AU24: 0 | AV24: 0 | AX24: =$J24*Utslippsfaktorer!E$154 -> 0 | AY24: =$J24*Utslippsfaktorer!F$154 -> 0 | AZ24: =$J24*Utslippsfaktorer!G$154 -> 0 | BA24: =$J24*Utslippsfaktorer!H$154 -> 0 | BB24: =$J24*Utslippsfaktorer!I$154 -> 0 | BC24: =$O24*Utslippsfaktorer!E$178 -> 0 | BD24: =$O24*Utslippsfaktorer!F$178 -> 0 | BE24: =$O24*Utslippsfaktorer!G$178 -> 0 | BF24: =$O24*Utslippsfaktorer!H$178 -> 0 | BG24: =$O24*Utslippsfaktorer!I$178 -> 0 | BH24: =((IF($P24="",0,VLOOKUP($P24,Utslippsfaktorer!$C$9:$I$493,Utslippsfaktorer!E$5,FALSE)))*$T24)+($U24*Utslippsfaktorer!E$170) -> 0 | BI24: =((IF($P24="",0,VLOOKUP($P24,Utslippsfaktorer!$C$9:$I$493,Utslippsfaktorer!F$5,FALSE)))*$T24)+($U24*Utslippsfaktorer!F$170) -> 0 | BJ24: =((IF($P24="",0,VLOOKUP($P24,Utslippsfaktorer!$C$9:$I$493,Utslippsfaktorer!G$5,FALSE)))*$T24)+($U24*Utslippsfaktorer!G$170) -> 0 | BK24: =((IF($P24="",0,VLOOKUP($P24,Utslippsfaktorer!$C$9:$I$493,Utslippsfaktorer!H$5,FALSE)))*$T24)+($U24*Utslippsfaktorer!H$170) -> 0 | BL24: =((IF($P24="",0,VLOOKUP($P24,Utslippsfaktorer!$C$9:$I$493,Utslippsfaktorer!I$5,FALSE)))*$T24)+($U24*Utslippsfaktorer!I$170) -> 0 | BM24: 0 | BN24: 0 | BO24: 0 | BP24: 0 | BQ24: 0
B25: 12.22 | D25: Drift av rigg for byggherren | F25: NOK | P25: Drift av rigg for byggherren | R25: 0 | V25: =IF(P25="","",VLOOKUP(P25,Utslippsfaktorer!$C$9:$AM$459,Utslippsfaktorer!$AM$5,FALSE)) -> RS - Rigg og drift | AH25: =$N25*Utslippsfaktorer!E$177 -> 0 | AI25: =$N25*Utslippsfaktorer!F$177 -> 0 | AJ25: =$N25*Utslippsfaktorer!G$177 -> 0 | AK25: =$N25*Utslippsfaktorer!H$177 -> 0 | AL25: =$N25*Utslippsfaktorer!I$177 -> 0 | AM25: =((IF($P25="",0,VLOOKUP($P25,Utslippsfaktorer!$C$9:$I$493,Utslippsfaktorer!E$5,FALSE)))*$R25)+($S25*Utslippsfaktorer!E$170) -> 0 | AN25: =((IF($P25="",0,VLOOKUP($P25,Utslippsfaktorer!$C$9:$I$493,Utslippsfaktorer!F$5,FALSE)))*$R25)+($S25*Utslippsfaktorer!F$170) -> 0 | AO25: =((IF($P25="",0,VLOOKUP($P25,Utslippsfaktorer!$C$9:$I$493,Utslippsfaktorer!G$5,FALSE)))*$R25)+($S25*Utslippsfaktorer!G$170) -> 0 | AP25: =((IF($P25="",0,VLOOKUP($P25,Utslippsfaktorer!$C$9:$I$493,Utslippsfaktorer!H$5,FALSE)))*$R25)+($S25*Utslippsfaktorer!H$170) -> 0 | AQ25: =((IF($P25="",0,VLOOKUP($P25,Utslippsfaktorer!$C$9:$I$493,Utslippsfaktorer!I$5,FALSE)))*$R25)+($S25*Utslippsfaktorer!I$170) -> 0 | AR25: 0 | AS25: 0 | AT25: 0 | AU25: 0 | AV25: 0 | AX25: =$J25*Utslippsfaktorer!E$154 -> 0 | AY25: =$J25*Utslippsfaktorer!F$154 -> 0 | AZ25: =$J25*Utslippsfaktorer!G$154 -> 0 | BA25: =$J25*Utslippsfaktorer!H$154 -> 0 | BB25: =$J25*Utslippsfaktorer!I$154 -> 0 | BC25: =$O25*Utslippsfaktorer!E$178 -> 0 | BD25: =$O25*Utslippsfaktorer!F$178 -> 0 | BE25: =$O25*Utslippsfaktorer!G$178 -> 0 | BF25: =$O25*Utslippsfaktorer!H$178 -> 0 | BG25: =$O25*Utslippsfaktorer!I$178 -> 0 | BH25: =((IF($P25="",0,VLOOKUP($P25,Utslippsfaktorer!$C$9:$I$493,Utslippsfaktorer!E$5,FALSE)))*$T25)+($U25*Utslippsfaktorer!E$170) -> 0 | BI25: =((IF($P25="",0,VLOOKUP($P25,Utslippsfaktorer!$C$9:$I$493,Utslippsfaktorer!F$5,FALSE)))*$T25)+($U25*Utslippsfaktorer!F$170) -> 0 | BJ25: =((IF($P25="",0,VLOOKUP($P25,Utslippsfaktorer!$C$9:$I$493,Utslippsfaktorer!G$5,FALSE)))*$T25)+($U25*Utslippsfaktorer!G$170) -> 0 | BK25: =((IF($P25="",0,VLOOKUP($P25,Utslippsfaktorer!$C$9:$I$493,Utslippsfaktorer!H$5,FALSE)))*$T25)+($U25*Utslippsfaktorer!H$170) -> 0 | BL25: =((IF($P25="",0,VLOOKUP($P25,Utslippsfaktorer!$C$9:$I$493,Utslippsfaktorer!I$5,FALSE)))*$T25)+($U25*Utslippsfaktorer!I$170) -> 0 | BM25: 0 | BN25: 0 | BO25: 0 | BP25: 0 | BQ25: 0
B26: 12.23 | D26: Nedrigging av rigg for byggherren | F26: NOK | P26: Nedrigging av rigg for byggherren | R26: 0 | V26: =IF(P26="","",VLOOKUP(P26,Utslippsfaktorer!$C$9:$AM$459,Utslippsfaktorer!$AM$5,FALSE)) -> RS - Rigg og drift | AH26: =$N26*Utslippsfaktorer!E$177 -> 0 | AI26: =$N26*Utslippsfaktorer!F$177 -> 0 | AJ26: =$N26*Utslippsfaktorer!G$177 -> 0 | AK26: =$N26*Utslippsfaktorer!H$177 -> 0 | AL26: =$N26*Utslippsfaktorer!I$177 -> 0 | AM26: =((IF($P26="",0,VLOOKUP($P26,Utslippsfaktorer!$C$9:$I$493,Utslippsfaktorer!E$5,FALSE)))*$R26)+($S26*Utslippsfaktorer!E$170) -> 0 | AN26: =((IF($P26="",0,VLOOKUP($P26,Utslippsfaktorer!$C$9:$I$493,Utslippsfaktorer!F$5,FALSE)))*$R26)+($S26*Utslippsfaktorer!F$170) -> 0 | AO26: =((IF($P26="",0,VLOOKUP($P26,Utslippsfaktorer!$C$9:$I$493,Utslippsfaktorer!G$5,FALSE)))*$R26)+($S26*Utslippsfaktorer!G$170) -> 0 | AP26: =((IF($P26="",0,VLOOKUP($P26,Utslippsfaktorer!$C$9:$I$493,Utslippsfaktorer!H$5,FALSE)))*$R26)+($S26*Utslippsfaktorer!H$170) -> 0 | AQ26: =((IF($P26="",0,VLOOKUP($P26,Utslippsfaktorer!$C$9:$I$493,Utslippsfaktorer!I$5,FALSE)))*$R26)+($S26*Utslippsfaktorer!I$170) -> 0 | AR26: 0 | AS26: 0 | AT26: 0 | AU26: 0 | AV26: 0 | AX26: =$J26*Utslippsfaktorer!E$154 -> 0 | AY26: =$J26*Utslippsfaktorer!F$154 -> 0 | AZ26: =$J26*Utslippsfaktorer!G$154 -> 0 | BA26: =$J26*Utslippsfaktorer!H$154 -> 0 | BB26: =$J26*Utslippsfaktorer!I$154 -> 0 | BC26: =$O26*Utslippsfaktorer!E$178 -> 0 | BD26: =$O26*Utslippsfaktorer!F$178 -> 0 | BE26: =$O26*Utslippsfaktorer!G$178 -> 0 | BF26: =$O26*Utslippsfaktorer!H$178 -> 0 | BG26: =$O26*Utslippsfaktorer!I$178 -> 0 | BH26: =((IF($P26="",0,VLOOKUP($P26,Utslippsfaktorer!$C$9:$I$493,Utslippsfaktorer!E$5,FALSE)))*$T26)+($U26*Utslippsfaktorer!E$170) -> 0 | BI26: =((IF($P26="",0,VLOOKUP($P26,Utslippsfaktorer!$C$9:$I$493,Utslippsfaktorer!F$5,FALSE)))*$T26)+($U26*Utslippsfaktorer!F$170) -> 0 | BJ26: =((IF($P26="",0,VLOOKUP($P26,Utslippsfaktorer!$C$9:$I$493,Utslippsfaktorer!G$5,FALSE)))*$T26)+($U26*Utslippsfaktorer!G$170) -> 0 | BK26: =((IF($P26="",0,VLOOKUP($P26,Utslippsfaktorer!$C$9:$I$493,Utslippsfaktorer!H$5,FALSE)))*$T26)+($U26*Utslippsfaktorer!H$170) -> 0 | BL26: =((IF($P26="",0,VLOOKUP($P26,Utslippsfaktorer!$C$9:$I$493,Utslippsfaktorer!I$5,FALSE)))*$T26)+($U26*Utslippsfaktorer!I$170) -> 0 | BM26: 0 | BN26: 0 | BO26: 0 | BP26: 0 | BQ26: 0
B27: 12.4 | D27: Vinterkostnader anlegg | F27: NOK | P27: Vinterkostnader anlegg | R27: 0 | V27: =IF(P27="","",VLOOKUP(P27,Utslippsfaktorer!$C$9:$AM$459,Utslippsfaktorer!$AM$5,FALSE)) -> RS - Rigg og drift | AH27: =$N27*Utslippsfaktorer!E$177 -> 0 | AI27: =$N27*Utslippsfaktorer!F$177 -> 0 | AJ27: =$N27*Utslippsfaktorer!G$177 -> 0 | AK27: =$N27*Utslippsfaktorer!H$177 -> 0 | AL27: =$N27*Utslippsfaktorer!I$177 -> 0 | AM27: =((IF($P27="",0,VLOOKUP($P27,Utslippsfaktorer!$C$9:$I$493,Utslippsfaktorer!E$5,FALSE)))*$R27)+($S27*Utslippsfaktorer!E$170) -> 0 | AN27: =((IF($P27="",0,VLOOKUP($P27,Utslippsfaktorer!$C$9:$I$493,Utslippsfaktorer!F$5,FALSE)))*$R27)+($S27*Utslippsfaktorer!F$170) -> 0 | AO27: =((IF($P27="",0,VLOOKUP($P27,Utslippsfaktorer!$C$9:$I$493,Utslippsfaktorer!G$5,FALSE)))*$R27)+($S27*Utslippsfaktorer!G$170) -> 0 | AP27: =((IF($P27="",0,VLOOKUP($P27,Utslippsfaktorer!$C$9:$I$493,Utslippsfaktorer!H$5,FALSE)))*$R27)+($S27*Utslippsfaktorer!H$170) -> 0 | AQ27: =((IF($P27="",0,VLOOKUP($P27,Utslippsfaktorer!$C$9:$I$493,Utslippsfaktorer!I$5,FALSE)))*$R27)+($S27*Utslippsfaktorer!I$170) -> 0 | AR27: 0 | AS27: 0 | AT27: 0 | AU27: 0 | AV27: 0 | BC27: =$O27*Utslippsfaktorer!E$178 -> 0 | BD27: =$O27*Utslippsfaktorer!F$178 -> 0 | BE27: =$O27*Utslippsfaktorer!G$178 -> 0 | BF27: =$O27*Utslippsfaktorer!H$178 -> 0 | BG27: =$O27*Utslippsfaktorer!I$178 -> 0 | BH27: =((IF($P27="",0,VLOOKUP($P27,Utslippsfaktorer!$C$9:$I$493,Utslippsfaktorer!E$5,FALSE)))*$T27)+($U27*Utslippsfaktorer!E$170) -> 0 | BI27: =((IF($P27="",0,VLOOKUP($P27,Utslippsfaktorer!$C$9:$I$493,Utslippsfaktorer!F$5,FALSE)))*$T27)+($U27*Utslippsfaktorer!F$170) -> 0 | BJ27: =((IF($P27="",0,VLOOKUP($P27,Utslippsfaktorer!$C$9:$I$493,Utslippsfaktorer!G$5,FALSE)))*$T27)+($U27*Utslippsfaktorer!G$170) -> 0 | BK27: =((IF($P27="",0,VLOOKUP($P27,Utslippsfaktorer!$C$9:$I$493,Utslippsfaktorer!H$5,FALSE)))*$T27)+($U27*Utslippsfaktorer!H$170) -> 0 | BL27: =((IF($P27="",0,VLOOKUP($P27,Utslippsfaktorer!$C$9:$I$493,Utslippsfaktorer!I$5,FALSE)))*$T27)+($U27*Utslippsfaktorer!I$170) -> 0 | BM27: 0 | BN27: 0 | BO27: 0 | BP27: 0 | BQ27: 0
B28: 12.5 | D28: Miljøtiltak i byggefasen | F28: NOK | P28: Miljøtiltak i byggefasen | R28: 0 | V28: =IF(P28="","",VLOOKUP(P28,Utslippsfaktorer!$C$9:$AM$459,Utslippsfaktorer!$AM$5,FALSE)) -> RS - Rigg og drift | AH28: =$N28*Utslippsfaktorer!E$177 -> 0 | AI28: =$N28*Utslippsfaktorer!F$177 -> 0 | AJ28: =$N28*Utslippsfaktorer!G$177 -> 0 | AK28: =$N28*Utslippsfaktorer!H$177 -> 0 | AL28: =$N28*Utslippsfaktorer!I$177 -> 0 | AM28: =((IF($P28="",0,VLOOKUP($P28,Utslippsfaktorer!$C$9:$I$493,Utslippsfaktorer!E$5,FALSE)))*$R28)+($S28*Utslippsfaktorer!E$170) -> 0 | AN28: =((IF($P28="",0,VLOOKUP($P28,Utslippsfaktorer!$C$9:$I$493,Utslippsfaktorer!F$5,FALSE)))*$R28)+($S28*Utslippsfaktorer!F$170) -> 0 | AO28: =((IF($P28="",0,VLOOKUP($P28,Utslippsfaktorer!$C$9:$I$493,Utslippsfaktorer!G$5,FALSE)))*$R28)+($S28*Utslippsfaktorer!G$170) -> 0 | AP28: =((IF($P28="",0,VLOOKUP($P28,Utslippsfaktorer!$C$9:$I$493,Utslippsfaktorer!H$5,FALSE)))*$R28)+($S28*Utslippsfaktorer!H$170) -> 0 | AQ28: =((IF($P28="",0,VLOOKUP($P28,Utslippsfaktorer!$C$9:$I$493,Utslippsfaktorer!I$5,FALSE)))*$R28)+($S28*Utslippsfaktorer!I$170) -> 0 | AR28: 0 | AS28: 0 | AT28: 0 | AU28: 0 | AV28: 0 | BC28: =$O28*Utslippsfaktorer!E$178 -> 0 | BD28: =$O28*Utslippsfaktorer!F$178 -> 0 | BE28: =$O28*Utslippsfaktorer!G$178 -> 0 | BF28: =$O28*Utslippsfaktorer!H$178 -> 0 | BG28: =$O28*Utslippsfaktorer!I$178 -> 0 | BH28: =((IF($P28="",0,VLOOKUP($P28,Utslippsfaktorer!$C$9:$I$493,Utslippsfaktorer!E$5,FALSE)))*$T28)+($U28*Utslippsfaktorer!E$170) -> 0 | BI28: =((IF($P28="",0,VLOOKUP($P28,Utslippsfaktorer!$C$9:$I$493,Utslippsfaktorer!F$5,FALSE)))*$T28)+($U28*Utslippsfaktorer!F$170) -> 0 | BJ28: =((IF($P28="",0,VLOOKUP($P28,Utslippsfaktorer!$C$9:$I$493,Utslippsfaktorer!G$5,FALSE)))*$T28)+($U28*Utslippsfaktorer!G$170) -> 0 | BK28: =((IF($P28="",0,VLOOKUP($P28,Utslippsfaktorer!$C$9:$I$493,Utslippsfaktorer!H$5,FALSE)))*$T28)+($U28*Utslippsfaktorer!H$170) -> 0 | BL28: =((IF($P28="",0,VLOOKUP($P28,Utslippsfaktorer!$C$9:$I$493,Utslippsfaktorer!I$5,FALSE)))*$T28)+($U28*Utslippsfaktorer!I$170) -> 0 | BM28: 0 | BN28: 0 | BO28: 0 | BP28: 0 | BQ28: 0
B29: 12.51 | D29: Vannutslipp | F29: NOK | P29: Vannutslipp | R29: 0 | V29: =IF(P29="","",VLOOKUP(P29,Utslippsfaktorer!$C$9:$AM$459,Utslippsfaktorer!$AM$5,FALSE)) -> RS - Rigg og drift | AH29: =$N29*Utslippsfaktorer!E$177 -> 0 | AI29: =$N29*Utslippsfaktorer!F$177 -> 0 | AJ29: =$N29*Utslippsfaktorer!G$177 -> 0 | AK29: =$N29*Utslippsfaktorer!H$177 -> 0 | AL29: =$N29*Utslippsfaktorer!I$177 -> 0 | AM29: =((IF($P29="",0,VLOOKUP($P29,Utslippsfaktorer!$C$9:$I$493,Utslippsfaktorer!E$5,FALSE)))*$R29)+($S29*Utslippsfaktorer!E$170) -> 0 | AN29: =((IF($P29="",0,VLOOKUP($P29,Utslippsfaktorer!$C$9:$I$493,Utslippsfaktorer!F$5,FALSE)))*$R29)+($S29*Utslippsfaktorer!F$170) -> 0 | AO29: =((IF($P29="",0,VLOOKUP($P29,Utslippsfaktorer!$C$9:$I$493,Utslippsfaktorer!G$5,FALSE)))*$R29)+($S29*Utslippsfaktorer!G$170) -> 0 | AP29: =((IF($P29="",0,VLOOKUP($P29,Utslippsfaktorer!$C$9:$I$493,Utslippsfaktorer!H$5,FALSE)))*$R29)+($S29*Utslippsfaktorer!H$170) -> 0 | AQ29: =((IF($P29="",0,VLOOKUP($P29,Utslippsfaktorer!$C$9:$I$493,Utslippsfaktorer!I$5,FALSE)))*$R29)+($S29*Utslippsfaktorer!I$170) -> 0 | AR29: 0 | AS29: 0 | AT29: 0 | AU29: 0 | AV29: 0 | BC29: =$O29*Utslippsfaktorer!E$178 -> 0 | BD29: =$O29*Utslippsfaktorer!F$178 -> 0 | BE29: =$O29*Utslippsfaktorer!G$178 -> 0 | BF29: =$O29*Utslippsfaktorer!H$178 -> 0 | BG29: =$O29*Utslippsfaktorer!I$178 -> 0 | BH29: =((IF($P29="",0,VLOOKUP($P29,Utslippsfaktorer!$C$9:$I$493,Utslippsfaktorer!E$5,FALSE)))*$T29)+($U29*Utslippsfaktorer!E$170) -> 0 | BI29: =((IF($P29="",0,VLOOKUP($P29,Utslippsfaktorer!$C$9:$I$493,Utslippsfaktorer!F$5,FALSE)))*$T29)+($U29*Utslippsfaktorer!F$170) -> 0 | BJ29: =((IF($P29="",0,VLOOKUP($P29,Utslippsfaktorer!$C$9:$I$493,Utslippsfaktorer!G$5,FALSE)))*$T29)+($U29*Utslippsfaktorer!G$170) -> 0 | BK29: =((IF($P29="",0,VLOOKUP($P29,Utslippsfaktorer!$C$9:$I$493,Utslippsfaktorer!H$5,FALSE)))*$T29)+($U29*Utslippsfaktorer!H$170) -> 0 | BL29: =((IF($P29="",0,VLOOKUP($P29,Utslippsfaktorer!$C$9:$I$493,Utslippsfaktorer!I$5,FALSE)))*$T29)+($U29*Utslippsfaktorer!I$170) -> 0 | BM29: 0 | BN29: 0 | BO29: 0 | BP29: 0 | BQ29: 0
B30: 12.511 | D30: Renseanlegg | F30: NOK | P30: Renseanlegg | R30: 0 | V30: =IF(P30="","",VLOOKUP(P30,Utslippsfaktorer!$C$9:$AM$459,Utslippsfaktorer!$AM$5,FALSE)) -> RS - Rigg og drift | AH30: =$N30*Utslippsfaktorer!E$177 -> 0 | AI30: =$N30*Utslippsfaktorer!F$177 -> 0 | AJ30: =$N30*Utslippsfaktorer!G$177 -> 0 | AK30: =$N30*Utslippsfaktorer!H$177 -> 0 | AL30: =$N30*Utslippsfaktorer!I$177 -> 0 | AM30: =((IF($P30="",0,VLOOKUP($P30,Utslippsfaktorer!$C$9:$I$493,Utslippsfaktorer!E$5,FALSE)))*$R30)+($S30*Utslippsfaktorer!E$170) -> 0 | AN30: =((IF($P30="",0,VLOOKUP($P30,Utslippsfaktorer!$C$9:$I$493,Utslippsfaktorer!F$5,FALSE)))*$R30)+($S30*Utslippsfaktorer!F$170) -> 0 | AO30: =((IF($P30="",0,VLOOKUP($P30,Utslippsfaktorer!$C$9:$I$493,Utslippsfaktorer!G$5,FALSE)))*$R30)+($S30*Utslippsfaktorer!G$170) -> 0 | AP30: =((IF($P30="",0,VLOOKUP($P30,Utslippsfaktorer!$C$9:$I$493,Utslippsfaktorer!H$5,FALSE)))*$R30)+($S30*Utslippsfaktorer!H$170) -> 0 | AQ30: =((IF($P30="",0,VLOOKUP($P30,Utslippsfaktorer!$C$9:$I$493,Utslippsfaktorer!I$5,FALSE)))*$R30)+($S30*Utslippsfaktorer!I$170) -> 0 | AR30: 0 | AS30: 0 | AT30: 0 | AU30: 0 | AV30: 0 | BC30: =$O30*Utslippsfaktorer!E$178 -> 0 | BD30: =$O30*Utslippsfaktorer!F$178 -> 0 | BE30: =$O30*Utslippsfaktorer!G$178 -> 0 | BF30: =$O30*Utslippsfaktorer!H$178 -> 0 | BG30: =$O30*Utslippsfaktorer!I$178 -> 0 | BH30: =((IF($P30="",0,VLOOKUP($P30,Utslippsfaktorer!$C$9:$I$493,Utslippsfaktorer!E$5,FALSE)))*$T30)+($U30*Utslippsfaktorer!E$170) -> 0 | BI30: =((IF($P30="",0,VLOOKUP($P30,Utslippsfaktorer!$C$9:$I$493,Utslippsfaktorer!F$5,FALSE)))*$T30)+($U30*Utslippsfaktorer!F$170) -> 0 | BJ30: =((IF($P30="",0,VLOOKUP($P30,Utslippsfaktorer!$C$9:$I$493,Utslippsfaktorer!G$5,FALSE)))*$T30)+($U30*Utslippsfaktorer!G$170) -> 0 | BK30: =((IF($P30="",0,VLOOKUP($P30,Utslippsfaktorer!$C$9:$I$493,Utslippsfaktorer!H$5,FALSE)))*$T30)+($U30*Utslippsfaktorer!H$170) -> 0 | BL30: =((IF($P30="",0,VLOOKUP($P30,Utslippsfaktorer!$C$9:$I$493,Utslippsfaktorer!I$5,FALSE)))*$T30)+($U30*Utslippsfaktorer!I$170) -> 0 | BM30: 0 | BN30: 0 | BO30: 0 | BP30: 0 | BQ30: 0
B31: 12.512 | D31: Håndtering av vann fra verksted, vaskerigg og anleggsdrift | F31: NOK | P31: Håndtering av vann fra verksted, vaskerigg og anleggsdrift | R31: 0 | V31: =IF(P31="","",VLOOKUP(P31,Utslippsfaktorer!$C$9:$AM$459,Utslippsfaktorer!$AM$5,FALSE)) -> RS - Rigg og drift | AH31: =$N31*Utslippsfaktorer!E$177 -> 0 | AI31: =$N31*Utslippsfaktorer!F$177 -> 0 | AJ31: =$N31*Utslippsfaktorer!G$177 -> 0 | AK31: =$N31*Utslippsfaktorer!H$177 -> 0 | AL31: =$N31*Utslippsfaktorer!I$177 -> 0 | AM31: =((IF($P31="",0,VLOOKUP($P31,Utslippsfaktorer!$C$9:$I$493,Utslippsfaktorer!E$5,FALSE)))*$R31)+($S31*Utslippsfaktorer!E$170) -> 0 | AN31: =((IF($P31="",0,VLOOKUP($P31,Utslippsfaktorer!$C$9:$I$493,Utslippsfaktorer!F$5,FALSE)))*$R31)+($S31*Utslippsfaktorer!F$170) -> 0 | AO31: =((IF($P31="",0,VLOOKUP($P31,Utslippsfaktorer!$C$9:$I$493,Utslippsfaktorer!G$5,FALSE)))*$R31)+($S31*Utslippsfaktorer!G$170) -> 0 | AP31: =((IF($P31="",0,VLOOKUP($P31,Utslippsfaktorer!$C$9:$I$493,Utslippsfaktorer!H$5,FALSE)))*$R31)+($S31*Utslippsfaktorer!H$170) -> 0 | AQ31: =((IF($P31="",0,VLOOKUP($P31,Utslippsfaktorer!$C$9:$I$493,Utslippsfaktorer!I$5,FALSE)))*$R31)+($S31*Utslippsfaktorer!I$170) -> 0 | AR31: 0 | AS31: 0 | AT31: 0 | AU31: 0 | AV31: 0 | BC31: =$O31*Utslippsfaktorer!E$178 -> 0 | BD31: =$O31*Utslippsfaktorer!F$178 -> 0 | BE31: =$O31*Utslippsfaktorer!G$178 -> 0 | BF31: =$O31*Utslippsfaktorer!H$178 -> 0 | BG31: =$O31*Utslippsfaktorer!I$178 -> 0 | BH31: =((IF($P31="",0,VLOOKUP($P31,Utslippsfaktorer!$C$9:$I$493,Utslippsfaktorer!E$5,FALSE)))*$T31)+($U31*Utslippsfaktorer!E$170) -> 0 | BI31: =((IF($P31="",0,VLOOKUP($P31,Utslippsfaktorer!$C$9:$I$493,Utslippsfaktorer!F$5,FALSE)))*$T31)+($U31*Utslippsfaktorer!F$170) -> 0 | BJ31: =((IF($P31="",0,VLOOKUP($P31,Utslippsfaktorer!$C$9:$I$493,Utslippsfaktorer!G$5,FALSE)))*$T31)+($U31*Utslippsfaktorer!G$170) -> 0 | BK31: =((IF($P31="",0,VLOOKUP($P31,Utslippsfaktorer!$C$9:$I$493,Utslippsfaktorer!H$5,FALSE)))*$T31)+($U31*Utslippsfaktorer!H$170) -> 0 | BL31: =((IF($P31="",0,VLOOKUP($P31,Utslippsfaktorer!$C$9:$I$493,Utslippsfaktorer!I$5,FALSE)))*$T31)+($U31*Utslippsfaktorer!I$170) -> 0 | BM31: 0 | BN31: 0 | BO31: 0 | BP31: 0 | BQ31: 0
B32: 12.513 | D32: Siltgardin/siltskjørt | F32: NOK | P32: Siltgardin/siltskjørt | R32: 0 | V32: =IF(P32="","",VLOOKUP(P32,Utslippsfaktorer!$C$9:$AM$459,Utslippsfaktorer!$AM$5,FALSE)) -> RS - Rigg og drift | AH32: =$N32*Utslippsfaktorer!E$177 -> 0 | AI32: =$N32*Utslippsfaktorer!F$177 -> 0 | AJ32: =$N32*Utslippsfaktorer!G$177 -> 0 | AK32: =$N32*Utslippsfaktorer!H$177 -> 0 | AL32: =$N32*Utslippsfaktorer!I$177 -> 0 | AM32: =((IF($P32="",0,VLOOKUP($P32,Utslippsfaktorer!$C$9:$I$493,Utslippsfaktorer!E$5,FALSE)))*$R32)+($S32*Utslippsfaktorer!E$170) -> 0 | AN32: =((IF($P32="",0,VLOOKUP($P32,Utslippsfaktorer!$C$9:$I$493,Utslippsfaktorer!F$5,FALSE)))*$R32)+($S32*Utslippsfaktorer!F$170) -> 0 | AO32: =((IF($P32="",0,VLOOKUP($P32,Utslippsfaktorer!$C$9:$I$493,Utslippsfaktorer!G$5,FALSE)))*$R32)+($S32*Utslippsfaktorer!G$170) -> 0 | AP32: =((IF($P32="",0,VLOOKUP($P32,Utslippsfaktorer!$C$9:$I$493,Utslippsfaktorer!H$5,FALSE)))*$R32)+($S32*Utslippsfaktorer!H$170) -> 0 | AQ32: =((IF($P32="",0,VLOOKUP($P32,Utslippsfaktorer!$C$9:$I$493,Utslippsfaktorer!I$5,FALSE)))*$R32)+($S32*Utslippsfaktorer!I$170) -> 0 | AR32: 0 | AS32: 0 | AT32: 0 | AU32: 0 | AV32: 0 | BC32: =$O32*Utslippsfaktorer!E$178 -> 0 | BD32: =$O32*Utslippsfaktorer!F$178 -> 0 | BE32: =$O32*Utslippsfaktorer!G$178 -> 0 | BF32: =$O32*Utslippsfaktorer!H$178 -> 0 | BG32: =$O32*Utslippsfaktorer!I$178 -> 0 | BH32: =((IF($P32="",0,VLOOKUP($P32,Utslippsfaktorer!$C$9:$I$493,Utslippsfaktorer!E$5,FALSE)))*$T32)+($U32*Utslippsfaktorer!E$170) -> 0 | BI32: =((IF($P32="",0,VLOOKUP($P32,Utslippsfaktorer!$C$9:$I$493,Utslippsfaktorer!F$5,FALSE)))*$T32)+($U32*Utslippsfaktorer!F$170) -> 0 | BJ32: =((IF($P32="",0,VLOOKUP($P32,Utslippsfaktorer!$C$9:$I$493,Utslippsfaktorer!G$5,FALSE)))*$T32)+($U32*Utslippsfaktorer!G$170) -> 0 | BK32: =((IF($P32="",0,VLOOKUP($P32,Utslippsfaktorer!$C$9:$I$493,Utslippsfaktorer!H$5,FALSE)))*$T32)+($U32*Utslippsfaktorer!H$170) -> 0 | BL32: =((IF($P32="",0,VLOOKUP($P32,Utslippsfaktorer!$C$9:$I$493,Utslippsfaktorer!I$5,FALSE)))*$T32)+($U32*Utslippsfaktorer!I$170) -> 0 | BM32: 0 | BN32: 0 | BO32: 0 | BP32: 0 | BQ32: 0
B33: 12.52 | D33: Støy og rystelser | F33: NOK | P33: Støy og rystelser | R33: 0 | V33: =IF(P33="","",VLOOKUP(P33,Utslippsfaktorer!$C$9:$AM$459,Utslippsfaktorer!$AM$5,FALSE)) -> RS - Rigg og drift | AH33: =$N33*Utslippsfaktorer!E$177 -> 0 | AI33: =$N33*Utslippsfaktorer!F$177 -> 0 | AJ33: =$N33*Utslippsfaktorer!G$177 -> 0 | AK33: =$N33*Utslippsfaktorer!H$177 -> 0 | AL33: =$N33*Utslippsfaktorer!I$177 -> 0 | AM33: =((IF($P33="",0,VLOOKUP($P33,Utslippsfaktorer!$C$9:$I$493,Utslippsfaktorer!E$5,FALSE)))*$R33)+($S33*Utslippsfaktorer!E$170) -> 0 | AN33: =((IF($P33="",0,VLOOKUP($P33,Utslippsfaktorer!$C$9:$I$493,Utslippsfaktorer!F$5,FALSE)))*$R33)+($S33*Utslippsfaktorer!F$170) -> 0 | AO33: =((IF($P33="",0,VLOOKUP($P33,Utslippsfaktorer!$C$9:$I$493,Utslippsfaktorer!G$5,FALSE)))*$R33)+($S33*Utslippsfaktorer!G$170) -> 0 | AP33: =((IF($P33="",0,VLOOKUP($P33,Utslippsfaktorer!$C$9:$I$493,Utslippsfaktorer!H$5,FALSE)))*$R33)+($S33*Utslippsfaktorer!H$170) -> 0 | AQ33: =((IF($P33="",0,VLOOKUP($P33,Utslippsfaktorer!$C$9:$I$493,Utslippsfaktorer!I$5,FALSE)))*$R33)+($S33*Utslippsfaktorer!I$170) -> 0 | AR33: 0 | AS33: 0 | AT33: 0 | AU33: 0 | AV33: 0 | BC33: =$O33*Utslippsfaktorer!E$178 -> 0 | BD33: =$O33*Utslippsfaktorer!F$178 -> 0 | BE33: =$O33*Utslippsfaktorer!G$178 -> 0 | BF33: =$O33*Utslippsfaktorer!H$178 -> 0 | BG33: =$O33*Utslippsfaktorer!I$178 -> 0 | BH33: =((IF($P33="",0,VLOOKUP($P33,Utslippsfaktorer!$C$9:$I$493,Utslippsfaktorer!E$5,FALSE)))*$T33)+($U33*Utslippsfaktorer!E$170) -> 0 | BI33: =((IF($P33="",0,VLOOKUP($P33,Utslippsfaktorer!$C$9:$I$493,Utslippsfaktorer!F$5,FALSE)))*$T33)+($U33*Utslippsfaktorer!F$170) -> 0 | BJ33: =((IF($P33="",0,VLOOKUP($P33,Utslippsfaktorer!$C$9:$I$493,Utslippsfaktorer!G$5,FALSE)))*$T33)+($U33*Utslippsfaktorer!G$170) -> 0 | BK33: =((IF($P33="",0,VLOOKUP($P33,Utslippsfaktorer!$C$9:$I$493,Utslippsfaktorer!H$5,FALSE)))*$T33)+($U33*Utslippsfaktorer!H$170) -> 0 | BL33: =((IF($P33="",0,VLOOKUP($P33,Utslippsfaktorer!$C$9:$I$493,Utslippsfaktorer!I$5,FALSE)))*$T33)+($U33*Utslippsfaktorer!I$170) -> 0 | BM33: 0 | BN33: 0 | BO33: 0 | BP33: 0 | BQ33: 0
B34: 12.53 | D34: Sikring av eksisterende vegetasjon, bekker, elver, vann, fornminner, dyr, mv. | F34: NOK | P34: Sikring av eksisterende vegetasjon, bekker, elver, vann, fornminner, dyr, mv. | R34: 0 | V34: =IF(P34="","",VLOOKUP(P34,Utslippsfaktorer!$C$9:$AM$459,Utslippsfaktorer!$AM$5,FALSE)) -> RS - Rigg og drift | AH34: =$N34*Utslippsfaktorer!E$177 -> 0 | AI34: =$N34*Utslippsfaktorer!F$177 -> 0 | AJ34: =$N34*Utslippsfaktorer!G$177 -> 0 | AK34: =$N34*Utslippsfaktorer!H$177 -> 0 | AL34: =$N34*Utslippsfaktorer!I$177 -> 0 | AM34: =((IF($P34="",0,VLOOKUP($P34,Utslippsfaktorer!$C$9:$I$493,Utslippsfaktorer!E$5,FALSE)))*$R34)+($S34*Utslippsfaktorer!E$170) -> 0 | AN34: =((IF($P34="",0,VLOOKUP($P34,Utslippsfaktorer!$C$9:$I$493,Utslippsfaktorer!F$5,FALSE)))*$R34)+($S34*Utslippsfaktorer!F$170) -> 0 | AO34: =((IF($P34="",0,VLOOKUP($P34,Utslippsfaktorer!$C$9:$I$493,Utslippsfaktorer!G$5,FALSE)))*$R34)+($S34*Utslippsfaktorer!G$170) -> 0 | AP34: =((IF($P34="",0,VLOOKUP($P34,Utslippsfaktorer!$C$9:$I$493,Utslippsfaktorer!H$5,FALSE)))*$R34)+($S34*Utslippsfaktorer!H$170) -> 0 | AQ34: =((IF($P34="",0,VLOOKUP($P34,Utslippsfaktorer!$C$9:$I$493,Utslippsfaktorer!I$5,FALSE)))*$R34)+($S34*Utslippsfaktorer!I$170) -> 0 | AR34: 0 | AS34: 0 | AT34: 0 | AU34: 0 | AV34: 0 | BC34: =$O34*Utslippsfaktorer!E$178 -> 0 | BD34: =$O34*Utslippsfaktorer!F$178 -> 0 | BE34: =$O34*Utslippsfaktorer!G$178 -> 0 | BF34: =$O34*Utslippsfaktorer!H$178 -> 0 | BG34: =$O34*Utslippsfaktorer!I$178 -> 0 | BH34: =((IF($P34="",0,VLOOKUP($P34,Utslippsfaktorer!$C$9:$I$493,Utslippsfaktorer!E$5,FALSE)))*$T34)+($U34*Utslippsfaktorer!E$170) -> 0 | BI34: =((IF($P34="",0,VLOOKUP($P34,Utslippsfaktorer!$C$9:$I$493,Utslippsfaktorer!F$5,FALSE)))*$T34)+($U34*Utslippsfaktorer!F$170) -> 0 | BJ34: =((IF($P34="",0,VLOOKUP($P34,Utslippsfaktorer!$C$9:$I$493,Utslippsfaktorer!G$5,FALSE)))*$T34)+($U34*Utslippsfaktorer!G$170) -> 0 | BK34: =((IF($P34="",0,VLOOKUP($P34,Utslippsfaktorer!$C$9:$I$493,Utslippsfaktorer!H$5,FALSE)))*$T34)+($U34*Utslippsfaktorer!H$170) -> 0 | BL34: =((IF($P34="",0,VLOOKUP($P34,Utslippsfaktorer!$C$9:$I$493,Utslippsfaktorer!I$5,FALSE)))*$T34)+($U34*Utslippsfaktorer!I$170) -> 0 | BM34: 0 | BN34: 0 | BO34: 0 | BP34: 0 | BQ34: 0
B36: 13: ANLEGGSVEGER
B37: 13.1 | D37: Provisoriske anleggsveger | F37: NOK | P37: =D37 -> Provisoriske anleggsveger | R37: =E37 -> 0 | V37: =IF(P37="","",VLOOKUP(P37,Utslippsfaktorer!$C$9:$AM$459,Utslippsfaktorer!$AM$5,FALSE)) -> RS - Provisoriske anleggsveger, bruer og kaier | AH37: =$N37*Utslippsfaktorer!E$177 -> 0 | AI37: =$N37*Utslippsfaktorer!F$177 -> 0 | AJ37: =$N37*Utslippsfaktorer!G$177 -> 0 | AK37: =$N37*Utslippsfaktorer!H$177 -> 0 | AL37: =$N37*Utslippsfaktorer!I$177 -> 0 | AM37: =((IF($P37="",0,VLOOKUP($P37,Utslippsfaktorer!$C$9:$I$493,Utslippsfaktorer!E$5,FALSE)))*$R37)+($S37*Utslippsfaktorer!E$170) -> 0 | AN37: =((IF($P37="",0,VLOOKUP($P37,Utslippsfaktorer!$C$9:$I$493,Utslippsfaktorer!F$5,FALSE)))*$R37)+($S37*Utslippsfaktorer!F$170) -> 0 | AO37: =((IF($P37="",0,VLOOKUP($P37,Utslippsfaktorer!$C$9:$I$493,Utslippsfaktorer!G$5,FALSE)))*$R37)+($S37*Utslippsfaktorer!G$170) -> 0 | AP37: =((IF($P37="",0,VLOOKUP($P37,Utslippsfaktorer!$C$9:$I$493,Utslippsfaktorer!H$5,FALSE)))*$R37)+($S37*Utslippsfaktorer!H$170) -> 0 | AQ37: =((IF($P37="",0,VLOOKUP($P37,Utslippsfaktorer!$C$9:$I$493,Utslippsfaktorer!I$5,FALSE)))*$R37)+($S37*Utslippsfaktorer!I$170) -> 0 | AR37: 0 | AS37: 0 | AT37: 0 | AU37: 0 | AV37: 0 | AX37: =$J37*Utslippsfaktorer!E$154 -> 0 | AY37: =$J37*Utslippsfaktorer!F$154 -> 0 | AZ37: =$J37*Utslippsfaktorer!G$154 -> 0 | BA37: =$J37*Utslippsfaktorer!H$154 -> 0 | BB37: =$J37*Utslippsfaktorer!I$154 -> 0 | BC37: =$O37*Utslippsfaktorer!E$178 -> 0 | BD37: =$O37*Utslippsfaktorer!F$178 -> 0 | BE37: =$O37*Utslippsfaktorer!G$178 -> 0 | BF37: =$O37*Utslippsfaktorer!H$178 -> 0 | BG37: =$O37*Utslippsfaktorer!I$178 -> 0 | BH37: =((IF($P37="",0,VLOOKUP($P37,Utslippsfaktorer!$C$9:$I$493,Utslippsfaktorer!E$5,FALSE)))*$T37)+($U37*Utslippsfaktorer!E$170) -> 0 | BI37: =((IF($P37="",0,VLOOKUP($P37,Utslippsfaktorer!$C$9:$I$493,Utslippsfaktorer!F$5,FALSE)))*$T37)+($U37*Utslippsfaktorer!F$170) -> 0 | BJ37: =((IF($P37="",0,VLOOKUP($P37,Utslippsfaktorer!$C$9:$I$493,Utslippsfaktorer!G$5,FALSE)))*$T37)+($U37*Utslippsfaktorer!G$170) -> 0 | BK37: =((IF($P37="",0,VLOOKUP($P37,Utslippsfaktorer!$C$9:$I$493,Utslippsfaktorer!H$5,FALSE)))*$T37)+($U37*Utslippsfaktorer!H$170) -> 0 | BL37: =((IF($P37="",0,VLOOKUP($P37,Utslippsfaktorer!$C$9:$I$493,Utslippsfaktorer!I$5,FALSE)))*$T37)+($U37*Utslippsfaktorer!I$170) -> 0 | BM37: 0 | BN37: 0 | BO37: 0 | BP37: 0 | BQ37: 0
B38: 13.2 | D38: Provisoriske bruer | F38: NOK | P38: Provisoriske bruer | R38: 0 | V38: =IF(P38="","",VLOOKUP(P38,Utslippsfaktorer!$C$9:$AM$459,Utslippsfaktorer!$AM$5,FALSE)) -> RS - Provisoriske anleggsveger, bruer og kaier | AH38: =$N38*Utslippsfaktorer!E$177 -> 0 | AI38: =$N38*Utslippsfaktorer!F$177 -> 0 | AJ38: =$N38*Utslippsfaktorer!G$177 -> 0 | AK38: =$N38*Utslippsfaktorer!H$177 -> 0 | AL38: =$N38*Utslippsfaktorer!I$177 -> 0 | AM38: =((IF($P38="",0,VLOOKUP($P38,Utslippsfaktorer!$C$9:$I$493,Utslippsfaktorer!E$5,FALSE)))*$R38)+($S38*Utslippsfaktorer!E$170) -> 0 | AN38: =((IF($P38="",0,VLOOKUP($P38,Utslippsfaktorer!$C$9:$I$493,Utslippsfaktorer!F$5,FALSE)))*$R38)+($S38*Utslippsfaktorer!F$170) -> 0 | AO38: =((IF($P38="",0,VLOOKUP($P38,Utslippsfaktorer!$C$9:$I$493,Utslippsfaktorer!G$5,FALSE)))*$R38)+($S38*Utslippsfaktorer!G$170) -> 0 | AP38: =((IF($P38="",0,VLOOKUP($P38,Utslippsfaktorer!$C$9:$I$493,Utslippsfaktorer!H$5,FALSE)))*$R38)+($S38*Utslippsfaktorer!H$170) -> 0 | AQ38: =((IF($P38="",0,VLOOKUP($P38,Utslippsfaktorer!$C$9:$I$493,Utslippsfaktorer!I$5,FALSE)))*$R38)+($S38*Utslippsfaktorer!I$170) -> 0 | AR38: 0 | AS38: 0 | AT38: 0 | AU38: 0 | AV38: 0 | AX38: =$J38*Utslippsfaktorer!E$154 -> 0 | AY38: =$J38*Utslippsfaktorer!F$154 -> 0 | AZ38: =$J38*Utslippsfaktorer!G$154 -> 0 | BA38: =$J38*Utslippsfaktorer!H$154 -> 0 | BB38: =$J38*Utslippsfaktorer!I$154 -> 0 | BC38: =$O38*Utslippsfaktorer!E$178 -> 0 | BD38: =$O38*Utslippsfaktorer!F$178 -> 0 | BE38: =$O38*Utslippsfaktorer!G$178 -> 0 | BF38: =$O38*Utslippsfaktorer!H$178 -> 0 | BG38: =$O38*Utslippsfaktorer!I$178 -> 0 | BH38: =((IF($P38="",0,VLOOKUP($P38,Utslippsfaktorer!$C$9:$I$493,Utslippsfaktorer!E$5,FALSE)))*$T38)+($U38*Utslippsfaktorer!E$170) -> 0 | BI38: =((IF($P38="",0,VLOOKUP($P38,Utslippsfaktorer!$C$9:$I$493,Utslippsfaktorer!F$5,FALSE)))*$T38)+($U38*Utslippsfaktorer!F$170) -> 0 | BJ38: =((IF($P38="",0,VLOOKUP($P38,Utslippsfaktorer!$C$9:$I$493,Utslippsfaktorer!G$5,FALSE)))*$T38)+($U38*Utslippsfaktorer!G$170) -> 0 | BK38: =((IF($P38="",0,VLOOKUP($P38,Utslippsfaktorer!$C$9:$I$493,Utslippsfaktorer!H$5,FALSE)))*$T38)+($U38*Utslippsfaktorer!H$170) -> 0 | BL38: =((IF($P38="",0,VLOOKUP($P38,Utslippsfaktorer!$C$9:$I$493,Utslippsfaktorer!I$5,FALSE)))*$T38)+($U38*Utslippsfaktorer!I$170) -> 0 | BM38: 0 | BN38: 0 | BO38: 0 | BP38: 0 | BQ38: 0
B39: 13.3 | D39: Provisoriske kaier | F39: NOK | P39: Provisoriske kaier | R39: 0 | V39: =IF(P39="","",VLOOKUP(P39,Utslippsfaktorer!$C$9:$AM$459,Utslippsfaktorer!$AM$5,FALSE)) -> RS - Provisoriske anleggsveger, bruer og kaier | AH39: =$N39*Utslippsfaktorer!E$177 -> 0 | AI39: =$N39*Utslippsfaktorer!F$177 -> 0 | AJ39: =$N39*Utslippsfaktorer!G$177 -> 0 | AK39: =$N39*Utslippsfaktorer!H$177 -> 0 | AL39: =$N39*Utslippsfaktorer!I$177 -> 0 | AM39: =((IF($P39="",0,VLOOKUP($P39,Utslippsfaktorer!$C$9:$I$493,Utslippsfaktorer!E$5,FALSE)))*$R39)+($S39*Utslippsfaktorer!E$170) -> 0 | AN39: =((IF($P39="",0,VLOOKUP($P39,Utslippsfaktorer!$C$9:$I$493,Utslippsfaktorer!F$5,FALSE)))*$R39)+($S39*Utslippsfaktorer!F$170) -> 0 | AO39: =((IF($P39="",0,VLOOKUP($P39,Utslippsfaktorer!$C$9:$I$493,Utslippsfaktorer!G$5,FALSE)))*$R39)+($S39*Utslippsfaktorer!G$170) -> 0 | AP39: =((IF($P39="",0,VLOOKUP($P39,Utslippsfaktorer!$C$9:$I$493,Utslippsfaktorer!H$5,FALSE)))*$R39)+($S39*Utslippsfaktorer!H$170) -> 0 | AQ39: =((IF($P39="",0,VLOOKUP($P39,Utslippsfaktorer!$C$9:$I$493,Utslippsfaktorer!I$5,FALSE)))*$R39)+($S39*Utslippsfaktorer!I$170) -> 0 | AR39: 0 | AS39: 0 | AT39: 0 | AU39: 0 | AV39: 0 | AX39: =$J39*Utslippsfaktorer!E$154 -> 0 | AY39: =$J39*Utslippsfaktorer!F$154 -> 0 | AZ39: =$J39*Utslippsfaktorer!G$154 -> 0 | BA39: =$J39*Utslippsfaktorer!H$154 -> 0 | BB39: =$J39*Utslippsfaktorer!I$154 -> 0 | BC39: =$O39*Utslippsfaktorer!E$178 -> 0 | BD39: =$O39*Utslippsfaktorer!F$178 -> 0 | BE39: =$O39*Utslippsfaktorer!G$178 -> 0 | BF39: =$O39*Utslippsfaktorer!H$178 -> 0 | BG39: =$O39*Utslippsfaktorer!I$178 -> 0 | BH39: =((IF($P39="",0,VLOOKUP($P39,Utslippsfaktorer!$C$9:$I$493,Utslippsfaktorer!E$5,FALSE)))*$T39)+($U39*Utslippsfaktorer!E$170) -> 0 | BI39: =((IF($P39="",0,VLOOKUP($P39,Utslippsfaktorer!$C$9:$I$493,Utslippsfaktorer!F$5,FALSE)))*$T39)+($U39*Utslippsfaktorer!F$170) -> 0 | BJ39: =((IF($P39="",0,VLOOKUP($P39,Utslippsfaktorer!$C$9:$I$493,Utslippsfaktorer!G$5,FALSE)))*$T39)+($U39*Utslippsfaktorer!G$170) -> 0 | BK39: =((IF($P39="",0,VLOOKUP($P39,Utslippsfaktorer!$C$9:$I$493,Utslippsfaktorer!H$5,FALSE)))*$T39)+($U39*Utslippsfaktorer!H$170) -> 0 | BL39: =((IF($P39="",0,VLOOKUP($P39,Utslippsfaktorer!$C$9:$I$493,Utslippsfaktorer!I$5,FALSE)))*$T39)+($U39*Utslippsfaktorer!I$170) -> 0 | BM39: 0 | BN39: 0 | BO39: 0 | BP39: 0 | BQ39: 0
B40: 13.4 | D40: Eksisterende veger | F40: NOK | P40: Eksisterende veger | R40: 0 | V40: =IF(P40="","",VLOOKUP(P40,Utslippsfaktorer!$C$9:$AM$459,Utslippsfaktorer!$AM$5,FALSE)) -> RS - Eksisterende veger, bruer og kaier | AH40: =$N40*Utslippsfaktorer!E$177 -> 0 | AI40: =$N40*Utslippsfaktorer!F$177 -> 0 | AJ40: =$N40*Utslippsfaktorer!G$177 -> 0 | AK40: =$N40*Utslippsfaktorer!H$177 -> 0 | AL40: =$N40*Utslippsfaktorer!I$177 -> 0 | AM40: =((IF($P40="",0,VLOOKUP($P40,Utslippsfaktorer!$C$9:$I$493,Utslippsfaktorer!E$5,FALSE)))*$R40)+($S40*Utslippsfaktorer!E$170) -> 0 | AN40: =((IF($P40="",0,VLOOKUP($P40,Utslippsfaktorer!$C$9:$I$493,Utslippsfaktorer!F$5,FALSE)))*$R40)+($S40*Utslippsfaktorer!F$170) -> 0 | AO40: =((IF($P40="",0,VLOOKUP($P40,Utslippsfaktorer!$C$9:$I$493,Utslippsfaktorer!G$5,FALSE)))*$R40)+($S40*Utslippsfaktorer!G$170) -> 0 | AP40: =((IF($P40="",0,VLOOKUP($P40,Utslippsfaktorer!$C$9:$I$493,Utslippsfaktorer!H$5,FALSE)))*$R40)+($S40*Utslippsfaktorer!H$170) -> 0 | AQ40: =((IF($P40="",0,VLOOKUP($P40,Utslippsfaktorer!$C$9:$I$493,Utslippsfaktorer!I$5,FALSE)))*$R40)+($S40*Utslippsfaktorer!I$170) -> 0 | AR40: 0 | AS40: 0 | AT40: 0 | AU40: 0 | AV40: 0 | AX40: =$J40*Utslippsfaktorer!E$154 -> 0 | AY40: =$J40*Utslippsfaktorer!F$154 -> 0 | AZ40: =$J40*Utslippsfaktorer!G$154 -> 0 | BA40: =$J40*Utslippsfaktorer!H$154 -> 0 | BB40: =$J40*Utslippsfaktorer!I$154 -> 0 | BC40: =$O40*Utslippsfaktorer!E$178 -> 0 | BD40: =$O40*Utslippsfaktorer!F$178 -> 0 | BE40: =$O40*Utslippsfaktorer!G$178 -> 0 | BF40: =$O40*Utslippsfaktorer!H$178 -> 0 | BG40: =$O40*Utslippsfaktorer!I$178 -> 0 | BH40: =((IF($P40="",0,VLOOKUP($P40,Utslippsfaktorer!$C$9:$I$493,Utslippsfaktorer!E$5,FALSE)))*$T40)+($U40*Utslippsfaktorer!E$170) -> 0 | BI40: =((IF($P40="",0,VLOOKUP($P40,Utslippsfaktorer!$C$9:$I$493,Utslippsfaktorer!F$5,FALSE)))*$T40)+($U40*Utslippsfaktorer!F$170) -> 0 | BJ40: =((IF($P40="",0,VLOOKUP($P40,Utslippsfaktorer!$C$9:$I$493,Utslippsfaktorer!G$5,FALSE)))*$T40)+($U40*Utslippsfaktorer!G$170) -> 0 | BK40: =((IF($P40="",0,VLOOKUP($P40,Utslippsfaktorer!$C$9:$I$493,Utslippsfaktorer!H$5,FALSE)))*$T40)+($U40*Utslippsfaktorer!H$170) -> 0 | BL40: =((IF($P40="",0,VLOOKUP($P40,Utslippsfaktorer!$C$9:$I$493,Utslippsfaktorer!I$5,FALSE)))*$T40)+($U40*Utslippsfaktorer!I$170) -> 0 | BM40: 0 | BN40: 0 | BO40: 0 | BP40: 0 | BQ40: 0
B41: 13.5 | D41: Eksisterende bruer | F41: NOK | P41: Eksisterende bruer | R41: 0 | V41: =IF(P41="","",VLOOKUP(P41,Utslippsfaktorer!$C$9:$AM$459,Utslippsfaktorer!$AM$5,FALSE)) -> RS - Eksisterende veger, bruer og kaier | AH41: =$N41*Utslippsfaktorer!E$177 -> 0 | AI41: =$N41*Utslippsfaktorer!F$177 -> 0 | AJ41: =$N41*Utslippsfaktorer!G$177 -> 0 | AK41: =$N41*Utslippsfaktorer!H$177 -> 0 | AL41: =$N41*Utslippsfaktorer!I$177 -> 0 | AM41: =((IF($P41="",0,VLOOKUP($P41,Utslippsfaktorer!$C$9:$I$493,Utslippsfaktorer!E$5,FALSE)))*$R41)+($S41*Utslippsfaktorer!E$170) -> 0 | AN41: =((IF($P41="",0,VLOOKUP($P41,Utslippsfaktorer!$C$9:$I$493,Utslippsfaktorer!F$5,FALSE)))*$R41)+($S41*Utslippsfaktorer!F$170) -> 0 | AO41: =((IF($P41="",0,VLOOKUP($P41,Utslippsfaktorer!$C$9:$I$493,Utslippsfaktorer!G$5,FALSE)))*$R41)+($S41*Utslippsfaktorer!G$170) -> 0 | AP41: =((IF($P41="",0,VLOOKUP($P41,Utslippsfaktorer!$C$9:$I$493,Utslippsfaktorer!H$5,FALSE)))*$R41)+($S41*Utslippsfaktorer!H$170) -> 0 | AQ41: =((IF($P41="",0,VLOOKUP($P41,Utslippsfaktorer!$C$9:$I$493,Utslippsfaktorer!I$5,FALSE)))*$R41)+($S41*Utslippsfaktorer!I$170) -> 0 | AR41: 0 | AS41: 0 | AT41: 0 | AU41: 0 | AV41: 0 | AX41: =$J41*Utslippsfaktorer!E$154 -> 0 | AY41: =$J41*Utslippsfaktorer!F$154 -> 0 | AZ41: =$J41*Utslippsfaktorer!G$154 -> 0 | BA41: =$J41*Utslippsfaktorer!H$154 -> 0 | BB41: =$J41*Utslippsfaktorer!I$154 -> 0 | BC41: =$O41*Utslippsfaktorer!E$178 -> 0 | BD41: =$O41*Utslippsfaktorer!F$178 -> 0 | BE41: =$O41*Utslippsfaktorer!G$178 -> 0 | BF41: =$O41*Utslippsfaktorer!H$178 -> 0 | BG41: =$O41*Utslippsfaktorer!I$178 -> 0 | BH41: =((IF($P41="",0,VLOOKUP($P41,Utslippsfaktorer!$C$9:$I$493,Utslippsfaktorer!E$5,FALSE)))*$T41)+($U41*Utslippsfaktorer!E$170) -> 0 | BI41: =((IF($P41="",0,VLOOKUP($P41,Utslippsfaktorer!$C$9:$I$493,Utslippsfaktorer!F$5,FALSE)))*$T41)+($U41*Utslippsfaktorer!F$170) -> 0 | BJ41: =((IF($P41="",0,VLOOKUP($P41,Utslippsfaktorer!$C$9:$I$493,Utslippsfaktorer!G$5,FALSE)))*$T41)+($U41*Utslippsfaktorer!G$170) -> 0 | BK41: =((IF($P41="",0,VLOOKUP($P41,Utslippsfaktorer!$C$9:$I$493,Utslippsfaktorer!H$5,FALSE)))*$T41)+($U41*Utslippsfaktorer!H$170) -> 0 | BL41: =((IF($P41="",0,VLOOKUP($P41,Utslippsfaktorer!$C$9:$I$493,Utslippsfaktorer!I$5,FALSE)))*$T41)+($U41*Utslippsfaktorer!I$170) -> 0 | BM41: 0 | BN41: 0 | BO41: 0 | BP41: 0 | BQ41: 0
B42: 13.6 | D42: Eksisterende kaier | F42: NOK | P42: Eksisterende kaier | R42: 0 | V42: =IF(P42="","",VLOOKUP(P42,Utslippsfaktorer!$C$9:$AM$459,Utslippsfaktorer!$AM$5,FALSE)) -> RS - Eksisterende veger, bruer og kaier | AH42: =$N42*Utslippsfaktorer!E$177 -> 0 | AI42: =$N42*Utslippsfaktorer!F$177 -> 0 | AJ42: =$N42*Utslippsfaktorer!G$177 -> 0 | AK42: =$N42*Utslippsfaktorer!H$177 -> 0 | AL42: =$N42*Utslippsfaktorer!I$177 -> 0 | AM42: =((IF($P42="",0,VLOOKUP($P42,Utslippsfaktorer!$C$9:$I$493,Utslippsfaktorer!E$5,FALSE)))*$R42)+($S42*Utslippsfaktorer!E$170) -> 0 | AN42: =((IF($P42="",0,VLOOKUP($P42,Utslippsfaktorer!$C$9:$I$493,Utslippsfaktorer!F$5,FALSE)))*$R42)+($S42*Utslippsfaktorer!F$170) -> 0 | AO42: =((IF($P42="",0,VLOOKUP($P42,Utslippsfaktorer!$C$9:$I$493,Utslippsfaktorer!G$5,FALSE)))*$R42)+($S42*Utslippsfaktorer!G$170) -> 0 | AP42: =((IF($P42="",0,VLOOKUP($P42,Utslippsfaktorer!$C$9:$I$493,Utslippsfaktorer!H$5,FALSE)))*$R42)+($S42*Utslippsfaktorer!H$170) -> 0 | AQ42: =((IF($P42="",0,VLOOKUP($P42,Utslippsfaktorer!$C$9:$I$493,Utslippsfaktorer!I$5,FALSE)))*$R42)+($S42*Utslippsfaktorer!I$170) -> 0 | AR42: 0 | AS42: 0 | AT42: 0 | AU42: 0 | AV42: 0 | AX42: =$J42*Utslippsfaktorer!E$154 -> 0 | AY42: =$J42*Utslippsfaktorer!F$154 -> 0 | AZ42: =$J42*Utslippsfaktorer!G$154 -> 0 | BA42: =$J42*Utslippsfaktorer!H$154 -> 0 | BB42: =$J42*Utslippsfaktorer!I$154 -> 0 | BC42: =$O42*Utslippsfaktorer!E$178 -> 0 | BD42: =$O42*Utslippsfaktorer!F$178 -> 0 | BE42: =$O42*Utslippsfaktorer!G$178 -> 0 | BF42: =$O42*Utslippsfaktorer!H$178 -> 0 | BG42: =$O42*Utslippsfaktorer!I$178 -> 0 | BH42: =((IF($P42="",0,VLOOKUP($P42,Utslippsfaktorer!$C$9:$I$493,Utslippsfaktorer!E$5,FALSE)))*$T42)+($U42*Utslippsfaktorer!E$170) -> 0 | BI42: =((IF($P42="",0,VLOOKUP($P42,Utslippsfaktorer!$C$9:$I$493,Utslippsfaktorer!F$5,FALSE)))*$T42)+($U42*Utslippsfaktorer!F$170) -> 0 | BJ42: =((IF($P42="",0,VLOOKUP($P42,Utslippsfaktorer!$C$9:$I$493,Utslippsfaktorer!G$5,FALSE)))*$T42)+($U42*Utslippsfaktorer!G$170) -> 0 | BK42: =((IF($P42="",0,VLOOKUP($P42,Utslippsfaktorer!$C$9:$I$493,Utslippsfaktorer!H$5,FALSE)))*$T42)+($U42*Utslippsfaktorer!H$170) -> 0 | BL42: =((IF($P42="",0,VLOOKUP($P42,Utslippsfaktorer!$C$9:$I$493,Utslippsfaktorer!I$5,FALSE)))*$T42)+($U42*Utslippsfaktorer!I$170) -> 0 | BM42: 0 | BN42: 0 | BO42: 0 | BP42: 0 | BQ42: 0
B43: 13.7 | D43: Midlertidig beskyttelse og etterf. rengjøring av planum og overbygning | F43: NOK | P43: Midlertidig beskyttelse og etterf. rengjøring av planum og overbygning | R43: 0 | V43: =IF(P43="","",VLOOKUP(P43,Utslippsfaktorer!$C$9:$AM$459,Utslippsfaktorer!$AM$5,FALSE)) -> RS - Rigg og drift | AH43: =$N43*Utslippsfaktorer!E$177 -> 0 | AI43: =$N43*Utslippsfaktorer!F$177 -> 0 | AJ43: =$N43*Utslippsfaktorer!G$177 -> 0 | AK43: =$N43*Utslippsfaktorer!H$177 -> 0 | AL43: =$N43*Utslippsfaktorer!I$177 -> 0 | AM43: =((IF($P43="",0,VLOOKUP($P43,Utslippsfaktorer!$C$9:$I$493,Utslippsfaktorer!E$5,FALSE)))*$R43)+($S43*Utslippsfaktorer!E$170) -> 0 | AN43: =((IF($P43="",0,VLOOKUP($P43,Utslippsfaktorer!$C$9:$I$493,Utslippsfaktorer!F$5,FALSE)))*$R43)+($S43*Utslippsfaktorer!F$170) -> 0 | AO43: =((IF($P43="",0,VLOOKUP($P43,Utslippsfaktorer!$C$9:$I$493,Utslippsfaktorer!G$5,FALSE)))*$R43)+($S43*Utslippsfaktorer!G$170) -> 0 | AP43: =((IF($P43="",0,VLOOKUP($P43,Utslippsfaktorer!$C$9:$I$493,Utslippsfaktorer!H$5,FALSE)))*$R43)+($S43*Utslippsfaktorer!H$170) -> 0 | AQ43: =((IF($P43="",0,VLOOKUP($P43,Utslippsfaktorer!$C$9:$I$493,Utslippsfaktorer!I$5,FALSE)))*$R43)+($S43*Utslippsfaktorer!I$170) -> 0 | AR43: 0 | AS43: 0 | AT43: 0 | AU43: 0 | AV43: 0 | AX43: =$J43*Utslippsfaktorer!E$154 -> 0 | AY43: =$J43*Utslippsfaktorer!F$154 -> 0 | AZ43: =$J43*Utslippsfaktorer!G$154 -> 0 | BA43: =$J43*Utslippsfaktorer!H$154 -> 0 | BB43: =$J43*Utslippsfaktorer!I$154 -> 0 | BC43: =$O43*Utslippsfaktorer!E$178 -> 0 | BD43: =$O43*Utslippsfaktorer!F$178 -> 0 | BE43: =$O43*Utslippsfaktorer!G$178 -> 0 | BF43: =$O43*Utslippsfaktorer!H$178 -> 0 | BG43: =$O43*Utslippsfaktorer!I$178 -> 0 | BH43: =((IF($P43="",0,VLOOKUP($P43,Utslippsfaktorer!$C$9:$I$493,Utslippsfaktorer!E$5,FALSE)))*$T43)+($U43*Utslippsfaktorer!E$170) -> 0 | BI43: =((IF($P43="",0,VLOOKUP($P43,Utslippsfaktorer!$C$9:$I$493,Utslippsfaktorer!F$5,FALSE)))*$T43)+($U43*Utslippsfaktorer!F$170) -> 0 | BJ43: =((IF($P43="",0,VLOOKUP($P43,Utslippsfaktorer!$C$9:$I$493,Utslippsfaktorer!G$5,FALSE)))*$T43)+($U43*Utslippsfaktorer!G$170) -> 0 | BK43: =((IF($P43="",0,VLOOKUP($P43,Utslippsfaktorer!$C$9:$I$493,Utslippsfaktorer!H$5,FALSE)))*$T43)+($U43*Utslippsfaktorer!H$170) -> 0 | BL43: =((IF($P43="",0,VLOOKUP($P43,Utslippsfaktorer!$C$9:$I$493,Utslippsfaktorer!I$5,FALSE)))*$T43)+($U43*Utslippsfaktorer!I$170) -> 0 | BM43: 0 | BN43: 0 | BO43: 0 | BP43: 0 | BQ43: 0
B45: 14. MIDLERTIDIG TRAFIKKAVVIKLING
B46: 14.1 | D46: Trafikkulemper | F46: NOK | P46: =D46 -> Trafikkulemper | R46: =E46 -> 0 | V46: =IF(P46="","",VLOOKUP(P46,Utslippsfaktorer!$C$9:$AM$459,Utslippsfaktorer!$AM$5,FALSE)) -> RS - Midlertidig trafikkavvikling | AH46: =$N46*Utslippsfaktorer!E$177 -> 0 | AI46: =$N46*Utslippsfaktorer!F$177 -> 0 | AJ46: =$N46*Utslippsfaktorer!G$177 -> 0 | AK46: =$N46*Utslippsfaktorer!H$177 -> 0 | AL46: =$N46*Utslippsfaktorer!I$177 -> 0 | AM46: =((IF($P46="",0,VLOOKUP($P46,Utslippsfaktorer!$C$9:$I$493,Utslippsfaktorer!E$5,FALSE)))*$R46)+($S46*Utslippsfaktorer!E$170) -> 0 | AN46: =((IF($P46="",0,VLOOKUP($P46,Utslippsfaktorer!$C$9:$I$493,Utslippsfaktorer!F$5,FALSE)))*$R46)+($S46*Utslippsfaktorer!F$170) -> 0 | AO46: =((IF($P46="",0,VLOOKUP($P46,Utslippsfaktorer!$C$9:$I$493,Utslippsfaktorer!G$5,FALSE)))*$R46)+($S46*Utslippsfaktorer!G$170) -> 0 | AP46: =((IF($P46="",0,VLOOKUP($P46,Utslippsfaktorer!$C$9:$I$493,Utslippsfaktorer!H$5,FALSE)))*$R46)+($S46*Utslippsfaktorer!H$170) -> 0 | AQ46: =((IF($P46="",0,VLOOKUP($P46,Utslippsfaktorer!$C$9:$I$493,Utslippsfaktorer!I$5,FALSE)))*$R46)+($S46*Utslippsfaktorer!I$170) -> 0 | AR46: 0 | AS46: 0 | AT46: 0 | AU46: 0 | AV46: 0 | AX46: =$J46*Utslippsfaktorer!E$154 -> 0 | AY46: =$J46*Utslippsfaktorer!F$154 -> 0 | AZ46: =$J46*Utslippsfaktorer!G$154 -> 0 | BA46: =$J46*Utslippsfaktorer!H$154 -> 0 | BB46: =$J46*Utslippsfaktorer!I$154 -> 0 | BC46: =$O46*Utslippsfaktorer!E$178 -> 0 | BD46: =$O46*Utslippsfaktorer!F$178 -> 0 | BE46: =$O46*Utslippsfaktorer!G$178 -> 0 | BF46: =$O46*Utslippsfaktorer!H$178 -> 0 | BG46: =$O46*Utslippsfaktorer!I$178 -> 0 | BH46: =((IF($P46="",0,VLOOKUP($P46,Utslippsfaktorer!$C$9:$I$493,Utslippsfaktorer!E$5,FALSE)))*$T46)+($U46*Utslippsfaktorer!E$170) -> 0 | BI46: =((IF($P46="",0,VLOOKUP($P46,Utslippsfaktorer!$C$9:$I$493,Utslippsfaktorer!F$5,FALSE)))*$T46)+($U46*Utslippsfaktorer!F$170) -> 0 | BJ46: =((IF($P46="",0,VLOOKUP($P46,Utslippsfaktorer!$C$9:$I$493,Utslippsfaktorer!G$5,FALSE)))*$T46)+($U46*Utslippsfaktorer!G$170) -> 0 | BK46: =((IF($P46="",0,VLOOKUP($P46,Utslippsfaktorer!$C$9:$I$493,Utslippsfaktorer!H$5,FALSE)))*$T46)+($U46*Utslippsfaktorer!H$170) -> 0 | BL46: =((IF($P46="",0,VLOOKUP($P46,Utslippsfaktorer!$C$9:$I$493,Utslippsfaktorer!I$5,FALSE)))*$T46)+($U46*Utslippsfaktorer!I$170) -> 0 | BM46: 0 | BN46: 0 | BO46: 0 | BP46: 0 | BQ46: 0
B47: 14.2 | D47: Tiltak for kollektivtrafikk | F47: NOK | P47: Tiltak for kollektivtrafikk | R47: 0 | V47: =IF(P47="","",VLOOKUP(P47,Utslippsfaktorer!$C$9:$AM$459,Utslippsfaktorer!$AM$5,FALSE)) -> RS - Midlertidig trafikkavvikling | AH47: =$N47*Utslippsfaktorer!E$177 -> 0 | AI47: =$N47*Utslippsfaktorer!F$177 -> 0 | AJ47: =$N47*Utslippsfaktorer!G$177 -> 0 | AK47: =$N47*Utslippsfaktorer!H$177 -> 0 | AL47: =$N47*Utslippsfaktorer!I$177 -> 0 | AM47: =((IF($P47="",0,VLOOKUP($P47,Utslippsfaktorer!$C$9:$I$493,Utslippsfaktorer!E$5,FALSE)))*$R47)+($S47*Utslippsfaktorer!E$170) -> 0 | AN47: =((IF($P47="",0,VLOOKUP($P47,Utslippsfaktorer!$C$9:$I$493,Utslippsfaktorer!F$5,FALSE)))*$R47)+($S47*Utslippsfaktorer!F$170) -> 0 | AO47: =((IF($P47="",0,VLOOKUP($P47,Utslippsfaktorer!$C$9:$I$493,Utslippsfaktorer!G$5,FALSE)))*$R47)+($S47*Utslippsfaktorer!G$170) -> 0 | AP47: =((IF($P47="",0,VLOOKUP($P47,Utslippsfaktorer!$C$9:$I$493,Utslippsfaktorer!H$5,FALSE)))*$R47)+($S47*Utslippsfaktorer!H$170) -> 0 | AQ47: =((IF($P47="",0,VLOOKUP($P47,Utslippsfaktorer!$C$9:$I$493,Utslippsfaktorer!I$5,FALSE)))*$R47)+($S47*Utslippsfaktorer!I$170) -> 0 | AR47: 0 | AS47: 0 | AT47: 0 | AU47: 0 | AV47: 0 | AX47: =$J47*Utslippsfaktorer!E$154 -> 0 | AY47: =$J47*Utslippsfaktorer!F$154 -> 0 | AZ47: =$J47*Utslippsfaktorer!G$154 -> 0 | BA47: =$J47*Utslippsfaktorer!H$154 -> 0 | BB47: =$J47*Utslippsfaktorer!I$154 -> 0 | BC47: =$O47*Utslippsfaktorer!E$178 -> 0 | BD47: =$O47*Utslippsfaktorer!F$178 -> 0 | BE47: =$O47*Utslippsfaktorer!G$178 -> 0 | BF47: =$O47*Utslippsfaktorer!H$178 -> 0 | BG47: =$O47*Utslippsfaktorer!I$178 -> 0 | BH47: =((IF($P47="",0,VLOOKUP($P47,Utslippsfaktorer!$C$9:$I$493,Utslippsfaktorer!E$5,FALSE)))*$T47)+($U47*Utslippsfaktorer!E$170) -> 0 | BI47: =((IF($P47="",0,VLOOKUP($P47,Utslippsfaktorer!$C$9:$I$493,Utslippsfaktorer!F$5,FALSE)))*$T47)+($U47*Utslippsfaktorer!F$170) -> 0 | BJ47: =((IF($P47="",0,VLOOKUP($P47,Utslippsfaktorer!$C$9:$I$493,Utslippsfaktorer!G$5,FALSE)))*$T47)+($U47*Utslippsfaktorer!G$170) -> 0 | BK47: =((IF($P47="",0,VLOOKUP($P47,Utslippsfaktorer!$C$9:$I$493,Utslippsfaktorer!H$5,FALSE)))*$T47)+($U47*Utslippsfaktorer!H$170) -> 0 | BL47: =((IF($P47="",0,VLOOKUP($P47,Utslippsfaktorer!$C$9:$I$493,Utslippsfaktorer!I$5,FALSE)))*$T47)+($U47*Utslippsfaktorer!I$170) -> 0 | BM47: 0 | BN47: 0 | BO47: 0 | BP47: 0 | BQ47: 0
B48: 14.3 | D48: Tiltak for myke trafikanter | F48: NOK | P48: Tiltak for myke trafikanter | R48: 0 | V48: =IF(P48="","",VLOOKUP(P48,Utslippsfaktorer!$C$9:$AM$459,Utslippsfaktorer!$AM$5,FALSE)) -> RS - Midlertidig trafikkavvikling | AH48: =$N48*Utslippsfaktorer!E$177 -> 0 | AI48: =$N48*Utslippsfaktorer!F$177 -> 0 | AJ48: =$N48*Utslippsfaktorer!G$177 -> 0 | AK48: =$N48*Utslippsfaktorer!H$177 -> 0 | AL48: =$N48*Utslippsfaktorer!I$177 -> 0 | AM48: =((IF($P48="",0,VLOOKUP($P48,Utslippsfaktorer!$C$9:$I$493,Utslippsfaktorer!E$5,FALSE)))*$R48)+($S48*Utslippsfaktorer!E$170) -> 0 | AN48: =((IF($P48="",0,VLOOKUP($P48,Utslippsfaktorer!$C$9:$I$493,Utslippsfaktorer!F$5,FALSE)))*$R48)+($S48*Utslippsfaktorer!F$170) -> 0 | AO48: =((IF($P48="",0,VLOOKUP($P48,Utslippsfaktorer!$C$9:$I$493,Utslippsfaktorer!G$5,FALSE)))*$R48)+($S48*Utslippsfaktorer!G$170) -> 0 | AP48: =((IF($P48="",0,VLOOKUP($P48,Utslippsfaktorer!$C$9:$I$493,Utslippsfaktorer!H$5,FALSE)))*$R48)+($S48*Utslippsfaktorer!H$170) -> 0 | AQ48: =((IF($P48="",0,VLOOKUP($P48,Utslippsfaktorer!$C$9:$I$493,Utslippsfaktorer!I$5,FALSE)))*$R48)+($S48*Utslippsfaktorer!I$170) -> 0 | AR48: 0 | AS48: 0 | AT48: 0 | AU48: 0 | AV48: 0 | AX48: =$J48*Utslippsfaktorer!E$154 -> 0 | AY48: =$J48*Utslippsfaktorer!F$154 -> 0 | AZ48: =$J48*Utslippsfaktorer!G$154 -> 0 | BA48: =$J48*Utslippsfaktorer!H$154 -> 0 | BB48: =$J48*Utslippsfaktorer!I$154 -> 0 | BC48: =$O48*Utslippsfaktorer!E$178 -> 0 | BD48: =$O48*Utslippsfaktorer!F$178 -> 0 | BE48: =$O48*Utslippsfaktorer!G$178 -> 0 | BF48: =$O48*Utslippsfaktorer!H$178 -> 0 | BG48: =$O48*Utslippsfaktorer!I$178 -> 0 | BH48: =((IF($P48="",0,VLOOKUP($P48,Utslippsfaktorer!$C$9:$I$493,Utslippsfaktorer!E$5,FALSE)))*$T48)+($U48*Utslippsfaktorer!E$170) -> 0 | BI48: =((IF($P48="",0,VLOOKUP($P48,Utslippsfaktorer!$C$9:$I$493,Utslippsfaktorer!F$5,FALSE)))*$T48)+($U48*Utslippsfaktorer!F$170) -> 0 | BJ48: =((IF($P48="",0,VLOOKUP($P48,Utslippsfaktorer!$C$9:$I$493,Utslippsfaktorer!G$5,FALSE)))*$T48)+($U48*Utslippsfaktorer!G$170) -> 0 | BK48: =((IF($P48="",0,VLOOKUP($P48,Utslippsfaktorer!$C$9:$I$493,Utslippsfaktorer!H$5,FALSE)))*$T48)+($U48*Utslippsfaktorer!H$170) -> 0 | BL48: =((IF($P48="",0,VLOOKUP($P48,Utslippsfaktorer!$C$9:$I$493,Utslippsfaktorer!I$5,FALSE)))*$T48)+($U48*Utslippsfaktorer!I$170) -> 0 | BM48: 0 | BN48: 0 | BO48: 0 | BP48: 0 | BQ48: 0
B49: 14.4 | D49: Oppmerking og signaler | F49: NOK | P49: Oppmerking og signaler | R49: 0 | V49: =IF(P49="","",VLOOKUP(P49,Utslippsfaktorer!$C$9:$AM$459,Utslippsfaktorer!$AM$5,FALSE)) -> RS - Midlertidig trafikkavvikling | AH49: =$N49*Utslippsfaktorer!E$177 -> 0 | AI49: =$N49*Utslippsfaktorer!F$177 -> 0 | AJ49: =$N49*Utslippsfaktorer!G$177 -> 0 | AK49: =$N49*Utslippsfaktorer!H$177 -> 0 | AL49: =$N49*Utslippsfaktorer!I$177 -> 0 | AM49: =((IF($P49="",0,VLOOKUP($P49,Utslippsfaktorer!$C$9:$I$493,Utslippsfaktorer!E$5,FALSE)))*$R49)+($S49*Utslippsfaktorer!E$170) -> 0 | AN49: =((IF($P49="",0,VLOOKUP($P49,Utslippsfaktorer!$C$9:$I$493,Utslippsfaktorer!F$5,FALSE)))*$R49)+($S49*Utslippsfaktorer!F$170) -> 0 | AO49: =((IF($P49="",0,VLOOKUP($P49,Utslippsfaktorer!$C$9:$I$493,Utslippsfaktorer!G$5,FALSE)))*$R49)+($S49*Utslippsfaktorer!G$170) -> 0 | AP49: =((IF($P49="",0,VLOOKUP($P49,Utslippsfaktorer!$C$9:$I$493,Utslippsfaktorer!H$5,FALSE)))*$R49)+($S49*Utslippsfaktorer!H$170) -> 0 | AQ49: =((IF($P49="",0,VLOOKUP($P49,Utslippsfaktorer!$C$9:$I$493,Utslippsfaktorer!I$5,FALSE)))*$R49)+($S49*Utslippsfaktorer!I$170) -> 0 | AR49: 0 | AS49: 0 | AT49: 0 | AU49: 0 | AV49: 0 | AX49: =$J49*Utslippsfaktorer!E$154 -> 0 | AY49: =$J49*Utslippsfaktorer!F$154 -> 0 | AZ49: =$J49*Utslippsfaktorer!G$154 -> 0 | BA49: =$J49*Utslippsfaktorer!H$154 -> 0 | BB49: =$J49*Utslippsfaktorer!I$154 -> 0 | BC49: =$O49*Utslippsfaktorer!E$178 -> 0 | BD49: =$O49*Utslippsfaktorer!F$178 -> 0 | BE49: =$O49*Utslippsfaktorer!G$178 -> 0 | BF49: =$O49*Utslippsfaktorer!H$178 -> 0 | BG49: =$O49*Utslippsfaktorer!I$178 -> 0 | BH49: =((IF($P49="",0,VLOOKUP($P49,Utslippsfaktorer!$C$9:$I$493,Utslippsfaktorer!E$5,FALSE)))*$T49)+($U49*Utslippsfaktorer!E$170) -> 0 | BI49: =((IF($P49="",0,VLOOKUP($P49,Utslippsfaktorer!$C$9:$I$493,Utslippsfaktorer!F$5,FALSE)))*$T49)+($U49*Utslippsfaktorer!F$170) -> 0 | BJ49: =((IF($P49="",0,VLOOKUP($P49,Utslippsfaktorer!$C$9:$I$493,Utslippsfaktorer!G$5,FALSE)))*$T49)+($U49*Utslippsfaktorer!G$170) -> 0 | BK49: =((IF($P49="",0,VLOOKUP($P49,Utslippsfaktorer!$C$9:$I$493,Utslippsfaktorer!H$5,FALSE)))*$T49)+($U49*Utslippsfaktorer!H$170) -> 0 | BL49: =((IF($P49="",0,VLOOKUP($P49,Utslippsfaktorer!$C$9:$I$493,Utslippsfaktorer!I$5,FALSE)))*$T49)+($U49*Utslippsfaktorer!I$170) -> 0 | BM49: 0 | BN49: 0 | BO49: 0 | BP49: 0 | BQ49: 0
B50: 14.5 | D50: Provisorisk omlegging av eksisterende veger | F50: NOK | P50: Provisorisk omlegging av eksisterende veger | R50: 0 | V50: =IF(P50="","",VLOOKUP(P50,Utslippsfaktorer!$C$9:$AM$459,Utslippsfaktorer!$AM$5,FALSE)) -> RS - Midlertidig trafikkavvikling | AH50: =$N50*Utslippsfaktorer!E$177 -> 0 | AI50: =$N50*Utslippsfaktorer!F$177 -> 0 | AJ50: =$N50*Utslippsfaktorer!G$177 -> 0 | AK50: =$N50*Utslippsfaktorer!H$177 -> 0 | AL50: =$N50*Utslippsfaktorer!I$177 -> 0 | AM50: =((IF($P50="",0,VLOOKUP($P50,Utslippsfaktorer!$C$9:$I$493,Utslippsfaktorer!E$5,FALSE)))*$R50)+($S50*Utslippsfaktorer!E$170) -> 0 | AN50: =((IF($P50="",0,VLOOKUP($P50,Utslippsfaktorer!$C$9:$I$493,Utslippsfaktorer!F$5,FALSE)))*$R50)+($S50*Utslippsfaktorer!F$170) -> 0 | AO50: =((IF($P50="",0,VLOOKUP($P50,Utslippsfaktorer!$C$9:$I$493,Utslippsfaktorer!G$5,FALSE)))*$R50)+($S50*Utslippsfaktorer!G$170) -> 0 | AP50: =((IF($P50="",0,VLOOKUP($P50,Utslippsfaktorer!$C$9:$I$493,Utslippsfaktorer!H$5,FALSE)))*$R50)+($S50*Utslippsfaktorer!H$170) -> 0 | AQ50: =((IF($P50="",0,VLOOKUP($P50,Utslippsfaktorer!$C$9:$I$493,Utslippsfaktorer!I$5,FALSE)))*$R50)+($S50*Utslippsfaktorer!I$170) -> 0 | AR50: 0 | AS50: 0 | AT50: 0 | AU50: 0 | AV50: 0 | AX50: =$J50*Utslippsfaktorer!E$154 -> 0 | AY50: =$J50*Utslippsfaktorer!F$154 -> 0 | AZ50: =$J50*Utslippsfaktorer!G$154 -> 0 | BA50: =$J50*Utslippsfaktorer!H$154 -> 0 | BB50: =$J50*Utslippsfaktorer!I$154 -> 0 | BC50: =$O50*Utslippsfaktorer!E$178 -> 0 | BD50: =$O50*Utslippsfaktorer!F$178 -> 0 | BE50: =$O50*Utslippsfaktorer!G$178 -> 0 | BF50: =$O50*Utslippsfaktorer!H$178 -> 0 | BG50: =$O50*Utslippsfaktorer!I$178 -> 0 | BH50: =((IF($P50="",0,VLOOKUP($P50,Utslippsfaktorer!$C$9:$I$493,Utslippsfaktorer!E$5,FALSE)))*$T50)+($U50*Utslippsfaktorer!E$170) -> 0 | BI50: =((IF($P50="",0,VLOOKUP($P50,Utslippsfaktorer!$C$9:$I$493,Utslippsfaktorer!F$5,FALSE)))*$T50)+($U50*Utslippsfaktorer!F$170) -> 0 | BJ50: =((IF($P50="",0,VLOOKUP($P50,Utslippsfaktorer!$C$9:$I$493,Utslippsfaktorer!G$5,FALSE)))*$T50)+($U50*Utslippsfaktorer!G$170) -> 0 | BK50: =((IF($P50="",0,VLOOKUP($P50,Utslippsfaktorer!$C$9:$I$493,Utslippsfaktorer!H$5,FALSE)))*$T50)+($U50*Utslippsfaktorer!H$170) -> 0 | BL50: =((IF($P50="",0,VLOOKUP($P50,Utslippsfaktorer!$C$9:$I$493,Utslippsfaktorer!I$5,FALSE)))*$T50)+($U50*Utslippsfaktorer!I$170) -> 0 | BM50: 0 | BN50: 0 | BO50: 0 | BP50: 0 | BQ50: 0
B51: 14.6 | D51: Sikringstiltak | F51: NOK | P51: Sikringstiltak | R51: 0 | V51: =IF(P51="","",VLOOKUP(P51,Utslippsfaktorer!$C$9:$AM$459,Utslippsfaktorer!$AM$5,FALSE)) -> RS - Midlertidig trafikkavvikling | AH51: =$N51*Utslippsfaktorer!E$177 -> 0 | AI51: =$N51*Utslippsfaktorer!F$177 -> 0 | AJ51: =$N51*Utslippsfaktorer!G$177 -> 0 | AK51: =$N51*Utslippsfaktorer!H$177 -> 0 | AL51: =$N51*Utslippsfaktorer!I$177 -> 0 | AM51: =((IF($P51="",0,VLOOKUP($P51,Utslippsfaktorer!$C$9:$I$493,Utslippsfaktorer!E$5,FALSE)))*$R51)+($S51*Utslippsfaktorer!E$170) -> 0 | AN51: =((IF($P51="",0,VLOOKUP($P51,Utslippsfaktorer!$C$9:$I$493,Utslippsfaktorer!F$5,FALSE)))*$R51)+($S51*Utslippsfaktorer!F$170) -> 0 | AO51: =((IF($P51="",0,VLOOKUP($P51,Utslippsfaktorer!$C$9:$I$493,Utslippsfaktorer!G$5,FALSE)))*$R51)+($S51*Utslippsfaktorer!G$170) -> 0 | AP51: =((IF($P51="",0,VLOOKUP($P51,Utslippsfaktorer!$C$9:$I$493,Utslippsfaktorer!H$5,FALSE)))*$R51)+($S51*Utslippsfaktorer!H$170) -> 0 | AQ51: =((IF($P51="",0,VLOOKUP($P51,Utslippsfaktorer!$C$9:$I$493,Utslippsfaktorer!I$5,FALSE)))*$R51)+($S51*Utslippsfaktorer!I$170) -> 0 | AR51: 0 | AS51: 0 | AT51: 0 | AU51: 0 | AV51: 0 | AX51: =$J51*Utslippsfaktorer!E$154 -> 0 | AY51: =$J51*Utslippsfaktorer!F$154 -> 0 | AZ51: =$J51*Utslippsfaktorer!G$154 -> 0 | BA51: =$J51*Utslippsfaktorer!H$154 -> 0 | BB51: =$J51*Utslippsfaktorer!I$154 -> 0 | BC51: =$O51*Utslippsfaktorer!E$178 -> 0 | BD51: =$O51*Utslippsfaktorer!F$178 -> 0 | BE51: =$O51*Utslippsfaktorer!G$178 -> 0 | BF51: =$O51*Utslippsfaktorer!H$178 -> 0 | BG51: =$O51*Utslippsfaktorer!I$178 -> 0 | BH51: =((IF($P51="",0,VLOOKUP($P51,Utslippsfaktorer!$C$9:$I$493,Utslippsfaktorer!E$5,FALSE)))*$T51)+($U51*Utslippsfaktorer!E$170) -> 0 | BI51: =((IF($P51="",0,VLOOKUP($P51,Utslippsfaktorer!$C$9:$I$493,Utslippsfaktorer!F$5,FALSE)))*$T51)+($U51*Utslippsfaktorer!F$170) -> 0 | BJ51: =((IF($P51="",0,VLOOKUP($P51,Utslippsfaktorer!$C$9:$I$493,Utslippsfaktorer!G$5,FALSE)))*$T51)+($U51*Utslippsfaktorer!G$170) -> 0 | BK51: =((IF($P51="",0,VLOOKUP($P51,Utslippsfaktorer!$C$9:$I$493,Utslippsfaktorer!H$5,FALSE)))*$T51)+($U51*Utslippsfaktorer!H$170) -> 0 | BL51: =((IF($P51="",0,VLOOKUP($P51,Utslippsfaktorer!$C$9:$I$493,Utslippsfaktorer!I$5,FALSE)))*$T51)+($U51*Utslippsfaktorer!I$170) -> 0 | BM51: 0 | BN51: 0 | BO51: 0 | BP51: 0 | BQ51: 0
B53: 15: RIVING OG FJERNING
B54: 15.1 | D54: Riving og fjerning av hus, grunnmurer, støttemurer etc. | F54: NOK | P54: =D54 -> Riving og fjerning av hus, grunnmurer, støttemurer etc. | R54: =E54 -> 0 | V54: =IF(P54="","",VLOOKUP(P54,Utslippsfaktorer!$C$9:$AM$459,Utslippsfaktorer!$AM$5,FALSE)) -> RS - Riving og fjerning | AH54: =$N54*Utslippsfaktorer!E$177 -> 0 | AI54: =$N54*Utslippsfaktorer!F$177 -> 0 | AJ54: =$N54*Utslippsfaktorer!G$177 -> 0 | AK54: =$N54*Utslippsfaktorer!H$177 -> 0 | AL54: =$N54*Utslippsfaktorer!I$177 -> 0 | AM54: =((IF($P54="",0,VLOOKUP($P54,Utslippsfaktorer!$C$9:$I$493,Utslippsfaktorer!E$5,FALSE)))*$R54)+($S54*Utslippsfaktorer!E$170) -> 0 | AN54: =((IF($P54="",0,VLOOKUP($P54,Utslippsfaktorer!$C$9:$I$493,Utslippsfaktorer!F$5,FALSE)))*$R54)+($S54*Utslippsfaktorer!F$170) -> 0 | AO54: =((IF($P54="",0,VLOOKUP($P54,Utslippsfaktorer!$C$9:$I$493,Utslippsfaktorer!G$5,FALSE)))*$R54)+($S54*Utslippsfaktorer!G$170) -> 0 | AP54: =((IF($P54="",0,VLOOKUP($P54,Utslippsfaktorer!$C$9:$I$493,Utslippsfaktorer!H$5,FALSE)))*$R54)+($S54*Utslippsfaktorer!H$170) -> 0 | AQ54: =((IF($P54="",0,VLOOKUP($P54,Utslippsfaktorer!$C$9:$I$493,Utslippsfaktorer!I$5,FALSE)))*$R54)+($S54*Utslippsfaktorer!I$170) -> 0 | AR54: 0 | AS54: 0 | AT54: 0 | AU54: 0 | AV54: 0 | AX54: =$J54*Utslippsfaktorer!E$154 -> 0 | AY54: =$J54*Utslippsfaktorer!F$154 -> 0 | AZ54: =$J54*Utslippsfaktorer!G$154 -> 0 | BA54: =$J54*Utslippsfaktorer!H$154 -> 0 | BB54: =$J54*Utslippsfaktorer!I$154 -> 0 | BC54: =$O54*Utslippsfaktorer!E$178 -> 0 | BD54: =$O54*Utslippsfaktorer!F$178 -> 0 | BE54: =$O54*Utslippsfaktorer!G$178 -> 0 | BF54: =$O54*Utslippsfaktorer!H$178 -> 0 | BG54: =$O54*Utslippsfaktorer!I$178 -> 0 | BH54: =((IF($P54="",0,VLOOKUP($P54,Utslippsfaktorer!$C$9:$I$493,Utslippsfaktorer!E$5,FALSE)))*$T54)+($U54*Utslippsfaktorer!E$170) -> 0 | BI54: =((IF($P54="",0,VLOOKUP($P54,Utslippsfaktorer!$C$9:$I$493,Utslippsfaktorer!F$5,FALSE)))*$T54)+($U54*Utslippsfaktorer!F$170) -> 0 | BJ54: =((IF($P54="",0,VLOOKUP($P54,Utslippsfaktorer!$C$9:$I$493,Utslippsfaktorer!G$5,FALSE)))*$T54)+($U54*Utslippsfaktorer!G$170) -> 0 | BK54: =((IF($P54="",0,VLOOKUP($P54,Utslippsfaktorer!$C$9:$I$493,Utslippsfaktorer!H$5,FALSE)))*$T54)+($U54*Utslippsfaktorer!H$170) -> 0 | BL54: =((IF($P54="",0,VLOOKUP($P54,Utslippsfaktorer!$C$9:$I$493,Utslippsfaktorer!I$5,FALSE)))*$T54)+($U54*Utslippsfaktorer!I$170) -> 0 | BM54: 0 | BN54: 0 | BO54: 0 | BP54: 0 | BQ54: 0
B55: 15.2 | D55: Riving og fjerning av bruer, brufundamenter etc. | F55: NOK | P55: =D55 -> Riving og fjerning av bruer, brufundamenter etc. | R55: =E55 -> 0 | V55: =IF(P55="","",VLOOKUP(P55,Utslippsfaktorer!$C$9:$AM$459,Utslippsfaktorer!$AM$5,FALSE)) -> RS - Riving og fjerning | AH55: =$N55*Utslippsfaktorer!E$177 -> 0 | AI55: =$N55*Utslippsfaktorer!F$177 -> 0 | AJ55: =$N55*Utslippsfaktorer!G$177 -> 0 | AK55: =$N55*Utslippsfaktorer!H$177 -> 0 | AL55: =$N55*Utslippsfaktorer!I$177 -> 0 | AM55: =((IF($P55="",0,VLOOKUP($P55,Utslippsfaktorer!$C$9:$I$493,Utslippsfaktorer!E$5,FALSE)))*$R55)+($S55*Utslippsfaktorer!E$170) -> 0 | AN55: =((IF($P55="",0,VLOOKUP($P55,Utslippsfaktorer!$C$9:$I$493,Utslippsfaktorer!F$5,FALSE)))*$R55)+($S55*Utslippsfaktorer!F$170) -> 0 | AO55: =((IF($P55="",0,VLOOKUP($P55,Utslippsfaktorer!$C$9:$I$493,Utslippsfaktorer!G$5,FALSE)))*$R55)+($S55*Utslippsfaktorer!G$170) -> 0 | AP55: =((IF($P55="",0,VLOOKUP($P55,Utslippsfaktorer!$C$9:$I$493,Utslippsfaktorer!H$5,FALSE)))*$R55)+($S55*Utslippsfaktorer!H$170) -> 0 | AQ55: =((IF($P55="",0,VLOOKUP($P55,Utslippsfaktorer!$C$9:$I$493,Utslippsfaktorer!I$5,FALSE)))*$R55)+($S55*Utslippsfaktorer!I$170) -> 0 | AR55: 0 | AS55: 0 | AT55: 0 | AU55: 0 | AV55: 0 | AX55: =$J55*Utslippsfaktorer!E$154 -> 0 | AY55: =$J55*Utslippsfaktorer!F$154 -> 0 | AZ55: =$J55*Utslippsfaktorer!G$154 -> 0 | BA55: =$J55*Utslippsfaktorer!H$154 -> 0 | BB55: =$J55*Utslippsfaktorer!I$154 -> 0 | BC55: =$O55*Utslippsfaktorer!E$178 -> 0 | BD55: =$O55*Utslippsfaktorer!F$178 -> 0 | BE55: =$O55*Utslippsfaktorer!G$178 -> 0 | BF55: =$O55*Utslippsfaktorer!H$178 -> 0 | BG55: =$O55*Utslippsfaktorer!I$178 -> 0 | BH55: =((IF($P55="",0,VLOOKUP($P55,Utslippsfaktorer!$C$9:$I$493,Utslippsfaktorer!E$5,FALSE)))*$T55)+($U55*Utslippsfaktorer!E$170) -> 0 | BI55: =((IF($P55="",0,VLOOKUP($P55,Utslippsfaktorer!$C$9:$I$493,Utslippsfaktorer!F$5,FALSE)))*$T55)+($U55*Utslippsfaktorer!F$170) -> 0 | BJ55: =((IF($P55="",0,VLOOKUP($P55,Utslippsfaktorer!$C$9:$I$493,Utslippsfaktorer!G$5,FALSE)))*$T55)+($U55*Utslippsfaktorer!G$170) -> 0 | BK55: =((IF($P55="",0,VLOOKUP($P55,Utslippsfaktorer!$C$9:$I$493,Utslippsfaktorer!H$5,FALSE)))*$T55)+($U55*Utslippsfaktorer!H$170) -> 0 | BL55: =((IF($P55="",0,VLOOKUP($P55,Utslippsfaktorer!$C$9:$I$493,Utslippsfaktorer!I$5,FALSE)))*$T55)+($U55*Utslippsfaktorer!I$170) -> 0 | BM55: 0 | BN55: 0 | BO55: 0 | BP55: 0 | BQ55: 0
B56: 15.3 | D56: Riving og fjerning av kummer, stikkrenner, kulverter og rørledninger | F56: NOK | P56: =D56 -> Riving og fjerning av kummer, stikkrenner, kulverter og rørledninger | R56: =E56 -> 0 | V56: =IF(P56="","",VLOOKUP(P56,Utslippsfaktorer!$C$9:$AM$459,Utslippsfaktorer!$AM$5,FALSE)) -> RS - Riving og fjerning | AH56: =$N56*Utslippsfaktorer!E$177 -> 0 | AI56: =$N56*Utslippsfaktorer!F$177 -> 0 | AJ56: =$N56*Utslippsfaktorer!G$177 -> 0 | AK56: =$N56*Utslippsfaktorer!H$177 -> 0 | AL56: =$N56*Utslippsfaktorer!I$177 -> 0 | AM56: =((IF($P56="",0,VLOOKUP($P56,Utslippsfaktorer!$C$9:$I$493,Utslippsfaktorer!E$5,FALSE)))*$R56)+($S56*Utslippsfaktorer!E$170) -> 0 | AN56: =((IF($P56="",0,VLOOKUP($P56,Utslippsfaktorer!$C$9:$I$493,Utslippsfaktorer!F$5,FALSE)))*$R56)+($S56*Utslippsfaktorer!F$170) -> 0 | AO56: =((IF($P56="",0,VLOOKUP($P56,Utslippsfaktorer!$C$9:$I$493,Utslippsfaktorer!G$5,FALSE)))*$R56)+($S56*Utslippsfaktorer!G$170) -> 0 | AP56: =((IF($P56="",0,VLOOKUP($P56,Utslippsfaktorer!$C$9:$I$493,Utslippsfaktorer!H$5,FALSE)))*$R56)+($S56*Utslippsfaktorer!H$170) -> 0 | AQ56: =((IF($P56="",0,VLOOKUP($P56,Utslippsfaktorer!$C$9:$I$493,Utslippsfaktorer!I$5,FALSE)))*$R56)+($S56*Utslippsfaktorer!I$170) -> 0 | AR56: 0 | AS56: 0 | AT56: 0 | AU56: 0 | AV56: 0 | AX56: =$J56*Utslippsfaktorer!E$154 -> 0 | AY56: =$J56*Utslippsfaktorer!F$154 -> 0 | AZ56: =$J56*Utslippsfaktorer!G$154 -> 0 | BA56: =$J56*Utslippsfaktorer!H$154 -> 0 | BB56: =$J56*Utslippsfaktorer!I$154 -> 0 | BC56: =$O56*Utslippsfaktorer!E$178 -> 0 | BD56: =$O56*Utslippsfaktorer!F$178 -> 0 | BE56: =$O56*Utslippsfaktorer!G$178 -> 0 | BF56: =$O56*Utslippsfaktorer!H$178 -> 0 | BG56: =$O56*Utslippsfaktorer!I$178 -> 0 | BH56: =((IF($P56="",0,VLOOKUP($P56,Utslippsfaktorer!$C$9:$I$493,Utslippsfaktorer!E$5,FALSE)))*$T56)+($U56*Utslippsfaktorer!E$170) -> 0 | BI56: =((IF($P56="",0,VLOOKUP($P56,Utslippsfaktorer!$C$9:$I$493,Utslippsfaktorer!F$5,FALSE)))*$T56)+($U56*Utslippsfaktorer!F$170) -> 0 | BJ56: =((IF($P56="",0,VLOOKUP($P56,Utslippsfaktorer!$C$9:$I$493,Utslippsfaktorer!G$5,FALSE)))*$T56)+($U56*Utslippsfaktorer!G$170) -> 0 | BK56: =((IF($P56="",0,VLOOKUP($P56,Utslippsfaktorer!$C$9:$I$493,Utslippsfaktorer!H$5,FALSE)))*$T56)+($U56*Utslippsfaktorer!H$170) -> 0 | BL56: =((IF($P56="",0,VLOOKUP($P56,Utslippsfaktorer!$C$9:$I$493,Utslippsfaktorer!I$5,FALSE)))*$T56)+($U56*Utslippsfaktorer!I$170) -> 0 | BM56: 0 | BN56: 0 | BO56: 0 | BP56: 0 | BQ56: 0
B57: 15.4 | D57: Riving og fjerning av kantstein, rekkverk, skilt, vegutstyr mm | F57: NOK | P57: =D57 -> Riving og fjerning av kantstein, rekkverk, skilt, vegutstyr mm | R57: =E57 -> 0 | V57: =IF(P57="","",VLOOKUP(P57,Utslippsfaktorer!$C$9:$AM$459,Utslippsfaktorer!$AM$5,FALSE)) -> RS - Riving og fjerning | AH57: =$N57*Utslippsfaktorer!E$177 -> 0 | AI57: =$N57*Utslippsfaktorer!F$177 -> 0 | AJ57: =$N57*Utslippsfaktorer!G$177 -> 0 | AK57: =$N57*Utslippsfaktorer!H$177 -> 0 | AL57: =$N57*Utslippsfaktorer!I$177 -> 0 | AM57: =((IF($P57="",0,VLOOKUP($P57,Utslippsfaktorer!$C$9:$I$493,Utslippsfaktorer!E$5,FALSE)))*$R57)+($S57*Utslippsfaktorer!E$170) -> 0 | AN57: =((IF($P57="",0,VLOOKUP($P57,Utslippsfaktorer!$C$9:$I$493,Utslippsfaktorer!F$5,FALSE)))*$R57)+($S57*Utslippsfaktorer!F$170) -> 0 | AO57: =((IF($P57="",0,VLOOKUP($P57,Utslippsfaktorer!$C$9:$I$493,Utslippsfaktorer!G$5,FALSE)))*$R57)+($S57*Utslippsfaktorer!G$170) -> 0 | AP57: =((IF($P57="",0,VLOOKUP($P57,Utslippsfaktorer!$C$9:$I$493,Utslippsfaktorer!H$5,FALSE)))*$R57)+($S57*Utslippsfaktorer!H$170) -> 0 | AQ57: =((IF($P57="",0,VLOOKUP($P57,Utslippsfaktorer!$C$9:$I$493,Utslippsfaktorer!I$5,FALSE)))*$R57)+($S57*Utslippsfaktorer!I$170) -> 0 | AR57: 0 | AS57: 0 | AT57: 0 | AU57: 0 | AV57: 0 | AX57: =$J57*Utslippsfaktorer!E$154 -> 0 | AY57: =$J57*Utslippsfaktorer!F$154 -> 0 | AZ57: =$J57*Utslippsfaktorer!G$154 -> 0 | BA57: =$J57*Utslippsfaktorer!H$154 -> 0 | BB57: =$J57*Utslippsfaktorer!I$154 -> 0 | BC57: =$O57*Utslippsfaktorer!E$178 -> 0 | BD57: =$O57*Utslippsfaktorer!F$178 -> 0 | BE57: =$O57*Utslippsfaktorer!G$178 -> 0 | BF57: =$O57*Utslippsfaktorer!H$178 -> 0 | BG57: =$O57*Utslippsfaktorer!I$178 -> 0 | BH57: =((IF($P57="",0,VLOOKUP($P57,Utslippsfaktorer!$C$9:$I$493,Utslippsfaktorer!E$5,FALSE)))*$T57)+($U57*Utslippsfaktorer!E$170) -> 0 | BI57: =((IF($P57="",0,VLOOKUP($P57,Utslippsfaktorer!$C$9:$I$493,Utslippsfaktorer!F$5,FALSE)))*$T57)+($U57*Utslippsfaktorer!F$170) -> 0 | BJ57: =((IF($P57="",0,VLOOKUP($P57,Utslippsfaktorer!$C$9:$I$493,Utslippsfaktorer!G$5,FALSE)))*$T57)+($U57*Utslippsfaktorer!G$170) -> 0 | BK57: =((IF($P57="",0,VLOOKUP($P57,Utslippsfaktorer!$C$9:$I$493,Utslippsfaktorer!H$5,FALSE)))*$T57)+($U57*Utslippsfaktorer!H$170) -> 0 | BL57: =((IF($P57="",0,VLOOKUP($P57,Utslippsfaktorer!$C$9:$I$493,Utslippsfaktorer!I$5,FALSE)))*$T57)+($U57*Utslippsfaktorer!I$170) -> 0 | BM57: 0 | BN57: 0 | BO57: 0 | BP57: 0 | BQ57: 0
B58: 15.5 | D58: Riving og fjerning av gjerder og stolper med fundamentering | F58: m | P58: =D58 -> Riving og fjerning av gjerder og stolper med fundamentering | R58: =E58 -> 0 | V58: =IF(P58="","",VLOOKUP(P58,Utslippsfaktorer!$C$9:$AM$459,Utslippsfaktorer!$AM$5,FALSE)) -> RS - Riving og fjerning | AH58: =$N58*Utslippsfaktorer!E$177 -> 0 | AI58: =$N58*Utslippsfaktorer!F$177 -> 0 | AJ58: =$N58*Utslippsfaktorer!G$177 -> 0 | AK58: =$N58*Utslippsfaktorer!H$177 -> 0 | AL58: =$N58*Utslippsfaktorer!I$177 -> 0 | AM58: =((IF($P58="",0,VLOOKUP($P58,Utslippsfaktorer!$C$9:$I$493,Utslippsfaktorer!E$5,FALSE)))*$R58)+($S58*Utslippsfaktorer!E$170) -> 0 | AN58: =((IF($P58="",0,VLOOKUP($P58,Utslippsfaktorer!$C$9:$I$493,Utslippsfaktorer!F$5,FALSE)))*$R58)+($S58*Utslippsfaktorer!F$170) -> 0 | AO58: =((IF($P58="",0,VLOOKUP($P58,Utslippsfaktorer!$C$9:$I$493,Utslippsfaktorer!G$5,FALSE)))*$R58)+($S58*Utslippsfaktorer!G$170) -> 0 | AP58: =((IF($P58="",0,VLOOKUP($P58,Utslippsfaktorer!$C$9:$I$493,Utslippsfaktorer!H$5,FALSE)))*$R58)+($S58*Utslippsfaktorer!H$170) -> 0 | AQ58: =((IF($P58="",0,VLOOKUP($P58,Utslippsfaktorer!$C$9:$I$493,Utslippsfaktorer!I$5,FALSE)))*$R58)+($S58*Utslippsfaktorer!I$170) -> 0 | AR58: 0 | AS58: 0 | AT58: 0 | AU58: 0 | AV58: 0 | AX58: =$J58*Utslippsfaktorer!E$154 -> 0 | AY58: =$J58*Utslippsfaktorer!F$154 -> 0 | AZ58: =$J58*Utslippsfaktorer!G$154 -> 0 | BA58: =$J58*Utslippsfaktorer!H$154 -> 0 | BB58: =$J58*Utslippsfaktorer!I$154 -> 0 | BC58: =$O58*Utslippsfaktorer!E$178 -> 0 | BD58: =$O58*Utslippsfaktorer!F$178 -> 0 | BE58: =$O58*Utslippsfaktorer!G$178 -> 0 | BF58: =$O58*Utslippsfaktorer!H$178 -> 0 | BG58: =$O58*Utslippsfaktorer!I$178 -> 0 | BH58: =((IF($P58="",0,VLOOKUP($P58,Utslippsfaktorer!$C$9:$I$493,Utslippsfaktorer!E$5,FALSE)))*$T58)+($U58*Utslippsfaktorer!E$170) -> 0 | BI58: =((IF($P58="",0,VLOOKUP($P58,Utslippsfaktorer!$C$9:$I$493,Utslippsfaktorer!F$5,FALSE)))*$T58)+($U58*Utslippsfaktorer!F$170) -> 0 | BJ58: =((IF($P58="",0,VLOOKUP($P58,Utslippsfaktorer!$C$9:$I$493,Utslippsfaktorer!G$5,FALSE)))*$T58)+($U58*Utslippsfaktorer!G$170) -> 0 | BK58: =((IF($P58="",0,VLOOKUP($P58,Utslippsfaktorer!$C$9:$I$493,Utslippsfaktorer!H$5,FALSE)))*$T58)+($U58*Utslippsfaktorer!H$170) -> 0 | BL58: =((IF($P58="",0,VLOOKUP($P58,Utslippsfaktorer!$C$9:$I$493,Utslippsfaktorer!I$5,FALSE)))*$T58)+($U58*Utslippsfaktorer!I$170) -> 0 | BM58: 0 | BN58: 0 | BO58: 0 | BP58: 0 | BQ58: 0
B60: 16: FLYTTING OG OMLEGGING
B61: 16.1 | D61: Flytting av hus | F61: NOK | P61: =D61 -> Flytting av hus | R61: =E61 -> 0 | V61: =IF(P61="","",VLOOKUP(P61,Utslippsfaktorer!$C$9:$AM$459,Utslippsfaktorer!$AM$5,FALSE)) -> RS - Flytting og omlegging | AH61: =$N61*Utslippsfaktorer!E$177 -> 0 | AI61: =$N61*Utslippsfaktorer!F$177 -> 0 | AJ61: =$N61*Utslippsfaktorer!G$177 -> 0 | AK61: =$N61*Utslippsfaktorer!H$177 -> 0 | AL61: =$N61*Utslippsfaktorer!I$177 -> 0 | AM61: =((IF($P61="",0,VLOOKUP($P61,Utslippsfaktorer!$C$9:$I$493,Utslippsfaktorer!E$5,FALSE)))*$R61)+($S61*Utslippsfaktorer!E$170) -> 0 | AN61: =((IF($P61="",0,VLOOKUP($P61,Utslippsfaktorer!$C$9:$I$493,Utslippsfaktorer!F$5,FALSE)))*$R61)+($S61*Utslippsfaktorer!F$170) -> 0 | AO61: =((IF($P61="",0,VLOOKUP($P61,Utslippsfaktorer!$C$9:$I$493,Utslippsfaktorer!G$5,FALSE)))*$R61)+($S61*Utslippsfaktorer!G$170) -> 0 | AP61: =((IF($P61="",0,VLOOKUP($P61,Utslippsfaktorer!$C$9:$I$493,Utslippsfaktorer!H$5,FALSE)))*$R61)+($S61*Utslippsfaktorer!H$170) -> 0 | AQ61: =((IF($P61="",0,VLOOKUP($P61,Utslippsfaktorer!$C$9:$I$493,Utslippsfaktorer!I$5,FALSE)))*$R61)+($S61*Utslippsfaktorer!I$170) -> 0 | AR61: 0 | AS61: 0 | AT61: 0 | AU61: 0 | AV61: 0 | AX61: =$J61*Utslippsfaktorer!E$154 -> 0 | AY61: =$J61*Utslippsfaktorer!F$154 -> 0 | AZ61: =$J61*Utslippsfaktorer!G$154 -> 0 | BA61: =$J61*Utslippsfaktorer!H$154 -> 0 | BB61: =$J61*Utslippsfaktorer!I$154 -> 0 | BC61: =$O61*Utslippsfaktorer!E$178 -> 0 | BD61: =$O61*Utslippsfaktorer!F$178 -> 0 | BE61: =$O61*Utslippsfaktorer!G$178 -> 0 | BF61: =$O61*Utslippsfaktorer!H$178 -> 0 | BG61: =$O61*Utslippsfaktorer!I$178 -> 0 | BH61: =((IF($P61="",0,VLOOKUP($P61,Utslippsfaktorer!$C$9:$I$493,Utslippsfaktorer!E$5,FALSE)))*$T61)+($U61*Utslippsfaktorer!E$170) -> 0 | BI61: =((IF($P61="",0,VLOOKUP($P61,Utslippsfaktorer!$C$9:$I$493,Utslippsfaktorer!F$5,FALSE)))*$T61)+($U61*Utslippsfaktorer!F$170) -> 0 | BJ61: =((IF($P61="",0,VLOOKUP($P61,Utslippsfaktorer!$C$9:$I$493,Utslippsfaktorer!G$5,FALSE)))*$T61)+($U61*Utslippsfaktorer!G$170) -> 0 | BK61: =((IF($P61="",0,VLOOKUP($P61,Utslippsfaktorer!$C$9:$I$493,Utslippsfaktorer!H$5,FALSE)))*$T61)+($U61*Utslippsfaktorer!H$170) -> 0 | BL61: =((IF($P61="",0,VLOOKUP($P61,Utslippsfaktorer!$C$9:$I$493,Utslippsfaktorer!I$5,FALSE)))*$T61)+($U61*Utslippsfaktorer!I$170) -> 0 | BM61: 0 | BN61: 0 | BO61: 0 | BP61: 0 | BQ61: 0
B62: 16.2 | D62: Flytting og omlegging av private vann- og avløpsledninger, brønner | F62: NOK | P62: =D62 -> Flytting og omlegging av private vann- og avløpsledninger, brønner | R62: =E62 -> 0 | V62: =IF(P62="","",VLOOKUP(P62,Utslippsfaktorer!$C$9:$AM$459,Utslippsfaktorer!$AM$5,FALSE)) -> RS - Flytting og omlegging | AH62: =$N62*Utslippsfaktorer!E$177 -> 0 | AI62: =$N62*Utslippsfaktorer!F$177 -> 0 | AJ62: =$N62*Utslippsfaktorer!G$177 -> 0 | AK62: =$N62*Utslippsfaktorer!H$177 -> 0 | AL62: =$N62*Utslippsfaktorer!I$177 -> 0 | AM62: =((IF($P62="",0,VLOOKUP($P62,Utslippsfaktorer!$C$9:$I$493,Utslippsfaktorer!E$5,FALSE)))*$R62)+($S62*Utslippsfaktorer!E$170) -> 0 | AN62: =((IF($P62="",0,VLOOKUP($P62,Utslippsfaktorer!$C$9:$I$493,Utslippsfaktorer!F$5,FALSE)))*$R62)+($S62*Utslippsfaktorer!F$170) -> 0 | AO62: =((IF($P62="",0,VLOOKUP($P62,Utslippsfaktorer!$C$9:$I$493,Utslippsfaktorer!G$5,FALSE)))*$R62)+($S62*Utslippsfaktorer!G$170) -> 0 | AP62: =((IF($P62="",0,VLOOKUP($P62,Utslippsfaktorer!$C$9:$I$493,Utslippsfaktorer!H$5,FALSE)))*$R62)+($S62*Utslippsfaktorer!H$170) -> 0 | AQ62: =((IF($P62="",0,VLOOKUP($P62,Utslippsfaktorer!$C$9:$I$493,Utslippsfaktorer!I$5,FALSE)))*$R62)+($S62*Utslippsfaktorer!I$170) -> 0 | AR62: 0 | AS62: 0 | AT62: 0 | AU62: 0 | AV62: 0 | AX62: =$J62*Utslippsfaktorer!E$154 -> 0 | AY62: =$J62*Utslippsfaktorer!F$154 -> 0 | AZ62: =$J62*Utslippsfaktorer!G$154 -> 0 | BA62: =$J62*Utslippsfaktorer!H$154 -> 0 | BB62: =$J62*Utslippsfaktorer!I$154 -> 0 | BC62: =$O62*Utslippsfaktorer!E$178 -> 0 | BD62: =$O62*Utslippsfaktorer!F$178 -> 0 | BE62: =$O62*Utslippsfaktorer!G$178 -> 0 | BF62: =$O62*Utslippsfaktorer!H$178 -> 0 | BG62: =$O62*Utslippsfaktorer!I$178 -> 0 | BH62: =((IF($P62="",0,VLOOKUP($P62,Utslippsfaktorer!$C$9:$I$493,Utslippsfaktorer!E$5,FALSE)))*$T62)+($U62*Utslippsfaktorer!E$170) -> 0 | BI62: =((IF($P62="",0,VLOOKUP($P62,Utslippsfaktorer!$C$9:$I$493,Utslippsfaktorer!F$5,FALSE)))*$T62)+($U62*Utslippsfaktorer!F$170) -> 0 | BJ62: =((IF($P62="",0,VLOOKUP($P62,Utslippsfaktorer!$C$9:$I$493,Utslippsfaktorer!G$5,FALSE)))*$T62)+($U62*Utslippsfaktorer!G$170) -> 0 | BK62: =((IF($P62="",0,VLOOKUP($P62,Utslippsfaktorer!$C$9:$I$493,Utslippsfaktorer!H$5,FALSE)))*$T62)+($U62*Utslippsfaktorer!H$170) -> 0 | BL62: =((IF($P62="",0,VLOOKUP($P62,Utslippsfaktorer!$C$9:$I$493,Utslippsfaktorer!I$5,FALSE)))*$T62)+($U62*Utslippsfaktorer!I$170) -> 0 | BM62: 0 | BN62: 0 | BO62: 0 | BP62: 0 | BQ62: 0
B63: 16.3 | D63: Fjerning/flytting av kabler og utstyr | F63: NOK | P63: =D63 -> Fjerning/flytting av kabler og utstyr | R63: =E63 -> 0 | V63: =IF(P63="","",VLOOKUP(P63,Utslippsfaktorer!$C$9:$AM$459,Utslippsfaktorer!$AM$5,FALSE)) -> RS - Flytting og omlegging | AH63: =$N63*Utslippsfaktorer!E$177 -> 0 | AI63: =$N63*Utslippsfaktorer!F$177 -> 0 | AJ63: =$N63*Utslippsfaktorer!G$177 -> 0 | AK63: =$N63*Utslippsfaktorer!H$177 -> 0 | AL63: =$N63*Utslippsfaktorer!I$177 -> 0 | AM63: =((IF($P63="",0,VLOOKUP($P63,Utslippsfaktorer!$C$9:$I$493,Utslippsfaktorer!E$5,FALSE)))*$R63)+($S63*Utslippsfaktorer!E$170) -> 0 | AN63: =((IF($P63="",0,VLOOKUP($P63,Utslippsfaktorer!$C$9:$I$493,Utslippsfaktorer!F$5,FALSE)))*$R63)+($S63*Utslippsfaktorer!F$170) -> 0 | AO63: =((IF($P63="",0,VLOOKUP($P63,Utslippsfaktorer!$C$9:$I$493,Utslippsfaktorer!G$5,FALSE)))*$R63)+($S63*Utslippsfaktorer!G$170) -> 0 | AP63: =((IF($P63="",0,VLOOKUP($P63,Utslippsfaktorer!$C$9:$I$493,Utslippsfaktorer!H$5,FALSE)))*$R63)+($S63*Utslippsfaktorer!H$170) -> 0 | AQ63: =((IF($P63="",0,VLOOKUP($P63,Utslippsfaktorer!$C$9:$I$493,Utslippsfaktorer!I$5,FALSE)))*$R63)+($S63*Utslippsfaktorer!I$170) -> 0 | AR63: 0 | AS63: 0 | AT63: 0 | AU63: 0 | AV63: 0 | AX63: =$J63*Utslippsfaktorer!E$154 -> 0 | AY63: =$J63*Utslippsfaktorer!F$154 -> 0 | AZ63: =$J63*Utslippsfaktorer!G$154 -> 0 | BA63: =$J63*Utslippsfaktorer!H$154 -> 0 | BB63: =$J63*Utslippsfaktorer!I$154 -> 0 | BC63: =$O63*Utslippsfaktorer!E$178 -> 0 | BD63: =$O63*Utslippsfaktorer!F$178 -> 0 | BE63: =$O63*Utslippsfaktorer!G$178 -> 0 | BF63: =$O63*Utslippsfaktorer!H$178 -> 0 | BG63: =$O63*Utslippsfaktorer!I$178 -> 0 | BH63: =((IF($P63="",0,VLOOKUP($P63,Utslippsfaktorer!$C$9:$I$493,Utslippsfaktorer!E$5,FALSE)))*$T63)+($U63*Utslippsfaktorer!E$170) -> 0 | BI63: =((IF($P63="",0,VLOOKUP($P63,Utslippsfaktorer!$C$9:$I$493,Utslippsfaktorer!F$5,FALSE)))*$T63)+($U63*Utslippsfaktorer!F$170) -> 0 | BJ63: =((IF($P63="",0,VLOOKUP($P63,Utslippsfaktorer!$C$9:$I$493,Utslippsfaktorer!G$5,FALSE)))*$T63)+($U63*Utslippsfaktorer!G$170) -> 0 | BK63: =((IF($P63="",0,VLOOKUP($P63,Utslippsfaktorer!$C$9:$I$493,Utslippsfaktorer!H$5,FALSE)))*$T63)+($U63*Utslippsfaktorer!H$170) -> 0 | BL63: =((IF($P63="",0,VLOOKUP($P63,Utslippsfaktorer!$C$9:$I$493,Utslippsfaktorer!I$5,FALSE)))*$T63)+($U63*Utslippsfaktorer!I$170) -> 0 | BM63: 0 | BN63: 0 | BO63: 0 | BP63: 0 | BQ63: 0
B64: 16.4 | D64: Midlertidig flytting og omlegging av eksisterende bekkeløp | F64: m | P64: =D64 -> Midlertidig flytting og omlegging av eksisterende bekkeløp | R64: =E64 -> 0 | V64: =IF(P64="","",VLOOKUP(P64,Utslippsfaktorer!$C$9:$AM$459,Utslippsfaktorer!$AM$5,FALSE)) -> RS - Flytting og omlegging | AH64: =$N64*Utslippsfaktorer!E$177 -> 0 | AI64: =$N64*Utslippsfaktorer!F$177 -> 0 | AJ64: =$N64*Utslippsfaktorer!G$177 -> 0 | AK64: =$N64*Utslippsfaktorer!H$177 -> 0 | AL64: =$N64*Utslippsfaktorer!I$177 -> 0 | AM64: =((IF($P64="",0,VLOOKUP($P64,Utslippsfaktorer!$C$9:$I$493,Utslippsfaktorer!E$5,FALSE)))*$R64)+($S64*Utslippsfaktorer!E$170) -> 0 | AN64: =((IF($P64="",0,VLOOKUP($P64,Utslippsfaktorer!$C$9:$I$493,Utslippsfaktorer!F$5,FALSE)))*$R64)+($S64*Utslippsfaktorer!F$170) -> 0 | AO64: =((IF($P64="",0,VLOOKUP($P64,Utslippsfaktorer!$C$9:$I$493,Utslippsfaktorer!G$5,FALSE)))*$R64)+($S64*Utslippsfaktorer!G$170) -> 0 | AP64: =((IF($P64="",0,VLOOKUP($P64,Utslippsfaktorer!$C$9:$I$493,Utslippsfaktorer!H$5,FALSE)))*$R64)+($S64*Utslippsfaktorer!H$170) -> 0 | AQ64: =((IF($P64="",0,VLOOKUP($P64,Utslippsfaktorer!$C$9:$I$493,Utslippsfaktorer!I$5,FALSE)))*$R64)+($S64*Utslippsfaktorer!I$170) -> 0 | AR64: 0 | AS64: 0 | AT64: 0 | AU64: 0 | AV64: 0 | AX64: =$J64*Utslippsfaktorer!E$154 -> 0 | AY64: =$J64*Utslippsfaktorer!F$154 -> 0 | AZ64: =$J64*Utslippsfaktorer!G$154 -> 0 | BA64: =$J64*Utslippsfaktorer!H$154 -> 0 | BB64: =$J64*Utslippsfaktorer!I$154 -> 0 | BC64: =$O64*Utslippsfaktorer!E$178 -> 0 | BD64: =$O64*Utslippsfaktorer!F$178 -> 0 | BE64: =$O64*Utslippsfaktorer!G$178 -> 0 | BF64: =$O64*Utslippsfaktorer!H$178 -> 0 | BG64: =$O64*Utslippsfaktorer!I$178 -> 0 | BH64: =((IF($P64="",0,VLOOKUP($P64,Utslippsfaktorer!$C$9:$I$493,Utslippsfaktorer!E$5,FALSE)))*$T64)+($U64*Utslippsfaktorer!E$170) -> 0 | BI64: =((IF($P64="",0,VLOOKUP($P64,Utslippsfaktorer!$C$9:$I$493,Utslippsfaktorer!F$5,FALSE)))*$T64)+($U64*Utslippsfaktorer!F$170) -> 0 | BJ64: =((IF($P64="",0,VLOOKUP($P64,Utslippsfaktorer!$C$9:$I$493,Utslippsfaktorer!G$5,FALSE)))*$T64)+($U64*Utslippsfaktorer!G$170) -> 0 | BK64: =((IF($P64="",0,VLOOKUP($P64,Utslippsfaktorer!$C$9:$I$493,Utslippsfaktorer!H$5,FALSE)))*$T64)+($U64*Utslippsfaktorer!H$170) -> 0 | BL64: =((IF($P64="",0,VLOOKUP($P64,Utslippsfaktorer!$C$9:$I$493,Utslippsfaktorer!I$5,FALSE)))*$T64)+($U64*Utslippsfaktorer!I$170) -> 0 | BM64: 0 | BN64: 0 | BO64: 0 | BP64: 0 | BQ64: 0
B65: 16.5 | D65: Flytting og omlegging av gjerder | F65: m | P65: =D65 -> Flytting og omlegging av gjerder | R65: =E65 -> 0 | V65: =IF(P65="","",VLOOKUP(P65,Utslippsfaktorer!$C$9:$AM$459,Utslippsfaktorer!$AM$5,FALSE)) -> RS - Flytting og omlegging | AH65: =$N65*Utslippsfaktorer!E$177 -> 0 | AI65: =$N65*Utslippsfaktorer!F$177 -> 0 | AJ65: =$N65*Utslippsfaktorer!G$177 -> 0 | AK65: =$N65*Utslippsfaktorer!H$177 -> 0 | AL65: =$N65*Utslippsfaktorer!I$177 -> 0 | AM65: =((IF($P65="",0,VLOOKUP($P65,Utslippsfaktorer!$C$9:$I$493,Utslippsfaktorer!E$5,FALSE)))*$R65)+($S65*Utslippsfaktorer!E$170) -> 0 | AN65: =((IF($P65="",0,VLOOKUP($P65,Utslippsfaktorer!$C$9:$I$493,Utslippsfaktorer!F$5,FALSE)))*$R65)+($S65*Utslippsfaktorer!F$170) -> 0 | AO65: =((IF($P65="",0,VLOOKUP($P65,Utslippsfaktorer!$C$9:$I$493,Utslippsfaktorer!G$5,FALSE)))*$R65)+($S65*Utslippsfaktorer!G$170) -> 0 | AP65: =((IF($P65="",0,VLOOKUP($P65,Utslippsfaktorer!$C$9:$I$493,Utslippsfaktorer!H$5,FALSE)))*$R65)+($S65*Utslippsfaktorer!H$170) -> 0 | AQ65: =((IF($P65="",0,VLOOKUP($P65,Utslippsfaktorer!$C$9:$I$493,Utslippsfaktorer!I$5,FALSE)))*$R65)+($S65*Utslippsfaktorer!I$170) -> 0 | AR65: 0 | AS65: 0 | AT65: 0 | AU65: 0 | AV65: 0 | AX65: =$J65*Utslippsfaktorer!E$154 -> 0 | AY65: =$J65*Utslippsfaktorer!F$154 -> 0 | AZ65: =$J65*Utslippsfaktorer!G$154 -> 0 | BA65: =$J65*Utslippsfaktorer!H$154 -> 0 | BB65: =$J65*Utslippsfaktorer!I$154 -> 0 | BC65: =$O65*Utslippsfaktorer!E$178 -> 0 | BD65: =$O65*Utslippsfaktorer!F$178 -> 0 | BE65: =$O65*Utslippsfaktorer!G$178 -> 0 | BF65: =$O65*Utslippsfaktorer!H$178 -> 0 | BG65: =$O65*Utslippsfaktorer!I$178 -> 0 | BH65: =((IF($P65="",0,VLOOKUP($P65,Utslippsfaktorer!$C$9:$I$493,Utslippsfaktorer!E$5,FALSE)))*$T65)+($U65*Utslippsfaktorer!E$170) -> 0 | BI65: =((IF($P65="",0,VLOOKUP($P65,Utslippsfaktorer!$C$9:$I$493,Utslippsfaktorer!F$5,FALSE)))*$T65)+($U65*Utslippsfaktorer!F$170) -> 0 | BJ65: =((IF($P65="",0,VLOOKUP($P65,Utslippsfaktorer!$C$9:$I$493,Utslippsfaktorer!G$5,FALSE)))*$T65)+($U65*Utslippsfaktorer!G$170) -> 0 | BK65: =((IF($P65="",0,VLOOKUP($P65,Utslippsfaktorer!$C$9:$I$493,Utslippsfaktorer!H$5,FALSE)))*$T65)+($U65*Utslippsfaktorer!H$170) -> 0 | BL65: =((IF($P65="",0,VLOOKUP($P65,Utslippsfaktorer!$C$9:$I$493,Utslippsfaktorer!I$5,FALSE)))*$T65)+($U65*Utslippsfaktorer!I$170) -> 0 | BM65: 0 | BN65: 0 | BO65: 0 | BP65: 0 | BQ65: 0
H66: SUM | I66: =SUM(I10:I65) -> 0 | J66: =SUM(J10:J65) -> 0 | K66: 0 | L66: 0 | M66: 0 | N66: 0 | O66: 0 | P66: 0 | R66: 0 | S66: 0 | T66: 0 | U66: 0 | V66: 0 | X66: 0 | Y66: 0 | Z66: 0 | AA66: 0 | AB66: 0 | AC66: =SUM(AC10:AC65) -> 0 | AD66: 0 | AE66: 0 | AF66: 0 | AG66: 0 | AH66: 0 | AI66: 0 | AJ66: 0 | AK66: 0 | AL66: 0 | AM66: 0 | AN66: 0 | AO66: 0 | AP66: 0 | AQ66: 0 | AR66: 0 | AS66: 0 | AT66: 0 | AU66: 0 | AV66: 0 | AX66: =SUM(AX10:AX65) -> 0 | AY66: 0 | AZ66: 0 | BA66: 0 | BB66: 0 | BC66: 0 | BD66: 0 | BE66: 0 | BF66: 0 | BG66: 0 | BH66: 0 | BI66: 0 | BJ66: 0 | BK66: 0 | BL66: 0 | BM66: 0 | BN66: 0 | BO66: 0 | BP66: 0 | BQ66: 0
B71: 02: SPRENGNING OG MASSEFLYTTING
Q72: =IF(P72="","",VLOOKUP(P72,Utslippsfaktorer!$C$9:$D$460,2,FALSE)) ->  | V72: =IF(P72="","",VLOOKUP(P72,Utslippsfaktorer!$C$9:$AM$459,Utslippsfaktorer!$AM$5,FALSE)) -> 
B73: 21: VEGETASJON, MATJORD, BERGRENSK | Q73: =IF(P73="","",VLOOKUP(P73,Utslippsfaktorer!$C$9:$D$460,2,FALSE)) ->  | V73: =IF(P73="","",VLOOKUP(P73,Utslippsfaktorer!$C$9:$AM$459,Utslippsfaktorer!$AM$5,FALSE)) -> 
B74: 21.2 | C74: Velg bonitetsklasse | D74: Vegetasjonsrydding, permanent arealbeslag | F74: m2 | I74: =E74*Beregningsfaktorer!$M$47*Beregningsfaktorer!$M$46 -> 0 | K74: Felling/rydding av skog | L74: =E74*Beregningsfaktorer!M47*Beregningsfaktorer!C$255*Beregningsfaktorer!M$13 -> 0 | M74: antar transport til depot | Q74: =IF(P74="","",VLOOKUP(P74,Utslippsfaktorer!$C$9:$D$460,2,FALSE)) ->  | S74: =IF((OR(F74=Nedtrekksmenyer!$F$4,P74="")),0,VLOOKUP(P74,Beregningsfaktorer!$L$73:$Q$352,Beregningsfaktorer!$Q$73,FALSE))*R74 -> 0 | U74: =IF((OR(F74=Nedtrekksmenyer!$F$4,P74="")),0,VLOOKUP(P74,Beregningsfaktorer!$L$73:$Q$352,Beregningsfaktorer!$Q$73,FALSE))*T74 -> 0 | V74: =IF(P74="","",VLOOKUP(P74,Utslippsfaktorer!$C$9:$AM$459,Utslippsfaktorer!$AM$5,FALSE)) ->  | X74: =$I74*Utslippsfaktorer!E$154 -> 0 | Y74: =$I74*Utslippsfaktorer!F$154 -> 0 | Z74: =$I74*Utslippsfaktorer!G$154 -> 0 | AA74: =$I74*Utslippsfaktorer!H$154 -> 0 | AB74: =$I74*Utslippsfaktorer!I$154 -> 0 | AC74: =$L74*Utslippsfaktorer!E$171*Utslippsfaktorer!$AP$171 -> 0 | AD74: =$L74*Utslippsfaktorer!F$171*Utslippsfaktorer!$AP$171 -> 0 | AE74: =$L74*Utslippsfaktorer!G$171*Utslippsfaktorer!$AP$171 -> 0 | AF74: =$L74*Utslippsfaktorer!H$171*Utslippsfaktorer!$AP$171 -> 0 | AG74: =$L74*Utslippsfaktorer!I$171*Utslippsfaktorer!$AP$171 -> 0 | AH74: =$N74*Utslippsfaktorer!E$177 -> 0 | AI74: =$N74*Utslippsfaktorer!F$177 -> 0 | AJ74: =$N74*Utslippsfaktorer!G$177 -> 0 | AK74: =$N74*Utslippsfaktorer!H$177 -> 0 | AL74: =$N74*Utslippsfaktorer!I$177 -> 0 | AM74: =((IF($P74="",0,VLOOKUP($P74,Utslippsfaktorer!$C$9:$I$493,Utslippsfaktorer!E$5,FALSE)))*$R74)+($S74*Utslippsfaktorer!E$170) -> 0 | AN74: =((IF($P74="",0,VLOOKUP($P74,Utslippsfaktorer!$C$9:$I$493,Utslippsfaktorer!F$5,FALSE)))*$R74)+($S74*Utslippsfaktorer!F$170) -> 0 | AO74: =((IF($P74="",0,VLOOKUP($P74,Utslippsfaktorer!$C$9:$I$493,Utslippsfaktorer!G$5,FALSE)))*$R74)+($S74*Utslippsfaktorer!G$170) -> 0 | AP74: =((IF($P74="",0,VLOOKUP($P74,Utslippsfaktorer!$C$9:$I$493,Utslippsfaktorer!H$5,FALSE)))*$R74)+($S74*Utslippsfaktorer!H$170) -> 0 | AQ74: =((IF($P74="",0,VLOOKUP($P74,Utslippsfaktorer!$C$9:$I$493,Utslippsfaktorer!I$5,FALSE)))*$R74)+($S74*Utslippsfaktorer!I$170) -> 0 | AR74: =X74+AC74+AH74+AM74 -> 0 | AS74: 0 | AT74: 0 | AU74: 0 | AV74: 0 | AX74: =$J74*Utslippsfaktorer!E$154 -> 0 | AY74: =$J74*Utslippsfaktorer!F$154 -> 0 | AZ74: =$J74*Utslippsfaktorer!G$154 -> 0 | BA74: =$J74*Utslippsfaktorer!H$154 -> 0 | BB74: =$J74*Utslippsfaktorer!I$154 -> 0 | BC74: =$O74*Utslippsfaktorer!E$178 -> 0 | BD74: =$O74*Utslippsfaktorer!F$178 -> 0 | BE74: =$O74*Utslippsfaktorer!G$178 -> 0 | BF74: =$O74*Utslippsfaktorer!H$178 -> 0 | BG74: =$O74*Utslippsfaktorer!I$178 -> 0 | BH74: =((IF($P74="",0,VLOOKUP($P74,Utslippsfaktorer!$C$9:$I$493,Utslippsfaktorer!E$5,FALSE)))*$T74)+($U74*Utslippsfaktorer!E$170) -> 0 | BI74: =((IF($P74="",0,VLOOKUP($P74,Utslippsfaktorer!$C$9:$I$493,Utslippsfaktorer!F$5,FALSE)))*$T74)+($U74*Utslippsfaktorer!F$170) -> 0 | BJ74: =((IF($P74="",0,VLOOKUP($P74,Utslippsfaktorer!$C$9:$I$493,Utslippsfaktorer!G$5,FALSE)))*$T74)+($U74*Utslippsfaktorer!G$170) -> 0 | BK74: =((IF($P74="",0,VLOOKUP($P74,Utslippsfaktorer!$C$9:$I$493,Utslippsfaktorer!H$5,FALSE)))*$T74)+($U74*Utslippsfaktorer!H$170) -> 0 | BL74: =((IF($P74="",0,VLOOKUP($P74,Utslippsfaktorer!$C$9:$I$493,Utslippsfaktorer!I$5,FALSE)))*$T74)+($U74*Utslippsfaktorer!I$170) -> 0 | BM74: =AX74+BC74+BH74 -> 0 | BN74: 0 | BO74: 0 | BP74: 0 | BQ74: 0
B75: 21.2 | C75: Velg bonitetsklasse | D75: Vegetasjonsrydding, midlertidig arealbeslag | F75: m2 | I75: =E75*Beregningsfaktorer!$M$47*Beregningsfaktorer!$M$46 -> 0 | K75: Felling/rydding av skog | L75: =E75*Beregningsfaktorer!M47*Beregningsfaktorer!C$255*Beregningsfaktorer!M$13 -> 0 | M75: antar transport til depot | X75: =$I75*Utslippsfaktorer!E$154 -> 0 | Y75: =$I75*Utslippsfaktorer!F$154 -> 0 | Z75: =$I75*Utslippsfaktorer!G$154 -> 0 | AA75: =$I75*Utslippsfaktorer!H$154 -> 0 | AB75: =$I75*Utslippsfaktorer!I$154 -> 0 | AC75: =$L75*Utslippsfaktorer!E$171*Utslippsfaktorer!$AP$171 -> 0 | AD75: =$L75*Utslippsfaktorer!F$171*Utslippsfaktorer!$AP$171 -> 0 | AE75: =$L75*Utslippsfaktorer!G$171*Utslippsfaktorer!$AP$171 -> 0 | AF75: =$L75*Utslippsfaktorer!H$171*Utslippsfaktorer!$AP$171 -> 0 | AG75: =$L75*Utslippsfaktorer!I$171*Utslippsfaktorer!$AP$171 -> 0 | AH75: =$N75*Utslippsfaktorer!E$177 -> 0 | AI75: =$N75*Utslippsfaktorer!F$177 -> 0 | AJ75: =$N75*Utslippsfaktorer!G$177 -> 0 | AK75: =$N75*Utslippsfaktorer!H$177 -> 0 | AL75: =$N75*Utslippsfaktorer!I$177 -> 0 | AM75: =((IF($P75="",0,VLOOKUP($P75,Utslippsfaktorer!$C$9:$I$493,Utslippsfaktorer!E$5,FALSE)))*$R75)+($S75*Utslippsfaktorer!E$170) -> 0 | AN75: =((IF($P75="",0,VLOOKUP($P75,Utslippsfaktorer!$C$9:$I$493,Utslippsfaktorer!F$5,FALSE)))*$R75)+($S75*Utslippsfaktorer!F$170) -> 0 | AO75: =((IF($P75="",0,VLOOKUP($P75,Utslippsfaktorer!$C$9:$I$493,Utslippsfaktorer!G$5,FALSE)))*$R75)+($S75*Utslippsfaktorer!G$170) -> 0 | AP75: =((IF($P75="",0,VLOOKUP($P75,Utslippsfaktorer!$C$9:$I$493,Utslippsfaktorer!H$5,FALSE)))*$R75)+($S75*Utslippsfaktorer!H$170) -> 0 | AQ75: =((IF($P75="",0,VLOOKUP($P75,Utslippsfaktorer!$C$9:$I$493,Utslippsfaktorer!I$5,FALSE)))*$R75)+($S75*Utslippsfaktorer!I$170) -> 0 | AR75: 0 | AS75: 0 | AT75: 0 | AU75: 0 | AV75: 0 | AX75: =$J75*Utslippsfaktorer!E$154 -> 0 | AY75: =$J75*Utslippsfaktorer!F$154 -> 0 | AZ75: =$J75*Utslippsfaktorer!G$154 -> 0 | BA75: =$J75*Utslippsfaktorer!H$154 -> 0 | BB75: =$J75*Utslippsfaktorer!I$154 -> 0 | BC75: =$O75*Utslippsfaktorer!E$178 -> 0 | BD75: =$O75*Utslippsfaktorer!F$178 -> 0 | BE75: =$O75*Utslippsfaktorer!G$178 -> 0 | BF75: =$O75*Utslippsfaktorer!H$178 -> 0 | BG75: =$O75*Utslippsfaktorer!I$178 -> 0 | BH75: =((IF($P75="",0,VLOOKUP($P75,Utslippsfaktorer!$C$9:$I$493,Utslippsfaktorer!E$5,FALSE)))*$T75)+($U75*Utslippsfaktorer!E$170) -> 0 | BI75: =((IF($P75="",0,VLOOKUP($P75,Utslippsfaktorer!$C$9:$I$493,Utslippsfaktorer!F$5,FALSE)))*$T75)+($U75*Utslippsfaktorer!F$170) -> 0 | BJ75: =((IF($P75="",0,VLOOKUP($P75,Utslippsfaktorer!$C$9:$I$493,Utslippsfaktorer!G$5,FALSE)))*$T75)+($U75*Utslippsfaktorer!G$170) -> 0 | BK75: =((IF($P75="",0,VLOOKUP($P75,Utslippsfaktorer!$C$9:$I$493,Utslippsfaktorer!H$5,FALSE)))*$T75)+($U75*Utslippsfaktorer!H$170) -> 0 | BL75: =((IF($P75="",0,VLOOKUP($P75,Utslippsfaktorer!$C$9:$I$493,Utslippsfaktorer!I$5,FALSE)))*$T75)+($U75*Utslippsfaktorer!I$170) -> 0 | BM75: 0 | BN75: 0 | BO75: 0 | BP75: 0 | BQ75: 0
B76: 21.21 | D76: Felling av trær til tømmer | F76: m3 | I76: =E76*Beregningsfaktorer!M46 -> 0 | L76: =E76*Beregningsfaktorer!M$13*Beregningsfaktorer!C$255 -> 0 | Q76: =IF(P76="","",VLOOKUP(P76,Utslippsfaktorer!$C$9:$D$460,2,FALSE)) ->  | S76: =IF((OR(F76=Nedtrekksmenyer!$F$4,P76="")),0,VLOOKUP(P76,Beregningsfaktorer!$L$73:$Q$352,Beregningsfaktorer!$Q$73,FALSE))*R76 -> 0 | U76: =IF((OR(F76=Nedtrekksmenyer!$F$4,P76="")),0,VLOOKUP(P76,Beregningsfaktorer!$L$73:$Q$352,Beregningsfaktorer!$Q$73,FALSE))*T76 -> 0 | V76: =IF(P76="","",VLOOKUP(P76,Utslippsfaktorer!$C$9:$AM$459,Utslippsfaktorer!$AM$5,FALSE)) ->  | X76: =$I76*Utslippsfaktorer!E$154 -> 0 | Y76: =$I76*Utslippsfaktorer!F$154 -> 0 | Z76: =$I76*Utslippsfaktorer!G$154 -> 0 | AA76: =$I76*Utslippsfaktorer!H$154 -> 0 | AB76: =$I76*Utslippsfaktorer!I$154 -> 0 | AC76: =$L76*Utslippsfaktorer!E$171*Utslippsfaktorer!$AP$171 -> 0 | AD76: =$L76*Utslippsfaktorer!F$171*Utslippsfaktorer!$AP$171 -> 0 | AE76: =$L76*Utslippsfaktorer!G$171*Utslippsfaktorer!$AP$171 -> 0 | AF76: =$L76*Utslippsfaktorer!H$171*Utslippsfaktorer!$AP$171 -> 0 | AG76: =$L76*Utslippsfaktorer!I$171*Utslippsfaktorer!$AP$171 -> 0 | AH76: =$N76*Utslippsfaktorer!E$177 -> 0 | AI76: =$N76*Utslippsfaktorer!F$177 -> 0 | AJ76: =$N76*Utslippsfaktorer!G$177 -> 0 | AK76: =$N76*Utslippsfaktorer!H$177 -> 0 | AL76: =$N76*Utslippsfaktorer!I$177 -> 0 | AM76: =((IF($P76="",0,VLOOKUP($P76,Utslippsfaktorer!$C$9:$I$493,Utslippsfaktorer!E$5,FALSE)))*$R76)+($S76*Utslippsfaktorer!E$170) -> 0 | AN76: =((IF($P76="",0,VLOOKUP($P76,Utslippsfaktorer!$C$9:$I$493,Utslippsfaktorer!F$5,FALSE)))*$R76)+($S76*Utslippsfaktorer!F$170) -> 0 | AO76: =((IF($P76="",0,VLOOKUP($P76,Utslippsfaktorer!$C$9:$I$493,Utslippsfaktorer!G$5,FALSE)))*$R76)+($S76*Utslippsfaktorer!G$170) -> 0 | AP76: =((IF($P76="",0,VLOOKUP($P76,Utslippsfaktorer!$C$9:$I$493,Utslippsfaktorer!H$5,FALSE)))*$R76)+($S76*Utslippsfaktorer!H$170) -> 0 | AQ76: =((IF($P76="",0,VLOOKUP($P76,Utslippsfaktorer!$C$9:$I$493,Utslippsfaktorer!I$5,FALSE)))*$R76)+($S76*Utslippsfaktorer!I$170) -> 0 | AR76: =X76+AC76+AH76+AM76 -> 0 | AS76: =Y76+AD76+AI76+AN76 -> 0 | AT76: =Z76+AE76+AJ76+AO76 -> 0 | AU76: =AA76+AF76+AK76+AP76 -> 0 | AV76: =AB76+AG76+AL76+AQ76 -> 0 | AX76: =$J76*Utslippsfaktorer!E$154 -> 0 | AY76: =$J76*Utslippsfaktorer!F$154 -> 0 | AZ76: =$J76*Utslippsfaktorer!G$154 -> 0 | BA76: =$J76*Utslippsfaktorer!H$154 -> 0 | BB76: =$J76*Utslippsfaktorer!I$154 -> 0 | BC76: =$O76*Utslippsfaktorer!E$178 -> 0 | BD76: =$O76*Utslippsfaktorer!F$178 -> 0 | BE76: =$O76*Utslippsfaktorer!G$178 -> 0 | BF76: =$O76*Utslippsfaktorer!H$178 -> 0 | BG76: =$O76*Utslippsfaktorer!I$178 -> 0 | BH76: =((IF($P76="",0,VLOOKUP($P76,Utslippsfaktorer!$C$9:$I$493,Utslippsfaktorer!E$5,FALSE)))*$T76)+($U76*Utslippsfaktorer!E$170) -> 0 | BI76: =((IF($P76="",0,VLOOKUP($P76,Utslippsfaktorer!$C$9:$I$493,Utslippsfaktorer!F$5,FALSE)))*$T76)+($U76*Utslippsfaktorer!F$170) -> 0 | BJ76: =((IF($P76="",0,VLOOKUP($P76,Utslippsfaktorer!$C$9:$I$493,Utslippsfaktorer!G$5,FALSE)))*$T76)+($U76*Utslippsfaktorer!G$170) -> 0 | BK76: =((IF($P76="",0,VLOOKUP($P76,Utslippsfaktorer!$C$9:$I$493,Utslippsfaktorer!H$5,FALSE)))*$T76)+($U76*Utslippsfaktorer!H$170) -> 0 | BL76: =((IF($P76="",0,VLOOKUP($P76,Utslippsfaktorer!$C$9:$I$493,Utslippsfaktorer!I$5,FALSE)))*$T76)+($U76*Utslippsfaktorer!I$170) -> 0 | BM76: =AX76+BC76+BH76 -> 0 | BN76: =AY76+BD76+BI76 -> 0 | BO76: =AZ76+BE76+BJ76 -> 0 | BP76: =BA76+BF76+BK76 -> 0 | BQ76: =BB76+BG76+BL76 -> 0
B77: 21.22 | D77: Felling av trær til ved | F77: m3 | I77: =E77*Beregningsfaktorer!M46 -> 0 | L77: =E77*Beregningsfaktorer!M$13*Beregningsfaktorer!C$255 -> 0 | Q77: =IF(P77="","",VLOOKUP(P77,Utslippsfaktorer!$C$9:$D$460,2,FALSE)) ->  | S77: =IF((OR(F77=Nedtrekksmenyer!$F$4,P77="")),0,VLOOKUP(P77,Beregningsfaktorer!$L$73:$Q$352,Beregningsfaktorer!$Q$73,FALSE))*R77 -> 0 | U77: =IF((OR(F77=Nedtrekksmenyer!$F$4,P77="")),0,VLOOKUP(P77,Beregningsfaktorer!$L$73:$Q$352,Beregningsfaktorer!$Q$73,FALSE))*T77 -> 0 | V77: =IF(P77="","",VLOOKUP(P77,Utslippsfaktorer!$C$9:$AM$459,Utslippsfaktorer!$AM$5,FALSE)) ->  | X77: =$I77*Utslippsfaktorer!E$154 -> 0 | Y77: =$I77*Utslippsfaktorer!F$154 -> 0 | Z77: =$I77*Utslippsfaktorer!G$154 -> 0 | AA77: =$I77*Utslippsfaktorer!H$154 -> 0 | AB77: =$I77*Utslippsfaktorer!I$154 -> 0 | AC77: =$L77*Utslippsfaktorer!E$171*Utslippsfaktorer!$AP$171 -> 0 | AD77: =$L77*Utslippsfaktorer!F$171*Utslippsfaktorer!$AP$171 -> 0 | AE77: =$L77*Utslippsfaktorer!G$171*Utslippsfaktorer!$AP$171 -> 0 | AF77: =$L77*Utslippsfaktorer!H$171*Utslippsfaktorer!$AP$171 -> 0 | AG77: =$L77*Utslippsfaktorer!I$171*Utslippsfaktorer!$AP$171 -> 0 | AH77: =$N77*Utslippsfaktorer!E$177 -> 0 | AI77: =$N77*Utslippsfaktorer!F$177 -> 0 | AJ77: =$N77*Utslippsfaktorer!G$177 -> 0 | AK77: =$N77*Utslippsfaktorer!H$177 -> 0 | AL77: =$N77*Utslippsfaktorer!I$177 -> 0 | AM77: =((IF($P77="",0,VLOOKUP($P77,Utslippsfaktorer!$C$9:$I$493,Utslippsfaktorer!E$5,FALSE)))*$R77)+($S77*Utslippsfaktorer!E$170) -> 0 | AN77: =((IF($P77="",0,VLOOKUP($P77,Utslippsfaktorer!$C$9:$I$493,Utslippsfaktorer!F$5,FALSE)))*$R77)+($S77*Utslippsfaktorer!F$170) -> 0 | AO77: =((IF($P77="",0,VLOOKUP($P77,Utslippsfaktorer!$C$9:$I$493,Utslippsfaktorer!G$5,FALSE)))*$R77)+($S77*Utslippsfaktorer!G$170) -> 0 | AP77: =((IF($P77="",0,VLOOKUP($P77,Utslippsfaktorer!$C$9:$I$493,Utslippsfaktorer!H$5,FALSE)))*$R77)+($S77*Utslippsfaktorer!H$170) -> 0 | AQ77: =((IF($P77="",0,VLOOKUP($P77,Utslippsfaktorer!$C$9:$I$493,Utslippsfaktorer!I$5,FALSE)))*$R77)+($S77*Utslippsfaktorer!I$170) -> 0 | AR77: 0 | AS77: 0 | AT77: 0 | AU77: 0 | AV77: 0 | AX77: =$J77*Utslippsfaktorer!E$154 -> 0 | AY77: =$J77*Utslippsfaktorer!F$154 -> 0 | AZ77: =$J77*Utslippsfaktorer!G$154 -> 0 | BA77: =$J77*Utslippsfaktorer!H$154 -> 0 | BB77: =$J77*Utslippsfaktorer!I$154 -> 0 | BC77: =$O77*Utslippsfaktorer!E$178 -> 0 | BD77: =$O77*Utslippsfaktorer!F$178 -> 0 | BE77: =$O77*Utslippsfaktorer!G$178 -> 0 | BF77: =$O77*Utslippsfaktorer!H$178 -> 0 | BG77: =$O77*Utslippsfaktorer!I$178 -> 0 | BH77: =((IF($P77="",0,VLOOKUP($P77,Utslippsfaktorer!$C$9:$I$493,Utslippsfaktorer!E$5,FALSE)))*$T77)+($U77*Utslippsfaktorer!E$170) -> 0 | BI77: =((IF($P77="",0,VLOOKUP($P77,Utslippsfaktorer!$C$9:$I$493,Utslippsfaktorer!F$5,FALSE)))*$T77)+($U77*Utslippsfaktorer!F$170) -> 0 | BJ77: =((IF($P77="",0,VLOOKUP($P77,Utslippsfaktorer!$C$9:$I$493,Utslippsfaktorer!G$5,FALSE)))*$T77)+($U77*Utslippsfaktorer!G$170) -> 0 | BK77: =((IF($P77="",0,VLOOKUP($P77,Utslippsfaktorer!$C$9:$I$493,Utslippsfaktorer!H$5,FALSE)))*$T77)+($U77*Utslippsfaktorer!H$170) -> 0 | BL77: =((IF($P77="",0,VLOOKUP($P77,Utslippsfaktorer!$C$9:$I$493,Utslippsfaktorer!I$5,FALSE)))*$T77)+($U77*Utslippsfaktorer!I$170) -> 0 | BM77: 0 | BN77: 0 | BO77: 0 | BP77: 0 | BQ77: 0
B78: 21.25 | D78: Rydding og fjerning av buskas og hogstavfall | F78: m2 | I78: =E78*0.1*Beregningsfaktorer!M46 -> 0 | K78: Felling/rydding av skog | L78: =E78*0.1*Beregningsfaktorer!M$13*Beregningsfaktorer!C$255 -> 0 | M78: antar transport til depot | Q78: =IF(P78="","",VLOOKUP(P78,Utslippsfaktorer!$C$9:$D$460,2,FALSE)) ->  | S78: =IF((OR(F78=Nedtrekksmenyer!$F$4,P78="")),0,VLOOKUP(P78,Beregningsfaktorer!$L$73:$Q$352,Beregningsfaktorer!$Q$73,FALSE))*R78 -> 0 | U78: =IF((OR(F78=Nedtrekksmenyer!$F$4,P78="")),0,VLOOKUP(P78,Beregningsfaktorer!$L$73:$Q$352,Beregningsfaktorer!$Q$73,FALSE))*T78 -> 0 | V78: =IF(P78="","",VLOOKUP(P78,Utslippsfaktorer!$C$9:$AM$459,Utslippsfaktorer!$AM$5,FALSE)) ->  | X78: =$I78*Utslippsfaktorer!E$154 -> 0 | Y78: =$I78*Utslippsfaktorer!F$154 -> 0 | Z78: =$I78*Utslippsfaktorer!G$154 -> 0 | AA78: =$I78*Utslippsfaktorer!H$154 -> 0 | AB78: =$I78*Utslippsfaktorer!I$154 -> 0 | AC78: =$L78*Utslippsfaktorer!E$171*Utslippsfaktorer!$AP$171 -> 0 | AD78: =$L78*Utslippsfaktorer!F$171*Utslippsfaktorer!$AP$171 -> 0 | AE78: =$L78*Utslippsfaktorer!G$171*Utslippsfaktorer!$AP$171 -> 0 | AF78: =$L78*Utslippsfaktorer!H$171*Utslippsfaktorer!$AP$171 -> 0 | AG78: =$L78*Utslippsfaktorer!I$171*Utslippsfaktorer!$AP$171 -> 0 | AH78: =$N78*Utslippsfaktorer!E$177 -> 0 | AI78: =$N78*Utslippsfaktorer!F$177 -> 0 | AJ78: =$N78*Utslippsfaktorer!G$177 -> 0 | AK78: =$N78*Utslippsfaktorer!H$177 -> 0 | AL78: =$N78*Utslippsfaktorer!I$177 -> 0 | AM78: =((IF($P78="",0,VLOOKUP($P78,Utslippsfaktorer!$C$9:$I$493,Utslippsfaktorer!E$5,FALSE)))*$R78)+($S78*Utslippsfaktorer!E$170) -> 0 | AN78: =((IF($P78="",0,VLOOKUP($P78,Utslippsfaktorer!$C$9:$I$493,Utslippsfaktorer!F$5,FALSE)))*$R78)+($S78*Utslippsfaktorer!F$170) -> 0 | AO78: =((IF($P78="",0,VLOOKUP($P78,Utslippsfaktorer!$C$9:$I$493,Utslippsfaktorer!G$5,FALSE)))*$R78)+($S78*Utslippsfaktorer!G$170) -> 0 | AP78: =((IF($P78="",0,VLOOKUP($P78,Utslippsfaktorer!$C$9:$I$493,Utslippsfaktorer!H$5,FALSE)))*$R78)+($S78*Utslippsfaktorer!H$170) -> 0 | AQ78: =((IF($P78="",0,VLOOKUP($P78,Utslippsfaktorer!$C$9:$I$493,Utslippsfaktorer!I$5,FALSE)))*$R78)+($S78*Utslippsfaktorer!I$170) -> 0 | AR78: 0 | AS78: 0 | AT78: 0 | AU78: 0 | AV78: 0 | AX78: =$J78*Utslippsfaktorer!E$154 -> 0 | AY78: =$J78*Utslippsfaktorer!F$154 -> 0 | AZ78: =$J78*Utslippsfaktorer!G$154 -> 0 | BA78: =$J78*Utslippsfaktorer!H$154 -> 0 | BB78: =$J78*Utslippsfaktorer!I$154 -> 0 | BC78: =$O78*Utslippsfaktorer!E$178 -> 0 | BD78: =$O78*Utslippsfaktorer!F$178 -> 0 | BE78: =$O78*Utslippsfaktorer!G$178 -> 0 | BF78: =$O78*Utslippsfaktorer!H$178 -> 0 | BG78: =$O78*Utslippsfaktorer!I$178 -> 0 | BH78: =((IF($P78="",0,VLOOKUP($P78,Utslippsfaktorer!$C$9:$I$493,Utslippsfaktorer!E$5,FALSE)))*$T78)+($U78*Utslippsfaktorer!E$170) -> 0 | BI78: =((IF($P78="",0,VLOOKUP($P78,Utslippsfaktorer!$C$9:$I$493,Utslippsfaktorer!F$5,FALSE)))*$T78)+($U78*Utslippsfaktorer!F$170) -> 0 | BJ78: =((IF($P78="",0,VLOOKUP($P78,Utslippsfaktorer!$C$9:$I$493,Utslippsfaktorer!G$5,FALSE)))*$T78)+($U78*Utslippsfaktorer!G$170) -> 0 | BK78: =((IF($P78="",0,VLOOKUP($P78,Utslippsfaktorer!$C$9:$I$493,Utslippsfaktorer!H$5,FALSE)))*$T78)+($U78*Utslippsfaktorer!H$170) -> 0 | BL78: =((IF($P78="",0,VLOOKUP($P78,Utslippsfaktorer!$C$9:$I$493,Utslippsfaktorer!I$5,FALSE)))*$T78)+($U78*Utslippsfaktorer!I$170) -> 0 | BM78: 0 | BN78: 0 | BO78: 0 | BP78: 0 | BQ78: 0
B79: 21.31 | C79: Velg type vegetasjon | D79: Avtaging av vegetasjonsdekke, permanent arealbeslag | F79: fm3 | I79: =E79*Beregningsfaktorer!$M$48*Beregningsfaktorer!$AL$32 -> 0 | K79: Rensk av skjæring | L79: =E79*Beregningsfaktorer!M13*Beregningsfaktorer!C250*Beregningsfaktorer!AL32 -> 0 | Q79: =IF(P79="","",VLOOKUP(P79,Utslippsfaktorer!$C$9:$D$460,2,FALSE)) ->  | S79: =IF((OR(F79=Nedtrekksmenyer!$F$4,P79="")),0,VLOOKUP(P79,Beregningsfaktorer!$L$73:$Q$352,Beregningsfaktorer!$Q$73,FALSE))*R79 -> 0 | U79: =IF((OR(F79=Nedtrekksmenyer!$F$4,P79="")),0,VLOOKUP(P79,Beregningsfaktorer!$L$73:$Q$352,Beregningsfaktorer!$Q$73,FALSE))*T79 -> 0 | V79: =IF(P79="","",VLOOKUP(P79,Utslippsfaktorer!$C$9:$AM$459,Utslippsfaktorer!$AM$5,FALSE)) ->  | X79: =$I79*Utslippsfaktorer!E$154 -> 0 | Y79: =$I79*Utslippsfaktorer!F$154 -> 0 | Z79: =$I79*Utslippsfaktorer!G$154 -> 0 | AA79: =$I79*Utslippsfaktorer!H$154 -> 0 | AB79: =$I79*Utslippsfaktorer!I$154 -> 0 | AC79: =$L79*Utslippsfaktorer!E$171*Utslippsfaktorer!$AP$171 -> 0 | AD79: =$L79*Utslippsfaktorer!F$171*Utslippsfaktorer!$AP$171 -> 0 | AE79: =$L79*Utslippsfaktorer!G$171*Utslippsfaktorer!$AP$171 -> 0 | AF79: =$L79*Utslippsfaktorer!H$171*Utslippsfaktorer!$AP$171 -> 0 | AG79: =$L79*Utslippsfaktorer!I$171*Utslippsfaktorer!$AP$171 -> 0 | AH79: =$N79*Utslippsfaktorer!E$177 -> 0 | AI79: =$N79*Utslippsfaktorer!F$177 -> 0 | AJ79: =$N79*Utslippsfaktorer!G$177 -> 0 | AK79: =$N79*Utslippsfaktorer!H$177 -> 0 | AL79: =$N79*Utslippsfaktorer!I$177 -> 0 | AM79: =((IF($P79="",0,VLOOKUP($P79,Utslippsfaktorer!$C$9:$I$493,Utslippsfaktorer!E$5,FALSE)))*$R79)+($S79*Utslippsfaktorer!E$170) -> 0 | AN79: =((IF($P79="",0,VLOOKUP($P79,Utslippsfaktorer!$C$9:$I$493,Utslippsfaktorer!F$5,FALSE)))*$R79)+($S79*Utslippsfaktorer!F$170) -> 0 | AO79: =((IF($P79="",0,VLOOKUP($P79,Utslippsfaktorer!$C$9:$I$493,Utslippsfaktorer!G$5,FALSE)))*$R79)+($S79*Utslippsfaktorer!G$170) -> 0 | AP79: =((IF($P79="",0,VLOOKUP($P79,Utslippsfaktorer!$C$9:$I$493,Utslippsfaktorer!H$5,FALSE)))*$R79)+($S79*Utslippsfaktorer!H$170) -> 0 | AQ79: =((IF($P79="",0,VLOOKUP($P79,Utslippsfaktorer!$C$9:$I$493,Utslippsfaktorer!I$5,FALSE)))*$R79)+($S79*Utslippsfaktorer!I$170) -> 0 | AR79: 0 | AS79: 0 | AT79: 0 | AU79: 0 | AV79: 0 | AX79: =$J79*Utslippsfaktorer!E$154 -> 0 | AY79: =$J79*Utslippsfaktorer!F$154 -> 0 | AZ79: =$J79*Utslippsfaktorer!G$154 -> 0 | BA79: =$J79*Utslippsfaktorer!H$154 -> 0 | BB79: =$J79*Utslippsfaktorer!I$154 -> 0 | BC79: =$O79*Utslippsfaktorer!E$178 -> 0 | BD79: =$O79*Utslippsfaktorer!F$178 -> 0 | BE79: =$O79*Utslippsfaktorer!G$178 -> 0 | BF79: =$O79*Utslippsfaktorer!H$178 -> 0 | BG79: =$O79*Utslippsfaktorer!I$178 -> 0 | BH79: =((IF($P79="",0,VLOOKUP($P79,Utslippsfaktorer!$C$9:$I$493,Utslippsfaktorer!E$5,FALSE)))*$T79)+($U79*Utslippsfaktorer!E$170) -> 0 | BI79: =((IF($P79="",0,VLOOKUP($P79,Utslippsfaktorer!$C$9:$I$493,Utslippsfaktorer!F$5,FALSE)))*$T79)+($U79*Utslippsfaktorer!F$170) -> 0 | BJ79: =((IF($P79="",0,VLOOKUP($P79,Utslippsfaktorer!$C$9:$I$493,Utslippsfaktorer!G$5,FALSE)))*$T79)+($U79*Utslippsfaktorer!G$170) -> 0 | BK79: =((IF($P79="",0,VLOOKUP($P79,Utslippsfaktorer!$C$9:$I$493,Utslippsfaktorer!H$5,FALSE)))*$T79)+($U79*Utslippsfaktorer!H$170) -> 0 | BL79: =((IF($P79="",0,VLOOKUP($P79,Utslippsfaktorer!$C$9:$I$493,Utslippsfaktorer!I$5,FALSE)))*$T79)+($U79*Utslippsfaktorer!I$170) -> 0 | BM79: 0 | BN79: 0 | BO79: 0 | BP79: 0 | BQ79: 0
B80: 21.31 | C80: Velg type vegetasjon | D80: Avtaging av vegetasjonsdekke, midlertidig arealbeslag | F80: fm3 | I80: =E80*Beregningsfaktorer!$M$48*Beregningsfaktorer!$AL$32 -> 0 | K80: Rensk av skjæring | L80: =E80*Beregningsfaktorer!M13*Beregningsfaktorer!C250*Beregningsfaktorer!AL32 -> 0 | S80: =IF((OR(F80=Nedtrekksmenyer!$F$4,P80="")),0,VLOOKUP(P80,Beregningsfaktorer!$L$73:$Q$352,Beregningsfaktorer!$Q$73,FALSE))*R80 -> 0 | U80: =IF((OR(F80=Nedtrekksmenyer!$F$4,P80="")),0,VLOOKUP(P80,Beregningsfaktorer!$L$73:$Q$352,Beregningsfaktorer!$Q$73,FALSE))*T80 -> 0 | X80: =$I80*Utslippsfaktorer!E$154 -> 0 | Y80: =$I80*Utslippsfaktorer!F$154 -> 0 | Z80: =$I80*Utslippsfaktorer!G$154 -> 0 | AA80: =$I80*Utslippsfaktorer!H$154 -> 0 | AB80: =$I80*Utslippsfaktorer!I$154 -> 0 | AC80: =$L80*Utslippsfaktorer!E$171*Utslippsfaktorer!$AP$171 -> 0 | AD80: =$L80*Utslippsfaktorer!F$171*Utslippsfaktorer!$AP$171 -> 0 | AE80: =$L80*Utslippsfaktorer!G$171*Utslippsfaktorer!$AP$171 -> 0 | AF80: =$L80*Utslippsfaktorer!H$171*Utslippsfaktorer!$AP$171 -> 0 | AG80: =$L80*Utslippsfaktorer!I$171*Utslippsfaktorer!$AP$171 -> 0 | AH80: =$N80*Utslippsfaktorer!E$177 -> 0 | AI80: =$N80*Utslippsfaktorer!F$177 -> 0 | AJ80: =$N80*Utslippsfaktorer!G$177 -> 0 | AK80: =$N80*Utslippsfaktorer!H$177 -> 0 | AL80: =$N80*Utslippsfaktorer!I$177 -> 0 | AM80: =((IF($P80="",0,VLOOKUP($P80,Utslippsfaktorer!$C$9:$I$493,Utslippsfaktorer!E$5,FALSE)))*$R80)+($S80*Utslippsfaktorer!E$170) -> 0 | AN80: =((IF($P80="",0,VLOOKUP($P80,Utslippsfaktorer!$C$9:$I$493,Utslippsfaktorer!F$5,FALSE)))*$R80)+($S80*Utslippsfaktorer!F$170) -> 0 | AO80: =((IF($P80="",0,VLOOKUP($P80,Utslippsfaktorer!$C$9:$I$493,Utslippsfaktorer!G$5,FALSE)))*$R80)+($S80*Utslippsfaktorer!G$170) -> 0 | AP80: =((IF($P80="",0,VLOOKUP($P80,Utslippsfaktorer!$C$9:$I$493,Utslippsfaktorer!H$5,FALSE)))*$R80)+($S80*Utslippsfaktorer!H$170) -> 0 | AQ80: =((IF($P80="",0,VLOOKUP($P80,Utslippsfaktorer!$C$9:$I$493,Utslippsfaktorer!I$5,FALSE)))*$R80)+($S80*Utslippsfaktorer!I$170) -> 0 | AR80: =X80+AC80+AH80+AM80 -> 0 | AS80: =Y80+AD80+AI80+AN80 -> 0 | AT80: =Z80+AE80+AJ80+AO80 -> 0 | AU80: =AA80+AF80+AK80+AP80 -> 0 | AV80: =AB80+AG80+AL80+AQ80 -> 0 | AX80: =$J80*Utslippsfaktorer!E$154 -> 0 | AY80: =$J80*Utslippsfaktorer!F$154 -> 0 | AZ80: =$J80*Utslippsfaktorer!G$154 -> 0 | BA80: =$J80*Utslippsfaktorer!H$154 -> 0 | BB80: =$J80*Utslippsfaktorer!I$154 -> 0 | BC80: =$O80*Utslippsfaktorer!E$178 -> 0 | BD80: =$O80*Utslippsfaktorer!F$178 -> 0 | BE80: =$O80*Utslippsfaktorer!G$178 -> 0 | BF80: =$O80*Utslippsfaktorer!H$178 -> 0 | BG80: =$O80*Utslippsfaktorer!I$178 -> 0 | BH80: =((IF($P80="",0,VLOOKUP($P80,Utslippsfaktorer!$C$9:$I$493,Utslippsfaktorer!E$5,FALSE)))*$T80)+($U80*Utslippsfaktorer!E$170) -> 0 | BI80: =((IF($P80="",0,VLOOKUP($P80,Utslippsfaktorer!$C$9:$I$493,Utslippsfaktorer!F$5,FALSE)))*$T80)+($U80*Utslippsfaktorer!F$170) -> 0 | BJ80: =((IF($P80="",0,VLOOKUP($P80,Utslippsfaktorer!$C$9:$I$493,Utslippsfaktorer!G$5,FALSE)))*$T80)+($U80*Utslippsfaktorer!G$170) -> 0 | BK80: =((IF($P80="",0,VLOOKUP($P80,Utslippsfaktorer!$C$9:$I$493,Utslippsfaktorer!H$5,FALSE)))*$T80)+($U80*Utslippsfaktorer!H$170) -> 0 | BL80: =((IF($P80="",0,VLOOKUP($P80,Utslippsfaktorer!$C$9:$I$493,Utslippsfaktorer!I$5,FALSE)))*$T80)+($U80*Utslippsfaktorer!I$170) -> 0 | BM80: =AX80+BC80+BH80 -> 0 | BN80: =AY80+BD80+BI80 -> 0 | BO80: =AZ80+BE80+BJ80 -> 0 | BP80: =BA80+BF80+BK80 -> 0 | BQ80: =BB80+BG80+BL80 -> 0
B81: 21.32 | D81: Avtaging av matjord, permanent arealbeslag | F81: fm3 | I81: =E81*Beregningsfaktorer!$M$48*Beregningsfaktorer!$AL$32 -> 0 | K81: Rensk av skjæring | L81: =E81*Beregningsfaktorer!M13*Beregningsfaktorer!C250*Beregningsfaktorer!AL32 -> 0 | M81: antar transport til depot | Q81: =IF(P81="","",VLOOKUP(P81,Utslippsfaktorer!$C$9:$D$460,2,FALSE)) ->  | S81: =IF((OR(F81=Nedtrekksmenyer!$F$4,P81="")),0,VLOOKUP(P81,Beregningsfaktorer!$L$73:$Q$352,Beregningsfaktorer!$Q$73,FALSE))*R81 -> 0 | U81: =IF((OR(F81=Nedtrekksmenyer!$F$4,P81="")),0,VLOOKUP(P81,Beregningsfaktorer!$L$73:$Q$352,Beregningsfaktorer!$Q$73,FALSE))*T81 -> 0 | V81: =IF(P81="","",VLOOKUP(P81,Utslippsfaktorer!$C$9:$AM$459,Utslippsfaktorer!$AM$5,FALSE)) ->  | X81: =$I81*Utslippsfaktorer!E$154 -> 0 | Y81: =$I81*Utslippsfaktorer!F$154 -> 0 | Z81: =$I81*Utslippsfaktorer!G$154 -> 0 | AA81: =$I81*Utslippsfaktorer!H$154 -> 0 | AB81: =$I81*Utslippsfaktorer!I$154 -> 0 | AC81: =$L81*Utslippsfaktorer!E$171*Utslippsfaktorer!$AP$171 -> 0 | AD81: =$L81*Utslippsfaktorer!F$171*Utslippsfaktorer!$AP$171 -> 0 | AE81: =$L81*Utslippsfaktorer!G$171*Utslippsfaktorer!$AP$171 -> 0 | AF81: =$L81*Utslippsfaktorer!H$171*Utslippsfaktorer!$AP$171 -> 0 | AG81: =$L81*Utslippsfaktorer!I$171*Utslippsfaktorer!$AP$171 -> 0 | AH81: =$N81*Utslippsfaktorer!E$177 -> 0 | AI81: =$N81*Utslippsfaktorer!F$177 -> 0 | AJ81: =$N81*Utslippsfaktorer!G$177 -> 0 | AK81: =$N81*Utslippsfaktorer!H$177 -> 0 | AL81: =$N81*Utslippsfaktorer!I$177 -> 0 | AM81: =((IF($P81="",0,VLOOKUP($P81,Utslippsfaktorer!$C$9:$I$493,Utslippsfaktorer!E$5,FALSE)))*$R81)+($S81*Utslippsfaktorer!E$170) -> 0 | AN81: =((IF($P81="",0,VLOOKUP($P81,Utslippsfaktorer!$C$9:$I$493,Utslippsfaktorer!F$5,FALSE)))*$R81)+($S81*Utslippsfaktorer!F$170) -> 0 | AO81: =((IF($P81="",0,VLOOKUP($P81,Utslippsfaktorer!$C$9:$I$493,Utslippsfaktorer!G$5,FALSE)))*$R81)+($S81*Utslippsfaktorer!G$170) -> 0 | AP81: =((IF($P81="",0,VLOOKUP($P81,Utslippsfaktorer!$C$9:$I$493,Utslippsfaktorer!H$5,FALSE)))*$R81)+($S81*Utslippsfaktorer!H$170) -> 0 | AQ81: =((IF($P81="",0,VLOOKUP($P81,Utslippsfaktorer!$C$9:$I$493,Utslippsfaktorer!I$5,FALSE)))*$R81)+($S81*Utslippsfaktorer!I$170) -> 0 | AR81: 0 | AS81: 0 | AT81: 0 | AU81: 0 | AV81: 0 | AX81: =$J81*Utslippsfaktorer!E$154 -> 0 | AY81: =$J81*Utslippsfaktorer!F$154 -> 0 | AZ81: =$J81*Utslippsfaktorer!G$154 -> 0 | BA81: =$J81*Utslippsfaktorer!H$154 -> 0 | BB81: =$J81*Utslippsfaktorer!I$154 -> 0 | BC81: =$O81*Utslippsfaktorer!E$178 -> 0 | BD81: =$O81*Utslippsfaktorer!F$178 -> 0 | BE81: =$O81*Utslippsfaktorer!G$178 -> 0 | BF81: =$O81*Utslippsfaktorer!H$178 -> 0 | BG81: =$O81*Utslippsfaktorer!I$178 -> 0 | BH81: =((IF($P81="",0,VLOOKUP($P81,Utslippsfaktorer!$C$9:$I$493,Utslippsfaktorer!E$5,FALSE)))*$T81)+($U81*Utslippsfaktorer!E$170) -> 0 | BI81: =((IF($P81="",0,VLOOKUP($P81,Utslippsfaktorer!$C$9:$I$493,Utslippsfaktorer!F$5,FALSE)))*$T81)+($U81*Utslippsfaktorer!F$170) -> 0 | BJ81: =((IF($P81="",0,VLOOKUP($P81,Utslippsfaktorer!$C$9:$I$493,Utslippsfaktorer!G$5,FALSE)))*$T81)+($U81*Utslippsfaktorer!G$170) -> 0 | BK81: =((IF($P81="",0,VLOOKUP($P81,Utslippsfaktorer!$C$9:$I$493,Utslippsfaktorer!H$5,FALSE)))*$T81)+($U81*Utslippsfaktorer!H$170) -> 0 | BL81: =((IF($P81="",0,VLOOKUP($P81,Utslippsfaktorer!$C$9:$I$493,Utslippsfaktorer!I$5,FALSE)))*$T81)+($U81*Utslippsfaktorer!I$170) -> 0 | BM81: 0 | BN81: 0 | BO81: 0 | BP81: 0 | BQ81: 0
B82: 21.32 | D82: Avtaging av matjord, midlertidig arealbeslag | F82: fm3 | I82: =E82*Beregningsfaktorer!$M$48*Beregningsfaktorer!$AL$32 -> 0 | K82: Rensk av skjæring | L82: =E82*Beregningsfaktorer!M13*Beregningsfaktorer!C250*Beregningsfaktorer!AL32 -> 0 | M82: antar transport til depot | S82: =IF((OR(F82=Nedtrekksmenyer!$F$4,P82="")),0,VLOOKUP(P82,Beregningsfaktorer!$L$73:$Q$352,Beregningsfaktorer!$Q$73,FALSE))*R82 -> 0 | U82: =IF((OR(F82=Nedtrekksmenyer!$F$4,P82="")),0,VLOOKUP(P82,Beregningsfaktorer!$L$73:$Q$352,Beregningsfaktorer!$Q$73,FALSE))*T82 -> 0 | X82: =$I82*Utslippsfaktorer!E$154 -> 0 | Y82: =$I82*Utslippsfaktorer!F$154 -> 0 | Z82: =$I82*Utslippsfaktorer!G$154 -> 0 | AA82: =$I82*Utslippsfaktorer!H$154 -> 0 | AB82: =$I82*Utslippsfaktorer!I$154 -> 0 | AC82: =$L82*Utslippsfaktorer!E$171*Utslippsfaktorer!$AP$171 -> 0 | AD82: =$L82*Utslippsfaktorer!F$171*Utslippsfaktorer!$AP$171 -> 0 | AE82: =$L82*Utslippsfaktorer!G$171*Utslippsfaktorer!$AP$171 -> 0 | AF82: =$L82*Utslippsfaktorer!H$171*Utslippsfaktorer!$AP$171 -> 0 | AG82: =$L82*Utslippsfaktorer!I$171*Utslippsfaktorer!$AP$171 -> 0 | AH82: =$N82*Utslippsfaktorer!E$177 -> 0 | AI82: =$N82*Utslippsfaktorer!F$177 -> 0 | AJ82: =$N82*Utslippsfaktorer!G$177 -> 0 | AK82: =$N82*Utslippsfaktorer!H$177 -> 0 | AL82: =$N82*Utslippsfaktorer!I$177 -> 0 | AM82: =((IF($P82="",0,VLOOKUP($P82,Utslippsfaktorer!$C$9:$I$493,Utslippsfaktorer!E$5,FALSE)))*$R82)+($S82*Utslippsfaktorer!E$170) -> 0 | AN82: =((IF($P82="",0,VLOOKUP($P82,Utslippsfaktorer!$C$9:$I$493,Utslippsfaktorer!F$5,FALSE)))*$R82)+($S82*Utslippsfaktorer!F$170) -> 0 | AO82: =((IF($P82="",0,VLOOKUP($P82,Utslippsfaktorer!$C$9:$I$493,Utslippsfaktorer!G$5,FALSE)))*$R82)+($S82*Utslippsfaktorer!G$170) -> 0 | AP82: =((IF($P82="",0,VLOOKUP($P82,Utslippsfaktorer!$C$9:$I$493,Utslippsfaktorer!H$5,FALSE)))*$R82)+($S82*Utslippsfaktorer!H$170) -> 0 | AQ82: =((IF($P82="",0,VLOOKUP($P82,Utslippsfaktorer!$C$9:$I$493,Utslippsfaktorer!I$5,FALSE)))*$R82)+($S82*Utslippsfaktorer!I$170) -> 0 | AR82: =X82+AC82+AH82+AM82 -> 0 | AS82: =Y82+AD82+AI82+AN82 -> 0 | AT82: =Z82+AE82+AJ82+AO82 -> 0 | AU82: =AA82+AF82+AK82+AP82 -> 0 | AV82: =AB82+AG82+AL82+AQ82 -> 0 | AX82: =$J82*Utslippsfaktorer!E$154 -> 0 | AY82: =$J82*Utslippsfaktorer!F$154 -> 0 | AZ82: =$J82*Utslippsfaktorer!G$154 -> 0 | BA82: =$J82*Utslippsfaktorer!H$154 -> 0 | BB82: =$J82*Utslippsfaktorer!I$154 -> 0 | BC82: =$O82*Utslippsfaktorer!E$178 -> 0 | BD82: =$O82*Utslippsfaktorer!F$178 -> 0 | BE82: =$O82*Utslippsfaktorer!G$178 -> 0 | BF82: =$O82*Utslippsfaktorer!H$178 -> 0 | BG82: =$O82*Utslippsfaktorer!I$178 -> 0 | BH82: =((IF($P82="",0,VLOOKUP($P82,Utslippsfaktorer!$C$9:$I$493,Utslippsfaktorer!E$5,FALSE)))*$T82)+($U82*Utslippsfaktorer!E$170) -> 0 | BI82: =((IF($P82="",0,VLOOKUP($P82,Utslippsfaktorer!$C$9:$I$493,Utslippsfaktorer!F$5,FALSE)))*$T82)+($U82*Utslippsfaktorer!F$170) -> 0 | BJ82: =((IF($P82="",0,VLOOKUP($P82,Utslippsfaktorer!$C$9:$I$493,Utslippsfaktorer!G$5,FALSE)))*$T82)+($U82*Utslippsfaktorer!G$170) -> 0 | BK82: =((IF($P82="",0,VLOOKUP($P82,Utslippsfaktorer!$C$9:$I$493,Utslippsfaktorer!H$5,FALSE)))*$T82)+($U82*Utslippsfaktorer!H$170) -> 0 | BL82: =((IF($P82="",0,VLOOKUP($P82,Utslippsfaktorer!$C$9:$I$493,Utslippsfaktorer!I$5,FALSE)))*$T82)+($U82*Utslippsfaktorer!I$170) -> 0 | BM82: =AX82+BC82+BH82 -> 0 | BN82: =AY82+BD82+BI82 -> 0 | BO82: =AZ82+BE82+BJ82 -> 0 | BP82: =BA82+BF82+BK82 -> 0 | BQ82: =BB82+BG82+BL82 -> 0
B83: 21.4 | D83: Rensk av bergoverflate | F83: m2 | I83: =E83*0.05*Beregningsfaktorer!M48 -> 0 | K83: Rensk av skjæring | L83: =E83*0.1*Beregningsfaktorer!M13*Beregningsfaktorer!C250 -> 0 | M83: antar 0,1 m tykkelse | Q83: =IF(P83="","",VLOOKUP(P83,Utslippsfaktorer!$C$9:$D$460,2,FALSE)) ->  | S83: =IF((OR(F83=Nedtrekksmenyer!$F$4,P83="")),0,VLOOKUP(P83,Beregningsfaktorer!$L$73:$Q$352,Beregningsfaktorer!$Q$73,FALSE))*R83 -> 0 | U83: =IF((OR(F83=Nedtrekksmenyer!$F$4,P83="")),0,VLOOKUP(P83,Beregningsfaktorer!$L$73:$Q$352,Beregningsfaktorer!$Q$73,FALSE))*T83 -> 0 | V83: =IF(P83="","",VLOOKUP(P83,Utslippsfaktorer!$C$9:$AM$459,Utslippsfaktorer!$AM$5,FALSE)) ->  | X83: =$I83*Utslippsfaktorer!E$154 -> 0 | Y83: =$I83*Utslippsfaktorer!F$154 -> 0 | Z83: =$I83*Utslippsfaktorer!G$154 -> 0 | AA83: =$I83*Utslippsfaktorer!H$154 -> 0 | AB83: =$I83*Utslippsfaktorer!I$154 -> 0 | AC83: =$L83*Utslippsfaktorer!E$171*Utslippsfaktorer!$AP$171 -> 0 | AD83: =$L83*Utslippsfaktorer!F$171*Utslippsfaktorer!$AP$171 -> 0 | AE83: =$L83*Utslippsfaktorer!G$171*Utslippsfaktorer!$AP$171 -> 0 | AF83: =$L83*Utslippsfaktorer!H$171*Utslippsfaktorer!$AP$171 -> 0 | AG83: =$L83*Utslippsfaktorer!I$171*Utslippsfaktorer!$AP$171 -> 0 | AH83: =$N83*Utslippsfaktorer!E$177 -> 0 | AI83: =$N83*Utslippsfaktorer!F$177 -> 0 | AJ83: =$N83*Utslippsfaktorer!G$177 -> 0 | AK83: =$N83*Utslippsfaktorer!H$177 -> 0 | AL83: =$N83*Utslippsfaktorer!I$177 -> 0 | AM83: =((IF($P83="",0,VLOOKUP($P83,Utslippsfaktorer!$C$9:$I$493,Utslippsfaktorer!E$5,FALSE)))*$R83)+($S83*Utslippsfaktorer!E$170) -> 0 | AN83: =((IF($P83="",0,VLOOKUP($P83,Utslippsfaktorer!$C$9:$I$493,Utslippsfaktorer!F$5,FALSE)))*$R83)+($S83*Utslippsfaktorer!F$170) -> 0 | AO83: =((IF($P83="",0,VLOOKUP($P83,Utslippsfaktorer!$C$9:$I$493,Utslippsfaktorer!G$5,FALSE)))*$R83)+($S83*Utslippsfaktorer!G$170) -> 0 | AP83: =((IF($P83="",0,VLOOKUP($P83,Utslippsfaktorer!$C$9:$I$493,Utslippsfaktorer!H$5,FALSE)))*$R83)+($S83*Utslippsfaktorer!H$170) -> 0 | AQ83: =((IF($P83="",0,VLOOKUP($P83,Utslippsfaktorer!$C$9:$I$493,Utslippsfaktorer!I$5,FALSE)))*$R83)+($S83*Utslippsfaktorer!I$170) -> 0 | AR83: 0 | AS83: 0 | AT83: 0 | AU83: 0 | AV83: 0 | AX83: =$J83*Utslippsfaktorer!E$154 -> 0 | AY83: =$J83*Utslippsfaktorer!F$154 -> 0 | AZ83: =$J83*Utslippsfaktorer!G$154 -> 0 | BA83: =$J83*Utslippsfaktorer!H$154 -> 0 | BB83: =$J83*Utslippsfaktorer!I$154 -> 0 | BC83: =$O83*Utslippsfaktorer!E$178 -> 0 | BD83: =$O83*Utslippsfaktorer!F$178 -> 0 | BE83: =$O83*Utslippsfaktorer!G$178 -> 0 | BF83: =$O83*Utslippsfaktorer!H$178 -> 0 | BG83: =$O83*Utslippsfaktorer!I$178 -> 0 | BH83: =((IF($P83="",0,VLOOKUP($P83,Utslippsfaktorer!$C$9:$I$493,Utslippsfaktorer!E$5,FALSE)))*$T83)+($U83*Utslippsfaktorer!E$170) -> 0 | BI83: =((IF($P83="",0,VLOOKUP($P83,Utslippsfaktorer!$C$9:$I$493,Utslippsfaktorer!F$5,FALSE)))*$T83)+($U83*Utslippsfaktorer!F$170) -> 0 | BJ83: =((IF($P83="",0,VLOOKUP($P83,Utslippsfaktorer!$C$9:$I$493,Utslippsfaktorer!G$5,FALSE)))*$T83)+($U83*Utslippsfaktorer!G$170) -> 0 | BK83: =((IF($P83="",0,VLOOKUP($P83,Utslippsfaktorer!$C$9:$I$493,Utslippsfaktorer!H$5,FALSE)))*$T83)+($U83*Utslippsfaktorer!H$170) -> 0 | BL83: =((IF($P83="",0,VLOOKUP($P83,Utslippsfaktorer!$C$9:$I$493,Utslippsfaktorer!I$5,FALSE)))*$T83)+($U83*Utslippsfaktorer!I$170) -> 0 | BM83: 0 | BN83: 0 | BO83: 0 | BP83: 0 | BQ83: 0
B85: 22: SPRENGNING I DAGEN
B86: 22.1 | C86: Velg grunnforhold | D86: Sprengning i linjen | F86: pfm3 | I86: =E86*Beregningsfaktorer!M49 -> 0 | K86: Drilling, sprengning i dagen | P86: Sprengstoff | Q86: =IF(P86="","",VLOOKUP(P86,Utslippsfaktorer!$C$9:$D$460,2,FALSE)) -> kg | R86: =E86*IF(OR(C86=Nedtrekksmenyer!$B$97,C86=Nedtrekksmenyer!$B$100),Beregningsfaktorer!$M$22,IF(C86=Nedtrekksmenyer!$B$98,Beregningsfaktorer!$M$20,Beregningsfaktorer!$M$21)) -> 0 | S86: =IF((OR(F86=Nedtrekksmenyer!$F$4,P86="")),0,VLOOKUP(P86,Beregningsfaktorer!$L$73:$Q$352,Beregningsfaktorer!$Q$73,FALSE))*R86 -> 0 | U86: =IF((OR(F86=Nedtrekksmenyer!$F$4,P86="")),0,VLOOKUP(P86,Beregningsfaktorer!$L$73:$Q$352,Beregningsfaktorer!$Q$73,FALSE))*T86 -> 0 | V86: =IF(P86="","",VLOOKUP(P86,Utslippsfaktorer!$C$9:$AM$459,Utslippsfaktorer!$AM$5,FALSE)) -> Sprengstoff | X86: =$I86*Utslippsfaktorer!E$154 -> 0 | Y86: =$I86*Utslippsfaktorer!F$154 -> 0 | Z86: =$I86*Utslippsfaktorer!G$154 -> 0 | AA86: =$I86*Utslippsfaktorer!H$154 -> 0 | AB86: =$I86*Utslippsfaktorer!I$154 -> 0 | AC86: =$L86*Utslippsfaktorer!E$171*Utslippsfaktorer!$AP$171 -> 0 | AD86: =$L86*Utslippsfaktorer!F$171*Utslippsfaktorer!$AP$171 -> 0 | AE86: =$L86*Utslippsfaktorer!G$171*Utslippsfaktorer!$AP$171 -> 0 | AF86: =$L86*Utslippsfaktorer!H$171*Utslippsfaktorer!$AP$171 -> 0 | AG86: =$L86*Utslippsfaktorer!I$171*Utslippsfaktorer!$AP$171 -> 0 | AH86: =$N86*Utslippsfaktorer!E$177 -> 0 | AI86: =$N86*Utslippsfaktorer!F$177 -> 0 | AJ86: =$N86*Utslippsfaktorer!G$177 -> 0 | AK86: =$N86*Utslippsfaktorer!H$177 -> 0 | AL86: =$N86*Utslippsfaktorer!I$177 -> 0 | AM86: =((IF($P86="",0,VLOOKUP($P86,Utslippsfaktorer!$C$9:$I$493,Utslippsfaktorer!E$5,FALSE)))*$R86)+($S86*Utslippsfaktorer!E$170) -> 0 | AN86: =((IF($P86="",0,VLOOKUP($P86,Utslippsfaktorer!$C$9:$I$493,Utslippsfaktorer!F$5,FALSE)))*$R86)+($S86*Utslippsfaktorer!F$170) -> 0 | AO86: =((IF($P86="",0,VLOOKUP($P86,Utslippsfaktorer!$C$9:$I$493,Utslippsfaktorer!G$5,FALSE)))*$R86)+($S86*Utslippsfaktorer!G$170) -> 0 | AP86: =((IF($P86="",0,VLOOKUP($P86,Utslippsfaktorer!$C$9:$I$493,Utslippsfaktorer!H$5,FALSE)))*$R86)+($S86*Utslippsfaktorer!H$170) -> 0 | AQ86: =((IF($P86="",0,VLOOKUP($P86,Utslippsfaktorer!$C$9:$I$493,Utslippsfaktorer!I$5,FALSE)))*$R86)+($S86*Utslippsfaktorer!I$170) -> 0 | AR86: 0 | AS86: 0 | AT86: 0 | AU86: 0 | AV86: 0 | AX86: =$J86*Utslippsfaktorer!E$154 -> 0 | AY86: =$J86*Utslippsfaktorer!F$154 -> 0 | AZ86: =$J86*Utslippsfaktorer!G$154 -> 0 | BA86: =$J86*Utslippsfaktorer!H$154 -> 0 | BB86: =$J86*Utslippsfaktorer!I$154 -> 0 | BC86: =$O86*Utslippsfaktorer!E$178 -> 0 | BD86: =$O86*Utslippsfaktorer!F$178 -> 0 | BE86: =$O86*Utslippsfaktorer!G$178 -> 0 | BF86: =$O86*Utslippsfaktorer!H$178 -> 0 | BG86: =$O86*Utslippsfaktorer!I$178 -> 0 | BH86: =((IF($P86="",0,VLOOKUP($P86,Utslippsfaktorer!$C$9:$I$493,Utslippsfaktorer!E$5,FALSE)))*$T86)+($U86*Utslippsfaktorer!E$170) -> 0 | BI86: =((IF($P86="",0,VLOOKUP($P86,Utslippsfaktorer!$C$9:$I$493,Utslippsfaktorer!F$5,FALSE)))*$T86)+($U86*Utslippsfaktorer!F$170) -> 0 | BJ86: =((IF($P86="",0,VLOOKUP($P86,Utslippsfaktorer!$C$9:$I$493,Utslippsfaktorer!G$5,FALSE)))*$T86)+($U86*Utslippsfaktorer!G$170) -> 0 | BK86: =((IF($P86="",0,VLOOKUP($P86,Utslippsfaktorer!$C$9:$I$493,Utslippsfaktorer!H$5,FALSE)))*$T86)+($U86*Utslippsfaktorer!H$170) -> 0 | BL86: =((IF($P86="",0,VLOOKUP($P86,Utslippsfaktorer!$C$9:$I$493,Utslippsfaktorer!I$5,FALSE)))*$T86)+($U86*Utslippsfaktorer!I$170) -> 0 | BM86: 0 | BN86: 0 | BO86: 0 | BP86: 0 | BQ86: 0
B87: 22.21 | D87: Kontursprengning | F87: m | I87: =E87*Beregningsfaktorer!M52 -> 0 | K87: Hullboring | P87: Sprengstoff | Q87: =IF(P87="","",VLOOKUP(P87,Utslippsfaktorer!$C$9:$D$460,2,FALSE)) -> kg | R87: =E87*Beregningsfaktorer!M29 -> 0 | S87: =IF((OR(F87=Nedtrekksmenyer!$F$4,P87="")),0,VLOOKUP(P87,Beregningsfaktorer!$L$73:$Q$352,Beregningsfaktorer!$Q$73,FALSE))*R87 -> 0 | U87: =IF((OR(F87=Nedtrekksmenyer!$F$4,P87="")),0,VLOOKUP(P87,Beregningsfaktorer!$L$73:$Q$352,Beregningsfaktorer!$Q$73,FALSE))*T87 -> 0 | V87: =IF(P87="","",VLOOKUP(P87,Utslippsfaktorer!$C$9:$AM$459,Utslippsfaktorer!$AM$5,FALSE)) -> Sprengstoff | X87: =$I87*Utslippsfaktorer!E$154 -> 0 | Y87: =$I87*Utslippsfaktorer!F$154 -> 0 | Z87: =$I87*Utslippsfaktorer!G$154 -> 0 | AA87: =$I87*Utslippsfaktorer!H$154 -> 0 | AB87: =$I87*Utslippsfaktorer!I$154 -> 0 | AC87: =$L87*Utslippsfaktorer!E$171*Utslippsfaktorer!$AP$171 -> 0 | AD87: =$L87*Utslippsfaktorer!F$171*Utslippsfaktorer!$AP$171 -> 0 | AE87: =$L87*Utslippsfaktorer!G$171*Utslippsfaktorer!$AP$171 -> 0 | AF87: =$L87*Utslippsfaktorer!H$171*Utslippsfaktorer!$AP$171 -> 0 | AG87: =$L87*Utslippsfaktorer!I$171*Utslippsfaktorer!$AP$171 -> 0 | AH87: =$N87*Utslippsfaktorer!E$177 -> 0 | AI87: =$N87*Utslippsfaktorer!F$177 -> 0 | AJ87: =$N87*Utslippsfaktorer!G$177 -> 0 | AK87: =$N87*Utslippsfaktorer!H$177 -> 0 | AL87: =$N87*Utslippsfaktorer!I$177 -> 0 | AM87: =((IF($P87="",0,VLOOKUP($P87,Utslippsfaktorer!$C$9:$I$493,Utslippsfaktorer!E$5,FALSE)))*$R87)+($S87*Utslippsfaktorer!E$170) -> 0 | AN87: =((IF($P87="",0,VLOOKUP($P87,Utslippsfaktorer!$C$9:$I$493,Utslippsfaktorer!F$5,FALSE)))*$R87)+($S87*Utslippsfaktorer!F$170) -> 0 | AO87: =((IF($P87="",0,VLOOKUP($P87,Utslippsfaktorer!$C$9:$I$493,Utslippsfaktorer!G$5,FALSE)))*$R87)+($S87*Utslippsfaktorer!G$170) -> 0 | AP87: =((IF($P87="",0,VLOOKUP($P87,Utslippsfaktorer!$C$9:$I$493,Utslippsfaktorer!H$5,FALSE)))*$R87)+($S87*Utslippsfaktorer!H$170) -> 0 | AQ87: =((IF($P87="",0,VLOOKUP($P87,Utslippsfaktorer!$C$9:$I$493,Utslippsfaktorer!I$5,FALSE)))*$R87)+($S87*Utslippsfaktorer!I$170) -> 0 | AR87: 0 | AS87: 0 | AT87: 0 | AU87: 0 | AV87: 0 | AX87: =$J87*Utslippsfaktorer!E$154 -> 0 | AY87: =$J87*Utslippsfaktorer!F$154 -> 0 | AZ87: =$J87*Utslippsfaktorer!G$154 -> 0 | BA87: =$J87*Utslippsfaktorer!H$154 -> 0 | BB87: =$J87*Utslippsfaktorer!I$154 -> 0 | BC87: =$O87*Utslippsfaktorer!E$178 -> 0 | BD87: =$O87*Utslippsfaktorer!F$178 -> 0 | BE87: =$O87*Utslippsfaktorer!G$178 -> 0 | BF87: =$O87*Utslippsfaktorer!H$178 -> 0 | BG87: =$O87*Utslippsfaktorer!I$178 -> 0 | BH87: =((IF($P87="",0,VLOOKUP($P87,Utslippsfaktorer!$C$9:$I$493,Utslippsfaktorer!E$5,FALSE)))*$T87)+($U87*Utslippsfaktorer!E$170) -> 0 | BI87: =((IF($P87="",0,VLOOKUP($P87,Utslippsfaktorer!$C$9:$I$493,Utslippsfaktorer!F$5,FALSE)))*$T87)+($U87*Utslippsfaktorer!F$170) -> 0 | BJ87: =((IF($P87="",0,VLOOKUP($P87,Utslippsfaktorer!$C$9:$I$493,Utslippsfaktorer!G$5,FALSE)))*$T87)+($U87*Utslippsfaktorer!G$170) -> 0 | BK87: =((IF($P87="",0,VLOOKUP($P87,Utslippsfaktorer!$C$9:$I$493,Utslippsfaktorer!H$5,FALSE)))*$T87)+($U87*Utslippsfaktorer!H$170) -> 0 | BL87: =((IF($P87="",0,VLOOKUP($P87,Utslippsfaktorer!$C$9:$I$493,Utslippsfaktorer!I$5,FALSE)))*$T87)+($U87*Utslippsfaktorer!I$170) -> 0 | BM87: 0 | BN87: 0 | BO87: 0 | BP87: 0 | BQ87: 0
B88: 22.24 | D88: Vaiersaging | F88: m2 | I88: =E88*Beregningsfaktorer!M51 -> 0 | X88: =$I88*Utslippsfaktorer!E$154 -> 0 | Y88: =$I88*Utslippsfaktorer!F$154 -> 0 | Z88: =$I88*Utslippsfaktorer!G$154 -> 0 | AA88: =$I88*Utslippsfaktorer!H$154 -> 0 | AB88: =$I88*Utslippsfaktorer!I$154 -> 0 | AC88: =$L88*Utslippsfaktorer!E$171*Utslippsfaktorer!$AP$171 -> 0 | AD88: =$L88*Utslippsfaktorer!F$171*Utslippsfaktorer!$AP$171 -> 0 | AE88: =$L88*Utslippsfaktorer!G$171*Utslippsfaktorer!$AP$171 -> 0 | AF88: =$L88*Utslippsfaktorer!H$171*Utslippsfaktorer!$AP$171 -> 0 | AG88: =$L88*Utslippsfaktorer!I$171*Utslippsfaktorer!$AP$171 -> 0 | AH88: =$N88*Utslippsfaktorer!E$177 -> 0 | AI88: =$N88*Utslippsfaktorer!F$177 -> 0 | AJ88: =$N88*Utslippsfaktorer!G$177 -> 0 | AK88: =$N88*Utslippsfaktorer!H$177 -> 0 | AL88: =$N88*Utslippsfaktorer!I$177 -> 0 | AM88: =((IF($P88="",0,VLOOKUP($P88,Utslippsfaktorer!$C$9:$I$493,Utslippsfaktorer!E$5,FALSE)))*$R88)+($S88*Utslippsfaktorer!E$170) -> 0 | AN88: =((IF($P88="",0,VLOOKUP($P88,Utslippsfaktorer!$C$9:$I$493,Utslippsfaktorer!F$5,FALSE)))*$R88)+($S88*Utslippsfaktorer!F$170) -> 0 | AO88: =((IF($P88="",0,VLOOKUP($P88,Utslippsfaktorer!$C$9:$I$493,Utslippsfaktorer!G$5,FALSE)))*$R88)+($S88*Utslippsfaktorer!G$170) -> 0 | AP88: =((IF($P88="",0,VLOOKUP($P88,Utslippsfaktorer!$C$9:$I$493,Utslippsfaktorer!H$5,FALSE)))*$R88)+($S88*Utslippsfaktorer!H$170) -> 0 | AQ88: =((IF($P88="",0,VLOOKUP($P88,Utslippsfaktorer!$C$9:$I$493,Utslippsfaktorer!I$5,FALSE)))*$R88)+($S88*Utslippsfaktorer!I$170) -> 0 | AR88: =X88+AC88+AH88+AM88 -> 0 | AS88: =Y88+AD88+AI88+AN88 -> 0 | AT88: =Z88+AE88+AJ88+AO88 -> 0 | AU88: =AA88+AF88+AK88+AP88 -> 0 | AV88: =AB88+AG88+AL88+AQ88 -> 0 | AX88: =$J88*Utslippsfaktorer!E$154 -> 0 | AY88: =$J88*Utslippsfaktorer!F$154 -> 0 | AZ88: =$J88*Utslippsfaktorer!G$154 -> 0 | BA88: =$J88*Utslippsfaktorer!H$154 -> 0 | BB88: =$J88*Utslippsfaktorer!I$154 -> 0 | BC88: =$O88*Utslippsfaktorer!E$178 -> 0 | BD88: =$O88*Utslippsfaktorer!F$178 -> 0 | BE88: =$O88*Utslippsfaktorer!G$178 -> 0 | BF88: =$O88*Utslippsfaktorer!H$178 -> 0 | BG88: =$O88*Utslippsfaktorer!I$178 -> 0 | BH88: =((IF($P88="",0,VLOOKUP($P88,Utslippsfaktorer!$C$9:$I$493,Utslippsfaktorer!E$5,FALSE)))*$T88)+($U88*Utslippsfaktorer!E$170) -> 0 | BI88: =((IF($P88="",0,VLOOKUP($P88,Utslippsfaktorer!$C$9:$I$493,Utslippsfaktorer!F$5,FALSE)))*$T88)+($U88*Utslippsfaktorer!F$170) -> 0 | BJ88: =((IF($P88="",0,VLOOKUP($P88,Utslippsfaktorer!$C$9:$I$493,Utslippsfaktorer!G$5,FALSE)))*$T88)+($U88*Utslippsfaktorer!G$170) -> 0 | BK88: =((IF($P88="",0,VLOOKUP($P88,Utslippsfaktorer!$C$9:$I$493,Utslippsfaktorer!H$5,FALSE)))*$T88)+($U88*Utslippsfaktorer!H$170) -> 0 | BL88: =((IF($P88="",0,VLOOKUP($P88,Utslippsfaktorer!$C$9:$I$493,Utslippsfaktorer!I$5,FALSE)))*$T88)+($U88*Utslippsfaktorer!I$170) -> 0 | BM88: =AX88+BC88+BH88 -> 0 | BN88: =AY88+BD88+BI88 -> 0 | BO88: =AZ88+BE88+BJ88 -> 0 | BP88: =BA88+BF88+BK88 -> 0 | BQ88: =BB88+BG88+BL88 -> 0
B89: 22.3 | C89: Velg grunnforhold | D89: Sprengning i sidetak | F89: pfm3 | I89: =E89*Beregningsfaktorer!M49 -> 0 | K89: Drilling, sprengning i dagen | P89: Sprengstoff | Q89: =IF(P89="","",VLOOKUP(P89,Utslippsfaktorer!$C$9:$D$460,2,FALSE)) -> kg | R89: =E89*IF(OR(C89=Nedtrekksmenyer!$B$97,C89=Nedtrekksmenyer!$B$100),Beregningsfaktorer!$M$22,IF(C89=Nedtrekksmenyer!$B$98,Beregningsfaktorer!$M$20,Beregningsfaktorer!$M$21)) -> 0 | S89: =IF((OR(F89=Nedtrekksmenyer!$F$4,P89="")),0,VLOOKUP(P89,Beregningsfaktorer!$L$73:$Q$352,Beregningsfaktorer!$Q$73,FALSE))*R89 -> 0 | U89: =IF((OR(F89=Nedtrekksmenyer!$F$4,P89="")),0,VLOOKUP(P89,Beregningsfaktorer!$L$73:$Q$352,Beregningsfaktorer!$Q$73,FALSE))*T89 -> 0 | V89: =IF(P89="","",VLOOKUP(P89,Utslippsfaktorer!$C$9:$AM$459,Utslippsfaktorer!$AM$5,FALSE)) -> Sprengstoff | X89: =$I89*Utslippsfaktorer!E$154 -> 0 | Y89: =$I89*Utslippsfaktorer!F$154 -> 0 | Z89: =$I89*Utslippsfaktorer!G$154 -> 0 | AA89: =$I89*Utslippsfaktorer!H$154 -> 0 | AB89: =$I89*Utslippsfaktorer!I$154 -> 0 | AC89: =$L89*Utslippsfaktorer!E$171*Utslippsfaktorer!$AP$171 -> 0 | AD89: =$L89*Utslippsfaktorer!F$171*Utslippsfaktorer!$AP$171 -> 0 | AE89: =$L89*Utslippsfaktorer!G$171*Utslippsfaktorer!$AP$171 -> 0 | AF89: =$L89*Utslippsfaktorer!H$171*Utslippsfaktorer!$AP$171 -> 0 | AG89: =$L89*Utslippsfaktorer!I$171*Utslippsfaktorer!$AP$171 -> 0 | AH89: =$N89*Utslippsfaktorer!E$177 -> 0 | AI89: =$N89*Utslippsfaktorer!F$177 -> 0 | AJ89: =$N89*Utslippsfaktorer!G$177 -> 0 | AK89: =$N89*Utslippsfaktorer!H$177 -> 0 | AL89: =$N89*Utslippsfaktorer!I$177 -> 0 | AM89: =((IF($P89="",0,VLOOKUP($P89,Utslippsfaktorer!$C$9:$I$493,Utslippsfaktorer!E$5,FALSE)))*$R89)+($S89*Utslippsfaktorer!E$170) -> 0 | AN89: =((IF($P89="",0,VLOOKUP($P89,Utslippsfaktorer!$C$9:$I$493,Utslippsfaktorer!F$5,FALSE)))*$R89)+($S89*Utslippsfaktorer!F$170) -> 0 | AO89: =((IF($P89="",0,VLOOKUP($P89,Utslippsfaktorer!$C$9:$I$493,Utslippsfaktorer!G$5,FALSE)))*$R89)+($S89*Utslippsfaktorer!G$170) -> 0 | AP89: =((IF($P89="",0,VLOOKUP($P89,Utslippsfaktorer!$C$9:$I$493,Utslippsfaktorer!H$5,FALSE)))*$R89)+($S89*Utslippsfaktorer!H$170) -> 0 | AQ89: =((IF($P89="",0,VLOOKUP($P89,Utslippsfaktorer!$C$9:$I$493,Utslippsfaktorer!I$5,FALSE)))*$R89)+($S89*Utslippsfaktorer!I$170) -> 0 | AR89: 0 | AS89: 0 | AT89: 0 | AU89: 0 | AV89: 0 | AX89: =$J89*Utslippsfaktorer!E$154 -> 0 | AY89: =$J89*Utslippsfaktorer!F$154 -> 0 | AZ89: =$J89*Utslippsfaktorer!G$154 -> 0 | BA89: =$J89*Utslippsfaktorer!H$154 -> 0 | BB89: =$J89*Utslippsfaktorer!I$154 -> 0 | BC89: =$O89*Utslippsfaktorer!E$178 -> 0 | BD89: =$O89*Utslippsfaktorer!F$178 -> 0 | BE89: =$O89*Utslippsfaktorer!G$178 -> 0 | BF89: =$O89*Utslippsfaktorer!H$178 -> 0 | BG89: =$O89*Utslippsfaktorer!I$178 -> 0 | BH89: =((IF($P89="",0,VLOOKUP($P89,Utslippsfaktorer!$C$9:$I$493,Utslippsfaktorer!E$5,FALSE)))*$T89)+($U89*Utslippsfaktorer!E$170) -> 0 | BI89: =((IF($P89="",0,VLOOKUP($P89,Utslippsfaktorer!$C$9:$I$493,Utslippsfaktorer!F$5,FALSE)))*$T89)+($U89*Utslippsfaktorer!F$170) -> 0 | BJ89: =((IF($P89="",0,VLOOKUP($P89,Utslippsfaktorer!$C$9:$I$493,Utslippsfaktorer!G$5,FALSE)))*$T89)+($U89*Utslippsfaktorer!G$170) -> 0 | BK89: =((IF($P89="",0,VLOOKUP($P89,Utslippsfaktorer!$C$9:$I$493,Utslippsfaktorer!H$5,FALSE)))*$T89)+($U89*Utslippsfaktorer!H$170) -> 0 | BL89: =((IF($P89="",0,VLOOKUP($P89,Utslippsfaktorer!$C$9:$I$493,Utslippsfaktorer!I$5,FALSE)))*$T89)+($U89*Utslippsfaktorer!I$170) -> 0 | BM89: 0 | BN89: 0 | BO89: 0 | BP89: 0 | BQ89: 0
B91: 23: RENSK OG SIKRING I DAGEN
B92: 23.1 | D92: Rensk av skjæringer i berg, fjerning av renskemasse | F92: m2 | I92: =E92*0.05*Beregningsfaktorer!M48 -> 0 | K92: Rensk av skjæring | Q92: =IF(P92="","",VLOOKUP(P92,Utslippsfaktorer!$C$9:$D$460,2,FALSE)) ->  | S92: =IF((OR(F92=Nedtrekksmenyer!$F$4,P92="")),0,VLOOKUP(P92,Beregningsfaktorer!$L$73:$Q$352,Beregningsfaktorer!$Q$73,FALSE))*R92 -> 0 | U92: =IF((OR(F92=Nedtrekksmenyer!$F$4,P92="")),0,VLOOKUP(P92,Beregningsfaktorer!$L$73:$Q$352,Beregningsfaktorer!$Q$73,FALSE))*T92 -> 0 | V92: =IF(P92="","",VLOOKUP(P92,Utslippsfaktorer!$C$9:$AM$459,Utslippsfaktorer!$AM$5,FALSE)) ->  | X92: =$I92*Utslippsfaktorer!E$154 -> 0 | Y92: =$I92*Utslippsfaktorer!F$154 -> 0 | Z92: =$I92*Utslippsfaktorer!G$154 -> 0 | AA92: =$I92*Utslippsfaktorer!H$154 -> 0 | AB92: =$I92*Utslippsfaktorer!I$154 -> 0 | AC92: =$L92*Utslippsfaktorer!E$171*Utslippsfaktorer!$AP$171 -> 0 | AD92: =$L92*Utslippsfaktorer!F$171*Utslippsfaktorer!$AP$171 -> 0 | AE92: =$L92*Utslippsfaktorer!G$171*Utslippsfaktorer!$AP$171 -> 0 | AF92: =$L92*Utslippsfaktorer!H$171*Utslippsfaktorer!$AP$171 -> 0 | AG92: =$L92*Utslippsfaktorer!I$171*Utslippsfaktorer!$AP$171 -> 0 | AH92: =$N92*Utslippsfaktorer!E$177 -> 0 | AI92: =$N92*Utslippsfaktorer!F$177 -> 0 | AJ92: =$N92*Utslippsfaktorer!G$177 -> 0 | AK92: =$N92*Utslippsfaktorer!H$177 -> 0 | AL92: =$N92*Utslippsfaktorer!I$177 -> 0 | AM92: =((IF($P92="",0,VLOOKUP($P92,Utslippsfaktorer!$C$9:$I$493,Utslippsfaktorer!E$5,FALSE)))*$R92)+($S92*Utslippsfaktorer!E$170) -> 0 | AN92: =((IF($P92="",0,VLOOKUP($P92,Utslippsfaktorer!$C$9:$I$493,Utslippsfaktorer!F$5,FALSE)))*$R92)+($S92*Utslippsfaktorer!F$170) -> 0 | AO92: =((IF($P92="",0,VLOOKUP($P92,Utslippsfaktorer!$C$9:$I$493,Utslippsfaktorer!G$5,FALSE)))*$R92)+($S92*Utslippsfaktorer!G$170) -> 0 | AP92: =((IF($P92="",0,VLOOKUP($P92,Utslippsfaktorer!$C$9:$I$493,Utslippsfaktorer!H$5,FALSE)))*$R92)+($S92*Utslippsfaktorer!H$170) -> 0 | AQ92: =((IF($P92="",0,VLOOKUP($P92,Utslippsfaktorer!$C$9:$I$493,Utslippsfaktorer!I$5,FALSE)))*$R92)+($S92*Utslippsfaktorer!I$170) -> 0 | AR92: 0 | AS92: 0 | AT92: 0 | AU92: 0 | AV92: 0 | AX92: =$J92*Utslippsfaktorer!E$154 -> 0 | AY92: =$J92*Utslippsfaktorer!F$154 -> 0 | AZ92: =$J92*Utslippsfaktorer!G$154 -> 0 | BA92: =$J92*Utslippsfaktorer!H$154 -> 0 | BB92: =$J92*Utslippsfaktorer!I$154 -> 0 | BC92: =$O92*Utslippsfaktorer!E$178 -> 0 | BD92: =$O92*Utslippsfaktorer!F$178 -> 0 | BE92: =$O92*Utslippsfaktorer!G$178 -> 0 | BF92: =$O92*Utslippsfaktorer!H$178 -> 0 | BG92: =$O92*Utslippsfaktorer!I$178 -> 0 | BH92: =((IF($P92="",0,VLOOKUP($P92,Utslippsfaktorer!$C$9:$I$493,Utslippsfaktorer!E$5,FALSE)))*$T92)+($U92*Utslippsfaktorer!E$170) -> 0 | BI92: =((IF($P92="",0,VLOOKUP($P92,Utslippsfaktorer!$C$9:$I$493,Utslippsfaktorer!F$5,FALSE)))*$T92)+($U92*Utslippsfaktorer!F$170) -> 0 | BJ92: =((IF($P92="",0,VLOOKUP($P92,Utslippsfaktorer!$C$9:$I$493,Utslippsfaktorer!G$5,FALSE)))*$T92)+($U92*Utslippsfaktorer!G$170) -> 0 | BK92: =((IF($P92="",0,VLOOKUP($P92,Utslippsfaktorer!$C$9:$I$493,Utslippsfaktorer!H$5,FALSE)))*$T92)+($U92*Utslippsfaktorer!H$170) -> 0 | BL92: =((IF($P92="",0,VLOOKUP($P92,Utslippsfaktorer!$C$9:$I$493,Utslippsfaktorer!I$5,FALSE)))*$T92)+($U92*Utslippsfaktorer!I$170) -> 0 | BM92: 0 | BN92: 0 | BO92: 0 | BP92: 0 | BQ92: 0
B93: 23.21 | D93: Fullt innstøpte bolter (lengde 2,4 m, diameter 20 mm) | F93: stk | P93: Stål, bolter av kamstål | Q93: =IF(P93="","",VLOOKUP(P93,Utslippsfaktorer!$C$9:$D$460,2,FALSE)) -> kg | R93: =E93*2.4*Beregningsfaktorer!$C$50 -> 0 | S93: =IF((OR(F93=Nedtrekksmenyer!$F$4,P93="")),0,VLOOKUP(P93,Beregningsfaktorer!$L$73:$Q$352,Beregningsfaktorer!$Q$73,FALSE))*R93 -> 0 | U93: =IF((OR(F93=Nedtrekksmenyer!$F$4,P93="")),0,VLOOKUP(P93,Beregningsfaktorer!$L$73:$Q$352,Beregningsfaktorer!$Q$73,FALSE))*T93 -> 0 | V93: =IF(P93="","",VLOOKUP(P93,Utslippsfaktorer!$C$9:$AM$459,Utslippsfaktorer!$AM$5,FALSE)) -> Stål, armering og bolter kamstål | X93: =$I93*Utslippsfaktorer!E$154 -> 0 | Y93: =$I93*Utslippsfaktorer!F$154 -> 0 | Z93: =$I93*Utslippsfaktorer!G$154 -> 0 | AA93: =$I93*Utslippsfaktorer!H$154 -> 0 | AB93: =$I93*Utslippsfaktorer!I$154 -> 0 | AC93: =$L93*Utslippsfaktorer!E$171*Utslippsfaktorer!$AP$171 -> 0 | AD93: =$L93*Utslippsfaktorer!F$171*Utslippsfaktorer!$AP$171 -> 0 | AE93: =$L93*Utslippsfaktorer!G$171*Utslippsfaktorer!$AP$171 -> 0 | AF93: =$L93*Utslippsfaktorer!H$171*Utslippsfaktorer!$AP$171 -> 0 | AG93: =$L93*Utslippsfaktorer!I$171*Utslippsfaktorer!$AP$171 -> 0 | AH93: =$N93*Utslippsfaktorer!E$177 -> 0 | AI93: =$N93*Utslippsfaktorer!F$177 -> 0 | AJ93: =$N93*Utslippsfaktorer!G$177 -> 0 | AK93: =$N93*Utslippsfaktorer!H$177 -> 0 | AL93: =$N93*Utslippsfaktorer!I$177 -> 0 | AM93: =((IF($P93="",0,VLOOKUP($P93,Utslippsfaktorer!$C$9:$I$493,Utslippsfaktorer!E$5,FALSE)))*$R93)+($S93*Utslippsfaktorer!E$170) -> 0 | AN93: =((IF($P93="",0,VLOOKUP($P93,Utslippsfaktorer!$C$9:$I$493,Utslippsfaktorer!F$5,FALSE)))*$R93)+($S93*Utslippsfaktorer!F$170) -> 0 | AO93: =((IF($P93="",0,VLOOKUP($P93,Utslippsfaktorer!$C$9:$I$493,Utslippsfaktorer!G$5,FALSE)))*$R93)+($S93*Utslippsfaktorer!G$170) -> 0 | AP93: =((IF($P93="",0,VLOOKUP($P93,Utslippsfaktorer!$C$9:$I$493,Utslippsfaktorer!H$5,FALSE)))*$R93)+($S93*Utslippsfaktorer!H$170) -> 0 | AQ93: =((IF($P93="",0,VLOOKUP($P93,Utslippsfaktorer!$C$9:$I$493,Utslippsfaktorer!I$5,FALSE)))*$R93)+($S93*Utslippsfaktorer!I$170) -> 0 | AR93: 0 | AS93: 0 | AT93: 0 | AU93: 0 | AV93: 0 | AX93: =$J93*Utslippsfaktorer!E$154 -> 0 | AY93: =$J93*Utslippsfaktorer!F$154 -> 0 | AZ93: =$J93*Utslippsfaktorer!G$154 -> 0 | BA93: =$J93*Utslippsfaktorer!H$154 -> 0 | BB93: =$J93*Utslippsfaktorer!I$154 -> 0 | BC93: =$O93*Utslippsfaktorer!E$178 -> 0 | BD93: =$O93*Utslippsfaktorer!F$178 -> 0 | BE93: =$O93*Utslippsfaktorer!G$178 -> 0 | BF93: =$O93*Utslippsfaktorer!H$178 -> 0 | BG93: =$O93*Utslippsfaktorer!I$178 -> 0 | BH93: =((IF($P93="",0,VLOOKUP($P93,Utslippsfaktorer!$C$9:$I$493,Utslippsfaktorer!E$5,FALSE)))*$T93)+($U93*Utslippsfaktorer!E$170) -> 0 | BI93: =((IF($P93="",0,VLOOKUP($P93,Utslippsfaktorer!$C$9:$I$493,Utslippsfaktorer!F$5,FALSE)))*$T93)+($U93*Utslippsfaktorer!F$170) -> 0 | BJ93: =((IF($P93="",0,VLOOKUP($P93,Utslippsfaktorer!$C$9:$I$493,Utslippsfaktorer!G$5,FALSE)))*$T93)+($U93*Utslippsfaktorer!G$170) -> 0 | BK93: =((IF($P93="",0,VLOOKUP($P93,Utslippsfaktorer!$C$9:$I$493,Utslippsfaktorer!H$5,FALSE)))*$T93)+($U93*Utslippsfaktorer!H$170) -> 0 | BL93: =((IF($P93="",0,VLOOKUP($P93,Utslippsfaktorer!$C$9:$I$493,Utslippsfaktorer!I$5,FALSE)))*$T93)+($U93*Utslippsfaktorer!I$170) -> 0 | BM93: 0 | BN93: 0 | BO93: 0 | BP93: 0 | BQ93: 0
B94: 23.211 | D94: Bolter, full innstøpt, lengde 1,5 m, diameter 20 mm | F94: stk | P94: Stål, bolter av kamstål | Q94: =IF(P94="","",VLOOKUP(P94,Utslippsfaktorer!$C$9:$D$460,2,FALSE)) -> kg | R94: =E94*1.5*Beregningsfaktorer!$C$50 -> 0 | S94: =IF((OR(F94=Nedtrekksmenyer!$F$4,P94="")),0,VLOOKUP(P94,Beregningsfaktorer!$L$73:$Q$352,Beregningsfaktorer!$Q$73,FALSE))*R94 -> 0 | U94: =IF((OR(F94=Nedtrekksmenyer!$F$4,P94="")),0,VLOOKUP(P94,Beregningsfaktorer!$L$73:$Q$352,Beregningsfaktorer!$Q$73,FALSE))*T94 -> 0 | V94: =IF(P94="","",VLOOKUP(P94,Utslippsfaktorer!$C$9:$AM$459,Utslippsfaktorer!$AM$5,FALSE)) -> Stål, armering og bolter kamstål | X94: =$I94*Utslippsfaktorer!E$154 -> 0 | Y94: =$I94*Utslippsfaktorer!F$154 -> 0 | Z94: =$I94*Utslippsfaktorer!G$154 -> 0 | AA94: =$I94*Utslippsfaktorer!H$154 -> 0 | AB94: =$I94*Utslippsfaktorer!I$154 -> 0 | AC94: =$L94*Utslippsfaktorer!E$171*Utslippsfaktorer!$AP$171 -> 0 | AD94: =$L94*Utslippsfaktorer!F$171*Utslippsfaktorer!$AP$171 -> 0 | AE94: =$L94*Utslippsfaktorer!G$171*Utslippsfaktorer!$AP$171 -> 0 | AF94: =$L94*Utslippsfaktorer!H$171*Utslippsfaktorer!$AP$171 -> 0 | AG94: =$L94*Utslippsfaktorer!I$171*Utslippsfaktorer!$AP$171 -> 0 | AH94: =$N94*Utslippsfaktorer!E$177 -> 0 | AI94: =$N94*Utslippsfaktorer!F$177 -> 0 | AJ94: =$N94*Utslippsfaktorer!G$177 -> 0 | AK94: =$N94*Utslippsfaktorer!H$177 -> 0 | AL94: =$N94*Utslippsfaktorer!I$177 -> 0 | AM94: =((IF($P94="",0,VLOOKUP($P94,Utslippsfaktorer!$C$9:$I$493,Utslippsfaktorer!E$5,FALSE)))*$R94)+($S94*Utslippsfaktorer!E$170) -> 0 | AN94: =((IF($P94="",0,VLOOKUP($P94,Utslippsfaktorer!$C$9:$I$493,Utslippsfaktorer!F$5,FALSE)))*$R94)+($S94*Utslippsfaktorer!F$170) -> 0 | AO94: =((IF($P94="",0,VLOOKUP($P94,Utslippsfaktorer!$C$9:$I$493,Utslippsfaktorer!G$5,FALSE)))*$R94)+($S94*Utslippsfaktorer!G$170) -> 0 | AP94: =((IF($P94="",0,VLOOKUP($P94,Utslippsfaktorer!$C$9:$I$493,Utslippsfaktorer!H$5,FALSE)))*$R94)+($S94*Utslippsfaktorer!H$170) -> 0 | AQ94: =((IF($P94="",0,VLOOKUP($P94,Utslippsfaktorer!$C$9:$I$493,Utslippsfaktorer!I$5,FALSE)))*$R94)+($S94*Utslippsfaktorer!I$170) -> 0 | AR94: 0 | AS94: 0 | AT94: 0 | AU94: 0 | AV94: 0 | AX94: =$J94*Utslippsfaktorer!E$154 -> 0 | AY94: =$J94*Utslippsfaktorer!F$154 -> 0 | AZ94: =$J94*Utslippsfaktorer!G$154 -> 0 | BA94: =$J94*Utslippsfaktorer!H$154 -> 0 | BB94: =$J94*Utslippsfaktorer!I$154 -> 0 | BC94: =$O94*Utslippsfaktorer!E$178 -> 0 | BD94: =$O94*Utslippsfaktorer!F$178 -> 0 | BE94: =$O94*Utslippsfaktorer!G$178 -> 0 | BF94: =$O94*Utslippsfaktorer!H$178 -> 0 | BG94: =$O94*Utslippsfaktorer!I$178 -> 0 | BH94: =((IF($P94="",0,VLOOKUP($P94,Utslippsfaktorer!$C$9:$I$493,Utslippsfaktorer!E$5,FALSE)))*$T94)+($U94*Utslippsfaktorer!E$170) -> 0 | BI94: =((IF($P94="",0,VLOOKUP($P94,Utslippsfaktorer!$C$9:$I$493,Utslippsfaktorer!F$5,FALSE)))*$T94)+($U94*Utslippsfaktorer!F$170) -> 0 | BJ94: =((IF($P94="",0,VLOOKUP($P94,Utslippsfaktorer!$C$9:$I$493,Utslippsfaktorer!G$5,FALSE)))*$T94)+($U94*Utslippsfaktorer!G$170) -> 0 | BK94: =((IF($P94="",0,VLOOKUP($P94,Utslippsfaktorer!$C$9:$I$493,Utslippsfaktorer!H$5,FALSE)))*$T94)+($U94*Utslippsfaktorer!H$170) -> 0 | BL94: =((IF($P94="",0,VLOOKUP($P94,Utslippsfaktorer!$C$9:$I$493,Utslippsfaktorer!I$5,FALSE)))*$T94)+($U94*Utslippsfaktorer!I$170) -> 0 | BM94: 0 | BN94: 0 | BO94: 0 | BP94: 0 | BQ94: 0
B95: 23.212 | D95: Bolter, full innstøpt, lengde 2,4 m, diameter 20 mm | F95: stk | P95: Stål, bolter av kamstål | Q95: =IF(P95="","",VLOOKUP(P95,Utslippsfaktorer!$C$9:$D$460,2,FALSE)) -> kg | R95: =E95*2.4*Beregningsfaktorer!$C$50 -> 0 | S95: =IF((OR(F95=Nedtrekksmenyer!$F$4,P95="")),0,VLOOKUP(P95,Beregningsfaktorer!$L$73:$Q$352,Beregningsfaktorer!$Q$73,FALSE))*R95 -> 0 | U95: =IF((OR(F95=Nedtrekksmenyer!$F$4,P95="")),0,VLOOKUP(P95,Beregningsfaktorer!$L$73:$Q$352,Beregningsfaktorer!$Q$73,FALSE))*T95 -> 0 | V95: =IF(P95="","",VLOOKUP(P95,Utslippsfaktorer!$C$9:$AM$459,Utslippsfaktorer!$AM$5,FALSE)) -> Stål, armering og bolter kamstål | X95: =$I95*Utslippsfaktorer!E$154 -> 0 | Y95: =$I95*Utslippsfaktorer!F$154 -> 0 | Z95: =$I95*Utslippsfaktorer!G$154 -> 0 | AA95: =$I95*Utslippsfaktorer!H$154 -> 0 | AB95: =$I95*Utslippsfaktorer!I$154 -> 0 | AC95: =$L95*Utslippsfaktorer!E$171*Utslippsfaktorer!$AP$171 -> 0 | AD95: =$L95*Utslippsfaktorer!F$171*Utslippsfaktorer!$AP$171 -> 0 | AE95: =$L95*Utslippsfaktorer!G$171*Utslippsfaktorer!$AP$171 -> 0 | AF95: =$L95*Utslippsfaktorer!H$171*Utslippsfaktorer!$AP$171 -> 0 | AG95: =$L95*Utslippsfaktorer!I$171*Utslippsfaktorer!$AP$171 -> 0 | AH95: =$N95*Utslippsfaktorer!E$177 -> 0 | AI95: =$N95*Utslippsfaktorer!F$177 -> 0 | AJ95: =$N95*Utslippsfaktorer!G$177 -> 0 | AK95: =$N95*Utslippsfaktorer!H$177 -> 0 | AL95: =$N95*Utslippsfaktorer!I$177 -> 0 | AM95: =((IF($P95="",0,VLOOKUP($P95,Utslippsfaktorer!$C$9:$I$493,Utslippsfaktorer!E$5,FALSE)))*$R95)+($S95*Utslippsfaktorer!E$170) -> 0 | AN95: =((IF($P95="",0,VLOOKUP($P95,Utslippsfaktorer!$C$9:$I$493,Utslippsfaktorer!F$5,FALSE)))*$R95)+($S95*Utslippsfaktorer!F$170) -> 0 | AO95: =((IF($P95="",0,VLOOKUP($P95,Utslippsfaktorer!$C$9:$I$493,Utslippsfaktorer!G$5,FALSE)))*$R95)+($S95*Utslippsfaktorer!G$170) -> 0 | AP95: =((IF($P95="",0,VLOOKUP($P95,Utslippsfaktorer!$C$9:$I$493,Utslippsfaktorer!H$5,FALSE)))*$R95)+($S95*Utslippsfaktorer!H$170) -> 0 | AQ95: =((IF($P95="",0,VLOOKUP($P95,Utslippsfaktorer!$C$9:$I$493,Utslippsfaktorer!I$5,FALSE)))*$R95)+($S95*Utslippsfaktorer!I$170) -> 0 | AR95: 0 | AS95: 0 | AT95: 0 | AU95: 0 | AV95: 0 | AX95: =$J95*Utslippsfaktorer!E$154 -> 0 | AY95: =$J95*Utslippsfaktorer!F$154 -> 0 | AZ95: =$J95*Utslippsfaktorer!G$154 -> 0 | BA95: =$J95*Utslippsfaktorer!H$154 -> 0 | BB95: =$J95*Utslippsfaktorer!I$154 -> 0 | BC95: =$O95*Utslippsfaktorer!E$178 -> 0 | BD95: =$O95*Utslippsfaktorer!F$178 -> 0 | BE95: =$O95*Utslippsfaktorer!G$178 -> 0 | BF95: =$O95*Utslippsfaktorer!H$178 -> 0 | BG95: =$O95*Utslippsfaktorer!I$178 -> 0 | BH95: =((IF($P95="",0,VLOOKUP($P95,Utslippsfaktorer!$C$9:$I$493,Utslippsfaktorer!E$5,FALSE)))*$T95)+($U95*Utslippsfaktorer!E$170) -> 0 | BI95: =((IF($P95="",0,VLOOKUP($P95,Utslippsfaktorer!$C$9:$I$493,Utslippsfaktorer!F$5,FALSE)))*$T95)+($U95*Utslippsfaktorer!F$170) -> 0 | BJ95: =((IF($P95="",0,VLOOKUP($P95,Utslippsfaktorer!$C$9:$I$493,Utslippsfaktorer!G$5,FALSE)))*$T95)+($U95*Utslippsfaktorer!G$170) -> 0 | BK95: =((IF($P95="",0,VLOOKUP($P95,Utslippsfaktorer!$C$9:$I$493,Utslippsfaktorer!H$5,FALSE)))*$T95)+($U95*Utslippsfaktorer!H$170) -> 0 | BL95: =((IF($P95="",0,VLOOKUP($P95,Utslippsfaktorer!$C$9:$I$493,Utslippsfaktorer!I$5,FALSE)))*$T95)+($U95*Utslippsfaktorer!I$170) -> 0 | BM95: 0 | BN95: 0 | BO95: 0 | BP95: 0 | BQ95: 0
B96: 23.213 | D96: Bolter, full innstøpt, lengde 3 m, diameter 20 mm | F96: stk | P96: Stål, bolter av kamstål | Q96: =IF(P96="","",VLOOKUP(P96,Utslippsfaktorer!$C$9:$D$460,2,FALSE)) -> kg | R96: =E96*3*Beregningsfaktorer!$C$50 -> 0 | S96: =IF((OR(F96=Nedtrekksmenyer!$F$4,P96="")),0,VLOOKUP(P96,Beregningsfaktorer!$L$73:$Q$352,Beregningsfaktorer!$Q$73,FALSE))*R96 -> 0 | U96: =IF((OR(F96=Nedtrekksmenyer!$F$4,P96="")),0,VLOOKUP(P96,Beregningsfaktorer!$L$73:$Q$352,Beregningsfaktorer!$Q$73,FALSE))*T96 -> 0 | V96: =IF(P96="","",VLOOKUP(P96,Utslippsfaktorer!$C$9:$AM$459,Utslippsfaktorer!$AM$5,FALSE)) -> Stål, armering og bolter kamstål | X96: =$I96*Utslippsfaktorer!E$154 -> 0 | Y96: =$I96*Utslippsfaktorer!F$154 -> 0 | Z96: =$I96*Utslippsfaktorer!G$154 -> 0 | AA96: =$I96*Utslippsfaktorer!H$154 -> 0 | AB96: =$I96*Utslippsfaktorer!I$154 -> 0 | AC96: =$L96*Utslippsfaktorer!E$171*Utslippsfaktorer!$AP$171 -> 0 | AD96: =$L96*Utslippsfaktorer!F$171*Utslippsfaktorer!$AP$171 -> 0 | AE96: =$L96*Utslippsfaktorer!G$171*Utslippsfaktorer!$AP$171 -> 0 | AF96: =$L96*Utslippsfaktorer!H$171*Utslippsfaktorer!$AP$171 -> 0 | AG96: =$L96*Utslippsfaktorer!I$171*Utslippsfaktorer!$AP$171 -> 0 | AH96: =$N96*Utslippsfaktorer!E$177 -> 0 | AI96: =$N96*Utslippsfaktorer!F$177 -> 0 | AJ96: =$N96*Utslippsfaktorer!G$177 -> 0 | AK96: =$N96*Utslippsfaktorer!H$177 -> 0 | AL96: =$N96*Utslippsfaktorer!I$177 -> 0 | AM96: =((IF($P96="",0,VLOOKUP($P96,Utslippsfaktorer!$C$9:$I$493,Utslippsfaktorer!E$5,FALSE)))*$R96)+($S96*Utslippsfaktorer!E$170) -> 0 | AN96: =((IF($P96="",0,VLOOKUP($P96,Utslippsfaktorer!$C$9:$I$493,Utslippsfaktorer!F$5,FALSE)))*$R96)+($S96*Utslippsfaktorer!F$170) -> 0 | AO96: =((IF($P96="",0,VLOOKUP($P96,Utslippsfaktorer!$C$9:$I$493,Utslippsfaktorer!G$5,FALSE)))*$R96)+($S96*Utslippsfaktorer!G$170) -> 0 | AP96: =((IF($P96="",0,VLOOKUP($P96,Utslippsfaktorer!$C$9:$I$493,Utslippsfaktorer!H$5,FALSE)))*$R96)+($S96*Utslippsfaktorer!H$170) -> 0 | AQ96: =((IF($P96="",0,VLOOKUP($P96,Utslippsfaktorer!$C$9:$I$493,Utslippsfaktorer!I$5,FALSE)))*$R96)+($S96*Utslippsfaktorer!I$170) -> 0 | AR96: 0 | AS96: 0 | AT96: 0 | AU96: 0 | AV96: 0 | AX96: =$J96*Utslippsfaktorer!E$154 -> 0 | AY96: =$J96*Utslippsfaktorer!F$154 -> 0 | AZ96: =$J96*Utslippsfaktorer!G$154 -> 0 | BA96: =$J96*Utslippsfaktorer!H$154 -> 0 | BB96: =$J96*Utslippsfaktorer!I$154 -> 0 | BC96: =$O96*Utslippsfaktorer!E$178 -> 0 | BD96: =$O96*Utslippsfaktorer!F$178 -> 0 | BE96: =$O96*Utslippsfaktorer!G$178 -> 0 | BF96: =$O96*Utslippsfaktorer!H$178 -> 0 | BG96: =$O96*Utslippsfaktorer!I$178 -> 0 | BH96: =((IF($P96="",0,VLOOKUP($P96,Utslippsfaktorer!$C$9:$I$493,Utslippsfaktorer!E$5,FALSE)))*$T96)+($U96*Utslippsfaktorer!E$170) -> 0 | BI96: =((IF($P96="",0,VLOOKUP($P96,Utslippsfaktorer!$C$9:$I$493,Utslippsfaktorer!F$5,FALSE)))*$T96)+($U96*Utslippsfaktorer!F$170) -> 0 | BJ96: =((IF($P96="",0,VLOOKUP($P96,Utslippsfaktorer!$C$9:$I$493,Utslippsfaktorer!G$5,FALSE)))*$T96)+($U96*Utslippsfaktorer!G$170) -> 0 | BK96: =((IF($P96="",0,VLOOKUP($P96,Utslippsfaktorer!$C$9:$I$493,Utslippsfaktorer!H$5,FALSE)))*$T96)+($U96*Utslippsfaktorer!H$170) -> 0 | BL96: =((IF($P96="",0,VLOOKUP($P96,Utslippsfaktorer!$C$9:$I$493,Utslippsfaktorer!I$5,FALSE)))*$T96)+($U96*Utslippsfaktorer!I$170) -> 0 | BM96: 0 | BN96: 0 | BO96: 0 | BP96: 0 | BQ96: 0
B97: 23.214 | D97: Bolter, full innstøpt, lengde 4 m, diameter 20 mm | F97: stk | P97: Stål, bolter av kamstål | Q97: =IF(P97="","",VLOOKUP(P97,Utslippsfaktorer!$C$9:$D$460,2,FALSE)) -> kg | R97: =E97*4*Beregningsfaktorer!$C$50 -> 0 | S97: =IF((OR(F97=Nedtrekksmenyer!$F$4,P97="")),0,VLOOKUP(P97,Beregningsfaktorer!$L$73:$Q$352,Beregningsfaktorer!$Q$73,FALSE))*R97 -> 0 | U97: =IF((OR(F97=Nedtrekksmenyer!$F$4,P97="")),0,VLOOKUP(P97,Beregningsfaktorer!$L$73:$Q$352,Beregningsfaktorer!$Q$73,FALSE))*T97 -> 0 | V97: =IF(P97="","",VLOOKUP(P97,Utslippsfaktorer!$C$9:$AM$459,Utslippsfaktorer!$AM$5,FALSE)) -> Stål, armering og bolter kamstål | X97: =$I97*Utslippsfaktorer!E$154 -> 0 | Y97: =$I97*Utslippsfaktorer!F$154 -> 0 | Z97: =$I97*Utslippsfaktorer!G$154 -> 0 | AA97: =$I97*Utslippsfaktorer!H$154 -> 0 | AB97: =$I97*Utslippsfaktorer!I$154 -> 0 | AC97: =$L97*Utslippsfaktorer!E$171*Utslippsfaktorer!$AP$171 -> 0 | AD97: =$L97*Utslippsfaktorer!F$171*Utslippsfaktorer!$AP$171 -> 0 | AE97: =$L97*Utslippsfaktorer!G$171*Utslippsfaktorer!$AP$171 -> 0 | AF97: =$L97*Utslippsfaktorer!H$171*Utslippsfaktorer!$AP$171 -> 0 | AG97: =$L97*Utslippsfaktorer!I$171*Utslippsfaktorer!$AP$171 -> 0 | AH97: =$N97*Utslippsfaktorer!E$177 -> 0 | AI97: =$N97*Utslippsfaktorer!F$177 -> 0 | AJ97: =$N97*Utslippsfaktorer!G$177 -> 0 | AK97: =$N97*Utslippsfaktorer!H$177 -> 0 | AL97: =$N97*Utslippsfaktorer!I$177 -> 0 | AM97: =((IF($P97="",0,VLOOKUP($P97,Utslippsfaktorer!$C$9:$I$493,Utslippsfaktorer!E$5,FALSE)))*$R97)+($S97*Utslippsfaktorer!E$170) -> 0 | AN97: =((IF($P97="",0,VLOOKUP($P97,Utslippsfaktorer!$C$9:$I$493,Utslippsfaktorer!F$5,FALSE)))*$R97)+($S97*Utslippsfaktorer!F$170) -> 0 | AO97: =((IF($P97="",0,VLOOKUP($P97,Utslippsfaktorer!$C$9:$I$493,Utslippsfaktorer!G$5,FALSE)))*$R97)+($S97*Utslippsfaktorer!G$170) -> 0 | AP97: =((IF($P97="",0,VLOOKUP($P97,Utslippsfaktorer!$C$9:$I$493,Utslippsfaktorer!H$5,FALSE)))*$R97)+($S97*Utslippsfaktorer!H$170) -> 0 | AQ97: =((IF($P97="",0,VLOOKUP($P97,Utslippsfaktorer!$C$9:$I$493,Utslippsfaktorer!I$5,FALSE)))*$R97)+($S97*Utslippsfaktorer!I$170) -> 0 | AR97: 0 | AS97: 0 | AT97: 0 | AU97: 0 | AV97: 0 | AX97: =$J97*Utslippsfaktorer!E$154 -> 0 | AY97: =$J97*Utslippsfaktorer!F$154 -> 0 | AZ97: =$J97*Utslippsfaktorer!G$154 -> 0 | BA97: =$J97*Utslippsfaktorer!H$154 -> 0 | BB97: =$J97*Utslippsfaktorer!I$154 -> 0 | BC97: =$O97*Utslippsfaktorer!E$178 -> 0 | BD97: =$O97*Utslippsfaktorer!F$178 -> 0 | BE97: =$O97*Utslippsfaktorer!G$178 -> 0 | BF97: =$O97*Utslippsfaktorer!H$178 -> 0 | BG97: =$O97*Utslippsfaktorer!I$178 -> 0 | BH97: =((IF($P97="",0,VLOOKUP($P97,Utslippsfaktorer!$C$9:$I$493,Utslippsfaktorer!E$5,FALSE)))*$T97)+($U97*Utslippsfaktorer!E$170) -> 0 | BI97: =((IF($P97="",0,VLOOKUP($P97,Utslippsfaktorer!$C$9:$I$493,Utslippsfaktorer!F$5,FALSE)))*$T97)+($U97*Utslippsfaktorer!F$170) -> 0 | BJ97: =((IF($P97="",0,VLOOKUP($P97,Utslippsfaktorer!$C$9:$I$493,Utslippsfaktorer!G$5,FALSE)))*$T97)+($U97*Utslippsfaktorer!G$170) -> 0 | BK97: =((IF($P97="",0,VLOOKUP($P97,Utslippsfaktorer!$C$9:$I$493,Utslippsfaktorer!H$5,FALSE)))*$T97)+($U97*Utslippsfaktorer!H$170) -> 0 | BL97: =((IF($P97="",0,VLOOKUP($P97,Utslippsfaktorer!$C$9:$I$493,Utslippsfaktorer!I$5,FALSE)))*$T97)+($U97*Utslippsfaktorer!I$170) -> 0 | BM97: 0 | BN97: 0 | BO97: 0 | BP97: 0 | BQ97: 0
B98: 23.215 | D98: Bolter, full innstøpt, lengde 5 m, diameter 20 mm | F98: stk | P98: Stål, bolter av kamstål | Q98: =IF(P98="","",VLOOKUP(P98,Utslippsfaktorer!$C$9:$D$460,2,FALSE)) -> kg | R98: =E98*5*Beregningsfaktorer!$C$50 -> 0 | S98: =IF((OR(F98=Nedtrekksmenyer!$F$4,P98="")),0,VLOOKUP(P98,Beregningsfaktorer!$L$73:$Q$352,Beregningsfaktorer!$Q$73,FALSE))*R98 -> 0 | U98: =IF((OR(F98=Nedtrekksmenyer!$F$4,P98="")),0,VLOOKUP(P98,Beregningsfaktorer!$L$73:$Q$352,Beregningsfaktorer!$Q$73,FALSE))*T98 -> 0 | V98: =IF(P98="","",VLOOKUP(P98,Utslippsfaktorer!$C$9:$AM$459,Utslippsfaktorer!$AM$5,FALSE)) -> Stål, armering og bolter kamstål | X98: =$I98*Utslippsfaktorer!E$154 -> 0 | Y98: =$I98*Utslippsfaktorer!F$154 -> 0 | Z98: =$I98*Utslippsfaktorer!G$154 -> 0 | AA98: =$I98*Utslippsfaktorer!H$154 -> 0 | AB98: =$I98*Utslippsfaktorer!I$154 -> 0 | AC98: =$L98*Utslippsfaktorer!E$171*Utslippsfaktorer!$AP$171 -> 0 | AD98: =$L98*Utslippsfaktorer!F$171*Utslippsfaktorer!$AP$171 -> 0 | AE98: =$L98*Utslippsfaktorer!G$171*Utslippsfaktorer!$AP$171 -> 0 | AF98: =$L98*Utslippsfaktorer!H$171*Utslippsfaktorer!$AP$171 -> 0 | AG98: =$L98*Utslippsfaktorer!I$171*Utslippsfaktorer!$AP$171 -> 0 | AH98: =$N98*Utslippsfaktorer!E$177 -> 0 | AI98: =$N98*Utslippsfaktorer!F$177 -> 0 | AJ98: =$N98*Utslippsfaktorer!G$177 -> 0 | AK98: =$N98*Utslippsfaktorer!H$177 -> 0 | AL98: =$N98*Utslippsfaktorer!I$177 -> 0 | AM98: =((IF($P98="",0,VLOOKUP($P98,Utslippsfaktorer!$C$9:$I$493,Utslippsfaktorer!E$5,FALSE)))*$R98)+($S98*Utslippsfaktorer!E$170) -> 0 | AN98: =((IF($P98="",0,VLOOKUP($P98,Utslippsfaktorer!$C$9:$I$493,Utslippsfaktorer!F$5,FALSE)))*$R98)+($S98*Utslippsfaktorer!F$170) -> 0 | AO98: =((IF($P98="",0,VLOOKUP($P98,Utslippsfaktorer!$C$9:$I$493,Utslippsfaktorer!G$5,FALSE)))*$R98)+($S98*Utslippsfaktorer!G$170) -> 0 | AP98: =((IF($P98="",0,VLOOKUP($P98,Utslippsfaktorer!$C$9:$I$493,Utslippsfaktorer!H$5,FALSE)))*$R98)+($S98*Utslippsfaktorer!H$170) -> 0 | AQ98: =((IF($P98="",0,VLOOKUP($P98,Utslippsfaktorer!$C$9:$I$493,Utslippsfaktorer!I$5,FALSE)))*$R98)+($S98*Utslippsfaktorer!I$170) -> 0 | AR98: 0 | AS98: 0 | AT98: 0 | AU98: 0 | AV98: 0 | AX98: =$J98*Utslippsfaktorer!E$154 -> 0 | AY98: =$J98*Utslippsfaktorer!F$154 -> 0 | AZ98: =$J98*Utslippsfaktorer!G$154 -> 0 | BA98: =$J98*Utslippsfaktorer!H$154 -> 0 | BB98: =$J98*Utslippsfaktorer!I$154 -> 0 | BC98: =$O98*Utslippsfaktorer!E$178 -> 0 | BD98: =$O98*Utslippsfaktorer!F$178 -> 0 | BE98: =$O98*Utslippsfaktorer!G$178 -> 0 | BF98: =$O98*Utslippsfaktorer!H$178 -> 0 | BG98: =$O98*Utslippsfaktorer!I$178 -> 0 | BH98: =((IF($P98="",0,VLOOKUP($P98,Utslippsfaktorer!$C$9:$I$493,Utslippsfaktorer!E$5,FALSE)))*$T98)+($U98*Utslippsfaktorer!E$170) -> 0 | BI98: =((IF($P98="",0,VLOOKUP($P98,Utslippsfaktorer!$C$9:$I$493,Utslippsfaktorer!F$5,FALSE)))*$T98)+($U98*Utslippsfaktorer!F$170) -> 0 | BJ98: =((IF($P98="",0,VLOOKUP($P98,Utslippsfaktorer!$C$9:$I$493,Utslippsfaktorer!G$5,FALSE)))*$T98)+($U98*Utslippsfaktorer!G$170) -> 0 | BK98: =((IF($P98="",0,VLOOKUP($P98,Utslippsfaktorer!$C$9:$I$493,Utslippsfaktorer!H$5,FALSE)))*$T98)+($U98*Utslippsfaktorer!H$170) -> 0 | BL98: =((IF($P98="",0,VLOOKUP($P98,Utslippsfaktorer!$C$9:$I$493,Utslippsfaktorer!I$5,FALSE)))*$T98)+($U98*Utslippsfaktorer!I$170) -> 0 | BM98: 0 | BN98: 0 | BO98: 0 | BP98: 0 | BQ98: 0
B99: 23.216 | D99: Bolter, full innstøpt, lengde 6 m, diameter 20 mm | F99: stk | P99: Stål, bolter av kamstål | Q99: =IF(P99="","",VLOOKUP(P99,Utslippsfaktorer!$C$9:$D$460,2,FALSE)) -> kg | R99: =E99*6*Beregningsfaktorer!$C$50 -> 0 | S99: =IF((OR(F99=Nedtrekksmenyer!$F$4,P99="")),0,VLOOKUP(P99,Beregningsfaktorer!$L$73:$Q$352,Beregningsfaktorer!$Q$73,FALSE))*R99 -> 0 | U99: =IF((OR(F99=Nedtrekksmenyer!$F$4,P99="")),0,VLOOKUP(P99,Beregningsfaktorer!$L$73:$Q$352,Beregningsfaktorer!$Q$73,FALSE))*T99 -> 0 | V99: =IF(P99="","",VLOOKUP(P99,Utslippsfaktorer!$C$9:$AM$459,Utslippsfaktorer!$AM$5,FALSE)) -> Stål, armering og bolter kamstål | X99: =$I99*Utslippsfaktorer!E$154 -> 0 | Y99: =$I99*Utslippsfaktorer!F$154 -> 0 | Z99: =$I99*Utslippsfaktorer!G$154 -> 0 | AA99: =$I99*Utslippsfaktorer!H$154 -> 0 | AB99: =$I99*Utslippsfaktorer!I$154 -> 0 | AC99: =$L99*Utslippsfaktorer!E$171*Utslippsfaktorer!$AP$171 -> 0 | AD99: =$L99*Utslippsfaktorer!F$171*Utslippsfaktorer!$AP$171 -> 0 | AE99: =$L99*Utslippsfaktorer!G$171*Utslippsfaktorer!$AP$171 -> 0 | AF99: =$L99*Utslippsfaktorer!H$171*Utslippsfaktorer!$AP$171 -> 0 | AG99: =$L99*Utslippsfaktorer!I$171*Utslippsfaktorer!$AP$171 -> 0 | AH99: =$N99*Utslippsfaktorer!E$177 -> 0 | AI99: =$N99*Utslippsfaktorer!F$177 -> 0 | AJ99: =$N99*Utslippsfaktorer!G$177 -> 0 | AK99: =$N99*Utslippsfaktorer!H$177 -> 0 | AL99: =$N99*Utslippsfaktorer!I$177 -> 0 | AM99: =((IF($P99="",0,VLOOKUP($P99,Utslippsfaktorer!$C$9:$I$493,Utslippsfaktorer!E$5,FALSE)))*$R99)+($S99*Utslippsfaktorer!E$170) -> 0 | AN99: =((IF($P99="",0,VLOOKUP($P99,Utslippsfaktorer!$C$9:$I$493,Utslippsfaktorer!F$5,FALSE)))*$R99)+($S99*Utslippsfaktorer!F$170) -> 0 | AO99: =((IF($P99="",0,VLOOKUP($P99,Utslippsfaktorer!$C$9:$I$493,Utslippsfaktorer!G$5,FALSE)))*$R99)+($S99*Utslippsfaktorer!G$170) -> 0 | AP99: =((IF($P99="",0,VLOOKUP($P99,Utslippsfaktorer!$C$9:$I$493,Utslippsfaktorer!H$5,FALSE)))*$R99)+($S99*Utslippsfaktorer!H$170) -> 0 | AQ99: =((IF($P99="",0,VLOOKUP($P99,Utslippsfaktorer!$C$9:$I$493,Utslippsfaktorer!I$5,FALSE)))*$R99)+($S99*Utslippsfaktorer!I$170) -> 0 | AR99: 0 | AS99: 0 | AT99: 0 | AU99: 0 | AV99: 0 | AX99: =$J99*Utslippsfaktorer!E$154 -> 0 | AY99: =$J99*Utslippsfaktorer!F$154 -> 0 | AZ99: =$J99*Utslippsfaktorer!G$154 -> 0 | BA99: =$J99*Utslippsfaktorer!H$154 -> 0 | BB99: =$J99*Utslippsfaktorer!I$154 -> 0 | BC99: =$O99*Utslippsfaktorer!E$178 -> 0 | BD99: =$O99*Utslippsfaktorer!F$178 -> 0 | BE99: =$O99*Utslippsfaktorer!G$178 -> 0 | BF99: =$O99*Utslippsfaktorer!H$178 -> 0 | BG99: =$O99*Utslippsfaktorer!I$178 -> 0 | BH99: =((IF($P99="",0,VLOOKUP($P99,Utslippsfaktorer!$C$9:$I$493,Utslippsfaktorer!E$5,FALSE)))*$T99)+($U99*Utslippsfaktorer!E$170) -> 0 | BI99: =((IF($P99="",0,VLOOKUP($P99,Utslippsfaktorer!$C$9:$I$493,Utslippsfaktorer!F$5,FALSE)))*$T99)+($U99*Utslippsfaktorer!F$170) -> 0 | BJ99: =((IF($P99="",0,VLOOKUP($P99,Utslippsfaktorer!$C$9:$I$493,Utslippsfaktorer!G$5,FALSE)))*$T99)+($U99*Utslippsfaktorer!G$170) -> 0 | BK99: =((IF($P99="",0,VLOOKUP($P99,Utslippsfaktorer!$C$9:$I$493,Utslippsfaktorer!H$5,FALSE)))*$T99)+($U99*Utslippsfaktorer!H$170) -> 0 | BL99: =((IF($P99="",0,VLOOKUP($P99,Utslippsfaktorer!$C$9:$I$493,Utslippsfaktorer!I$5,FALSE)))*$T99)+($U99*Utslippsfaktorer!I$170) -> 0 | BM99: 0 | BN99: 0 | BO99: 0 | BP99: 0 | BQ99: 0
B100: 23.22 | D100: Kombinasjonsbolter (lengde 2,4 m, diameter 20 mm) | F100: stk | P100: Stål, bolter av kamstål | Q100: =IF(P100="","",VLOOKUP(P100,Utslippsfaktorer!$C$9:$D$460,2,FALSE)) -> kg | R100: =E100*2.4*Beregningsfaktorer!$C$50 -> 0 | S100: =IF((OR(F100=Nedtrekksmenyer!$F$4,P100="")),0,VLOOKUP(P100,Beregningsfaktorer!$L$73:$Q$352,Beregningsfaktorer!$Q$73,FALSE))*R100 -> 0 | U100: =IF((OR(F100=Nedtrekksmenyer!$F$4,P100="")),0,VLOOKUP(P100,Beregningsfaktorer!$L$73:$Q$352,Beregningsfaktorer!$Q$73,FALSE))*T100 -> 0 | V100: =IF(P100="","",VLOOKUP(P100,Utslippsfaktorer!$C$9:$AM$459,Utslippsfaktorer!$AM$5,FALSE)) -> Stål, armering og bolter kamstål | X100: =$I100*Utslippsfaktorer!E$154 -> 0 | Y100: =$I100*Utslippsfaktorer!F$154 -> 0 | Z100: =$I100*Utslippsfaktorer!G$154 -> 0 | AA100: =$I100*Utslippsfaktorer!H$154 -> 0 | AB100: =$I100*Utslippsfaktorer!I$154 -> 0 | AC100: =$L100*Utslippsfaktorer!E$171*Utslippsfaktorer!$AP$171 -> 0 | AD100: =$L100*Utslippsfaktorer!F$171*Utslippsfaktorer!$AP$171 -> 0 | AE100: =$L100*Utslippsfaktorer!G$171*Utslippsfaktorer!$AP$171 -> 0 | AF100: =$L100*Utslippsfaktorer!H$171*Utslippsfaktorer!$AP$171 -> 0 | AG100: =$L100*Utslippsfaktorer!I$171*Utslippsfaktorer!$AP$171 -> 0 | AH100: =$N100*Utslippsfaktorer!E$177 -> 0 | AI100: =$N100*Utslippsfaktorer!F$177 -> 0 | AJ100: =$N100*Utslippsfaktorer!G$177 -> 0 | AK100: =$N100*Utslippsfaktorer!H$177 -> 0 | AL100: =$N100*Utslippsfaktorer!I$177 -> 0 | AM100: =((IF($P100="",0,VLOOKUP($P100,Utslippsfaktorer!$C$9:$I$493,Utslippsfaktorer!E$5,FALSE)))*$R100)+($S100*Utslippsfaktorer!E$170) -> 0 | AN100: =((IF($P100="",0,VLOOKUP($P100,Utslippsfaktorer!$C$9:$I$493,Utslippsfaktorer!F$5,FALSE)))*$R100)+($S100*Utslippsfaktorer!F$170) -> 0 | AO100: =((IF($P100="",0,VLOOKUP($P100,Utslippsfaktorer!$C$9:$I$493,Utslippsfaktorer!G$5,FALSE)))*$R100)+($S100*Utslippsfaktorer!G$170) -> 0 | AP100: =((IF($P100="",0,VLOOKUP($P100,Utslippsfaktorer!$C$9:$I$493,Utslippsfaktorer!H$5,FALSE)))*$R100)+($S100*Utslippsfaktorer!H$170) -> 0 | AQ100: =((IF($P100="",0,VLOOKUP($P100,Utslippsfaktorer!$C$9:$I$493,Utslippsfaktorer!I$5,FALSE)))*$R100)+($S100*Utslippsfaktorer!I$170) -> 0 | AR100: 0 | AS100: 0 | AT100: 0 | AU100: 0 | AV100: 0 | AX100: =$J100*Utslippsfaktorer!E$154 -> 0 | AY100: =$J100*Utslippsfaktorer!F$154 -> 0 | AZ100: =$J100*Utslippsfaktorer!G$154 -> 0 | BA100: =$J100*Utslippsfaktorer!H$154 -> 0 | BB100: =$J100*Utslippsfaktorer!I$154 -> 0 | BC100: =$O100*Utslippsfaktorer!E$178 -> 0 | BD100: =$O100*Utslippsfaktorer!F$178 -> 0 | BE100: =$O100*Utslippsfaktorer!G$178 -> 0 | BF100: =$O100*Utslippsfaktorer!H$178 -> 0 | BG100: =$O100*Utslippsfaktorer!I$178 -> 0 | BH100: =((IF($P100="",0,VLOOKUP($P100,Utslippsfaktorer!$C$9:$I$493,Utslippsfaktorer!E$5,FALSE)))*$T100)+($U100*Utslippsfaktorer!E$170) -> 0 | BI100: =((IF($P100="",0,VLOOKUP($P100,Utslippsfaktorer!$C$9:$I$493,Utslippsfaktorer!F$5,FALSE)))*$T100)+($U100*Utslippsfaktorer!F$170) -> 0 | BJ100: =((IF($P100="",0,VLOOKUP($P100,Utslippsfaktorer!$C$9:$I$493,Utslippsfaktorer!G$5,FALSE)))*$T100)+($U100*Utslippsfaktorer!G$170) -> 0 | BK100: =((IF($P100="",0,VLOOKUP($P100,Utslippsfaktorer!$C$9:$I$493,Utslippsfaktorer!H$5,FALSE)))*$T100)+($U100*Utslippsfaktorer!H$170) -> 0 | BL100: =((IF($P100="",0,VLOOKUP($P100,Utslippsfaktorer!$C$9:$I$493,Utslippsfaktorer!I$5,FALSE)))*$T100)+($U100*Utslippsfaktorer!I$170) -> 0 | BM100: 0 | BN100: 0 | BO100: 0 | BP100: 0 | BQ100: 0
B101: 23.221 | D101: Kombinasjonsbolter, lengde 1,5 m, diameter 20 mm | F101: stk | P101: Stål, bolter av kamstål | Q101: =IF(P101="","",VLOOKUP(P101,Utslippsfaktorer!$C$9:$D$460,2,FALSE)) -> kg | R101: =E101*1.5*Beregningsfaktorer!$C$50 -> 0 | S101: =IF((OR(F101=Nedtrekksmenyer!$F$4,P101="")),0,VLOOKUP(P101,Beregningsfaktorer!$L$73:$Q$352,Beregningsfaktorer!$Q$73,FALSE))*R101 -> 0 | U101: =IF((OR(F101=Nedtrekksmenyer!$F$4,P101="")),0,VLOOKUP(P101,Beregningsfaktorer!$L$73:$Q$352,Beregningsfaktorer!$Q$73,FALSE))*T101 -> 0 | V101: =IF(P101="","",VLOOKUP(P101,Utslippsfaktorer!$C$9:$AM$459,Utslippsfaktorer!$AM$5,FALSE)) -> Stål, armering og bolter kamstål | X101: =$I101*Utslippsfaktorer!E$154 -> 0 | Y101: =$I101*Utslippsfaktorer!F$154 -> 0 | Z101: =$I101*Utslippsfaktorer!G$154 -> 0 | AA101: =$I101*Utslippsfaktorer!H$154 -> 0 | AB101: =$I101*Utslippsfaktorer!I$154 -> 0 | AC101: =$L101*Utslippsfaktorer!E$171*Utslippsfaktorer!$AP$171 -> 0 | AD101: =$L101*Utslippsfaktorer!F$171*Utslippsfaktorer!$AP$171 -> 0 | AE101: =$L101*Utslippsfaktorer!G$171*Utslippsfaktorer!$AP$171 -> 0 | AF101: =$L101*Utslippsfaktorer!H$171*Utslippsfaktorer!$AP$171 -> 0 | AG101: =$L101*Utslippsfaktorer!I$171*Utslippsfaktorer!$AP$171 -> 0 | AH101: =$N101*Utslippsfaktorer!E$177 -> 0 | AI101: =$N101*Utslippsfaktorer!F$177 -> 0 | AJ101: =$N101*Utslippsfaktorer!G$177 -> 0 | AK101: =$N101*Utslippsfaktorer!H$177 -> 0 | AL101: =$N101*Utslippsfaktorer!I$177 -> 0 | AM101: =((IF($P101="",0,VLOOKUP($P101,Utslippsfaktorer!$C$9:$I$493,Utslippsfaktorer!E$5,FALSE)))*$R101)+($S101*Utslippsfaktorer!E$170) -> 0 | AN101: =((IF($P101="",0,VLOOKUP($P101,Utslippsfaktorer!$C$9:$I$493,Utslippsfaktorer!F$5,FALSE)))*$R101)+($S101*Utslippsfaktorer!F$170) -> 0 | AO101: =((IF($P101="",0,VLOOKUP($P101,Utslippsfaktorer!$C$9:$I$493,Utslippsfaktorer!G$5,FALSE)))*$R101)+($S101*Utslippsfaktorer!G$170) -> 0 | AP101: =((IF($P101="",0,VLOOKUP($P101,Utslippsfaktorer!$C$9:$I$493,Utslippsfaktorer!H$5,FALSE)))*$R101)+($S101*Utslippsfaktorer!H$170) -> 0 | AQ101: =((IF($P101="",0,VLOOKUP($P101,Utslippsfaktorer!$C$9:$I$493,Utslippsfaktorer!I$5,FALSE)))*$R101)+($S101*Utslippsfaktorer!I$170) -> 0 | AR101: 0 | AS101: 0 | AT101: 0 | AU101: 0 | AV101: 0 | AX101: =$J101*Utslippsfaktorer!E$154 -> 0 | AY101: =$J101*Utslippsfaktorer!F$154 -> 0 | AZ101: =$J101*Utslippsfaktorer!G$154 -> 0 | BA101: =$J101*Utslippsfaktorer!H$154 -> 0 | BB101: =$J101*Utslippsfaktorer!I$154 -> 0 | BC101: =$O101*Utslippsfaktorer!E$178 -> 0 | BD101: =$O101*Utslippsfaktorer!F$178 -> 0 | BE101: =$O101*Utslippsfaktorer!G$178 -> 0 | BF101: =$O101*Utslippsfaktorer!H$178 -> 0 | BG101: =$O101*Utslippsfaktorer!I$178 -> 0 | BH101: =((IF($P101="",0,VLOOKUP($P101,Utslippsfaktorer!$C$9:$I$493,Utslippsfaktorer!E$5,FALSE)))*$T101)+($U101*Utslippsfaktorer!E$170) -> 0 | BI101: =((IF($P101="",0,VLOOKUP($P101,Utslippsfaktorer!$C$9:$I$493,Utslippsfaktorer!F$5,FALSE)))*$T101)+($U101*Utslippsfaktorer!F$170) -> 0 | BJ101: =((IF($P101="",0,VLOOKUP($P101,Utslippsfaktorer!$C$9:$I$493,Utslippsfaktorer!G$5,FALSE)))*$T101)+($U101*Utslippsfaktorer!G$170) -> 0 | BK101: =((IF($P101="",0,VLOOKUP($P101,Utslippsfaktorer!$C$9:$I$493,Utslippsfaktorer!H$5,FALSE)))*$T101)+($U101*Utslippsfaktorer!H$170) -> 0 | BL101: =((IF($P101="",0,VLOOKUP($P101,Utslippsfaktorer!$C$9:$I$493,Utslippsfaktorer!I$5,FALSE)))*$T101)+($U101*Utslippsfaktorer!I$170) -> 0 | BM101: 0 | BN101: 0 | BO101: 0 | BP101: 0 | BQ101: 0
B102: 23.222 | D102: Kombinasjonsbolter, lengde 2,4 m, diameter 20 mm | F102: stk | P102: Stål, bolter av kamstål | Q102: =IF(P102="","",VLOOKUP(P102,Utslippsfaktorer!$C$9:$D$460,2,FALSE)) -> kg | R102: =E102*2.4*Beregningsfaktorer!$C$50 -> 0 | S102: =IF((OR(F102=Nedtrekksmenyer!$F$4,P102="")),0,VLOOKUP(P102,Beregningsfaktorer!$L$73:$Q$352,Beregningsfaktorer!$Q$73,FALSE))*R102 -> 0 | U102: =IF((OR(F102=Nedtrekksmenyer!$F$4,P102="")),0,VLOOKUP(P102,Beregningsfaktorer!$L$73:$Q$352,Beregningsfaktorer!$Q$73,FALSE))*T102 -> 0 | V102: =IF(P102="","",VLOOKUP(P102,Utslippsfaktorer!$C$9:$AM$459,Utslippsfaktorer!$AM$5,FALSE)) -> Stål, armering og bolter kamstål | X102: =$I102*Utslippsfaktorer!E$154 -> 0 | Y102: =$I102*Utslippsfaktorer!F$154 -> 0 | Z102: =$I102*Utslippsfaktorer!G$154 -> 0 | AA102: =$I102*Utslippsfaktorer!H$154 -> 0 | AB102: =$I102*Utslippsfaktorer!I$154 -> 0 | AC102: =$L102*Utslippsfaktorer!E$171*Utslippsfaktorer!$AP$171 -> 0 | AD102: =$L102*Utslippsfaktorer!F$171*Utslippsfaktorer!$AP$171 -> 0 | AE102: =$L102*Utslippsfaktorer!G$171*Utslippsfaktorer!$AP$171 -> 0 | AF102: =$L102*Utslippsfaktorer!H$171*Utslippsfaktorer!$AP$171 -> 0 | AG102: =$L102*Utslippsfaktorer!I$171*Utslippsfaktorer!$AP$171 -> 0 | AH102: =$N102*Utslippsfaktorer!E$177 -> 0 | AI102: =$N102*Utslippsfaktorer!F$177 -> 0 | AJ102: =$N102*Utslippsfaktorer!G$177 -> 0 | AK102: =$N102*Utslippsfaktorer!H$177 -> 0 | AL102: =$N102*Utslippsfaktorer!I$177 -> 0 | AM102: =((IF($P102="",0,VLOOKUP($P102,Utslippsfaktorer!$C$9:$I$493,Utslippsfaktorer!E$5,FALSE)))*$R102)+($S102*Utslippsfaktorer!E$170) -> 0 | AN102: =((IF($P102="",0,VLOOKUP($P102,Utslippsfaktorer!$C$9:$I$493,Utslippsfaktorer!F$5,FALSE)))*$R102)+($S102*Utslippsfaktorer!F$170) -> 0 | AO102: =((IF($P102="",0,VLOOKUP($P102,Utslippsfaktorer!$C$9:$I$493,Utslippsfaktorer!G$5,FALSE)))*$R102)+($S102*Utslippsfaktorer!G$170) -> 0 | AP102: =((IF($P102="",0,VLOOKUP($P102,Utslippsfaktorer!$C$9:$I$493,Utslippsfaktorer!H$5,FALSE)))*$R102)+($S102*Utslippsfaktorer!H$170) -> 0 | AQ102: =((IF($P102="",0,VLOOKUP($P102,Utslippsfaktorer!$C$9:$I$493,Utslippsfaktorer!I$5,FALSE)))*$R102)+($S102*Utslippsfaktorer!I$170) -> 0 | AR102: 0 | AS102: 0 | AT102: 0 | AU102: 0 | AV102: 0 | AX102: =$J102*Utslippsfaktorer!E$154 -> 0 | AY102: =$J102*Utslippsfaktorer!F$154 -> 0 | AZ102: =$J102*Utslippsfaktorer!G$154 -> 0 | BA102: =$J102*Utslippsfaktorer!H$154 -> 0 | BB102: =$J102*Utslippsfaktorer!I$154 -> 0 | BC102: =$O102*Utslippsfaktorer!E$178 -> 0 | BD102: =$O102*Utslippsfaktorer!F$178 -> 0 | BE102: =$O102*Utslippsfaktorer!G$178 -> 0 | BF102: =$O102*Utslippsfaktorer!H$178 -> 0 | BG102: =$O102*Utslippsfaktorer!I$178 -> 0 | BH102: =((IF($P102="",0,VLOOKUP($P102,Utslippsfaktorer!$C$9:$I$493,Utslippsfaktorer!E$5,FALSE)))*$T102)+($U102*Utslippsfaktorer!E$170) -> 0 | BI102: =((IF($P102="",0,VLOOKUP($P102,Utslippsfaktorer!$C$9:$I$493,Utslippsfaktorer!F$5,FALSE)))*$T102)+($U102*Utslippsfaktorer!F$170) -> 0 | BJ102: =((IF($P102="",0,VLOOKUP($P102,Utslippsfaktorer!$C$9:$I$493,Utslippsfaktorer!G$5,FALSE)))*$T102)+($U102*Utslippsfaktorer!G$170) -> 0 | BK102: =((IF($P102="",0,VLOOKUP($P102,Utslippsfaktorer!$C$9:$I$493,Utslippsfaktorer!H$5,FALSE)))*$T102)+($U102*Utslippsfaktorer!H$170) -> 0 | BL102: =((IF($P102="",0,VLOOKUP($P102,Utslippsfaktorer!$C$9:$I$493,Utslippsfaktorer!I$5,FALSE)))*$T102)+($U102*Utslippsfaktorer!I$170) -> 0 | BM102: 0 | BN102: 0 | BO102: 0 | BP102: 0 | BQ102: 0
B103: 23.223 | D103: Kombinasjonsbolter, lengde 3 m, diameter 20 mm | F103: stk | P103: Stål, bolter av kamstål | Q103: =IF(P103="","",VLOOKUP(P103,Utslippsfaktorer!$C$9:$D$460,2,FALSE)) -> kg | R103: =E103*3*Beregningsfaktorer!$C$50 -> 0 | S103: =IF((OR(F103=Nedtrekksmenyer!$F$4,P103="")),0,VLOOKUP(P103,Beregningsfaktorer!$L$73:$Q$352,Beregningsfaktorer!$Q$73,FALSE))*R103 -> 0 | U103: =IF((OR(F103=Nedtrekksmenyer!$F$4,P103="")),0,VLOOKUP(P103,Beregningsfaktorer!$L$73:$Q$352,Beregningsfaktorer!$Q$73,FALSE))*T103 -> 0 | V103: =IF(P103="","",VLOOKUP(P103,Utslippsfaktorer!$C$9:$AM$459,Utslippsfaktorer!$AM$5,FALSE)) -> Stål, armering og bolter kamstål | X103: =$I103*Utslippsfaktorer!E$154 -> 0 | Y103: =$I103*Utslippsfaktorer!F$154 -> 0 | Z103: =$I103*Utslippsfaktorer!G$154 -> 0 | AA103: =$I103*Utslippsfaktorer!H$154 -> 0 | AB103: =$I103*Utslippsfaktorer!I$154 -> 0 | AC103: =$L103*Utslippsfaktorer!E$171*Utslippsfaktorer!$AP$171 -> 0 | AD103: =$L103*Utslippsfaktorer!F$171*Utslippsfaktorer!$AP$171 -> 0 | AE103: =$L103*Utslippsfaktorer!G$171*Utslippsfaktorer!$AP$171 -> 0 | AF103: =$L103*Utslippsfaktorer!H$171*Utslippsfaktorer!$AP$171 -> 0 | AG103: =$L103*Utslippsfaktorer!I$171*Utslippsfaktorer!$AP$171 -> 0 | AH103: =$N103*Utslippsfaktorer!E$177 -> 0 | AI103: =$N103*Utslippsfaktorer!F$177 -> 0 | AJ103: =$N103*Utslippsfaktorer!G$177 -> 0 | AK103: =$N103*Utslippsfaktorer!H$177 -> 0 | AL103: =$N103*Utslippsfaktorer!I$177 -> 0 | AM103: =((IF($P103="",0,VLOOKUP($P103,Utslippsfaktorer!$C$9:$I$493,Utslippsfaktorer!E$5,FALSE)))*$R103)+($S103*Utslippsfaktorer!E$170) -> 0 | AN103: =((IF($P103="",0,VLOOKUP($P103,Utslippsfaktorer!$C$9:$I$493,Utslippsfaktorer!F$5,FALSE)))*$R103)+($S103*Utslippsfaktorer!F$170) -> 0 | AO103: =((IF($P103="",0,VLOOKUP($P103,Utslippsfaktorer!$C$9:$I$493,Utslippsfaktorer!G$5,FALSE)))*$R103)+($S103*Utslippsfaktorer!G$170) -> 0 | AP103: =((IF($P103="",0,VLOOKUP($P103,Utslippsfaktorer!$C$9:$I$493,Utslippsfaktorer!H$5,FALSE)))*$R103)+($S103*Utslippsfaktorer!H$170) -> 0 | AQ103: =((IF($P103="",0,VLOOKUP($P103,Utslippsfaktorer!$C$9:$I$493,Utslippsfaktorer!I$5,FALSE)))*$R103)+($S103*Utslippsfaktorer!I$170) -> 0 | AR103: 0 | AS103: 0 | AT103: 0 | AU103: 0 | AV103: 0 | AX103: =$J103*Utslippsfaktorer!E$154 -> 0 | AY103: =$J103*Utslippsfaktorer!F$154 -> 0 | AZ103: =$J103*Utslippsfaktorer!G$154 -> 0 | BA103: =$J103*Utslippsfaktorer!H$154 -> 0 | BB103: =$J103*Utslippsfaktorer!I$154 -> 0 | BC103: =$O103*Utslippsfaktorer!E$178 -> 0 | BD103: =$O103*Utslippsfaktorer!F$178 -> 0 | BE103: =$O103*Utslippsfaktorer!G$178 -> 0 | BF103: =$O103*Utslippsfaktorer!H$178 -> 0 | BG103: =$O103*Utslippsfaktorer!I$178 -> 0 | BH103: =((IF($P103="",0,VLOOKUP($P103,Utslippsfaktorer!$C$9:$I$493,Utslippsfaktorer!E$5,FALSE)))*$T103)+($U103*Utslippsfaktorer!E$170) -> 0 | BI103: =((IF($P103="",0,VLOOKUP($P103,Utslippsfaktorer!$C$9:$I$493,Utslippsfaktorer!F$5,FALSE)))*$T103)+($U103*Utslippsfaktorer!F$170) -> 0 | BJ103: =((IF($P103="",0,VLOOKUP($P103,Utslippsfaktorer!$C$9:$I$493,Utslippsfaktorer!G$5,FALSE)))*$T103)+($U103*Utslippsfaktorer!G$170) -> 0 | BK103: =((IF($P103="",0,VLOOKUP($P103,Utslippsfaktorer!$C$9:$I$493,Utslippsfaktorer!H$5,FALSE)))*$T103)+($U103*Utslippsfaktorer!H$170) -> 0 | BL103: =((IF($P103="",0,VLOOKUP($P103,Utslippsfaktorer!$C$9:$I$493,Utslippsfaktorer!I$5,FALSE)))*$T103)+($U103*Utslippsfaktorer!I$170) -> 0 | BM103: 0 | BN103: 0 | BO103: 0 | BP103: 0 | BQ103: 0
B104: 23.224 | D104: Kombinasjonsbolter, lengde 4 m, diameter 20 mm | F104: stk | P104: Stål, bolter av kamstål | Q104: =IF(P104="","",VLOOKUP(P104,Utslippsfaktorer!$C$9:$D$460,2,FALSE)) -> kg | R104: =E104*4*Beregningsfaktorer!$C$50 -> 0 | S104: =IF((OR(F104=Nedtrekksmenyer!$F$4,P104="")),0,VLOOKUP(P104,Beregningsfaktorer!$L$73:$Q$352,Beregningsfaktorer!$Q$73,FALSE))*R104 -> 0 | U104: =IF((OR(F104=Nedtrekksmenyer!$F$4,P104="")),0,VLOOKUP(P104,Beregningsfaktorer!$L$73:$Q$352,Beregningsfaktorer!$Q$73,FALSE))*T104 -> 0 | V104: =IF(P104="","",VLOOKUP(P104,Utslippsfaktorer!$C$9:$AM$459,Utslippsfaktorer!$AM$5,FALSE)) -> Stål, armering og bolter kamstål | X104: =$I104*Utslippsfaktorer!E$154 -> 0 | Y104: =$I104*Utslippsfaktorer!F$154 -> 0 | Z104: =$I104*Utslippsfaktorer!G$154 -> 0 | AA104: =$I104*Utslippsfaktorer!H$154 -> 0 | AB104: =$I104*Utslippsfaktorer!I$154 -> 0 | AC104: =$L104*Utslippsfaktorer!E$171*Utslippsfaktorer!$AP$171 -> 0 | AD104: =$L104*Utslippsfaktorer!F$171*Utslippsfaktorer!$AP$171 -> 0 | AE104: =$L104*Utslippsfaktorer!G$171*Utslippsfaktorer!$AP$171 -> 0 | AF104: =$L104*Utslippsfaktorer!H$171*Utslippsfaktorer!$AP$171 -> 0 | AG104: =$L104*Utslippsfaktorer!I$171*Utslippsfaktorer!$AP$171 -> 0 | AH104: =$N104*Utslippsfaktorer!E$177 -> 0 | AI104: =$N104*Utslippsfaktorer!F$177 -> 0 | AJ104: =$N104*Utslippsfaktorer!G$177 -> 0 | AK104: =$N104*Utslippsfaktorer!H$177 -> 0 | AL104: =$N104*Utslippsfaktorer!I$177 -> 0 | AM104: =((IF($P104="",0,VLOOKUP($P104,Utslippsfaktorer!$C$9:$I$493,Utslippsfaktorer!E$5,FALSE)))*$R104)+($S104*Utslippsfaktorer!E$170) -> 0 | AN104: =((IF($P104="",0,VLOOKUP($P104,Utslippsfaktorer!$C$9:$I$493,Utslippsfaktorer!F$5,FALSE)))*$R104)+($S104*Utslippsfaktorer!F$170) -> 0 | AO104: =((IF($P104="",0,VLOOKUP($P104,Utslippsfaktorer!$C$9:$I$493,Utslippsfaktorer!G$5,FALSE)))*$R104)+($S104*Utslippsfaktorer!G$170) -> 0 | AP104: =((IF($P104="",0,VLOOKUP($P104,Utslippsfaktorer!$C$9:$I$493,Utslippsfaktorer!H$5,FALSE)))*$R104)+($S104*Utslippsfaktorer!H$170) -> 0 | AQ104: =((IF($P104="",0,VLOOKUP($P104,Utslippsfaktorer!$C$9:$I$493,Utslippsfaktorer!I$5,FALSE)))*$R104)+($S104*Utslippsfaktorer!I$170) -> 0 | AR104: 0 | AS104: 0 | AT104: 0 | AU104: 0 | AV104: 0 | AX104: =$J104*Utslippsfaktorer!E$154 -> 0 | AY104: =$J104*Utslippsfaktorer!F$154 -> 0 | AZ104: =$J104*Utslippsfaktorer!G$154 -> 0 | BA104: =$J104*Utslippsfaktorer!H$154 -> 0 | BB104: =$J104*Utslippsfaktorer!I$154 -> 0 | BC104: =$O104*Utslippsfaktorer!E$178 -> 0 | BD104: =$O104*Utslippsfaktorer!F$178 -> 0 | BE104: =$O104*Utslippsfaktorer!G$178 -> 0 | BF104: =$O104*Utslippsfaktorer!H$178 -> 0 | BG104: =$O104*Utslippsfaktorer!I$178 -> 0 | BH104: =((IF($P104="",0,VLOOKUP($P104,Utslippsfaktorer!$C$9:$I$493,Utslippsfaktorer!E$5,FALSE)))*$T104)+($U104*Utslippsfaktorer!E$170) -> 0 | BI104: =((IF($P104="",0,VLOOKUP($P104,Utslippsfaktorer!$C$9:$I$493,Utslippsfaktorer!F$5,FALSE)))*$T104)+($U104*Utslippsfaktorer!F$170) -> 0 | BJ104: =((IF($P104="",0,VLOOKUP($P104,Utslippsfaktorer!$C$9:$I$493,Utslippsfaktorer!G$5,FALSE)))*$T104)+($U104*Utslippsfaktorer!G$170) -> 0 | BK104: =((IF($P104="",0,VLOOKUP($P104,Utslippsfaktorer!$C$9:$I$493,Utslippsfaktorer!H$5,FALSE)))*$T104)+($U104*Utslippsfaktorer!H$170) -> 0 | BL104: =((IF($P104="",0,VLOOKUP($P104,Utslippsfaktorer!$C$9:$I$493,Utslippsfaktorer!I$5,FALSE)))*$T104)+($U104*Utslippsfaktorer!I$170) -> 0 | BM104: 0 | BN104: 0 | BO104: 0 | BP104: 0 | BQ104: 0
B105: 23.225 | D105: Kombinasjonsbolter, lengde 5 m, diameter 20 mm | F105: stk | P105: Stål, bolter av kamstål | Q105: =IF(P105="","",VLOOKUP(P105,Utslippsfaktorer!$C$9:$D$460,2,FALSE)) -> kg | R105: =E105*5*Beregningsfaktorer!$C$50 -> 0 | S105: =IF((OR(F105=Nedtrekksmenyer!$F$4,P105="")),0,VLOOKUP(P105,Beregningsfaktorer!$L$73:$Q$352,Beregningsfaktorer!$Q$73,FALSE))*R105 -> 0 | U105: =IF((OR(F105=Nedtrekksmenyer!$F$4,P105="")),0,VLOOKUP(P105,Beregningsfaktorer!$L$73:$Q$352,Beregningsfaktorer!$Q$73,FALSE))*T105 -> 0 | V105: =IF(P105="","",VLOOKUP(P105,Utslippsfaktorer!$C$9:$AM$459,Utslippsfaktorer!$AM$5,FALSE)) -> Stål, armering og bolter kamstål | X105: =$I105*Utslippsfaktorer!E$154 -> 0 | Y105: =$I105*Utslippsfaktorer!F$154 -> 0 | Z105: =$I105*Utslippsfaktorer!G$154 -> 0 | AA105: =$I105*Utslippsfaktorer!H$154 -> 0 | AB105: =$I105*Utslippsfaktorer!I$154 -> 0 | AC105: =$L105*Utslippsfaktorer!E$171*Utslippsfaktorer!$AP$171 -> 0 | AD105: =$L105*Utslippsfaktorer!F$171*Utslippsfaktorer!$AP$171 -> 0 | AE105: =$L105*Utslippsfaktorer!G$171*Utslippsfaktorer!$AP$171 -> 0 | AF105: =$L105*Utslippsfaktorer!H$171*Utslippsfaktorer!$AP$171 -> 0 | AG105: =$L105*Utslippsfaktorer!I$171*Utslippsfaktorer!$AP$171 -> 0 | AH105: =$N105*Utslippsfaktorer!E$177 -> 0 | AI105: =$N105*Utslippsfaktorer!F$177 -> 0 | AJ105: =$N105*Utslippsfaktorer!G$177 -> 0 | AK105: =$N105*Utslippsfaktorer!H$177 -> 0 | AL105: =$N105*Utslippsfaktorer!I$177 -> 0 | AM105: =((IF($P105="",0,VLOOKUP($P105,Utslippsfaktorer!$C$9:$I$493,Utslippsfaktorer!E$5,FALSE)))*$R105)+($S105*Utslippsfaktorer!E$170) -> 0 | AN105: =((IF($P105="",0,VLOOKUP($P105,Utslippsfaktorer!$C$9:$I$493,Utslippsfaktorer!F$5,FALSE)))*$R105)+($S105*Utslippsfaktorer!F$170) -> 0 | AO105: =((IF($P105="",0,VLOOKUP($P105,Utslippsfaktorer!$C$9:$I$493,Utslippsfaktorer!G$5,FALSE)))*$R105)+($S105*Utslippsfaktorer!G$170) -> 0 | AP105: =((IF($P105="",0,VLOOKUP($P105,Utslippsfaktorer!$C$9:$I$493,Utslippsfaktorer!H$5,FALSE)))*$R105)+($S105*Utslippsfaktorer!H$170) -> 0 | AQ105: =((IF($P105="",0,VLOOKUP($P105,Utslippsfaktorer!$C$9:$I$493,Utslippsfaktorer!I$5,FALSE)))*$R105)+($S105*Utslippsfaktorer!I$170) -> 0 | AR105: 0 | AS105: 0 | AT105: 0 | AU105: 0 | AV105: 0 | AX105: =$J105*Utslippsfaktorer!E$154 -> 0 | AY105: =$J105*Utslippsfaktorer!F$154 -> 0 | AZ105: =$J105*Utslippsfaktorer!G$154 -> 0 | BA105: =$J105*Utslippsfaktorer!H$154 -> 0 | BB105: =$J105*Utslippsfaktorer!I$154 -> 0 | BC105: =$O105*Utslippsfaktorer!E$178 -> 0 | BD105: =$O105*Utslippsfaktorer!F$178 -> 0 | BE105: =$O105*Utslippsfaktorer!G$178 -> 0 | BF105: =$O105*Utslippsfaktorer!H$178 -> 0 | BG105: =$O105*Utslippsfaktorer!I$178 -> 0 | BH105: =((IF($P105="",0,VLOOKUP($P105,Utslippsfaktorer!$C$9:$I$493,Utslippsfaktorer!E$5,FALSE)))*$T105)+($U105*Utslippsfaktorer!E$170) -> 0 | BI105: =((IF($P105="",0,VLOOKUP($P105,Utslippsfaktorer!$C$9:$I$493,Utslippsfaktorer!F$5,FALSE)))*$T105)+($U105*Utslippsfaktorer!F$170) -> 0 | BJ105: =((IF($P105="",0,VLOOKUP($P105,Utslippsfaktorer!$C$9:$I$493,Utslippsfaktorer!G$5,FALSE)))*$T105)+($U105*Utslippsfaktorer!G$170) -> 0 | BK105: =((IF($P105="",0,VLOOKUP($P105,Utslippsfaktorer!$C$9:$I$493,Utslippsfaktorer!H$5,FALSE)))*$T105)+($U105*Utslippsfaktorer!H$170) -> 0 | BL105: =((IF($P105="",0,VLOOKUP($P105,Utslippsfaktorer!$C$9:$I$493,Utslippsfaktorer!I$5,FALSE)))*$T105)+($U105*Utslippsfaktorer!I$170) -> 0 | BM105: 0 | BN105: 0 | BO105: 0 | BP105: 0 | BQ105: 0
B106: 23.23 | D106: Endeforankrede bolter (lengde 2,4 m, diameter 20 mm) | F106: stk | P106: Stål, bolter av kamstål | Q106: =IF(P106="","",VLOOKUP(P106,Utslippsfaktorer!$C$9:$D$460,2,FALSE)) -> kg | R106: =E106*2.4*Beregningsfaktorer!$C$50 -> 0 | S106: =IF((OR(F106=Nedtrekksmenyer!$F$4,P106="")),0,VLOOKUP(P106,Beregningsfaktorer!$L$73:$Q$352,Beregningsfaktorer!$Q$73,FALSE))*R106 -> 0 | U106: =IF((OR(F106=Nedtrekksmenyer!$F$4,P106="")),0,VLOOKUP(P106,Beregningsfaktorer!$L$73:$Q$352,Beregningsfaktorer!$Q$73,FALSE))*T106 -> 0 | V106: =IF(P106="","",VLOOKUP(P106,Utslippsfaktorer!$C$9:$AM$459,Utslippsfaktorer!$AM$5,FALSE)) -> Stål, armering og bolter kamstål | X106: =$I106*Utslippsfaktorer!E$154 -> 0 | Y106: =$I106*Utslippsfaktorer!F$154 -> 0 | Z106: =$I106*Utslippsfaktorer!G$154 -> 0 | AA106: =$I106*Utslippsfaktorer!H$154 -> 0 | AB106: =$I106*Utslippsfaktorer!I$154 -> 0 | AC106: =$L106*Utslippsfaktorer!E$171*Utslippsfaktorer!$AP$171 -> 0 | AD106: =$L106*Utslippsfaktorer!F$171*Utslippsfaktorer!$AP$171 -> 0 | AE106: =$L106*Utslippsfaktorer!G$171*Utslippsfaktorer!$AP$171 -> 0 | AF106: =$L106*Utslippsfaktorer!H$171*Utslippsfaktorer!$AP$171 -> 0 | AG106: =$L106*Utslippsfaktorer!I$171*Utslippsfaktorer!$AP$171 -> 0 | AH106: =$N106*Utslippsfaktorer!E$177 -> 0 | AI106: =$N106*Utslippsfaktorer!F$177 -> 0 | AJ106: =$N106*Utslippsfaktorer!G$177 -> 0 | AK106: =$N106*Utslippsfaktorer!H$177 -> 0 | AL106: =$N106*Utslippsfaktorer!I$177 -> 0 | AM106: =((IF($P106="",0,VLOOKUP($P106,Utslippsfaktorer!$C$9:$I$493,Utslippsfaktorer!E$5,FALSE)))*$R106)+($S106*Utslippsfaktorer!E$170) -> 0 | AN106: =((IF($P106="",0,VLOOKUP($P106,Utslippsfaktorer!$C$9:$I$493,Utslippsfaktorer!F$5,FALSE)))*$R106)+($S106*Utslippsfaktorer!F$170) -> 0 | AO106: =((IF($P106="",0,VLOOKUP($P106,Utslippsfaktorer!$C$9:$I$493,Utslippsfaktorer!G$5,FALSE)))*$R106)+($S106*Utslippsfaktorer!G$170) -> 0 | AP106: =((IF($P106="",0,VLOOKUP($P106,Utslippsfaktorer!$C$9:$I$493,Utslippsfaktorer!H$5,FALSE)))*$R106)+($S106*Utslippsfaktorer!H$170) -> 0 | AQ106: =((IF($P106="",0,VLOOKUP($P106,Utslippsfaktorer!$C$9:$I$493,Utslippsfaktorer!I$5,FALSE)))*$R106)+($S106*Utslippsfaktorer!I$170) -> 0 | AR106: 0 | AS106: 0 | AT106: 0 | AU106: 0 | AV106: 0 | AX106: =$J106*Utslippsfaktorer!E$154 -> 0 | AY106: =$J106*Utslippsfaktorer!F$154 -> 0 | AZ106: =$J106*Utslippsfaktorer!G$154 -> 0 | BA106: =$J106*Utslippsfaktorer!H$154 -> 0 | BB106: =$J106*Utslippsfaktorer!I$154 -> 0 | BC106: =$O106*Utslippsfaktorer!E$178 -> 0 | BD106: =$O106*Utslippsfaktorer!F$178 -> 0 | BE106: =$O106*Utslippsfaktorer!G$178 -> 0 | BF106: =$O106*Utslippsfaktorer!H$178 -> 0 | BG106: =$O106*Utslippsfaktorer!I$178 -> 0 | BH106: =((IF($P106="",0,VLOOKUP($P106,Utslippsfaktorer!$C$9:$I$493,Utslippsfaktorer!E$5,FALSE)))*$T106)+($U106*Utslippsfaktorer!E$170) -> 0 | BI106: =((IF($P106="",0,VLOOKUP($P106,Utslippsfaktorer!$C$9:$I$493,Utslippsfaktorer!F$5,FALSE)))*$T106)+($U106*Utslippsfaktorer!F$170) -> 0 | BJ106: =((IF($P106="",0,VLOOKUP($P106,Utslippsfaktorer!$C$9:$I$493,Utslippsfaktorer!G$5,FALSE)))*$T106)+($U106*Utslippsfaktorer!G$170) -> 0 | BK106: =((IF($P106="",0,VLOOKUP($P106,Utslippsfaktorer!$C$9:$I$493,Utslippsfaktorer!H$5,FALSE)))*$T106)+($U106*Utslippsfaktorer!H$170) -> 0 | BL106: =((IF($P106="",0,VLOOKUP($P106,Utslippsfaktorer!$C$9:$I$493,Utslippsfaktorer!I$5,FALSE)))*$T106)+($U106*Utslippsfaktorer!I$170) -> 0 | BM106: 0 | BN106: 0 | BO106: 0 | BP106: 0 | BQ106: 0
B107: 23.231 | D107: Bolter, endeforankrede, lengde 1,5 m, diameter 20 mm | F107: stk | P107: Stål, bolter av kamstål | Q107: =IF(P107="","",VLOOKUP(P107,Utslippsfaktorer!$C$9:$D$460,2,FALSE)) -> kg | R107: =E107*1.5*Beregningsfaktorer!$C$50 -> 0 | S107: =IF((OR(F107=Nedtrekksmenyer!$F$4,P107="")),0,VLOOKUP(P107,Beregningsfaktorer!$L$73:$Q$352,Beregningsfaktorer!$Q$73,FALSE))*R107 -> 0 | U107: =IF((OR(F107=Nedtrekksmenyer!$F$4,P107="")),0,VLOOKUP(P107,Beregningsfaktorer!$L$73:$Q$352,Beregningsfaktorer!$Q$73,FALSE))*T107 -> 0 | V107: =IF(P107="","",VLOOKUP(P107,Utslippsfaktorer!$C$9:$AM$459,Utslippsfaktorer!$AM$5,FALSE)) -> Stål, armering og bolter kamstål | X107: =$I107*Utslippsfaktorer!E$154 -> 0 | Y107: =$I107*Utslippsfaktorer!F$154 -> 0 | Z107: =$I107*Utslippsfaktorer!G$154 -> 0 | AA107: =$I107*Utslippsfaktorer!H$154 -> 0 | AB107: =$I107*Utslippsfaktorer!I$154 -> 0 | AC107: =$L107*Utslippsfaktorer!E$171*Utslippsfaktorer!$AP$171 -> 0 | AD107: =$L107*Utslippsfaktorer!F$171*Utslippsfaktorer!$AP$171 -> 0 | AE107: =$L107*Utslippsfaktorer!G$171*Utslippsfaktorer!$AP$171 -> 0 | AF107: =$L107*Utslippsfaktorer!H$171*Utslippsfaktorer!$AP$171 -> 0 | AG107: =$L107*Utslippsfaktorer!I$171*Utslippsfaktorer!$AP$171 -> 0 | AH107: =$N107*Utslippsfaktorer!E$177 -> 0 | AI107: =$N107*Utslippsfaktorer!F$177 -> 0 | AJ107: =$N107*Utslippsfaktorer!G$177 -> 0 | AK107: =$N107*Utslippsfaktorer!H$177 -> 0 | AL107: =$N107*Utslippsfaktorer!I$177 -> 0 | AM107: =((IF($P107="",0,VLOOKUP($P107,Utslippsfaktorer!$C$9:$I$493,Utslippsfaktorer!E$5,FALSE)))*$R107)+($S107*Utslippsfaktorer!E$170) -> 0 | AN107: =((IF($P107="",0,VLOOKUP($P107,Utslippsfaktorer!$C$9:$I$493,Utslippsfaktorer!F$5,FALSE)))*$R107)+($S107*Utslippsfaktorer!F$170) -> 0 | AO107: =((IF($P107="",0,VLOOKUP($P107,Utslippsfaktorer!$C$9:$I$493,Utslippsfaktorer!G$5,FALSE)))*$R107)+($S107*Utslippsfaktorer!G$170) -> 0 | AP107: =((IF($P107="",0,VLOOKUP($P107,Utslippsfaktorer!$C$9:$I$493,Utslippsfaktorer!H$5,FALSE)))*$R107)+($S107*Utslippsfaktorer!H$170) -> 0 | AQ107: =((IF($P107="",0,VLOOKUP($P107,Utslippsfaktorer!$C$9:$I$493,Utslippsfaktorer!I$5,FALSE)))*$R107)+($S107*Utslippsfaktorer!I$170) -> 0 | AR107: 0 | AS107: 0 | AT107: 0 | AU107: 0 | AV107: 0 | AX107: =$J107*Utslippsfaktorer!E$154 -> 0 | AY107: =$J107*Utslippsfaktorer!F$154 -> 0 | AZ107: =$J107*Utslippsfaktorer!G$154 -> 0 | BA107: =$J107*Utslippsfaktorer!H$154 -> 0 | BB107: =$J107*Utslippsfaktorer!I$154 -> 0 | BC107: =$O107*Utslippsfaktorer!E$178 -> 0 | BD107: =$O107*Utslippsfaktorer!F$178 -> 0 | BE107: =$O107*Utslippsfaktorer!G$178 -> 0 | BF107: =$O107*Utslippsfaktorer!H$178 -> 0 | BG107: =$O107*Utslippsfaktorer!I$178 -> 0 | BH107: =((IF($P107="",0,VLOOKUP($P107,Utslippsfaktorer!$C$9:$I$493,Utslippsfaktorer!E$5,FALSE)))*$T107)+($U107*Utslippsfaktorer!E$170) -> 0 | BI107: =((IF($P107="",0,VLOOKUP($P107,Utslippsfaktorer!$C$9:$I$493,Utslippsfaktorer!F$5,FALSE)))*$T107)+($U107*Utslippsfaktorer!F$170) -> 0 | BJ107: =((IF($P107="",0,VLOOKUP($P107,Utslippsfaktorer!$C$9:$I$493,Utslippsfaktorer!G$5,FALSE)))*$T107)+($U107*Utslippsfaktorer!G$170) -> 0 | BK107: =((IF($P107="",0,VLOOKUP($P107,Utslippsfaktorer!$C$9:$I$493,Utslippsfaktorer!H$5,FALSE)))*$T107)+($U107*Utslippsfaktorer!H$170) -> 0 | BL107: =((IF($P107="",0,VLOOKUP($P107,Utslippsfaktorer!$C$9:$I$493,Utslippsfaktorer!I$5,FALSE)))*$T107)+($U107*Utslippsfaktorer!I$170) -> 0 | BM107: 0 | BN107: 0 | BO107: 0 | BP107: 0 | BQ107: 0
B108: 23.232 | D108: Bolter, endeforankrede, lengde 2,4 m, diameter 20 mm | F108: stk | P108: Stål, bolter av kamstål | Q108: =IF(P108="","",VLOOKUP(P108,Utslippsfaktorer!$C$9:$D$460,2,FALSE)) -> kg | R108: =E108*2.4*Beregningsfaktorer!$C$50 -> 0 | S108: =IF((OR(F108=Nedtrekksmenyer!$F$4,P108="")),0,VLOOKUP(P108,Beregningsfaktorer!$L$73:$Q$352,Beregningsfaktorer!$Q$73,FALSE))*R108 -> 0 | U108: =IF((OR(F108=Nedtrekksmenyer!$F$4,P108="")),0,VLOOKUP(P108,Beregningsfaktorer!$L$73:$Q$352,Beregningsfaktorer!$Q$73,FALSE))*T108 -> 0 | V108: =IF(P108="","",VLOOKUP(P108,Utslippsfaktorer!$C$9:$AM$459,Utslippsfaktorer!$AM$5,FALSE)) -> Stål, armering og bolter kamstål | X108: =$I108*Utslippsfaktorer!E$154 -> 0 | Y108: =$I108*Utslippsfaktorer!F$154 -> 0 | Z108: =$I108*Utslippsfaktorer!G$154 -> 0 | AA108: =$I108*Utslippsfaktorer!H$154 -> 0 | AB108: =$I108*Utslippsfaktorer!I$154 -> 0 | AC108: =$L108*Utslippsfaktorer!E$171*Utslippsfaktorer!$AP$171 -> 0 | AD108: =$L108*Utslippsfaktorer!F$171*Utslippsfaktorer!$AP$171 -> 0 | AE108: =$L108*Utslippsfaktorer!G$171*Utslippsfaktorer!$AP$171 -> 0 | AF108: =$L108*Utslippsfaktorer!H$171*Utslippsfaktorer!$AP$171 -> 0 | AG108: =$L108*Utslippsfaktorer!I$171*Utslippsfaktorer!$AP$171 -> 0 | AH108: =$N108*Utslippsfaktorer!E$177 -> 0 | AI108: =$N108*Utslippsfaktorer!F$177 -> 0 | AJ108: =$N108*Utslippsfaktorer!G$177 -> 0 | AK108: =$N108*Utslippsfaktorer!H$177 -> 0 | AL108: =$N108*Utslippsfaktorer!I$177 -> 0 | AM108: =((IF($P108="",0,VLOOKUP($P108,Utslippsfaktorer!$C$9:$I$493,Utslippsfaktorer!E$5,FALSE)))*$R108)+($S108*Utslippsfaktorer!E$170) -> 0 | AN108: =((IF($P108="",0,VLOOKUP($P108,Utslippsfaktorer!$C$9:$I$493,Utslippsfaktorer!F$5,FALSE)))*$R108)+($S108*Utslippsfaktorer!F$170) -> 0 | AO108: =((IF($P108="",0,VLOOKUP($P108,Utslippsfaktorer!$C$9:$I$493,Utslippsfaktorer!G$5,FALSE)))*$R108)+($S108*Utslippsfaktorer!G$170) -> 0 | AP108: =((IF($P108="",0,VLOOKUP($P108,Utslippsfaktorer!$C$9:$I$493,Utslippsfaktorer!H$5,FALSE)))*$R108)+($S108*Utslippsfaktorer!H$170) -> 0 | AQ108: =((IF($P108="",0,VLOOKUP($P108,Utslippsfaktorer!$C$9:$I$493,Utslippsfaktorer!I$5,FALSE)))*$R108)+($S108*Utslippsfaktorer!I$170) -> 0 | AR108: 0 | AS108: 0 | AT108: 0 | AU108: 0 | AV108: 0 | AX108: =$J108*Utslippsfaktorer!E$154 -> 0 | AY108: =$J108*Utslippsfaktorer!F$154 -> 0 | AZ108: =$J108*Utslippsfaktorer!G$154 -> 0 | BA108: =$J108*Utslippsfaktorer!H$154 -> 0 | BB108: =$J108*Utslippsfaktorer!I$154 -> 0 | BC108: =$O108*Utslippsfaktorer!E$178 -> 0 | BD108: =$O108*Utslippsfaktorer!F$178 -> 0 | BE108: =$O108*Utslippsfaktorer!G$178 -> 0 | BF108: =$O108*Utslippsfaktorer!H$178 -> 0 | BG108: =$O108*Utslippsfaktorer!I$178 -> 0 | BH108: =((IF($P108="",0,VLOOKUP($P108,Utslippsfaktorer!$C$9:$I$493,Utslippsfaktorer!E$5,FALSE)))*$T108)+($U108*Utslippsfaktorer!E$170) -> 0 | BI108: =((IF($P108="",0,VLOOKUP($P108,Utslippsfaktorer!$C$9:$I$493,Utslippsfaktorer!F$5,FALSE)))*$T108)+($U108*Utslippsfaktorer!F$170) -> 0 | BJ108: =((IF($P108="",0,VLOOKUP($P108,Utslippsfaktorer!$C$9:$I$493,Utslippsfaktorer!G$5,FALSE)))*$T108)+($U108*Utslippsfaktorer!G$170) -> 0 | BK108: =((IF($P108="",0,VLOOKUP($P108,Utslippsfaktorer!$C$9:$I$493,Utslippsfaktorer!H$5,FALSE)))*$T108)+($U108*Utslippsfaktorer!H$170) -> 0 | BL108: =((IF($P108="",0,VLOOKUP($P108,Utslippsfaktorer!$C$9:$I$493,Utslippsfaktorer!I$5,FALSE)))*$T108)+($U108*Utslippsfaktorer!I$170) -> 0 | BM108: 0 | BN108: 0 | BO108: 0 | BP108: 0 | BQ108: 0
B109: 23.233 | D109: Bolter, endeforankrede, lengde 3 m, diameter 20 mm | F109: stk | P109: Stål, bolter av kamstål | Q109: =IF(P109="","",VLOOKUP(P109,Utslippsfaktorer!$C$9:$D$460,2,FALSE)) -> kg | R109: =E109*3*Beregningsfaktorer!$C$50 -> 0 | S109: =IF((OR(F109=Nedtrekksmenyer!$F$4,P109="")),0,VLOOKUP(P109,Beregningsfaktorer!$L$73:$Q$352,Beregningsfaktorer!$Q$73,FALSE))*R109 -> 0 | U109: =IF((OR(F109=Nedtrekksmenyer!$F$4,P109="")),0,VLOOKUP(P109,Beregningsfaktorer!$L$73:$Q$352,Beregningsfaktorer!$Q$73,FALSE))*T109 -> 0 | V109: =IF(P109="","",VLOOKUP(P109,Utslippsfaktorer!$C$9:$AM$459,Utslippsfaktorer!$AM$5,FALSE)) -> Stål, armering og bolter kamstål | X109: =$I109*Utslippsfaktorer!E$154 -> 0 | Y109: =$I109*Utslippsfaktorer!F$154 -> 0 | Z109: =$I109*Utslippsfaktorer!G$154 -> 0 | AA109: =$I109*Utslippsfaktorer!H$154 -> 0 | AB109: =$I109*Utslippsfaktorer!I$154 -> 0 | AC109: =$L109*Utslippsfaktorer!E$171*Utslippsfaktorer!$AP$171 -> 0 | AD109: =$L109*Utslippsfaktorer!F$171*Utslippsfaktorer!$AP$171 -> 0 | AE109: =$L109*Utslippsfaktorer!G$171*Utslippsfaktorer!$AP$171 -> 0 | AF109: =$L109*Utslippsfaktorer!H$171*Utslippsfaktorer!$AP$171 -> 0 | AG109: =$L109*Utslippsfaktorer!I$171*Utslippsfaktorer!$AP$171 -> 0 | AH109: =$N109*Utslippsfaktorer!E$177 -> 0 | AI109: =$N109*Utslippsfaktorer!F$177 -> 0 | AJ109: =$N109*Utslippsfaktorer!G$177 -> 0 | AK109: =$N109*Utslippsfaktorer!H$177 -> 0 | AL109: =$N109*Utslippsfaktorer!I$177 -> 0 | AM109: =((IF($P109="",0,VLOOKUP($P109,Utslippsfaktorer!$C$9:$I$493,Utslippsfaktorer!E$5,FALSE)))*$R109)+($S109*Utslippsfaktorer!E$170) -> 0 | AN109: =((IF($P109="",0,VLOOKUP($P109,Utslippsfaktorer!$C$9:$I$493,Utslippsfaktorer!F$5,FALSE)))*$R109)+($S109*Utslippsfaktorer!F$170) -> 0 | AO109: =((IF($P109="",0,VLOOKUP($P109,Utslippsfaktorer!$C$9:$I$493,Utslippsfaktorer!G$5,FALSE)))*$R109)+($S109*Utslippsfaktorer!G$170) -> 0 | AP109: =((IF($P109="",0,VLOOKUP($P109,Utslippsfaktorer!$C$9:$I$493,Utslippsfaktorer!H$5,FALSE)))*$R109)+($S109*Utslippsfaktorer!H$170) -> 0 | AQ109: =((IF($P109="",0,VLOOKUP($P109,Utslippsfaktorer!$C$9:$I$493,Utslippsfaktorer!I$5,FALSE)))*$R109)+($S109*Utslippsfaktorer!I$170) -> 0 | AR109: 0 | AS109: 0 | AT109: 0 | AU109: 0 | AV109: 0 | AX109: =$J109*Utslippsfaktorer!E$154 -> 0 | AY109: =$J109*Utslippsfaktorer!F$154 -> 0 | AZ109: =$J109*Utslippsfaktorer!G$154 -> 0 | BA109: =$J109*Utslippsfaktorer!H$154 -> 0 | BB109: =$J109*Utslippsfaktorer!I$154 -> 0 | BC109: =$O109*Utslippsfaktorer!E$178 -> 0 | BD109: =$O109*Utslippsfaktorer!F$178 -> 0 | BE109: =$O109*Utslippsfaktorer!G$178 -> 0 | BF109: =$O109*Utslippsfaktorer!H$178 -> 0 | BG109: =$O109*Utslippsfaktorer!I$178 -> 0 | BH109: =((IF($P109="",0,VLOOKUP($P109,Utslippsfaktorer!$C$9:$I$493,Utslippsfaktorer!E$5,FALSE)))*$T109)+($U109*Utslippsfaktorer!E$170) -> 0 | BI109: =((IF($P109="",0,VLOOKUP($P109,Utslippsfaktorer!$C$9:$I$493,Utslippsfaktorer!F$5,FALSE)))*$T109)+($U109*Utslippsfaktorer!F$170) -> 0 | BJ109: =((IF($P109="",0,VLOOKUP($P109,Utslippsfaktorer!$C$9:$I$493,Utslippsfaktorer!G$5,FALSE)))*$T109)+($U109*Utslippsfaktorer!G$170) -> 0 | BK109: =((IF($P109="",0,VLOOKUP($P109,Utslippsfaktorer!$C$9:$I$493,Utslippsfaktorer!H$5,FALSE)))*$T109)+($U109*Utslippsfaktorer!H$170) -> 0 | BL109: =((IF($P109="",0,VLOOKUP($P109,Utslippsfaktorer!$C$9:$I$493,Utslippsfaktorer!I$5,FALSE)))*$T109)+($U109*Utslippsfaktorer!I$170) -> 0 | BM109: 0 | BN109: 0 | BO109: 0 | BP109: 0 | BQ109: 0
